Workbook

Sheet 综合板
B1: ="* " & status -> * 当前股票：福耀玻璃
D5: 股票代码 | G5: =stockcode -> 600660 | K5: 名称 | N5: =stockname -> 福耀玻璃 | R5: 报告期 | U5: =base_date -> 2022-09-30 | Y5: ◎当前季度 | AB5: =sel_season -> 最新季 | AG5: 数据列示 | AK5: =ptype_selector -> 按TTM | AN5: =durationText -> 季度
D9: 综合
D11: 市场 | G11: 当前价 | J11: =price -> 34.78 | M11: 市盈率 | P11: =pe_ttm -> 20.39 | S11: 市净率 | V11: =pb -> 3.19 | Y11: 总市值 | AB11: =marketcap -> 907.67 | AE11: PEG | AH11: =pe_ttm/100/pg_fwd_gr -> 0.7531319914 | AK11: 总股本 | AN11: =shares -> 26.09746981 | AQ11: 流通比例 | AT11: =ltp -> 0.7675036081 | AW11: ~
D13: 业绩预告 | G13: 预告期限 | J13: =IF(INDEX(forecast_data,2,1)>latest_rpt,INDEX(forecast_data,2,1),"未披露") -> 未披露 | M13: 变动下限 | P13: =IFERROR(IF(INDEX(forecast_data,2,1)>latest_rpt,IFERROR(LEFT(INDEX(forecast_data,2,4),FIND("～",INDEX(forecast_data,2,4))-1),INDEX(forecast_data,2,4)),"未披露"),"-") -> 未披露 | S13: 变动上限 | V13: =IFERROR(IF(INDEX(forecast_data,2,1)>latest_rpt,IFERROR(RIGHT(INDEX(forecast_data,2,4),LEN(INDEX(forecast_data,2,4))-FIND("～",INDEX(forecast_data,2,4))),INDEX(forecast_data,2,4)),"未披露"),"--") -> 未披露 | Y13: 业绩下限 | AB13: =IFERROR(IF(INDEX(forecast_data,2,1)>latest_rpt,format_number(IFERROR(LEFT(INDEX(forecast_data,2,3),FIND("～",INDEX(forecast_data,2,3))-1),INDEX(forecast_data,2,3)))/unit,"未披露"),"--") -> 未披露 | AE13: 业绩上限 | AH13: =IFERROR(IF(INDEX(forecast_data,2,1)>latest_rpt,format_number(IFERROR(RIGHT(INDEX(forecast_data,2,3),LEN(INDEX(forecast_data,2,3))-FIND("～",INDEX(forecast_data,2,3))),INDEX(forecast_data,2,3)))/unit,"未披露"),"--") -> 未披露 | AK13: =IF(INDEX(forecast_data,2,1)>latest_rpt,INDEX(forecast_data,2,5),"无信息显示") -> 无信息显示
G15: 前瞻估值 | J15: / | M15: PEG下限 | P15: =IFERROR(AB15/100/P13,"不适用") -> 不适用 | S15: PEG上限 | V15: =IFERROR(AH15/100/V13,"不适用") -> 不适用 | Y15: 市盈下限 | AB15: =IFERROR(marketcap/AB13/12*MONTH(J13),"不适用") -> 不适用 | AE15: 市盈上限 | AH15: =IFERROR(marketcap*MONTH(J13)/12/AH13,"不适用") -> 不适用
D17: 管治层 | G17: 管理费用 | J17: =IFERROR(VLOOKUP("其中：管理费用",isa_a,MATCH(base_date_lyr,header_a,0),0),0) -> 19.44179027 | M17: 管理层持股 | P17: =IFERROR(INDEX(executive_compensation,2,2)/unit,"") -> 0.00714061 | S17: 管理层薪酬 | V17: =IFERROR(INDEX(executive_compensation,2,3)/unit,"") -> 0.27565 | Y17: 利润分配 | AB17: =IFERROR((VLOOKUP("上市公司股利*",cfa_s,MATCH(EOMONTH(base_date,0),header_a,0),0)+VLOOKUP("上市公司股利*",cfa_s,MATCH(EOMONTH(base_date,-3),header_a,0),0)+VLOOKUP("上市公司股利*",cfa_s,MATCH(EOMONTH(base_date,-6),header_a,0),0)+VLOOKUP("上市公司股利*",cfa_s,MATCH(EOMONTH(base_date,-9),header_a,0),0)),0) -> 25.94436651 | AE17: 股息率 | AH17: =dividend_ttm/marketcap -> 0.02858347914 | AK17: 融资(3年内) | AN17: =IFERROR(VLOOKUP("吸收投资收到的现金*",cfa_a,MATCH(EOMONTH(base_date_lyr,0),header_a,0),0)+VLOOKUP("吸收投资收到的现金*",cfa_a,MATCH(EOMONTH(base_date_lyr,-12),header_a,0),0)+VLOOKUP("吸收投资收到的现金*",cfa_a,MATCH(EOMONTH(base_date_lyr,-24),header_a,0),0),0) -> 35.78964489 | AQ17: 派现(3年内) | AT17: =IFERROR(VLOOKUP("上市公司股利*",cfa_a,MATCH(EOMONTH(base_date_lyr,0),header_a,0),0)+VLOOKUP("上市公司股利*",cfa_a,MATCH(EOMONTH(base_date_lyr,-12),header_a,0),0)+VLOOKUP("上市公司股利*",cfa_a,MATCH(EOMONTH(base_date_lyr,-24),header_a,0),0),0) -> 57.00714717 | AW17: ~
G19: 同比增长 | J19: =IFERROR(IFERROR(VLOOKUP("其中：管理费用",isa_a,MATCH(base_date_lyr,header_a,0),0),0)/IFERROR(VLOOKUP("其中：管理费用",isa_a,MATCH(EOMONTH(base_date_lyr,-12),header_a,0),0),0)-1,0) -> -0.06377940842 | M19: 占总股本 | P19: =IFERROR(INDEX(executive_compensation,2,2)/unit/shares,0) -> 0.0002736131147 | S19: 占管理费用 | V19: =IFERROR(V17/J17,"") -> 0.01417822105 | Y19: 利润分配率 | AB19: =d2ni -> 0.5831877972 | AE19: 质押率 | AH19: =IFERROR(INDEX(pledged_data,2,8)/100,"--") -> 0 | AK19: 受限质押率 | AN19: =IFERROR(INDEX(pledged_data,2,6)/10000/shares,"--") -> 0 | AQ19: 分红融资比 | AT19: =IFERROR(AT17/AN17,"--") -> 1.59283914 | AW19: ~
G21: 内部交易(1) | J21: =IFERROR(INDEX(insider_trading,2,5)/unit,0) -> 0 | M21: 占内部股% | P21: =IFERROR(ABS(J21/P17),0) -> 0 | S21: 占总股本% | V21: =IFERROR(ABS(J21/shares),0) -> 0 | Y21: 内部交易(3) | AB21: =IFERROR(INDEX(insider_trading,3,5)/unit,0) -> 0 | AE21: 内部交易(6) | AH21: =IFERROR(INDEX(insider_trading,4,5)/unit,0) -> 0 | AK21: 内部交易(12) | AN21: =IFERROR(INDEX(insider_trading,5,5)/unit,0) -> 0 | AQ21: 占总股本% | AT21: =IFERROR(ABS(AN21/shares),0) -> 0 | AW21: ~
D23: 财务状况 | G23: 评级分数 | J23: =计分牌!F45 -> 85.86607245 | M23: 总资产 | P23: =IFERROR(VLOOKUP("资产合计*",bsa_a,MATCH(base_date_lyr,header_a,0),0),0) -> 447.8489395 | S23: 归母净资产 | V23: =IFERROR(VLOOKUP("归属于母公司*",bsa_a,MATCH(base_date_lyr,header_a,0),0),0) -> 263.0601593 | Y23: 归母净利润 | AB23: =IFERROR(VLOOKUP("其中：归母净利润",isa_a,MATCH(base_date,header_a,0),0),0) -> 39.00828613 | AE23: 有息债务 | AH23: =(IFERROR(VLOOKUP("短期借款*",bsa_a,MATCH(base_date,header_a,0),0)+VLOOKUP("一年内到期的非流动负债*",bsa_a,MATCH(base_date,header_a,0),0)+VLOOKUP("其他流动负债*",bsa_a,MATCH(base_date,header_a,0),0),0)+IFERROR(VLOOKUP("长期借款*",bsa_a,MATCH(base_date,header_a,0),0)+VLOOKUP("应付债券*",bsa_a,MATCH(base_date,header_a,0),0),0)) -> 136.4028187 | AK23: 商誉 | AN23: =IFERROR(VLOOKUP("商誉*",bsa_a,MATCH(base_date_lyr,header_a,0),0),0) -> 1.54940513 | AQ23: 现金 | AT23: =IFERROR(VLOOKUP("货币资金*",bsa_a,MATCH(base_date_lyr,header_a,0),0),0) -> 143.2735626 | AW23: ~
G25: 上年同期 | J25: =IFERROR(INDEX(计分牌!F5:Q5,MATCH(EOMONTH(base_date,-12),计分牌!F4:Q4,0)),"--") -> 82.18168649 | M25: 同比变动 | P25: =IFERROR(IFERROR(VLOOKUP("资产合计*",bsa_a,MATCH(base_date,header_a,0),0),0)/IFERROR(VLOOKUP("资产合计*",bsa_a,MATCH(EOMONTH(base_date,-12),header_a,0),0),0)-1,0) -> 0.1430920022 | S25: 同比变动 | V25: =IFERROR(IFERROR(VLOOKUP("归属于母公司*",bsa_a,MATCH(base_date,header_a,0),0),0)/IFERROR(VLOOKUP("归属于母公司*",bsa_a,MATCH(EOMONTH(base_date,-12),header_a,0),0),0)-1,0) -> 0.1021340662 | Y25: 同比变动 | AB25: =IFERROR(IFERROR(VLOOKUP("其中：归母净利润",isa_a,MATCH(base_date,header_a,0),0),0)/IFERROR(VLOOKUP("其中：归母净利润",isa_a,MATCH(EOMONTH(base_date,-12),header_a,0),0),0)-1,0) -> 0.5027646722 | AE25: 同比变动 | AH25: =IFERROR((IFERROR(VLOOKUP("短期借款*",bsa_a,MATCH(base_date,header_a,0),0)+VLOOKUP("一年内到期的非流动负债*",bsa_a,MATCH(base_date,header_a,0),0)+VLOOKUP("其他流动负债*",bsa_a,MATCH(base_date,header_a,0),0),0)+IFERROR(VLOOKUP("长期借款*",bsa_a,MATCH(base_date,header_a,0),0)+VLOOKUP("应付债券*",bsa_a,MATCH(base_date,header_a,0),0),0))/(IFERROR(VLOOKUP("短期借款*",bsa_a,MATCH(EOMONTH(base_date,-12),header_a,0),0)+VLOOKUP("一年内到期的非流动负债*",bsa_a,MATCH(EOMONTH(base_date,-12),header_a,0),0)+VLOOKUP("其他流动负债*",bsa_a,MATCH(EOMONTH(base_date,-12),header_a,0),0),0)+IFERROR(VLOOKUP("长期借款*",bsa_a,MATCH(EOMONTH(base_date,-12),header_a,0),0)+VLOOKUP("应付债券*",bsa_a,MATCH(EOMONTH(base_date,-12),header_a,0),0),0))-1,0) -> 0.3324619312 | AK25: 同比变动 | AN25: =IFERROR(IFERROR(VLOOKUP("商誉*",bsa_a,MATCH(base_date,header_a,0),0),0)/IFERROR(VLOOKUP("商誉*",bsa_a,MATCH(EOMONTH(base_date,-12),header_a,0),0),0)-1,0) -> 0 | AQ25: 同比变动 | AT25: =IFERROR(IFERROR(VLOOKUP("货币资金*",bsa_a,MATCH(base_date,header_a,0),0),0)/IFERROR(VLOOKUP("货币资金*",bsa_a,MATCH(EOMONTH(base_date,-12),header_a,0),0),0)-1,0) -> 0.1556113299 | AW25: ~
G27: 毛利率 | J27: =gpm_ttm -> 0.3186479356 | M27: 净利率 | P27: =npm_ttm -> 0.1654400269 | S27: 核心利润率 | V27: =opg_ttm -> 0.1908706457 | Y27: ROE.TTM | AB27: =pb/pe_ttm -> 0.1564492398 | AE27: ROIC.TTM | AH27: =专题_t!D22 -> 0.105700535 | AK27: 资产负债率 | AN27: =IFERROR(VLOOKUP("负债合计*",bsa_a,MATCH(base_date,header_a,0),0)/VLOOKUP("资产合计*",bsa_a,MATCH(base_date,header_a,0),0),0) -> 0.4449963672 | AQ27: 有息负债率 | AT27: =IFERROR((IFERROR(VLOOKUP("短期借款*",bsa_a,MATCH(base_date,header_a,0),0)+VLOOKUP("一年内到期的非流动负债*",bsa_a,MATCH(base_date,header_a,0),0)+VLOOKUP("其他流动负债*",bsa_a,MATCH(base_date,header_a,0),0),0)+IFERROR(VLOOKUP("长期借款*",bsa_a,MATCH(base_date,header_a,0),0)+VLOOKUP("应付债券*",bsa_a,MATCH(base_date,header_a,0),0),0))/IFERROR(VLOOKUP("资产合计*",bsa_a,MATCH(base_date,header_a,0),0),0),0) -> 0.2661172119 | AW27: ~
G29: 上年同期 | J29: =专题_t!H44 -> 0.4113008622 | M29: 上年同期 | P29: =专题_t!H86 -> 0.1490347258 | S29: 上年同期 | V29: =专题_t!H20 -> 0.1643914312 | Y29: 上年同期 | AB29: =专题_t!H21 -> 0.1344304308 | AE29: 上年同期 | AH29: =专题_t!H22 -> 0.09625651622 | AQ29: 覆盖倍数 | AT29: =IFERROR((VLOOKUP("四、利润总额*",isa_s,MATCH(base_date,header_a,0),0)+VLOOKUP("四、利润总额*",isa_s,MATCH(EOMONTH(base_date,-3),header_a,0),0)+VLOOKUP("四、利润总额*",isa_s,MATCH(EOMONTH(base_date,-6),header_a,0),0)+VLOOKUP("四、利润总额*",isa_s,MATCH(EOMONTH(base_date,-9),header_a,0),0))/(VLOOKUP("其中：财务费用*",isa_s,MATCH(base_date,header_a,0),0)+VLOOKUP("其中：财务费用*",isa_s,MATCH(EOMONTH(base_date,-3),header_a,0),0)+VLOOKUP("其中：财务费用*",isa_s,MATCH(EOMONTH(base_date,-6),header_a,0),0)+VLOOKUP("其中：财务费用*",isa_s,MATCH(EOMONTH(base_date,-9),header_a,0),0)),"--") -> -8.346177639 | AW29: ~
D34: 预测报表
D36: 年度 | G36: =YEAR(base_date_lyr)-3 & "A" -> 2018A | J36: =YEAR(base_date_lyr)-2 & "A" -> 2019A | M36: =YEAR(base_date_lyr)-1 & "A" -> 2020A | P36: =YEAR(base_date_lyr) & "A" -> 2021A | S36: =YEAR(base_date_lyr) +1& "E" -> 2022E | V36: =YEAR(base_date_lyr) +2& "E" -> 2023E | Y36: =YEAR(base_date_lyr) +3& "E" -> 2024E | AB36: =YEAR(base_date_lyr) +1& "E2" -> 2022E2
D38: 营业总收入 | G38: =IFERROR(VLOOKUP("一、营业总收入",isa_a,MATCH(EOMONTH(base_date_lyr,-36),header_a,0),0),"") -> 202.2498572 | J38: =IFERROR(VLOOKUP("一、营业总收入",isa_a,MATCH(EOMONTH(base_date_lyr,-24),header_a,0),0),"") -> 211.0387752 | M38: =IFERROR(VLOOKUP("一、营业总收入",isa_a,MATCH(EOMONTH(base_date_lyr,-12),header_a,0),0),"") -> 199.0659347 | P38: =IFERROR(VLOOKUP("一、营业总收入",isa_a,MATCH(EOMONTH(base_date_lyr,0),header_a,0),0),"") -> 236.0306336 | S38: =EOMONTH(base_date_lyr,12)*revenue_slope + revenue_int -> 263.3254277 | V38: =EOMONTH(base_date_lyr,24)*revenue_slope + revenue_int -> 288.1567855 | Y38: =EOMONTH(base_date_lyr,36)*revenue_slope + revenue_int -> 313.0561744 | AB38: =revenue_forecast_a -> 274.9154266
D40: 同比% | G40: =IFERROR(IF(VLOOKUP("一、营业总收入",isa_a,MATCH(EOMONTH(base_date_lyr,-36),header_a,0),0)>VLOOKUP("一、营业总收入",isa_a,MATCH(EOMONTH(base_date_lyr,-48),header_a,0),0),ABS(VLOOKUP("一、营业总收入",isa_a,MATCH(EOMONTH(base_date_lyr,-36),header_a,0),0)/VLOOKUP("一、营业总收入",isa_a,MATCH(EOMONTH(base_date_lyr,-48),header_a,0),0)-1), -1*ABS(VLOOKUP("一、营业总收入",isa_a,MATCH(EOMONTH(base_date_lyr,-36),header_a,0),0)/VLOOKUP("一、营业总收入",isa_a,MATCH(EOMONTH(base_date_lyr,-48),header_a,0),0)-1)),"") -> 0.08064802939 | J40: =IFERROR(IF(VLOOKUP("一、营业总收入",isa_a,MATCH(EOMONTH(base_date_lyr,-24),header_a,0),0)>VLOOKUP("一、营业总收入",isa_a,MATCH(EOMONTH(base_date_lyr,-36),header_a,0),0),ABS(VLOOKUP("一、营业总收入",isa_a,MATCH(EOMONTH(base_date_lyr,-24),header_a,0),0)/VLOOKUP("一、营业总收入",isa_a,MATCH(EOMONTH(base_date_lyr,-36),header_a,0),0)-1), -1*ABS(VLOOKUP("一、营业总收入",isa_a,MATCH(EOMONTH(base_date_lyr,-24),header_a,0),0)/VLOOKUP("一、营业总收入",isa_a,MATCH(EOMONTH(base_date_lyr,-36),header_a,0),0)-1)),"") -> 0.04345574406 | M40: =IF(VLOOKUP("一、营业总收入",isa_a,MATCH(EOMONTH(base_date_lyr,-12),header_a,0),0)>VLOOKUP("一、营业总收入",isa_a,MATCH(EOMONTH(base_date_lyr,-24),header_a,0),0),ABS(VLOOKUP("一、营业总收入",isa_a,MATCH(EOMONTH(base_date_lyr,-12),header_a,0),0)/VLOOKUP("一、营业总收入",isa_a,MATCH(EOMONTH(base_date_lyr,-24),header_a,0),0)-1), -1*ABS(VLOOKUP("一、营业总收入",isa_a,MATCH(EOMONTH(base_date_lyr,-12),header_a,0),0)/VLOOKUP("一、营业总收入",isa_a,MATCH(EOMONTH(base_date_lyr,-24),header_a,0),0)-1)) -> -0.0567328944 | P40: =IF(VLOOKUP("一、营业总收入",isa_a,MATCH(EOMONTH(base_date_lyr,0),header_a,0),0)>VLOOKUP("一、营业总收入",isa_a,MATCH(EOMONTH(base_date_lyr,-12),header_a,0),0),ABS(VLOOKUP("一、营业总收入",isa_a,MATCH(EOMONTH(base_date_lyr,0),header_a,0),0)/VLOOKUP("一、营业总收入",isa_a,MATCH(EOMONTH(base_date_lyr,-12),header_a,0),0)-1), -1*ABS(VLOOKUP("一、营业总收入",isa_a,MATCH(EOMONTH(base_date_lyr,0),header_a,0),0)/VLOOKUP("一、营业总收入",isa_a,MATCH(EOMONTH(base_date_lyr,-12),header_a,0),0)-1)) -> 0.185690731 | S40: =IFERROR(S38/P38-1,"") -> 0.1156408965 | V40: =IFERROR(V38/S38-1,"") -> 0.0942991264 | Y40: =IFERROR(Y38/V38-1,"") -> 0.08640917085 | AB40: =IFERROR(AB38/P38-1,"--") -> 0.1647446874
D42: 净利润 | G42: =IFERROR(VLOOKUP("五、净利润",isa_a,MATCH(EOMONTH(base_date_lyr,-36),header_a,0),0),"") -> 41.07172649 | J42: =IFERROR(VLOOKUP("五、净利润",isa_a,MATCH(EOMONTH(base_date_lyr,-24),header_a,0),0),"") -> 28.98182172 | M42: =IFERROR(VLOOKUP("五、净利润",isa_a,MATCH(EOMONTH(base_date_lyr,-12),header_a,0),0),"") -> 25.98450936 | P42: =IFERROR(VLOOKUP("五、净利润",isa_a,MATCH(EOMONTH(base_date_lyr,0),header_a,0),0),"") -> 31.42980793 | S42: =EOMONTH(base_date_lyr,12)*profit_slope+profit_int -> 39.9389908 | V42: =EOMONTH(base_date_lyr,24)*profit_slope+profit_int -> 45.40538952 | Y42: =EOMONTH(base_date_lyr,36)*profit_slope+profit_int -> 50.88676469 | AB42: =profit_forecast_a -> 45.25914091
D44: 同比% | G44: =IFERROR(IF(VLOOKUP("五、净利润",isa_a,MATCH(EOMONTH(base_date_lyr,-36),header_a,0),0)>VLOOKUP("五、净利润",isa_a,MATCH(EOMONTH(base_date_lyr,-48),header_a,0),0),ABS(VLOOKUP("五、净利润",isa_a,MATCH(EOMONTH(base_date_lyr,-36),header_a,0),0)/VLOOKUP("五、净利润",isa_a,MATCH(EOMONTH(base_date_lyr,-48),header_a,0),0)-1), -1*ABS(VLOOKUP("五、净利润",isa_a,MATCH(EOMONTH(base_date_lyr,-36),header_a,0),0)/VLOOKUP("五、净利润",isa_a,MATCH(EOMONTH(base_date_lyr,-48),header_a,0),0)-1)),"") -> 0.3045922068 | J44: =IFERROR(IF(VLOOKUP("五、净利润",isa_a,MATCH(EOMONTH(base_date_lyr,-24),header_a,0),0)>VLOOKUP("五、净利润",isa_a,MATCH(EOMONTH(base_date_lyr,-36),header_a,0),0),ABS(VLOOKUP("五、净利润",isa_a,MATCH(EOMONTH(base_date_lyr,-24),header_a,0),0)/VLOOKUP("五、净利润",isa_a,MATCH(EOMONTH(base_date_lyr,-36),header_a,0),0)-1), -1*ABS(VLOOKUP("五、净利润",isa_a,MATCH(EOMONTH(base_date_lyr,-24),header_a,0),0)/VLOOKUP("五、净利润",isa_a,MATCH(EOMONTH(base_date_lyr,-36),header_a,0),0)-1)),"") -> -0.2943607636 | M44: =IF(VLOOKUP("五、净利润",isa_a,MATCH(EOMONTH(base_date_lyr,-12),header_a,0),0)>VLOOKUP("五、净利润",isa_a,MATCH(EOMONTH(base_date_lyr,-24),header_a,0),0),ABS(VLOOKUP("五、净利润",isa_a,MATCH(EOMONTH(base_date_lyr,-12),header_a,0),0)/VLOOKUP("五、净利润",isa_a,MATCH(EOMONTH(base_date_lyr,-24),header_a,0),0)-1), -1*ABS(VLOOKUP("五、净利润",isa_a,MATCH(EOMONTH(base_date_lyr,-12),header_a,0),0)/VLOOKUP("五、净利润",isa_a,MATCH(EOMONTH(base_date_lyr,-24),header_a,0),0)-1)) -> -0.1034204264 | P44: =IF(VLOOKUP("五、净利润",isa_a,MATCH(EOMONTH(base_date_lyr,0),header_a,0),0)>VLOOKUP("五、净利润",isa_a,MATCH(EOMONTH(base_date_lyr,-12),header_a,0),0),ABS(VLOOKUP("五、净利润",isa_a,MATCH(EOMONTH(base_date_lyr,0),header_a,0),0)/VLOOKUP("五、净利润",isa_a,MATCH(EOMONTH(base_date_lyr,-12),header_a,0),0)-1), -1*ABS(VLOOKUP("五、净利润",isa_a,MATCH(EOMONTH(base_date_lyr,0),header_a,0),0)/VLOOKUP("五、净利润",isa_a,MATCH(EOMONTH(base_date_lyr,-12),header_a,0),0)-1)) -> 0.2095594146 | S44: =IFERROR(S42/P42-1,"") -> 0.2707360759 | V44: =IFERROR(V42/S42-1,"") -> 0.1368687245 | Y44: =IFERROR(Y42/V42-1,"") -> 0.1207208048 | AB44: =IFERROR(AB42/P42-1,"--") -> 0.4400069199
D46: Forward PE | G46: / | J46: / | M46: / | P46: =IFERROR(marketcap/P42,"") -> 28.87927289 | S46: =IFERROR(marketcap/S42,"") -> 22.72641301 | V46: =IFERROR(marketcap/V42,"") -> 19.99035818 | Y46: =IFERROR(marketcap/Y42,"") -> 17.8370546 | AB46: =IFERROR(marketcap/AB42,"") -> 20.05495424
D86: 资产变化TOP5 | AL86: * 周转天数
D88: 排名 | G88: 资产项目 | M88: =base_date -> 2022-09-30 | P88: =EOMONTH(base_date,-12) -> 2021-09-30 | S88: 同比变动 | V88: 变动比例 | Y88: 环比变动 | AB88: 变动比例 | AE88: 本期占比 | AH88: 敏感性 | AL88: 资产项 | AQ88: =base_date -> 2022-09-30 | AT88: =EOMONTH(AQ88,-1*duration) -> 2022-06-30 | AW88: =EOMONTH(AT88,-1*duration) -> 2022-03-31
D90: 1 | G90: =_others!B41 -> 货币资金 | M90: =VLOOKUP($G90,bsa_a,MATCH(M$88,header_a,0),0) -> 176.0057443 | P90: =VLOOKUP($G90,bsa_a,MATCH(P$88,header_a,0),0) -> 152.3053121 | S90: =M90-P90 -> 23.70043217 | V90: =IFERROR(M90/P90-1,"--") -> 0.1556113299 | Y90: =VLOOKUP($G90,bsa_a,MATCH(M$88,header_a,0),0)-VLOOKUP($G90,bsa_a,MATCH(EOMONTH(M$88,-3),header_a,0),0) -> 6.68463744 | AB90: =IFERROR(Y90/VLOOKUP($G90,bsa_a,MATCH(EOMONTH(M$88,-3),header_a,0),0),"--") -> 0.03947905588 | AE90: =VLOOKUP($G90,bsa_a,MATCH(M$88,header_a,0),0)/VLOOKUP("资产合计*",bsa_a,MATCH(M$88,header_a,0),0) -> 0.3433811587 | AH90: =IFERROR(S90/VLOOKUP("其中：归母净利润*",isa_ttm,MATCH(base_date,header_a,0),0),"--") -> 0.5324470985 | AL90: =G90 -> 货币资金 | AQ90: =IFERROR(360/IFERROR(VLOOKUP("一、营业总收入*",isa_ttm,MATCH(AQ$88,header_a,0),0)/VLOOKUP($AL90,bsa_a,MATCH(AQ$88,header_a,0),0),"--"),"--") -> 235.6325549 | AT90: =IFERROR(360/IFERROR(VLOOKUP("一、营业总收入*",isa_ttm,MATCH(AT$88,header_a,0),0)/VLOOKUP($AL90,bsa_a,MATCH(AT$88,header_a,0),0),"--"),"--") -> 244.1779756 | AW90: =IFERROR(360/IFERROR(VLOOKUP("一、营业总收入*",isa_ttm,MATCH(AW$88,header_a,0),0)/VLOOKUP($AL90,bsa_a,MATCH(AW$88,header_a,0),0),"--"),"--") -> 238.6026716
D92: 2 | G92: =_others!B42 -> 应收账款 | M92: =VLOOKUP($G92,bsa_a,MATCH(M$88,header_a,0),0) -> 52.6388878 | P92: =VLOOKUP($G92,bsa_a,MATCH(P$88,header_a,0),0) -> 38.19083574 | S92: =M92-P92 -> 14.44805206 | V92: =IFERROR(M92/P92-1,"--") -> 0.378312016 | Y92: =VLOOKUP($G92,bsa_a,MATCH(M$88,header_a,0),0)-VLOOKUP($G92,bsa_a,MATCH(EOMONTH(M$88,-3),header_a,0),0) -> 11.15796202 | AB92: =IFERROR(Y92/VLOOKUP($G92,bsa_a,MATCH(EOMONTH(M$88,-3),header_a,0),0),"--") -> 0.2689901879 | AE92: =VLOOKUP($G92,bsa_a,MATCH(M$88,header_a,0),0)/VLOOKUP("资产合计*",bsa_a,MATCH(M$88,header_a,0),0) -> 0.1026966612 | AH92: =IFERROR(S92/VLOOKUP("其中：归母净利润*",isa_ttm,MATCH(base_date,header_a,0),0),"--") -> 0.3245857857 | AL92: =G92 -> 应收账款 | AQ92: =IFERROR(360/IFERROR(VLOOKUP("一、营业总收入*",isa_ttm,MATCH(AQ$88,header_a,0),0)/VLOOKUP($AL92,bsa_a,MATCH(AQ$88,header_a,0),0),"--"),"--") -> 70.47176594 | AT92: =IFERROR(360/IFERROR(VLOOKUP("一、营业总收入*",isa_ttm,MATCH(AT$88,header_a,0),0)/VLOOKUP($AL92,bsa_a,MATCH(AT$88,header_a,0),0),"--"),"--") -> 59.81964488 | AW92: =IFERROR(360/IFERROR(VLOOKUP("一、营业总收入*",isa_ttm,MATCH(AW$88,header_a,0),0)/VLOOKUP($AL92,bsa_a,MATCH(AW$88,header_a,0),0),"--"),"--") -> 63.72255618
D94: 3 | G94: =_others!B43 -> 存货 | M94: =VLOOKUP($G94,bsa_a,MATCH(M$88,header_a,0),0) -> 53.61622144 | P94: =VLOOKUP($G94,bsa_a,MATCH(P$88,header_a,0),0) -> 39.27564 | S94: =M94-P94 -> 14.34058144 | V94: =IFERROR(M94/P94-1,"--") -> 0.3651266139 | Y94: =VLOOKUP($G94,bsa_a,MATCH(M$88,header_a,0),0)-VLOOKUP($G94,bsa_a,MATCH(EOMONTH(M$88,-3),header_a,0),0) -> 4.32166515 | AB94: =IFERROR(Y94/VLOOKUP($G94,bsa_a,MATCH(EOMONTH(M$88,-3),header_a,0),0),"--") -> 0.08767023126 | AE94: =VLOOKUP($G94,bsa_a,MATCH(M$88,header_a,0),0)/VLOOKUP("资产合计*",bsa_a,MATCH(M$88,header_a,0),0) -> 0.1046034055 | AH94: =IFERROR(S94/VLOOKUP("其中：归母净利润*",isa_ttm,MATCH(base_date,header_a,0),0),"--") -> 0.3221713817 | AL94: =G94 -> 存货 | AQ94: =IFERROR(360/IFERROR(VLOOKUP("一、营业总收入*",isa_ttm,MATCH(AQ$88,header_a,0),0)/VLOOKUP($AL94,bsa_a,MATCH(AQ$88,header_a,0),0),"--"),"--") -> 71.78019837 | AT94: =IFERROR(360/IFERROR(VLOOKUP("一、营业总收入*",isa_ttm,MATCH(AT$88,header_a,0),0)/VLOOKUP($AL94,bsa_a,MATCH(AT$88,header_a,0),0),"--"),"--") -> 71.08768178 | AW94: =IFERROR(360/IFERROR(VLOOKUP("一、营业总收入*",isa_ttm,MATCH(AW$88,header_a,0),0)/VLOOKUP($AL94,bsa_a,MATCH(AW$88,header_a,0),0),"--"),"--") -> 67.35799649
D96: 4 | G96: =_others!B44 -> 在建工程 | M96: =VLOOKUP($G96,bsa_a,MATCH(M$88,header_a,0),0) -> 28.06117559 | P96: =VLOOKUP($G96,bsa_a,MATCH(P$88,header_a,0),0) -> 23.15187114 | S96: =M96-P96 -> 4.90930445 | V96: =IFERROR(M96/P96-1,"--") -> 0.2120478479 | Y96: =VLOOKUP($G96,bsa_a,MATCH(M$88,header_a,0),0)-VLOOKUP($G96,bsa_a,MATCH(EOMONTH(M$88,-3),header_a,0),0) -> 3.81469824 | AB96: =IFERROR(Y96/VLOOKUP($G96,bsa_a,MATCH(EOMONTH(M$88,-3),header_a,0),0),"--") -> 0.1573299983 | AE96: =VLOOKUP($G96,bsa_a,MATCH(M$88,header_a,0),0)/VLOOKUP("资产合计*",bsa_a,MATCH(M$88,header_a,0),0) -> 0.05474638925 | AH96: =IFERROR(S96/VLOOKUP("其中：归母净利润*",isa_ttm,MATCH(base_date,header_a,0),0),"--") -> 0.110291023 | AL96: =G96 -> 在建工程 | AQ96: =IFERROR(360/IFERROR(VLOOKUP("一、营业总收入*",isa_ttm,MATCH(AQ$88,header_a,0),0)/VLOOKUP($AL96,bsa_a,MATCH(AQ$88,header_a,0),0),"--"),"--") -> 37.56767441 | AT96: =IFERROR(360/IFERROR(VLOOKUP("一、营业总收入*",isa_ttm,MATCH(AT$88,header_a,0),0)/VLOOKUP($AL96,bsa_a,MATCH(AT$88,header_a,0),0),"--"),"--") -> 34.96584605 | AW96: =IFERROR(360/IFERROR(VLOOKUP("一、营业总收入*",isa_ttm,MATCH(AW$88,header_a,0),0)/VLOOKUP($AL96,bsa_a,MATCH(AW$88,header_a,0),0),"--"),"--") -> 33.48110563
D98: 5 | G98: =_others!B45 -> 固定资产 | M98: =VLOOKUP($G98,bsa_a,MATCH(M$88,header_a,0),0) -> 146.8527763 | P98: =VLOOKUP($G98,bsa_a,MATCH(P$88,header_a,0),0) -> 142.7942178 | S98: =M98-P98 -> 4.05855859 | V98: =IFERROR(M98/P98-1,"--") -> 0.02842242952 | Y98: =VLOOKUP($G98,bsa_a,MATCH(M$88,header_a,0),0)-VLOOKUP($G98,bsa_a,MATCH(EOMONTH(M$88,-3),header_a,0),0) -> 1.74020435 | AB98: =IFERROR(Y98/VLOOKUP($G98,bsa_a,MATCH(EOMONTH(M$88,-3),header_a,0),0),"--") -> 0.01199209914 | AE98: =VLOOKUP($G98,bsa_a,MATCH(M$88,header_a,0),0)/VLOOKUP("资产合计*",bsa_a,MATCH(M$88,header_a,0),0) -> 0.28650472 | AH98: =IFERROR(S98/VLOOKUP("其中：归母净利润*",isa_ttm,MATCH(base_date,header_a,0),0),"--") -> 0.091178411 | AL98: =G98 -> 固定资产 | AQ98: =IFERROR(360/IFERROR(VLOOKUP("一、营业总收入*",isa_ttm,MATCH(AQ$88,header_a,0),0)/VLOOKUP($AL98,bsa_a,MATCH(AQ$88,header_a,0),0),"--"),"--") -> 196.6032132 | AT98: =IFERROR(360/IFERROR(VLOOKUP("一、营业总收入*",isa_ttm,MATCH(AT$88,header_a,0),0)/VLOOKUP($AL98,bsa_a,MATCH(AT$88,header_a,0),0),"--"),"--") -> 209.2668464 | AW98: =IFERROR(360/IFERROR(VLOOKUP("一、营业总收入*",isa_ttm,MATCH(AW$88,header_a,0),0)/VLOOKUP($AL98,bsa_a,MATCH(AW$88,header_a,0),0),"--"),"--") -> 209.2738212
D101: 负债变化TOP5
D103: 排名 | G103: 负债项目 | M103: =base_date -> 2022-09-30 | P103: =EOMONTH(base_date,-12) -> 2021-09-30 | S103: 同比变动 | V103: 变动比例 | Y103: 环比变动 | AB103: 变动比例 | AE103: 本期占比 | AH103: 敏感性
D105: 1 | G105: =_others!C41 -> 一年内到期的非流动负债 | M105: =VLOOKUP($G105,bsa_a,MATCH(M$103,header_a,0),0) -> 24.80303844 | P105: =VLOOKUP($G105,bsa_a,MATCH(P$103,header_a,0),0) -> 0 | S105: =IFERROR(M105-P105,"--") -> 24.80303844 | V105: =IFERROR(M105/P105-1,"--") -> -- | Y105: =VLOOKUP($G105,bsa_a,MATCH(M$103,header_a,0),0)-VLOOKUP($G105,bsa_a,MATCH(EOMONTH(M$103,-3),header_a,0),0) -> 24.80303844 | AB105: =IFERROR(Y105/VLOOKUP($G105,bsa_a,MATCH(EOMONTH(M$103,-3),header_a,0),0),"--") -> -- | AE105: =VLOOKUP($G105,bsa_a,MATCH(M$103,header_a,0),0)/VLOOKUP("资产合计*",bsa_a,MATCH(M$103,header_a,0),0) -> 0.04838987564 | AH105: =IFERROR($S105/VLOOKUP("其中：归母净利润*",isa_ttm,MATCH(base_date,header_a,0),0),"--") -> 0.5572179341
D107: 2 | G107: =_others!C42 -> 流动负债-平衡项 | M107: =VLOOKUP($G107,bsa_a,MATCH(M$103,header_a,0),0) -> 0 | P107: =VLOOKUP($G107,bsa_a,MATCH(P$103,header_a,0),0) -> 15.85881251 | S107: =IFERROR(M107-P107,"--") -> -15.85881251 | V107: =IFERROR(M107/P107-1,"--") -> -1 | Y107: =VLOOKUP($G107,bsa_a,MATCH(M$103,header_a,0),0)-VLOOKUP($G107,bsa_a,MATCH(EOMONTH(M$103,-3),header_a,0),0) -> -30.54847994 | AB107: =IFERROR(Y107/VLOOKUP($G107,bsa_a,MATCH(EOMONTH(M$103,-3),header_a,0),0),"--") -> -1 | AE107: =VLOOKUP($G107,bsa_a,MATCH(M$103,header_a,0),0)/VLOOKUP("资产合计*",bsa_a,MATCH(M$103,header_a,0),0) -> 0 | AH107: =IFERROR($S107/VLOOKUP("其中：归母净利润*",isa_ttm,MATCH(base_date,header_a,0),0),"--") -> -0.3562795246
D109: 3 | G109: =_others!C43 -> 应付债券 | M109: =VLOOKUP($G109,bsa_a,MATCH(M$103,header_a,0),0) -> 0 | P109: =VLOOKUP($G109,bsa_a,MATCH(P$103,header_a,0),0) -> 11.98817548 | S109: =IFERROR(M109-P109,"--") -> -11.98817548 | V109: =IFERROR(M109/P109-1,"--") -> -1 | Y109: =VLOOKUP($G109,bsa_a,MATCH(M$103,header_a,0),0)-VLOOKUP($G109,bsa_a,MATCH(EOMONTH(M$103,-3),header_a,0),0) -> 0 | AB109: =IFERROR(Y109/VLOOKUP($G109,bsa_a,MATCH(EOMONTH(M$103,-3),header_a,0),0),"--") -> -- | AE109: =VLOOKUP($G109,bsa_a,MATCH(M$103,header_a,0),0)/VLOOKUP("资产合计*",bsa_a,MATCH(M$103,header_a,0),0) -> 0 | AH109: =IFERROR($S109/VLOOKUP("其中：归母净利润*",isa_ttm,MATCH(base_date,header_a,0),0),"--") -> -0.2693229054
D111: 4 | G111: =_others!C44 -> 长期借款 | M111: =VLOOKUP($G111,bsa_a,MATCH(M$103,header_a,0),0) -> 23.755 | P111: =VLOOKUP($G111,bsa_a,MATCH(P$103,header_a,0),0) -> 13.4097 | S111: =IFERROR(M111-P111,"--") -> 10.3453 | V111: =IFERROR(M111/P111-1,"--") -> 0.7714788549 | Y111: =VLOOKUP($G111,bsa_a,MATCH(M$103,header_a,0),0)-VLOOKUP($G111,bsa_a,MATCH(EOMONTH(M$103,-3),header_a,0),0) -> -2.505 | AB111: =IFERROR(Y111/VLOOKUP($G111,bsa_a,MATCH(EOMONTH(M$103,-3),header_a,0),0),"--") -> -0.09539223153 | AE111: =VLOOKUP($G111,bsa_a,MATCH(M$103,header_a,0),0)/VLOOKUP("资产合计*",bsa_a,MATCH(M$103,header_a,0),0) -> 0.04634518866 | AH111: =IFERROR($S111/VLOOKUP("其中：归母净利润*",isa_ttm,MATCH(base_date,header_a,0),0),"--") -> 0.2324145369
D113: 5 | G113: =_others!C45 -> 应付账款 | M113: =VLOOKUP($G113,bsa_a,MATCH(M$103,header_a,0),0) -> 19.90149244 | P113: =VLOOKUP($G113,bsa_a,MATCH(P$103,header_a,0),0) -> 12.88639402 | S113: =IFERROR(M113-P113,"--") -> 7.01509842 | V113: =IFERROR(M113/P113-1,"--") -> 0.5443802517 | Y113: =VLOOKUP($G113,bsa_a,MATCH(M$103,header_a,0),0)-VLOOKUP($G113,bsa_a,MATCH(EOMONTH(M$103,-3),header_a,0),0) -> 3.8883139 | AB113: =IFERROR(Y113/VLOOKUP($G113,bsa_a,MATCH(EOMONTH(M$103,-3),header_a,0),0),"--") -> 0.2428196182 | AE113: =VLOOKUP($G113,bsa_a,MATCH(M$103,header_a,0),0)/VLOOKUP("资产合计*",bsa_a,MATCH(M$103,header_a,0),0) -> 0.03882712783 | AH113: =IFERROR($S113/VLOOKUP("其中：归母净利润*",isa_ttm,MATCH(base_date,header_a,0),0),"--") -> 0.1575991852
D117: 营业与利润增长报表 | AF117: 百分比损益表 -- 占营收比例
D119: 项目 | J119: =base_date -> 2022-09-30 | M119: =EOMONTH(J119,-1*duration) -> 2022-06-30 | P119: =EOMONTH(M119,-1*duration) -> 2022-03-31 | S119: =EOMONTH(P119,-1*duration) -> 2021-12-31 | V119: =EOMONTH(S119,-1*duration) -> 2021-09-30 | Y119: =EOMONTH(V119,-1*duration) -> 2021-06-30 | AB119: =EOMONTH(Y119,-1*duration) -> 2021-03-31 | AF119: 项目 | AK119: =base_date -> 2022-09-30 | AN119: =EOMONTH(AK119,-1*duration) -> 2022-06-30 | AQ119: =EOMONTH(AN119,-1*duration) -> 2022-03-31 | AT119: =EOMONTH(AQ119,-1*duration) -> 2021-12-31 | AW119: =EOMONTH(AT119,-1*duration) -> 2021-09-30
D121: 营业总收入 | J121: =IFERROR(VLOOKUP("一、营业总收入*",INDIRECT(VLOOKUP(ptype_selector,table_names,2,0)),MATCH(J$119,header_a,0),0),"") -> 268.9020114 | M121: =IFERROR(VLOOKUP("一、营业总收入*",INDIRECT(VLOOKUP(ptype_selector,table_names,2,0)),MATCH(M$119,header_a,0),0),"") -> 249.63594 | P121: =IFERROR(VLOOKUP("一、营业总收入*",INDIRECT(VLOOKUP(ptype_selector,table_names,2,0)),MATCH(P$119,header_a,0),0),"") -> 244.4485604 | S121: =IFERROR(VLOOKUP("一、营业总收入*",INDIRECT(VLOOKUP(ptype_selector,table_names,2,0)),MATCH(S$119,header_a,0),0),"") -> 236.0306336 | V121: =IFERROR(VLOOKUP("一、营业总收入*",INDIRECT(VLOOKUP(ptype_selector,table_names,2,0)),MATCH(V$119,header_a,0),0),"") -> 232.8316924 | Y121: =IFERROR(VLOOKUP("一、营业总收入*",INDIRECT(VLOOKUP(ptype_selector,table_names,2,0)),MATCH(Y$119,header_a,0),0),"") -> 233.2849475 | AB121: =IFERROR(VLOOKUP("一、营业总收入*",INDIRECT(VLOOKUP(ptype_selector,table_names,2,0)),MATCH(AB$119,header_a,0),0),"") -> 214.420626 | AF121: 营业总成本 | AK121: =IFERROR(IFERROR(VLOOKUP("二、营业总成本*",INDIRECT(VLOOKUP(ptype_selector,table_names,2,0)),MATCH(AK$119,header_a,0),0),"")/IFERROR(VLOOKUP("一、营业总收入*",INDIRECT(VLOOKUP(ptype_selector,table_names,2,0)),MATCH(AK$119,header_a,0),0),""),"--") -> 0.8091293543 | AN121: =IFERROR(IFERROR(VLOOKUP("二、营业总成本*",INDIRECT(VLOOKUP(ptype_selector,table_names,2,0)),MATCH(AN$119,header_a,0),0),"")/IFERROR(VLOOKUP("一、营业总收入*",INDIRECT(VLOOKUP(ptype_selector,table_names,2,0)),MATCH(AN$119,header_a,0),0),""),"--") -> 0.8357485197 | AQ121: =IFERROR(IFERROR(VLOOKUP("二、营业总成本*",INDIRECT(VLOOKUP(ptype_selector,table_names,2,0)),MATCH(AQ$119,header_a,0),0),"")/IFERROR(VLOOKUP("一、营业总收入*",INDIRECT(VLOOKUP(ptype_selector,table_names,2,0)),MATCH(AQ$119,header_a,0),0),""),"--") -> 0.8552975094 | AT121: =IFERROR(IFERROR(VLOOKUP("二、营业总成本*",INDIRECT(VLOOKUP(ptype_selector,table_names,2,0)),MATCH(AT$119,header_a,0),0),"")/IFERROR(VLOOKUP("一、营业总收入*",INDIRECT(VLOOKUP(ptype_selector,table_names,2,0)),MATCH(AT$119,header_a,0),0),""),"--") -> 0.8521349045 | AW121: =IFERROR(IFERROR(VLOOKUP("二、营业总成本*",INDIRECT(VLOOKUP(ptype_selector,table_names,2,0)),MATCH(AW$119,header_a,0),0),"")/IFERROR(VLOOKUP("一、营业总收入*",INDIRECT(VLOOKUP(ptype_selector,table_names,2,0)),MATCH(AW$119,header_a,0),0),""),"--") -> 0.8356085688
D123: 同比 | J123: =IFERROR(IF(IFERROR(VLOOKUP("一、营业总收入*",INDIRECT(VLOOKUP(ptype_selector,table_names,2,0)),MATCH(J$119,header_a,0),0),"")>IFERROR(VLOOKUP("一、营业总收入*",INDIRECT(VLOOKUP(ptype_selector,table_names,2,0)),MATCH(EOMONTH(J$119,-12),header_a,0),0),""),ABS(IFERROR(VLOOKUP("一、营业总收入*",INDIRECT(VLOOKUP(ptype_selector,table_names,2,0)),MATCH(J$119,header_a,0),0),"")/IFERROR(VLOOKUP("一、营业总收入*",INDIRECT(VLOOKUP(ptype_selector,table_names,2,0)),MATCH(EOMONTH(J$119,-12),header_a,0),0),"")-1),-1*ABS(IFERROR(VLOOKUP("一、营业总收入*",INDIRECT(VLOOKUP(ptype_selector,table_names,2,0)),MATCH(J$119,header_a,0),0),"")/IFERROR(VLOOKUP("一、营业总收入*",INDIRECT(VLOOKUP(ptype_selector,table_names,2,0)),MATCH(EOMONTH(J$119,-12),header_a,0),0),"")-1)),"--") -> 0.1549201424 | M123: =IFERROR(IF(IFERROR(VLOOKUP("一、营业总收入*",INDIRECT(VLOOKUP(ptype_selector,table_names,2,0)),MATCH(M$119,header_a,0),0),"")>IFERROR(VLOOKUP("一、营业总收入*",INDIRECT(VLOOKUP(ptype_selector,table_names,2,0)),MATCH(EOMONTH(M$119,-12),header_a,0),0),""),ABS(IFERROR(VLOOKUP("一、营业总收入*",INDIRECT(VLOOKUP(ptype_selector,table_names,2,0)),MATCH(M$119,header_a,0),0),"")/IFERROR(VLOOKUP("一、营业总收入*",INDIRECT(VLOOKUP(ptype_selector,table_names,2,0)),MATCH(EOMONTH(M$119,-12),header_a,0),0),"")-1),-1*ABS(IFERROR(VLOOKUP("一、营业总收入*",INDIRECT(VLOOKUP(ptype_selector,table_names,2,0)),MATCH(M$119,header_a,0),0),"")/IFERROR(VLOOKUP("一、营业总收入*",INDIRECT(VLOOKUP(ptype_selector,table_names,2,0)),MATCH(EOMONTH(M$119,-12),header_a,0),0),"")-1)),"--") -> 0.07009021674 | P123: =IFERROR(IF(IFERROR(VLOOKUP("一、营业总收入*",INDIRECT(VLOOKUP(ptype_selector,table_names,2,0)),MATCH(P$119,header_a,0),0),"")>IFERROR(VLOOKUP("一、营业总收入*",INDIRECT(VLOOKUP(ptype_selector,table_names,2,0)),MATCH(EOMONTH(P$119,-12),header_a,0),0),""),ABS(IFERROR(VLOOKUP("一、营业总收入*",INDIRECT(VLOOKUP(ptype_selector,table_names,2,0)),MATCH(P$119,header_a,0),0),"")/IFERROR(VLOOKUP("一、营业总收入*",INDIRECT(VLOOKUP(ptype_selector,table_names,2,0)),MATCH(EOMONTH(P$119,-12),header_a,0),0),"")-1),-1*ABS(IFERROR(VLOOKUP("一、营业总收入*",INDIRECT(VLOOKUP(ptype_selector,table_names,2,0)),MATCH(P$119,header_a,0),0),"")/IFERROR(VLOOKUP("一、营业总收入*",INDIRECT(VLOOKUP(ptype_selector,table_names,2,0)),MATCH(EOMONTH(P$119,-12),header_a,0),0),"")-1)),"--") -> 0.1400421919 | S123: =IFERROR(IF(IFERROR(VLOOKUP("一、营业总收入*",INDIRECT(VLOOKUP(ptype_selector,table_names,2,0)),MATCH(S$119,header_a,0),0),"")>IFERROR(VLOOKUP("一、营业总收入*",INDIRECT(VLOOKUP(ptype_selector,table_names,2,0)),MATCH(EOMONTH(S$119,-12),header_a,0),0),""),ABS(IFERROR(VLOOKUP("一、营业总收入*",INDIRECT(VLOOKUP(ptype_selector,table_names,2,0)),MATCH(S$119,header_a,0),0),"")/IFERROR(VLOOKUP("一、营业总收入*",INDIRECT(VLOOKUP(ptype_selector,table_names,2,0)),MATCH(EOMONTH(S$119,-12),header_a,0),0),"")-1),-1*ABS(IFERROR(VLOOKUP("一、营业总收入*",INDIRECT(VLOOKUP(ptype_selector,table_names,2,0)),MATCH(S$119,header_a,0),0),"")/IFERROR(VLOOKUP("一、营业总收入*",INDIRECT(VLOOKUP(ptype_selector,table_names,2,0)),MATCH(EOMONTH(S$119,-12),header_a,0),0),"")-1)),"--") -> 0.185690731 | V123: =IFERROR(IF(IFERROR(VLOOKUP("一、营业总收入*",INDIRECT(VLOOKUP(ptype_selector,table_names,2,0)),MATCH(V$119,header_a,0),0),"")>IFERROR(VLOOKUP("一、营业总收入*",INDIRECT(VLOOKUP(ptype_selector,table_names,2,0)),MATCH(EOMONTH(V$119,-12),header_a,0),0),""),ABS(IFERROR(VLOOKUP("一、营业总收入*",INDIRECT(VLOOKUP(ptype_selector,table_names,2,0)),MATCH(V$119,header_a,0),0),"")/IFERROR(VLOOKUP("一、营业总收入*",INDIRECT(VLOOKUP(ptype_selector,table_names,2,0)),MATCH(EOMONTH(V$119,-12),header_a,0),0),"")-1),-1*ABS(IFERROR(VLOOKUP("一、营业总收入*",INDIRECT(VLOOKUP(ptype_selector,table_names,2,0)),MATCH(V$119,header_a,0),0),"")/IFERROR(VLOOKUP("一、营业总收入*",INDIRECT(VLOOKUP(ptype_selector,table_names,2,0)),MATCH(EOMONTH(V$119,-12),header_a,0),0),"")-1)),"--") -> 0.2097315388 | Y123: =IFERROR(IF(IFERROR(VLOOKUP("一、营业总收入*",INDIRECT(VLOOKUP(ptype_selector,table_names,2,0)),MATCH(Y$119,header_a,0),0),"")>IFERROR(VLOOKUP("一、营业总收入*",INDIRECT(VLOOKUP(ptype_selector,table_names,2,0)),MATCH(EOMONTH(Y$119,-12),header_a,0),0),""),ABS(IFERROR(VLOOKUP("一、营业总收入*",INDIRECT(VLOOKUP(ptype_selector,table_names,2,0)),MATCH(Y$119,header_a,0),0),"")/IFERROR(VLOOKUP("一、营业总收入*",INDIRECT(VLOOKUP(ptype_selector,table_names,2,0)),MATCH(EOMONTH(Y$119,-12),header_a,0),0),"")-1),-1*ABS(IFERROR(VLOOKUP("一、营业总收入*",INDIRECT(VLOOKUP(ptype_selector,table_names,2,0)),MATCH(Y$119,header_a,0),0),"")/IFERROR(VLOOKUP("一、营业总收入*",INDIRECT(VLOOKUP(ptype_selector,table_names,2,0)),MATCH(EOMONTH(Y$119,-12),header_a,0),0),"")-1)),"--") -> 0.2318493658 | AB123: =IFERROR(IF(IFERROR(VLOOKUP("一、营业总收入*",INDIRECT(VLOOKUP(ptype_selector,table_names,2,0)),MATCH(AB$119,header_a,0),0),"")>IFERROR(VLOOKUP("一、营业总收入*",INDIRECT(VLOOKUP(ptype_selector,table_names,2,0)),MATCH(EOMONTH(AB$119,-12),header_a,0),0),""),ABS(IFERROR(VLOOKUP("一、营业总收入*",INDIRECT(VLOOKUP(ptype_selector,table_names,2,0)),MATCH(AB$119,header_a,0),0),"")/IFERROR(VLOOKUP("一、营业总收入*",INDIRECT(VLOOKUP(ptype_selector,table_names,2,0)),MATCH(EOMONTH(AB$119,-12),header_a,0),0),"")-1),-1*ABS(IFERROR(VLOOKUP("一、营业总收入*",INDIRECT(VLOOKUP(ptype_selector,table_names,2,0)),MATCH(AB$119,header_a,0),0),"")/IFERROR(VLOOKUP("一、营业总收入*",INDIRECT(VLOOKUP(ptype_selector,table_names,2,0)),MATCH(EOMONTH(AB$119,-12),header_a,0),0),"")-1)),"--") -> 0.0541365959 | AF123: 营业成本 | AK123: =IFERROR(IFERROR(VLOOKUP("其中：营业成本*",INDIRECT(VLOOKUP(ptype_selector,table_names,2,0)),MATCH(AK$119,header_a,0),0),"")/IFERROR(VLOOKUP("一、营业总收入*",INDIRECT(VLOOKUP(ptype_selector,table_names,2,0)),MATCH(AK$119,header_a,0),0),""),"--") -> 0.6813520644 | AN123: =IFERROR(IFERROR(VLOOKUP("其中：营业成本*",INDIRECT(VLOOKUP(ptype_selector,table_names,2,0)),MATCH(AN$119,header_a,0),0),"")/IFERROR(VLOOKUP("一、营业总收入*",INDIRECT(VLOOKUP(ptype_selector,table_names,2,0)),MATCH(AN$119,header_a,0),0),""),"--") -> 0.6714548959 | AQ123: =IFERROR(IFERROR(VLOOKUP("其中：营业成本*",INDIRECT(VLOOKUP(ptype_selector,table_names,2,0)),MATCH(AQ$119,header_a,0),0),"")/IFERROR(VLOOKUP("一、营业总收入*",INDIRECT(VLOOKUP(ptype_selector,table_names,2,0)),MATCH(AQ$119,header_a,0),0),""),"--") -> 0.6523373664 | AT123: =IFERROR(IFERROR(VLOOKUP("其中：营业成本*",INDIRECT(VLOOKUP(ptype_selector,table_names,2,0)),MATCH(AT$119,header_a,0),0),"")/IFERROR(VLOOKUP("一、营业总收入*",INDIRECT(VLOOKUP(ptype_selector,table_names,2,0)),MATCH(AT$119,header_a,0),0),""),"--") -> 0.6409783766 | AW123: =IFERROR(IFERROR(VLOOKUP("其中：营业成本*",INDIRECT(VLOOKUP(ptype_selector,table_names,2,0)),MATCH(AW$119,header_a,0),0),"")/IFERROR(VLOOKUP("一、营业总收入*",INDIRECT(VLOOKUP(ptype_selector,table_names,2,0)),MATCH(AW$119,header_a,0),0),""),"--") -> 0.5886991378
D125: 营业总成本 | J125: =IFERROR(VLOOKUP("二、营业总成本*",INDIRECT(VLOOKUP(ptype_selector,table_names,2,0)),MATCH(J$119,header_a,0),0),"") -> 217.5765108 | M125: =IFERROR(VLOOKUP("二、营业总成本*",INDIRECT(VLOOKUP(ptype_selector,table_names,2,0)),MATCH(M$119,header_a,0),0),"") -> 208.6328673 | P125: =IFERROR(VLOOKUP("二、营业总成本*",INDIRECT(VLOOKUP(ptype_selector,table_names,2,0)),MATCH(P$119,header_a,0),0),"") -> 209.0762449 | S125: =IFERROR(VLOOKUP("二、营业总成本*",INDIRECT(VLOOKUP(ptype_selector,table_names,2,0)),MATCH(S$119,header_a,0),0),"") -> 201.1299414 | V125: =IFERROR(VLOOKUP("二、营业总成本*",INDIRECT(VLOOKUP(ptype_selector,table_names,2,0)),MATCH(V$119,header_a,0),0),"") -> 194.5561573 | Y125: =IFERROR(VLOOKUP("二、营业总成本*",INDIRECT(VLOOKUP(ptype_selector,table_names,2,0)),MATCH(Y$119,header_a,0),0),"") -> 195.3655785 | AB125: =IFERROR(VLOOKUP("二、营业总成本*",INDIRECT(VLOOKUP(ptype_selector,table_names,2,0)),MATCH(AB$119,header_a,0),0),"") -> 181.7674448 | AF125: 四项费用 | AK125: =IFERROR(IFERROR(VLOOKUP("小计：四项费用*",INDIRECT(VLOOKUP(ptype_selector,table_names,2,0)),MATCH(AK$119,header_a,0),0),"")/IFERROR(VLOOKUP("一、营业总收入*",INDIRECT(VLOOKUP(ptype_selector,table_names,2,0)),MATCH(AK$119,header_a,0),0),""),"--") -> 0.1195564759 | AN125: =IFERROR(IFERROR(VLOOKUP("小计：四项费用*",INDIRECT(VLOOKUP(ptype_selector,table_names,2,0)),MATCH(AN$119,header_a,0),0),"")/IFERROR(VLOOKUP("一、营业总收入*",INDIRECT(VLOOKUP(ptype_selector,table_names,2,0)),MATCH(AN$119,header_a,0),0),""),"--") -> 0.1558893954 | AQ125: =IFERROR(IFERROR(VLOOKUP("小计：四项费用*",INDIRECT(VLOOKUP(ptype_selector,table_names,2,0)),MATCH(AQ$119,header_a,0),0),"")/IFERROR(VLOOKUP("一、营业总收入*",INDIRECT(VLOOKUP(ptype_selector,table_names,2,0)),MATCH(AQ$119,header_a,0),0),""),"--") -> 0.1942669776 | AT125: =IFERROR(IFERROR(VLOOKUP("小计：四项费用*",INDIRECT(VLOOKUP(ptype_selector,table_names,2,0)),MATCH(AT$119,header_a,0),0),"")/IFERROR(VLOOKUP("一、营业总收入*",INDIRECT(VLOOKUP(ptype_selector,table_names,2,0)),MATCH(AT$119,header_a,0),0),""),"--") -> 0.2024869269 | AW125: =IFERROR(IFERROR(VLOOKUP("小计：四项费用*",INDIRECT(VLOOKUP(ptype_selector,table_names,2,0)),MATCH(AW$119,header_a,0),0),"")/IFERROR(VLOOKUP("一、营业总收入*",INDIRECT(VLOOKUP(ptype_selector,table_names,2,0)),MATCH(AW$119,header_a,0),0),""),"--") -> 0.2379112261
D127: 同比 | J127: =IFERROR(IF(IFERROR(VLOOKUP("二、营业总成本*",INDIRECT(VLOOKUP(ptype_selector,table_names,2,0)),MATCH(J$119,header_a,0),0),"")>IFERROR(VLOOKUP("二、营业总成本*",INDIRECT(VLOOKUP(ptype_selector,table_names,2,0)),MATCH(EOMONTH(J$119,-12),header_a,0),0),""),ABS(IFERROR(VLOOKUP("二、营业总成本*",INDIRECT(VLOOKUP(ptype_selector,table_names,2,0)),MATCH(J$119,header_a,0),0),"")/IFERROR(VLOOKUP("二、营业总成本*",INDIRECT(VLOOKUP(ptype_selector,table_names,2,0)),MATCH(EOMONTH(J$119,-12),header_a,0),0),"")-1),-1*ABS(IFERROR(VLOOKUP("二、营业总成本*",INDIRECT(VLOOKUP(ptype_selector,table_names,2,0)),MATCH(J$119,header_a,0),0),"")/IFERROR(VLOOKUP("二、营业总成本*",INDIRECT(VLOOKUP(ptype_selector,table_names,2,0)),MATCH(EOMONTH(J$119,-12),header_a,0),0),"")-1)),"--") -> 0.1183224107 | M127: =IFERROR(IF(IFERROR(VLOOKUP("二、营业总成本*",INDIRECT(VLOOKUP(ptype_selector,table_names,2,0)),MATCH(M$119,header_a,0),0),"")>IFERROR(VLOOKUP("二、营业总成本*",INDIRECT(VLOOKUP(ptype_selector,table_names,2,0)),MATCH(EOMONTH(M$119,-12),header_a,0),0),""),ABS(IFERROR(VLOOKUP("二、营业总成本*",INDIRECT(VLOOKUP(ptype_selector,table_names,2,0)),MATCH(M$119,header_a,0),0),"")/IFERROR(VLOOKUP("二、营业总成本*",INDIRECT(VLOOKUP(ptype_selector,table_names,2,0)),MATCH(EOMONTH(M$119,-12),header_a,0),0),"")-1),-1*ABS(IFERROR(VLOOKUP("二、营业总成本*",INDIRECT(VLOOKUP(ptype_selector,table_names,2,0)),MATCH(M$119,header_a,0),0),"")/IFERROR(VLOOKUP("二、营业总成本*",INDIRECT(VLOOKUP(ptype_selector,table_names,2,0)),MATCH(EOMONTH(M$119,-12),header_a,0),0),"")-1)),"--") -> 0.06791006333 | P127: =IFERROR(IF(IFERROR(VLOOKUP("二、营业总成本*",INDIRECT(VLOOKUP(ptype_selector,table_names,2,0)),MATCH(P$119,header_a,0),0),"")>IFERROR(VLOOKUP("二、营业总成本*",INDIRECT(VLOOKUP(ptype_selector,table_names,2,0)),MATCH(EOMONTH(P$119,-12),header_a,0),0),""),ABS(IFERROR(VLOOKUP("二、营业总成本*",INDIRECT(VLOOKUP(ptype_selector,table_names,2,0)),MATCH(P$119,header_a,0),0),"")/IFERROR(VLOOKUP("二、营业总成本*",INDIRECT(VLOOKUP(ptype_selector,table_names,2,0)),MATCH(EOMONTH(P$119,-12),header_a,0),0),"")-1),-1*ABS(IFERROR(VLOOKUP("二、营业总成本*",INDIRECT(VLOOKUP(ptype_selector,table_names,2,0)),MATCH(P$119,header_a,0),0),"")/IFERROR(VLOOKUP("二、营业总成本*",INDIRECT(VLOOKUP(ptype_selector,table_names,2,0)),MATCH(EOMONTH(P$119,-12),header_a,0),0),"")-1)),"--") -> 0.1502403255 | S127: =IFERROR(IF(IFERROR(VLOOKUP("二、营业总成本*",INDIRECT(VLOOKUP(ptype_selector,table_names,2,0)),MATCH(S$119,header_a,0),0),"")>IFERROR(VLOOKUP("二、营业总成本*",INDIRECT(VLOOKUP(ptype_selector,table_names,2,0)),MATCH(EOMONTH(S$119,-12),header_a,0),0),""),ABS(IFERROR(VLOOKUP("二、营业总成本*",INDIRECT(VLOOKUP(ptype_selector,table_names,2,0)),MATCH(S$119,header_a,0),0),"")/IFERROR(VLOOKUP("二、营业总成本*",INDIRECT(VLOOKUP(ptype_selector,table_names,2,0)),MATCH(EOMONTH(S$119,-12),header_a,0),0),"")-1),-1*ABS(IFERROR(VLOOKUP("二、营业总成本*",INDIRECT(VLOOKUP(ptype_selector,table_names,2,0)),MATCH(S$119,header_a,0),0),"")/IFERROR(VLOOKUP("二、营业总成本*",INDIRECT(VLOOKUP(ptype_selector,table_names,2,0)),MATCH(EOMONTH(S$119,-12),header_a,0),0),"")-1)),"--") -> 0.176112095 | V127: =IFERROR(IF(IFERROR(VLOOKUP("二、营业总成本*",INDIRECT(VLOOKUP(ptype_selector,table_names,2,0)),MATCH(V$119,header_a,0),0),"")>IFERROR(VLOOKUP("二、营业总成本*",INDIRECT(VLOOKUP(ptype_selector,table_names,2,0)),MATCH(EOMONTH(V$119,-12),header_a,0),0),""),ABS(IFERROR(VLOOKUP("二、营业总成本*",INDIRECT(VLOOKUP(ptype_selector,table_names,2,0)),MATCH(V$119,header_a,0),0),"")/IFERROR(VLOOKUP("二、营业总成本*",INDIRECT(VLOOKUP(ptype_selector,table_names,2,0)),MATCH(EOMONTH(V$119,-12),header_a,0),0),"")-1),-1*ABS(IFERROR(VLOOKUP("二、营业总成本*",INDIRECT(VLOOKUP(ptype_selector,table_names,2,0)),MATCH(V$119,header_a,0),0),"")/IFERROR(VLOOKUP("二、营业总成本*",INDIRECT(VLOOKUP(ptype_selector,table_names,2,0)),MATCH(EOMONTH(V$119,-12),header_a,0),0),"")-1)),"--") -> 0.1541614553 | Y127: =IFERROR(IF(IFERROR(VLOOKUP("二、营业总成本*",INDIRECT(VLOOKUP(ptype_selector,table_names,2,0)),MATCH(Y$119,header_a,0),0),"")>IFERROR(VLOOKUP("二、营业总成本*",INDIRECT(VLOOKUP(ptype_selector,table_names,2,0)),MATCH(EOMONTH(Y$119,-12),header_a,0),0),""),ABS(IFERROR(VLOOKUP("二、营业总成本*",INDIRECT(VLOOKUP(ptype_selector,table_names,2,0)),MATCH(Y$119,header_a,0),0),"")/IFERROR(VLOOKUP("二、营业总成本*",INDIRECT(VLOOKUP(ptype_selector,table_names,2,0)),MATCH(EOMONTH(Y$119,-12),header_a,0),0),"")-1),-1*ABS(IFERROR(VLOOKUP("二、营业总成本*",INDIRECT(VLOOKUP(ptype_selector,table_names,2,0)),MATCH(Y$119,header_a,0),0),"")/IFERROR(VLOOKUP("二、营业总成本*",INDIRECT(VLOOKUP(ptype_selector,table_names,2,0)),MATCH(EOMONTH(Y$119,-12),header_a,0),0),"")-1)),"--") -> 0.1948018913 | AB127: =IFERROR(IF(IFERROR(VLOOKUP("二、营业总成本*",INDIRECT(VLOOKUP(ptype_selector,table_names,2,0)),MATCH(AB$119,header_a,0),0),"")>IFERROR(VLOOKUP("二、营业总成本*",INDIRECT(VLOOKUP(ptype_selector,table_names,2,0)),MATCH(EOMONTH(AB$119,-12),header_a,0),0),""),ABS(IFERROR(VLOOKUP("二、营业总成本*",INDIRECT(VLOOKUP(ptype_selector,table_names,2,0)),MATCH(AB$119,header_a,0),0),"")/IFERROR(VLOOKUP("二、营业总成本*",INDIRECT(VLOOKUP(ptype_selector,table_names,2,0)),MATCH(EOMONTH(AB$119,-12),header_a,0),0),"")-1),-1*ABS(IFERROR(VLOOKUP("二、营业总成本*",INDIRECT(VLOOKUP(ptype_selector,table_names,2,0)),MATCH(AB$119,header_a,0),0),"")/IFERROR(VLOOKUP("二、营业总成本*",INDIRECT(VLOOKUP(ptype_selector,table_names,2,0)),MATCH(EOMONTH(AB$119,-12),header_a,0),0),"")-1)),"--") -> 0.05447913719 | AF127: 研发费用 | AK127: =IFERROR(IFERROR(VLOOKUP("其中：研发费用*",INDIRECT(VLOOKUP(ptype_selector,table_names,2,0)),MATCH(AK$119,header_a,0),0),"")/IFERROR(VLOOKUP("一、营业总收入*",INDIRECT(VLOOKUP(ptype_selector,table_names,2,0)),MATCH(AK$119,header_a,0),0),""),"--") -> 0.04344401724 | AN127: =IFERROR(IFERROR(VLOOKUP("其中：研发费用*",INDIRECT(VLOOKUP(ptype_selector,table_names,2,0)),MATCH(AN$119,header_a,0),0),"")/IFERROR(VLOOKUP("一、营业总收入*",INDIRECT(VLOOKUP(ptype_selector,table_names,2,0)),MATCH(AN$119,header_a,0),0),""),"--") -> 0.04336658487 | AQ127: =IFERROR(IFERROR(VLOOKUP("其中：研发费用*",INDIRECT(VLOOKUP(ptype_selector,table_names,2,0)),MATCH(AQ$119,header_a,0),0),"")/IFERROR(VLOOKUP("一、营业总收入*",INDIRECT(VLOOKUP(ptype_selector,table_names,2,0)),MATCH(AQ$119,header_a,0),0),""),"--") -> 0.04223798505 | AT127: =IFERROR(IFERROR(VLOOKUP("其中：研发费用*",INDIRECT(VLOOKUP(ptype_selector,table_names,2,0)),MATCH(AT$119,header_a,0),0),"")/IFERROR(VLOOKUP("一、营业总收入*",INDIRECT(VLOOKUP(ptype_selector,table_names,2,0)),MATCH(AT$119,header_a,0),0),""),"--") -> 0.04224888116 | AW127: =IFERROR(IFERROR(VLOOKUP("其中：研发费用*",INDIRECT(VLOOKUP(ptype_selector,table_names,2,0)),MATCH(AW$119,header_a,0),0),"")/IFERROR(VLOOKUP("一、营业总收入*",INDIRECT(VLOOKUP(ptype_selector,table_names,2,0)),MATCH(AW$119,header_a,0),0),""),"--") -> 0.04193488669
D129: 核心利润 | J129: =IFERROR(VLOOKUP("核心利润*",INDIRECT(VLOOKUP(ptype_selector,table_names,2,0)),MATCH(J$119,header_a,0),0),"") -> 51.11453698 | M129: =IFERROR(VLOOKUP("核心利润*",INDIRECT(VLOOKUP(ptype_selector,table_names,2,0)),MATCH(M$119,header_a,0),0),"") -> 40.77050386 | P129: =IFERROR(VLOOKUP("核心利润*",INDIRECT(VLOOKUP(ptype_selector,table_names,2,0)),MATCH(P$119,header_a,0),0),"") -> 35.13497567 | S129: =IFERROR(VLOOKUP("核心利润*",INDIRECT(VLOOKUP(ptype_selector,table_names,2,0)),MATCH(S$119,header_a,0),0),"") -> 34.65656828 | V129: =IFERROR(VLOOKUP("核心利润*",INDIRECT(VLOOKUP(ptype_selector,table_names,2,0)),MATCH(V$119,header_a,0),0),"") -> 37.90071228 | Y129: =IFERROR(VLOOKUP("核心利润*",INDIRECT(VLOOKUP(ptype_selector,table_names,2,0)),MATCH(Y$119,header_a,0),0),"") -> 37.57596019 | AB129: =IFERROR(VLOOKUP("核心利润*",INDIRECT(VLOOKUP(ptype_selector,table_names,2,0)),MATCH(AB$119,header_a,0),0),"") -> 32.31730036 | AF129: 管理费用 | AK129: =IFERROR(IFERROR(VLOOKUP("其中：管理费用*",INDIRECT(VLOOKUP(ptype_selector,table_names,2,0)),MATCH(AK$119,header_a,0),0),"")/IFERROR(VLOOKUP("一、营业总收入*",INDIRECT(VLOOKUP(ptype_selector,table_names,2,0)),MATCH(AK$119,header_a,0),0),""),"--") -> 0.0718617882 | AN129: =IFERROR(IFERROR(VLOOKUP("其中：管理费用*",INDIRECT(VLOOKUP(ptype_selector,table_names,2,0)),MATCH(AN$119,header_a,0),0),"")/IFERROR(VLOOKUP("一、营业总收入*",INDIRECT(VLOOKUP(ptype_selector,table_names,2,0)),MATCH(AN$119,header_a,0),0),""),"--") -> 0.07650643345 | AQ129: =IFERROR(IFERROR(VLOOKUP("其中：管理费用*",INDIRECT(VLOOKUP(ptype_selector,table_names,2,0)),MATCH(AQ$119,header_a,0),0),"")/IFERROR(VLOOKUP("一、营业总收入*",INDIRECT(VLOOKUP(ptype_selector,table_names,2,0)),MATCH(AQ$119,header_a,0),0),""),"--") -> 0.07919525624 | AT129: =IFERROR(IFERROR(VLOOKUP("其中：管理费用*",INDIRECT(VLOOKUP(ptype_selector,table_names,2,0)),MATCH(AT$119,header_a,0),0),"")/IFERROR(VLOOKUP("一、营业总收入*",INDIRECT(VLOOKUP(ptype_selector,table_names,2,0)),MATCH(AT$119,header_a,0),0),""),"--") -> 0.08236977537 | AW129: =IFERROR(IFERROR(VLOOKUP("其中：管理费用*",INDIRECT(VLOOKUP(ptype_selector,table_names,2,0)),MATCH(AW$119,header_a,0),0),"")/IFERROR(VLOOKUP("一、营业总收入*",INDIRECT(VLOOKUP(ptype_selector,table_names,2,0)),MATCH(AW$119,header_a,0),0),""),"--") -> 0.09066737972
D131: 同比 | J131: =IFERROR(IF(IFERROR(VLOOKUP("核心利润*",INDIRECT(VLOOKUP(ptype_selector,table_names,2,0)),MATCH(J$119,header_a,0),0),"")>IFERROR(VLOOKUP("核心利润*",INDIRECT(VLOOKUP(ptype_selector,table_names,2,0)),MATCH(EOMONTH(J$119,-12),header_a,0),0),""),ABS(IFERROR(VLOOKUP("核心利润*",INDIRECT(VLOOKUP(ptype_selector,table_names,2,0)),MATCH(J$119,header_a,0),0),"")/IFERROR(VLOOKUP("核心利润*",INDIRECT(VLOOKUP(ptype_selector,table_names,2,0)),MATCH(EOMONTH(J$119,-12),header_a,0),0),"")-1),-1*ABS(IFERROR(VLOOKUP("核心利润*",INDIRECT(VLOOKUP(ptype_selector,table_names,2,0)),MATCH(J$119,header_a,0),0),"")/IFERROR(VLOOKUP("核心利润*",INDIRECT(VLOOKUP(ptype_selector,table_names,2,0)),MATCH(EOMONTH(J$119,-12),header_a,0),0),"")-1)),"--") -> 0.3486431759 | M131: =IFERROR(IF(IFERROR(VLOOKUP("核心利润*",INDIRECT(VLOOKUP(ptype_selector,table_names,2,0)),MATCH(M$119,header_a,0),0),"")>IFERROR(VLOOKUP("核心利润*",INDIRECT(VLOOKUP(ptype_selector,table_names,2,0)),MATCH(EOMONTH(M$119,-12),header_a,0),0),""),ABS(IFERROR(VLOOKUP("核心利润*",INDIRECT(VLOOKUP(ptype_selector,table_names,2,0)),MATCH(M$119,header_a,0),0),"")/IFERROR(VLOOKUP("核心利润*",INDIRECT(VLOOKUP(ptype_selector,table_names,2,0)),MATCH(EOMONTH(M$119,-12),header_a,0),0),"")-1),-1*ABS(IFERROR(VLOOKUP("核心利润*",INDIRECT(VLOOKUP(ptype_selector,table_names,2,0)),MATCH(M$119,header_a,0),0),"")/IFERROR(VLOOKUP("核心利润*",INDIRECT(VLOOKUP(ptype_selector,table_names,2,0)),MATCH(EOMONTH(M$119,-12),header_a,0),0),"")-1)),"--") -> 0.08501562312 | P131: =IFERROR(IF(IFERROR(VLOOKUP("核心利润*",INDIRECT(VLOOKUP(ptype_selector,table_names,2,0)),MATCH(P$119,header_a,0),0),"")>IFERROR(VLOOKUP("核心利润*",INDIRECT(VLOOKUP(ptype_selector,table_names,2,0)),MATCH(EOMONTH(P$119,-12),header_a,0),0),""),ABS(IFERROR(VLOOKUP("核心利润*",INDIRECT(VLOOKUP(ptype_selector,table_names,2,0)),MATCH(P$119,header_a,0),0),"")/IFERROR(VLOOKUP("核心利润*",INDIRECT(VLOOKUP(ptype_selector,table_names,2,0)),MATCH(EOMONTH(P$119,-12),header_a,0),0),"")-1),-1*ABS(IFERROR(VLOOKUP("核心利润*",INDIRECT(VLOOKUP(ptype_selector,table_names,2,0)),MATCH(P$119,header_a,0),0),"")/IFERROR(VLOOKUP("核心利润*",INDIRECT(VLOOKUP(ptype_selector,table_names,2,0)),MATCH(EOMONTH(P$119,-12),header_a,0),0),"")-1)),"--") -> 0.08718783062 | S131: =IFERROR(IF(IFERROR(VLOOKUP("核心利润*",INDIRECT(VLOOKUP(ptype_selector,table_names,2,0)),MATCH(S$119,header_a,0),0),"")>IFERROR(VLOOKUP("核心利润*",INDIRECT(VLOOKUP(ptype_selector,table_names,2,0)),MATCH(EOMONTH(S$119,-12),header_a,0),0),""),ABS(IFERROR(VLOOKUP("核心利润*",INDIRECT(VLOOKUP(ptype_selector,table_names,2,0)),MATCH(S$119,header_a,0),0),"")/IFERROR(VLOOKUP("核心利润*",INDIRECT(VLOOKUP(ptype_selector,table_names,2,0)),MATCH(EOMONTH(S$119,-12),header_a,0),0),"")-1),-1*ABS(IFERROR(VLOOKUP("核心利润*",INDIRECT(VLOOKUP(ptype_selector,table_names,2,0)),MATCH(S$119,header_a,0),0),"")/IFERROR(VLOOKUP("核心利润*",INDIRECT(VLOOKUP(ptype_selector,table_names,2,0)),MATCH(EOMONTH(S$119,-12),header_a,0),0),"")-1)),"--") -> 0.2518732577 | V131: =IFERROR(IF(IFERROR(VLOOKUP("核心利润*",INDIRECT(VLOOKUP(ptype_selector,table_names,2,0)),MATCH(V$119,header_a,0),0),"")>IFERROR(VLOOKUP("核心利润*",INDIRECT(VLOOKUP(ptype_selector,table_names,2,0)),MATCH(EOMONTH(V$119,-12),header_a,0),0),""),ABS(IFERROR(VLOOKUP("核心利润*",INDIRECT(VLOOKUP(ptype_selector,table_names,2,0)),MATCH(V$119,header_a,0),0),"")/IFERROR(VLOOKUP("核心利润*",INDIRECT(VLOOKUP(ptype_selector,table_names,2,0)),MATCH(EOMONTH(V$119,-12),header_a,0),0),"")-1),-1*ABS(IFERROR(VLOOKUP("核心利润*",INDIRECT(VLOOKUP(ptype_selector,table_names,2,0)),MATCH(V$119,header_a,0),0),"")/IFERROR(VLOOKUP("核心利润*",INDIRECT(VLOOKUP(ptype_selector,table_names,2,0)),MATCH(EOMONTH(V$119,-12),header_a,0),0),"")-1)),"--") -> 0.5900871067 | Y131: =IFERROR(IF(IFERROR(VLOOKUP("核心利润*",INDIRECT(VLOOKUP(ptype_selector,table_names,2,0)),MATCH(Y$119,header_a,0),0),"")>IFERROR(VLOOKUP("核心利润*",INDIRECT(VLOOKUP(ptype_selector,table_names,2,0)),MATCH(EOMONTH(Y$119,-12),header_a,0),0),""),ABS(IFERROR(VLOOKUP("核心利润*",INDIRECT(VLOOKUP(ptype_selector,table_names,2,0)),MATCH(Y$119,header_a,0),0),"")/IFERROR(VLOOKUP("核心利润*",INDIRECT(VLOOKUP(ptype_selector,table_names,2,0)),MATCH(EOMONTH(Y$119,-12),header_a,0),0),"")-1),-1*ABS(IFERROR(VLOOKUP("核心利润*",INDIRECT(VLOOKUP(ptype_selector,table_names,2,0)),MATCH(Y$119,header_a,0),0),"")/IFERROR(VLOOKUP("核心利润*",INDIRECT(VLOOKUP(ptype_selector,table_names,2,0)),MATCH(EOMONTH(Y$119,-12),header_a,0),0),"")-1)),"--") -> 0.4566888682 | AB131: =IFERROR(IF(IFERROR(VLOOKUP("核心利润*",INDIRECT(VLOOKUP(ptype_selector,table_names,2,0)),MATCH(AB$119,header_a,0),0),"")>IFERROR(VLOOKUP("核心利润*",INDIRECT(VLOOKUP(ptype_selector,table_names,2,0)),MATCH(EOMONTH(AB$119,-12),header_a,0),0),""),ABS(IFERROR(VLOOKUP("核心利润*",INDIRECT(VLOOKUP(ptype_selector,table_names,2,0)),MATCH(AB$119,header_a,0),0),"")/IFERROR(VLOOKUP("核心利润*",INDIRECT(VLOOKUP(ptype_selector,table_names,2,0)),MATCH(EOMONTH(AB$119,-12),header_a,0),0),"")-1),-1*ABS(IFERROR(VLOOKUP("核心利润*",INDIRECT(VLOOKUP(ptype_selector,table_names,2,0)),MATCH(AB$119,header_a,0),0),"")/IFERROR(VLOOKUP("核心利润*",INDIRECT(VLOOKUP(ptype_selector,table_names,2,0)),MATCH(EOMONTH(AB$119,-12),header_a,0),0),"")-1)),"--") -> 0.05070050265 | AF131: 销售费用 | AK131: =IFERROR(IFERROR(VLOOKUP("其中：销售费用*",INDIRECT(VLOOKUP(ptype_selector,table_names,2,0)),MATCH(AK$119,header_a,0),0),"")/IFERROR(VLOOKUP("一、营业总收入*",INDIRECT(VLOOKUP(ptype_selector,table_names,2,0)),MATCH(AK$119,header_a,0),0),""),"--") -> 0.02799257343 | AN131: =IFERROR(IFERROR(VLOOKUP("其中：销售费用*",INDIRECT(VLOOKUP(ptype_selector,table_names,2,0)),MATCH(AN$119,header_a,0),0),"")/IFERROR(VLOOKUP("一、营业总收入*",INDIRECT(VLOOKUP(ptype_selector,table_names,2,0)),MATCH(AN$119,header_a,0),0),""),"--") -> 0.03599422915 | AQ131: =IFERROR(IFERROR(VLOOKUP("其中：销售费用*",INDIRECT(VLOOKUP(ptype_selector,table_names,2,0)),MATCH(AQ$119,header_a,0),0),"")/IFERROR(VLOOKUP("一、营业总收入*",INDIRECT(VLOOKUP(ptype_selector,table_names,2,0)),MATCH(AQ$119,header_a,0),0),""),"--") -> 0.04215164226 | AT131: =IFERROR(IFERROR(VLOOKUP("其中：销售费用*",INDIRECT(VLOOKUP(ptype_selector,table_names,2,0)),MATCH(AT$119,header_a,0),0),"")/IFERROR(VLOOKUP("一、营业总收入*",INDIRECT(VLOOKUP(ptype_selector,table_names,2,0)),MATCH(AT$119,header_a,0),0),""),"--") -> 0.04876453448 | AW131: =IFERROR(IFERROR(VLOOKUP("其中：销售费用*",INDIRECT(VLOOKUP(ptype_selector,table_names,2,0)),MATCH(AW$119,header_a,0),0),"")/IFERROR(VLOOKUP("一、营业总收入*",INDIRECT(VLOOKUP(ptype_selector,table_names,2,0)),MATCH(AW$119,header_a,0),0),""),"--") -> 0.07869382036
D133: 净利润 | J133: =IFERROR(VLOOKUP("五、净利润*",INDIRECT(VLOOKUP(ptype_selector,table_names,2,0)),MATCH(J$119,header_a,0),0),"") -> 44.487156 | M133: =IFERROR(VLOOKUP("五、净利润*",INDIRECT(VLOOKUP(ptype_selector,table_names,2,0)),MATCH(M$119,header_a,0),0),"") -> 37.56491254 | P133: =IFERROR(VLOOKUP("五、净利润*",INDIRECT(VLOOKUP(ptype_selector,table_names,2,0)),MATCH(P$119,header_a,0),0),"") -> 31.5920599 | S133: =IFERROR(VLOOKUP("五、净利润*",INDIRECT(VLOOKUP(ptype_selector,table_names,2,0)),MATCH(S$119,header_a,0),0),"") -> 31.42980793 | V133: =IFERROR(VLOOKUP("五、净利润*",INDIRECT(VLOOKUP(ptype_selector,table_names,2,0)),MATCH(V$119,header_a,0),0),"") -> 34.70000743 | Y133: =IFERROR(VLOOKUP("五、净利润*",INDIRECT(VLOOKUP(ptype_selector,table_names,2,0)),MATCH(Y$119,header_a,0),0),"") -> 34.02681928 | AB133: =IFERROR(VLOOKUP("五、净利润*",INDIRECT(VLOOKUP(ptype_selector,table_names,2,0)),MATCH(AB$119,header_a,0),0),"") -> 29.93328697 | AF133: 核心利润率 | AK133: =IFERROR(IFERROR(VLOOKUP("核心利润*",INDIRECT(VLOOKUP(ptype_selector,table_names,2,0)),MATCH(AK$119,header_a,0),0),"")/IFERROR(VLOOKUP("一、营业总收入*",INDIRECT(VLOOKUP(ptype_selector,table_names,2,0)),MATCH(AK$119,header_a,0),0),""),"--") -> 0.1900861087 | AN133: =IFERROR(IFERROR(VLOOKUP("核心利润*",INDIRECT(VLOOKUP(ptype_selector,table_names,2,0)),MATCH(AN$119,header_a,0),0),"")/IFERROR(VLOOKUP("一、营业总收入*",INDIRECT(VLOOKUP(ptype_selector,table_names,2,0)),MATCH(AN$119,header_a,0),0),""),"--") -> 0.1633198483 | AQ133: =IFERROR(IFERROR(VLOOKUP("核心利润*",INDIRECT(VLOOKUP(ptype_selector,table_names,2,0)),MATCH(AQ$119,header_a,0),0),"")/IFERROR(VLOOKUP("一、营业总收入*",INDIRECT(VLOOKUP(ptype_selector,table_names,2,0)),MATCH(AQ$119,header_a,0),0),""),"--") -> 0.1437315712 | AT133: =IFERROR(IFERROR(VLOOKUP("核心利润*",INDIRECT(VLOOKUP(ptype_selector,table_names,2,0)),MATCH(AT$119,header_a,0),0),"")/IFERROR(VLOOKUP("一、营业总收入*",INDIRECT(VLOOKUP(ptype_selector,table_names,2,0)),MATCH(AT$119,header_a,0),0),""),"--") -> 0.1468308065 | AW133: =IFERROR(IFERROR(VLOOKUP("核心利润*",INDIRECT(VLOOKUP(ptype_selector,table_names,2,0)),MATCH(AW$119,header_a,0),0),"")/IFERROR(VLOOKUP("一、营业总收入*",INDIRECT(VLOOKUP(ptype_selector,table_names,2,0)),MATCH(AW$119,header_a,0),0),""),"--") -> 0.1627815865
D135: 同比 | J135: =IFERROR(IF(IFERROR(VLOOKUP("五、净利润*",INDIRECT(VLOOKUP(ptype_selector,table_names,2,0)),MATCH(J$119,header_a,0),0),"")>IFERROR(VLOOKUP("五、净利润*",INDIRECT(VLOOKUP(ptype_selector,table_names,2,0)),MATCH(EOMONTH(J$119,-12),header_a,0),0),""),ABS(IFERROR(VLOOKUP("五、净利润*",INDIRECT(VLOOKUP(ptype_selector,table_names,2,0)),MATCH(J$119,header_a,0),0),"")/IFERROR(VLOOKUP("五、净利润*",INDIRECT(VLOOKUP(ptype_selector,table_names,2,0)),MATCH(EOMONTH(J$119,-12),header_a,0),0),"")-1),-1*ABS(IFERROR(VLOOKUP("五、净利润*",INDIRECT(VLOOKUP(ptype_selector,table_names,2,0)),MATCH(J$119,header_a,0),0),"")/IFERROR(VLOOKUP("五、净利润*",INDIRECT(VLOOKUP(ptype_selector,table_names,2,0)),MATCH(EOMONTH(J$119,-12),header_a,0),0),"")-1)),"--") -> 0.2820503307 | M135: =IFERROR(IF(IFERROR(VLOOKUP("五、净利润*",INDIRECT(VLOOKUP(ptype_selector,table_names,2,0)),MATCH(M$119,header_a,0),0),"")>IFERROR(VLOOKUP("五、净利润*",INDIRECT(VLOOKUP(ptype_selector,table_names,2,0)),MATCH(EOMONTH(M$119,-12),header_a,0),0),""),ABS(IFERROR(VLOOKUP("五、净利润*",INDIRECT(VLOOKUP(ptype_selector,table_names,2,0)),MATCH(M$119,header_a,0),0),"")/IFERROR(VLOOKUP("五、净利润*",INDIRECT(VLOOKUP(ptype_selector,table_names,2,0)),MATCH(EOMONTH(M$119,-12),header_a,0),0),"")-1),-1*ABS(IFERROR(VLOOKUP("五、净利润*",INDIRECT(VLOOKUP(ptype_selector,table_names,2,0)),MATCH(M$119,header_a,0),0),"")/IFERROR(VLOOKUP("五、净利润*",INDIRECT(VLOOKUP(ptype_selector,table_names,2,0)),MATCH(EOMONTH(M$119,-12),header_a,0),0),"")-1)),"--") -> 0.1039795472 | P135: =IFERROR(IF(IFERROR(VLOOKUP("五、净利润*",INDIRECT(VLOOKUP(ptype_selector,table_names,2,0)),MATCH(P$119,header_a,0),0),"")>IFERROR(VLOOKUP("五、净利润*",INDIRECT(VLOOKUP(ptype_selector,table_names,2,0)),MATCH(EOMONTH(P$119,-12),header_a,0),0),""),ABS(IFERROR(VLOOKUP("五、净利润*",INDIRECT(VLOOKUP(ptype_selector,table_names,2,0)),MATCH(P$119,header_a,0),0),"")/IFERROR(VLOOKUP("五、净利润*",INDIRECT(VLOOKUP(ptype_selector,table_names,2,0)),MATCH(EOMONTH(P$119,-12),header_a,0),0),"")-1),-1*ABS(IFERROR(VLOOKUP("五、净利润*",INDIRECT(VLOOKUP(ptype_selector,table_names,2,0)),MATCH(P$119,header_a,0),0),"")/IFERROR(VLOOKUP("五、净利润*",INDIRECT(VLOOKUP(ptype_selector,table_names,2,0)),MATCH(EOMONTH(P$119,-12),header_a,0),0),"")-1)),"--") -> 0.05541566256 | S135: =IFERROR(IF(IFERROR(VLOOKUP("五、净利润*",INDIRECT(VLOOKUP(ptype_selector,table_names,2,0)),MATCH(S$119,header_a,0),0),"")>IFERROR(VLOOKUP("五、净利润*",INDIRECT(VLOOKUP(ptype_selector,table_names,2,0)),MATCH(EOMONTH(S$119,-12),header_a,0),0),""),ABS(IFERROR(VLOOKUP("五、净利润*",INDIRECT(VLOOKUP(ptype_selector,table_names,2,0)),MATCH(S$119,header_a,0),0),"")/IFERROR(VLOOKUP("五、净利润*",INDIRECT(VLOOKUP(ptype_selector,table_names,2,0)),MATCH(EOMONTH(S$119,-12),header_a,0),0),"")-1),-1*ABS(IFERROR(VLOOKUP("五、净利润*",INDIRECT(VLOOKUP(ptype_selector,table_names,2,0)),MATCH(S$119,header_a,0),0),"")/IFERROR(VLOOKUP("五、净利润*",INDIRECT(VLOOKUP(ptype_selector,table_names,2,0)),MATCH(EOMONTH(S$119,-12),header_a,0),0),"")-1)),"--") -> 0.2095594146 | V135: =IFERROR(IF(IFERROR(VLOOKUP("五、净利润*",INDIRECT(VLOOKUP(ptype_selector,table_names,2,0)),MATCH(V$119,header_a,0),0),"")>IFERROR(VLOOKUP("五、净利润*",INDIRECT(VLOOKUP(ptype_selector,table_names,2,0)),MATCH(EOMONTH(V$119,-12),header_a,0),0),""),ABS(IFERROR(VLOOKUP("五、净利润*",INDIRECT(VLOOKUP(ptype_selector,table_names,2,0)),MATCH(V$119,header_a,0),0),"")/IFERROR(VLOOKUP("五、净利润*",INDIRECT(VLOOKUP(ptype_selector,table_names,2,0)),MATCH(EOMONTH(V$119,-12),header_a,0),0),"")-1),-1*ABS(IFERROR(VLOOKUP("五、净利润*",INDIRECT(VLOOKUP(ptype_selector,table_names,2,0)),MATCH(V$119,header_a,0),0),"")/IFERROR(VLOOKUP("五、净利润*",INDIRECT(VLOOKUP(ptype_selector,table_names,2,0)),MATCH(EOMONTH(V$119,-12),header_a,0),0),"")-1)),"--") -> 0.5263871816 | Y135: =IFERROR(IF(IFERROR(VLOOKUP("五、净利润*",INDIRECT(VLOOKUP(ptype_selector,table_names,2,0)),MATCH(Y$119,header_a,0),0),"")>IFERROR(VLOOKUP("五、净利润*",INDIRECT(VLOOKUP(ptype_selector,table_names,2,0)),MATCH(EOMONTH(Y$119,-12),header_a,0),0),""),ABS(IFERROR(VLOOKUP("五、净利润*",INDIRECT(VLOOKUP(ptype_selector,table_names,2,0)),MATCH(Y$119,header_a,0),0),"")/IFERROR(VLOOKUP("五、净利润*",INDIRECT(VLOOKUP(ptype_selector,table_names,2,0)),MATCH(EOMONTH(Y$119,-12),header_a,0),0),"")-1),-1*ABS(IFERROR(VLOOKUP("五、净利润*",INDIRECT(VLOOKUP(ptype_selector,table_names,2,0)),MATCH(Y$119,header_a,0),0),"")/IFERROR(VLOOKUP("五、净利润*",INDIRECT(VLOOKUP(ptype_selector,table_names,2,0)),MATCH(EOMONTH(Y$119,-12),header_a,0),0),"")-1)),"--") -> 0.4448232722 | AB135: =IFERROR(IF(IFERROR(VLOOKUP("五、净利润*",INDIRECT(VLOOKUP(ptype_selector,table_names,2,0)),MATCH(AB$119,header_a,0),0),"")>IFERROR(VLOOKUP("五、净利润*",INDIRECT(VLOOKUP(ptype_selector,table_names,2,0)),MATCH(EOMONTH(AB$119,-12),header_a,0),0),""),ABS(IFERROR(VLOOKUP("五、净利润*",INDIRECT(VLOOKUP(ptype_selector,table_names,2,0)),MATCH(AB$119,header_a,0),0),"")/IFERROR(VLOOKUP("五、净利润*",INDIRECT(VLOOKUP(ptype_selector,table_names,2,0)),MATCH(EOMONTH(AB$119,-12),header_a,0),0),"")-1),-1*ABS(IFERROR(VLOOKUP("五、净利润*",INDIRECT(VLOOKUP(ptype_selector,table_names,2,0)),MATCH(AB$119,header_a,0),0),"")/IFERROR(VLOOKUP("五、净利润*",INDIRECT(VLOOKUP(ptype_selector,table_names,2,0)),MATCH(EOMONTH(AB$119,-12),header_a,0),0),"")-1)),"--") -> 0.08784122744 | AF135: 净利润率 | AK135: =IFERROR(IFERROR(VLOOKUP("五、净利润*",INDIRECT(VLOOKUP(ptype_selector,table_names,2,0)),MATCH(AK$119,header_a,0),0),"")/IFERROR(VLOOKUP("一、营业总收入*",INDIRECT(VLOOKUP(ptype_selector,table_names,2,0)),MATCH(AK$119,header_a,0),0),""),"--") -> 0.1654400269 | AN135: =IFERROR(IFERROR(VLOOKUP("五、净利润*",INDIRECT(VLOOKUP(ptype_selector,table_names,2,0)),MATCH(AN$119,header_a,0),0),"")/IFERROR(VLOOKUP("一、营业总收入*",INDIRECT(VLOOKUP(ptype_selector,table_names,2,0)),MATCH(AN$119,header_a,0),0),""),"--") -> 0.1504787834 | AQ135: =IFERROR(IFERROR(VLOOKUP("五、净利润*",INDIRECT(VLOOKUP(ptype_selector,table_names,2,0)),MATCH(AQ$119,header_a,0),0),"")/IFERROR(VLOOKUP("一、营业总收入*",INDIRECT(VLOOKUP(ptype_selector,table_names,2,0)),MATCH(AQ$119,header_a,0),0),""),"--") -> 0.1292380689 | AT135: =IFERROR(IFERROR(VLOOKUP("五、净利润*",INDIRECT(VLOOKUP(ptype_selector,table_names,2,0)),MATCH(AT$119,header_a,0),0),"")/IFERROR(VLOOKUP("一、营业总收入*",INDIRECT(VLOOKUP(ptype_selector,table_names,2,0)),MATCH(AT$119,header_a,0),0),""),"--") -> 0.1331598676 | AW135: =IFERROR(IFERROR(VLOOKUP("五、净利润*",INDIRECT(VLOOKUP(ptype_selector,table_names,2,0)),MATCH(AW$119,header_a,0),0),"")/IFERROR(VLOOKUP("一、营业总收入*",INDIRECT(VLOOKUP(ptype_selector,table_names,2,0)),MATCH(AW$119,header_a,0),0),""),"--") -> 0.1490347258
D139: 现金流【正值为流入】 | AF139: 现金流相关指标
D141: 项目 | J141: =base_date -> 2022-09-30 | M141: =EOMONTH(J141,-1*duration) -> 2022-06-30 | P141: =EOMONTH(M141,-1*duration) -> 2022-03-31 | S141: =EOMONTH(P141,-1*duration) -> 2021-12-31 | V141: =EOMONTH(S141,-1*duration) -> 2021-09-30 | Y141: =EOMONTH(V141,-1*duration) -> 2021-06-30 | AB141: =EOMONTH(Y141,-1*duration) -> 2021-03-31 | AF141: 指标 | AN141: =base_date -> 2022-09-30 | AQ141: =EOMONTH(AN141,-1*duration) -> 2022-06-30 | AT141: =EOMONTH(AQ141,-1*duration) -> 2022-03-31 | AW141: =EOMONTH(AT141,-1*duration) -> 2021-12-31
D143: 经营性现金流 | J143: =IFERROR(VLOOKUP("经营活动现金流量净额*",INDIRECT(VLOOKUP(ptype_selector,table_names,3,0)),MATCH(J$141,header_a,0),0),"") -> 53.77269383 | M143: =IFERROR(VLOOKUP("经营活动现金流量净额*",INDIRECT(VLOOKUP(ptype_selector,table_names,3,0)),MATCH(M$141,header_a,0),0),"") -> 54.08838083 | P143: =IFERROR(VLOOKUP("经营活动现金流量净额*",INDIRECT(VLOOKUP(ptype_selector,table_names,3,0)),MATCH(P$141,header_a,0),0),"") -> 52.60225768 | S143: =IFERROR(VLOOKUP("经营活动现金流量净额*",INDIRECT(VLOOKUP(ptype_selector,table_names,3,0)),MATCH(S$141,header_a,0),0),"") -> 56.77009641 | V143: =IFERROR(VLOOKUP("经营活动现金流量净额*",INDIRECT(VLOOKUP(ptype_selector,table_names,3,0)),MATCH(V$141,header_a,0),0),"") -> 68.86855818 | Y143: =IFERROR(VLOOKUP("经营活动现金流量净额*",INDIRECT(VLOOKUP(ptype_selector,table_names,3,0)),MATCH(Y$141,header_a,0),0),"") -> 71.13276748 | AB143: =IFERROR(VLOOKUP("经营活动现金流量净额*",INDIRECT(VLOOKUP(ptype_selector,table_names,3,0)),MATCH(AB$141,header_a,0),0),"") -> 61.65532851 | AF143: 现销比=现金销售收入/营收 | AN143: =IFERROR(IFERROR(VLOOKUP("经营活动现金流入*",INDIRECT(VLOOKUP(ptype_selector,table_names,3,0)),MATCH(AN$141,header_a,0),0),"")/IFERROR(VLOOKUP("一、营业总收入*",INDIRECT(VLOOKUP(ptype_selector,table_names,2,0)),MATCH(AN$141,header_a,0),0),""),"--") -> 1.043502096 | AQ143: =IFERROR(IFERROR(VLOOKUP("经营活动现金流入*",INDIRECT(VLOOKUP(ptype_selector,table_names,3,0)),MATCH(AQ$141,header_a,0),0),"")/IFERROR(VLOOKUP("一、营业总收入*",INDIRECT(VLOOKUP(ptype_selector,table_names,2,0)),MATCH(AQ$141,header_a,0),0),""),"--") -> 1.090656974 | AT143: =IFERROR(IFERROR(VLOOKUP("经营活动现金流入*",INDIRECT(VLOOKUP(ptype_selector,table_names,3,0)),MATCH(AT$141,header_a,0),0),"")/IFERROR(VLOOKUP("一、营业总收入*",INDIRECT(VLOOKUP(ptype_selector,table_names,2,0)),MATCH(AT$141,header_a,0),0),""),"--") -> 1.067275928 | AW143: =IFERROR(IFERROR(VLOOKUP("经营活动现金流入*",INDIRECT(VLOOKUP(ptype_selector,table_names,3,0)),MATCH(AW$141,header_a,0),0),"")/IFERROR(VLOOKUP("一、营业总收入*",INDIRECT(VLOOKUP(ptype_selector,table_names,2,0)),MATCH(AW$141,header_a,0),0),""),"--") -> 1.085618417
D145: 同比 | J145: =IFERROR(IF(IFERROR(VLOOKUP("经营活动现金流量净额*",INDIRECT(VLOOKUP(ptype_selector,table_names,3,0)),MATCH(J$141,header_a,0),0),"")>IFERROR(VLOOKUP("经营活动现金流量净额*",INDIRECT(VLOOKUP(ptype_selector,table_names,3,0)),MATCH(EOMONTH(J$141,-12),header_a,0),0),""),ABS(IFERROR(VLOOKUP("经营活动现金流量净额*",INDIRECT(VLOOKUP(ptype_selector,table_names,3,0)),MATCH(J$141,header_a,0),0),"")/IFERROR(VLOOKUP("经营活动现金流量净额*",INDIRECT(VLOOKUP(ptype_selector,table_names,3,0)),MATCH(EOMONTH(J$141,-12),header_a,0),0),"")-1),-1*ABS(IFERROR(VLOOKUP("经营活动现金流量净额*",INDIRECT(VLOOKUP(ptype_selector,table_names,3,0)),MATCH(J$141,header_a,0),0),"")/IFERROR(VLOOKUP("经营活动现金流量净额*",INDIRECT(VLOOKUP(ptype_selector,table_names,3,0)),MATCH(EOMONTH(J$141,-12),header_a,0),0),"")-1)),"--") -> -0.2191982052 | M145: =IFERROR(IF(IFERROR(VLOOKUP("经营活动现金流量净额*",INDIRECT(VLOOKUP(ptype_selector,table_names,3,0)),MATCH(M$141,header_a,0),0),"")>IFERROR(VLOOKUP("经营活动现金流量净额*",INDIRECT(VLOOKUP(ptype_selector,table_names,3,0)),MATCH(EOMONTH(M$141,-12),header_a,0),0),""),ABS(IFERROR(VLOOKUP("经营活动现金流量净额*",INDIRECT(VLOOKUP(ptype_selector,table_names,3,0)),MATCH(M$141,header_a,0),0),"")/IFERROR(VLOOKUP("经营活动现金流量净额*",INDIRECT(VLOOKUP(ptype_selector,table_names,3,0)),MATCH(EOMONTH(M$141,-12),header_a,0),0),"")-1),-1*ABS(IFERROR(VLOOKUP("经营活动现金流量净额*",INDIRECT(VLOOKUP(ptype_selector,table_names,3,0)),MATCH(M$141,header_a,0),0),"")/IFERROR(VLOOKUP("经营活动现金流量净额*",INDIRECT(VLOOKUP(ptype_selector,table_names,3,0)),MATCH(EOMONTH(M$141,-12),header_a,0),0),"")-1)),"--") -> -0.2396137147 | P145: =IFERROR(IF(IFERROR(VLOOKUP("经营活动现金流量净额*",INDIRECT(VLOOKUP(ptype_selector,table_names,3,0)),MATCH(P$141,header_a,0),0),"")>IFERROR(VLOOKUP("经营活动现金流量净额*",INDIRECT(VLOOKUP(ptype_selector,table_names,3,0)),MATCH(EOMONTH(P$141,-12),header_a,0),0),""),ABS(IFERROR(VLOOKUP("经营活动现金流量净额*",INDIRECT(VLOOKUP(ptype_selector,table_names,3,0)),MATCH(P$141,header_a,0),0),"")/IFERROR(VLOOKUP("经营活动现金流量净额*",INDIRECT(VLOOKUP(ptype_selector,table_names,3,0)),MATCH(EOMONTH(P$141,-12),header_a,0),0),"")-1),-1*ABS(IFERROR(VLOOKUP("经营活动现金流量净额*",INDIRECT(VLOOKUP(ptype_selector,table_names,3,0)),MATCH(P$141,header_a,0),0),"")/IFERROR(VLOOKUP("经营活动现金流量净额*",INDIRECT(VLOOKUP(ptype_selector,table_names,3,0)),MATCH(EOMONTH(P$141,-12),header_a,0),0),"")-1)),"--") -> -0.1468335511 | S145: =IFERROR(IF(IFERROR(VLOOKUP("经营活动现金流量净额*",INDIRECT(VLOOKUP(ptype_selector,table_names,3,0)),MATCH(S$141,header_a,0),0),"")>IFERROR(VLOOKUP("经营活动现金流量净额*",INDIRECT(VLOOKUP(ptype_selector,table_names,3,0)),MATCH(EOMONTH(S$141,-12),header_a,0),0),""),ABS(IFERROR(VLOOKUP("经营活动现金流量净额*",INDIRECT(VLOOKUP(ptype_selector,table_names,3,0)),MATCH(S$141,header_a,0),0),"")/IFERROR(VLOOKUP("经营活动现金流量净额*",INDIRECT(VLOOKUP(ptype_selector,table_names,3,0)),MATCH(EOMONTH(S$141,-12),header_a,0),0),"")-1),-1*ABS(IFERROR(VLOOKUP("经营活动现金流量净额*",INDIRECT(VLOOKUP(ptype_selector,table_names,3,0)),MATCH(S$141,header_a,0),0),"")/IFERROR(VLOOKUP("经营活动现金流量净额*",INDIRECT(VLOOKUP(ptype_selector,table_names,3,0)),MATCH(EOMONTH(S$141,-12),header_a,0),0),"")-1)),"--") -> 0.07564711927 | V145: =IFERROR(IF(IFERROR(VLOOKUP("经营活动现金流量净额*",INDIRECT(VLOOKUP(ptype_selector,table_names,3,0)),MATCH(V$141,header_a,0),0),"")>IFERROR(VLOOKUP("经营活动现金流量净额*",INDIRECT(VLOOKUP(ptype_selector,table_names,3,0)),MATCH(EOMONTH(V$141,-12),header_a,0),0),""),ABS(IFERROR(VLOOKUP("经营活动现金流量净额*",INDIRECT(VLOOKUP(ptype_selector,table_names,3,0)),MATCH(V$141,header_a,0),0),"")/IFERROR(VLOOKUP("经营活动现金流量净额*",INDIRECT(VLOOKUP(ptype_selector,table_names,3,0)),MATCH(EOMONTH(V$141,-12),header_a,0),0),"")-1),-1*ABS(IFERROR(VLOOKUP("经营活动现金流量净额*",INDIRECT(VLOOKUP(ptype_selector,table_names,3,0)),MATCH(V$141,header_a,0),0),"")/IFERROR(VLOOKUP("经营活动现金流量净额*",INDIRECT(VLOOKUP(ptype_selector,table_names,3,0)),MATCH(EOMONTH(V$141,-12),header_a,0),0),"")-1)),"--") -> 0.5094049837 | Y145: =IFERROR(IF(IFERROR(VLOOKUP("经营活动现金流量净额*",INDIRECT(VLOOKUP(ptype_selector,table_names,3,0)),MATCH(Y$141,header_a,0),0),"")>IFERROR(VLOOKUP("经营活动现金流量净额*",INDIRECT(VLOOKUP(ptype_selector,table_names,3,0)),MATCH(EOMONTH(Y$141,-12),header_a,0),0),""),ABS(IFERROR(VLOOKUP("经营活动现金流量净额*",INDIRECT(VLOOKUP(ptype_selector,table_names,3,0)),MATCH(Y$141,header_a,0),0),"")/IFERROR(VLOOKUP("经营活动现金流量净额*",INDIRECT(VLOOKUP(ptype_selector,table_names,3,0)),MATCH(EOMONTH(Y$141,-12),header_a,0),0),"")-1),-1*ABS(IFERROR(VLOOKUP("经营活动现金流量净额*",INDIRECT(VLOOKUP(ptype_selector,table_names,3,0)),MATCH(Y$141,header_a,0),0),"")/IFERROR(VLOOKUP("经营活动现金流量净额*",INDIRECT(VLOOKUP(ptype_selector,table_names,3,0)),MATCH(EOMONTH(Y$141,-12),header_a,0),0),"")-1)),"--") -> 0.5886546215 | AB145: =IFERROR(IF(IFERROR(VLOOKUP("经营活动现金流量净额*",INDIRECT(VLOOKUP(ptype_selector,table_names,3,0)),MATCH(AB$141,header_a,0),0),"")>IFERROR(VLOOKUP("经营活动现金流量净额*",INDIRECT(VLOOKUP(ptype_selector,table_names,3,0)),MATCH(EOMONTH(AB$141,-12),header_a,0),0),""),ABS(IFERROR(VLOOKUP("经营活动现金流量净额*",INDIRECT(VLOOKUP(ptype_selector,table_names,3,0)),MATCH(AB$141,header_a,0),0),"")/IFERROR(VLOOKUP("经营活动现金流量净额*",INDIRECT(VLOOKUP(ptype_selector,table_names,3,0)),MATCH(EOMONTH(AB$141,-12),header_a,0),0),"")-1),-1*ABS(IFERROR(VLOOKUP("经营活动现金流量净额*",INDIRECT(VLOOKUP(ptype_selector,table_names,3,0)),MATCH(AB$141,header_a,0),0),"")/IFERROR(VLOOKUP("经营活动现金流量净额*",INDIRECT(VLOOKUP(ptype_selector,table_names,3,0)),MATCH(EOMONTH(AB$141,-12),header_a,0),0),"")-1)),"--") -> 0.1733615887 | AF145: 回收比=经营现金流/净利润 | AN145: =IFERROR(IFERROR(VLOOKUP("经营活动现金流量净额*",INDIRECT(VLOOKUP(ptype_selector,table_names,3,0)),MATCH(AN$141,header_a,0),0),"")/IFERROR(VLOOKUP("五、净利润*",INDIRECT(VLOOKUP(ptype_selector,table_names,2,0)),MATCH(AN$141,header_a,0),0),""),"--") -> 1.208724015 | AQ145: =IFERROR(IFERROR(VLOOKUP("经营活动现金流量净额*",INDIRECT(VLOOKUP(ptype_selector,table_names,3,0)),MATCH(AQ$141,header_a,0),0),"")/IFERROR(VLOOKUP("五、净利润*",INDIRECT(VLOOKUP(ptype_selector,table_names,2,0)),MATCH(AQ$141,header_a,0),0),""),"--") -> 1.439864415 | AT145: =IFERROR(IFERROR(VLOOKUP("经营活动现金流量净额*",INDIRECT(VLOOKUP(ptype_selector,table_names,3,0)),MATCH(AT$141,header_a,0),0),"")/IFERROR(VLOOKUP("五、净利润*",INDIRECT(VLOOKUP(ptype_selector,table_names,2,0)),MATCH(AT$141,header_a,0),0),""),"--") -> 1.665046782 | AW145: =IFERROR(IFERROR(VLOOKUP("经营活动现金流量净额*",INDIRECT(VLOOKUP(ptype_selector,table_names,3,0)),MATCH(AW$141,header_a,0),0),"")/IFERROR(VLOOKUP("五、净利润*",INDIRECT(VLOOKUP(ptype_selector,table_names,2,0)),MATCH(AW$141,header_a,0),0),""),"--") -> 1.806250186
D147: 投资性现金流 | J147: =IFERROR(VLOOKUP("投资活动产生的现金流量净额*",INDIRECT(VLOOKUP(ptype_selector,table_names,3,0)),MATCH(J$141,header_a,0),0),"") -> -26.32825474 | M147: =IFERROR(VLOOKUP("投资活动产生的现金流量净额*",INDIRECT(VLOOKUP(ptype_selector,table_names,3,0)),MATCH(M$141,header_a,0),0),"") -> -23.72768069 | P147: =IFERROR(VLOOKUP("投资活动产生的现金流量净额*",INDIRECT(VLOOKUP(ptype_selector,table_names,3,0)),MATCH(P$141,header_a,0),0),"") -> -18.73406001 | S147: =IFERROR(VLOOKUP("投资活动产生的现金流量净额*",INDIRECT(VLOOKUP(ptype_selector,table_names,3,0)),MATCH(S$141,header_a,0),0),"") -> -18.62678315 | V147: =IFERROR(VLOOKUP("投资活动产生的现金流量净额*",INDIRECT(VLOOKUP(ptype_selector,table_names,3,0)),MATCH(V$141,header_a,0),0),"") -> -13.99471528 | Y147: =IFERROR(VLOOKUP("投资活动产生的现金流量净额*",INDIRECT(VLOOKUP(ptype_selector,table_names,3,0)),MATCH(Y$141,header_a,0),0),"") -> 1.67275517 | AB147: =IFERROR(VLOOKUP("投资活动产生的现金流量净额*",INDIRECT(VLOOKUP(ptype_selector,table_names,3,0)),MATCH(AB$141,header_a,0),0),"") -> -8.25923664 | AF147: 总资金来源 = 100% | AN147: =IFERROR(VLOOKUP("经营活动现金流入*",INDIRECT(VLOOKUP(ptype_selector,table_names,3,0)),MATCH(AN$141,header_a,0),0),0)+IFERROR(VLOOKUP("投资活动现金流入*",INDIRECT(VLOOKUP(ptype_selector,table_names,3,0)),MATCH(AN$141,header_a,0),0),0)+IFERROR(VLOOKUP("筹资活动现金流入*",INDIRECT(VLOOKUP(ptype_selector,table_names,3,0)),MATCH(AN$141,header_a,0),0),0) -> 441.9308652 | AQ147: =IFERROR(VLOOKUP("经营活动现金流入*",INDIRECT(VLOOKUP(ptype_selector,table_names,3,0)),MATCH(AQ$141,header_a,0),0),0)+IFERROR(VLOOKUP("投资活动现金流入*",INDIRECT(VLOOKUP(ptype_selector,table_names,3,0)),MATCH(AQ$141,header_a,0),0),0)+IFERROR(VLOOKUP("筹资活动现金流入*",INDIRECT(VLOOKUP(ptype_selector,table_names,3,0)),MATCH(AQ$141,header_a,0),0),0) -> 412.8381039 | AT147: =IFERROR(VLOOKUP("经营活动现金流入*",INDIRECT(VLOOKUP(ptype_selector,table_names,3,0)),MATCH(AT$141,header_a,0),0),0)+IFERROR(VLOOKUP("投资活动现金流入*",INDIRECT(VLOOKUP(ptype_selector,table_names,3,0)),MATCH(AT$141,header_a,0),0),0)+IFERROR(VLOOKUP("筹资活动现金流入*",INDIRECT(VLOOKUP(ptype_selector,table_names,3,0)),MATCH(AT$141,header_a,0),0),0) -> 413.1816947 | AW147: =IFERROR(VLOOKUP("经营活动现金流入*",INDIRECT(VLOOKUP(ptype_selector,table_names,3,0)),MATCH(AW$141,header_a,0),0),0)+IFERROR(VLOOKUP("投资活动现金流入*",INDIRECT(VLOOKUP(ptype_selector,table_names,3,0)),MATCH(AW$141,header_a,0),0),0)+IFERROR(VLOOKUP("筹资活动现金流入*",INDIRECT(VLOOKUP(ptype_selector,table_names,3,0)),MATCH(AW$141,header_a,0),0),0) -> 404.2459457
D149: 同比 | J149: =IFERROR(IF(IFERROR(VLOOKUP("投资活动产生的现金流量净额*",INDIRECT(VLOOKUP(ptype_selector,table_names,3,0)),MATCH(J$141,header_a,0),0),"")>IFERROR(VLOOKUP("投资活动产生的现金流量净额*",INDIRECT(VLOOKUP(ptype_selector,table_names,3,0)),MATCH(EOMONTH(J$141,-12),header_a,0),0),""),ABS(IFERROR(VLOOKUP("投资活动产生的现金流量净额*",INDIRECT(VLOOKUP(ptype_selector,table_names,3,0)),MATCH(J$141,header_a,0),0),"")/IFERROR(VLOOKUP("投资活动产生的现金流量净额*",INDIRECT(VLOOKUP(ptype_selector,table_names,3,0)),MATCH(EOMONTH(J$141,-12),header_a,0),0),"")-1),-1*ABS(IFERROR(VLOOKUP("投资活动产生的现金流量净额*",INDIRECT(VLOOKUP(ptype_selector,table_names,3,0)),MATCH(J$141,header_a,0),0),"")/IFERROR(VLOOKUP("投资活动产生的现金流量净额*",INDIRECT(VLOOKUP(ptype_selector,table_names,3,0)),MATCH(EOMONTH(J$141,-12),header_a,0),0),"")-1)),"--") -> -0.8812997773 | M149: =IFERROR(IF(IFERROR(VLOOKUP("投资活动产生的现金流量净额*",INDIRECT(VLOOKUP(ptype_selector,table_names,3,0)),MATCH(M$141,header_a,0),0),"")>IFERROR(VLOOKUP("投资活动产生的现金流量净额*",INDIRECT(VLOOKUP(ptype_selector,table_names,3,0)),MATCH(EOMONTH(M$141,-12),header_a,0),0),""),ABS(IFERROR(VLOOKUP("投资活动产生的现金流量净额*",INDIRECT(VLOOKUP(ptype_selector,table_names,3,0)),MATCH(M$141,header_a,0),0),"")/IFERROR(VLOOKUP("投资活动产生的现金流量净额*",INDIRECT(VLOOKUP(ptype_selector,table_names,3,0)),MATCH(EOMONTH(M$141,-12),header_a,0),0),"")-1),-1*ABS(IFERROR(VLOOKUP("投资活动产生的现金流量净额*",INDIRECT(VLOOKUP(ptype_selector,table_names,3,0)),MATCH(M$141,header_a,0),0),"")/IFERROR(VLOOKUP("投资活动产生的现金流量净额*",INDIRECT(VLOOKUP(ptype_selector,table_names,3,0)),MATCH(EOMONTH(M$141,-12),header_a,0),0),"")-1)),"--") -> -15.18478993 | P149: =IFERROR(IF(IFERROR(VLOOKUP("投资活动产生的现金流量净额*",INDIRECT(VLOOKUP(ptype_selector,table_names,3,0)),MATCH(P$141,header_a,0),0),"")>IFERROR(VLOOKUP("投资活动产生的现金流量净额*",INDIRECT(VLOOKUP(ptype_selector,table_names,3,0)),MATCH(EOMONTH(P$141,-12),header_a,0),0),""),ABS(IFERROR(VLOOKUP("投资活动产生的现金流量净额*",INDIRECT(VLOOKUP(ptype_selector,table_names,3,0)),MATCH(P$141,header_a,0),0),"")/IFERROR(VLOOKUP("投资活动产生的现金流量净额*",INDIRECT(VLOOKUP(ptype_selector,table_names,3,0)),MATCH(EOMONTH(P$141,-12),header_a,0),0),"")-1),-1*ABS(IFERROR(VLOOKUP("投资活动产生的现金流量净额*",INDIRECT(VLOOKUP(ptype_selector,table_names,3,0)),MATCH(P$141,header_a,0),0),"")/IFERROR(VLOOKUP("投资活动产生的现金流量净额*",INDIRECT(VLOOKUP(ptype_selector,table_names,3,0)),MATCH(EOMONTH(P$141,-12),header_a,0),0),"")-1)),"--") -> -1.26825563 | S149: =IFERROR(IF(IFERROR(VLOOKUP("投资活动产生的现金流量净额*",INDIRECT(VLOOKUP(ptype_selector,table_names,3,0)),MATCH(S$141,header_a,0),0),"")>IFERROR(VLOOKUP("投资活动产生的现金流量净额*",INDIRECT(VLOOKUP(ptype_selector,table_names,3,0)),MATCH(EOMONTH(S$141,-12),header_a,0),0),""),ABS(IFERROR(VLOOKUP("投资活动产生的现金流量净额*",INDIRECT(VLOOKUP(ptype_selector,table_names,3,0)),MATCH(S$141,header_a,0),0),"")/IFERROR(VLOOKUP("投资活动产生的现金流量净额*",INDIRECT(VLOOKUP(ptype_selector,table_names,3,0)),MATCH(EOMONTH(S$141,-12),header_a,0),0),"")-1),-1*ABS(IFERROR(VLOOKUP("投资活动产生的现金流量净额*",INDIRECT(VLOOKUP(ptype_selector,table_names,3,0)),MATCH(S$141,header_a,0),0),"")/IFERROR(VLOOKUP("投资活动产生的现金流量净额*",INDIRECT(VLOOKUP(ptype_selector,table_names,3,0)),MATCH(EOMONTH(S$141,-12),header_a,0),0),"")-1)),"--") -> -0.596644801 | V149: =IFERROR(IF(IFERROR(VLOOKUP("投资活动产生的现金流量净额*",INDIRECT(VLOOKUP(ptype_selector,table_names,3,0)),MATCH(V$141,header_a,0),0),"")>IFERROR(VLOOKUP("投资活动产生的现金流量净额*",INDIRECT(VLOOKUP(ptype_selector,table_names,3,0)),MATCH(EOMONTH(V$141,-12),header_a,0),0),""),ABS(IFERROR(VLOOKUP("投资活动产生的现金流量净额*",INDIRECT(VLOOKUP(ptype_selector,table_names,3,0)),MATCH(V$141,header_a,0),0),"")/IFERROR(VLOOKUP("投资活动产生的现金流量净额*",INDIRECT(VLOOKUP(ptype_selector,table_names,3,0)),MATCH(EOMONTH(V$141,-12),header_a,0),0),"")-1),-1*ABS(IFERROR(VLOOKUP("投资活动产生的现金流量净额*",INDIRECT(VLOOKUP(ptype_selector,table_names,3,0)),MATCH(V$141,header_a,0),0),"")/IFERROR(VLOOKUP("投资活动产生的现金流量净额*",INDIRECT(VLOOKUP(ptype_selector,table_names,3,0)),MATCH(EOMONTH(V$141,-12),header_a,0),0),"")-1)),"--") -> -0.1240704919 | Y149: =IFERROR(IF(IFERROR(VLOOKUP("投资活动产生的现金流量净额*",INDIRECT(VLOOKUP(ptype_selector,table_names,3,0)),MATCH(Y$141,header_a,0),0),"")>IFERROR(VLOOKUP("投资活动产生的现金流量净额*",INDIRECT(VLOOKUP(ptype_selector,table_names,3,0)),MATCH(EOMONTH(Y$141,-12),header_a,0),0),""),ABS(IFERROR(VLOOKUP("投资活动产生的现金流量净额*",INDIRECT(VLOOKUP(ptype_selector,table_names,3,0)),MATCH(Y$141,header_a,0),0),"")/IFERROR(VLOOKUP("投资活动产生的现金流量净额*",INDIRECT(VLOOKUP(ptype_selector,table_names,3,0)),MATCH(EOMONTH(Y$141,-12),header_a,0),0),"")-1),-1*ABS(IFERROR(VLOOKUP("投资活动产生的现金流量净额*",INDIRECT(VLOOKUP(ptype_selector,table_names,3,0)),MATCH(Y$141,header_a,0),0),"")/IFERROR(VLOOKUP("投资活动产生的现金流量净额*",INDIRECT(VLOOKUP(ptype_selector,table_names,3,0)),MATCH(EOMONTH(Y$141,-12),header_a,0),0),"")-1)),"--") -> 1.08232937 | AB149: =IFERROR(IF(IFERROR(VLOOKUP("投资活动产生的现金流量净额*",INDIRECT(VLOOKUP(ptype_selector,table_names,3,0)),MATCH(AB$141,header_a,0),0),"")>IFERROR(VLOOKUP("投资活动产生的现金流量净额*",INDIRECT(VLOOKUP(ptype_selector,table_names,3,0)),MATCH(EOMONTH(AB$141,-12),header_a,0),0),""),ABS(IFERROR(VLOOKUP("投资活动产生的现金流量净额*",INDIRECT(VLOOKUP(ptype_selector,table_names,3,0)),MATCH(AB$141,header_a,0),0),"")/IFERROR(VLOOKUP("投资活动产生的现金流量净额*",INDIRECT(VLOOKUP(ptype_selector,table_names,3,0)),MATCH(EOMONTH(AB$141,-12),header_a,0),0),"")-1),-1*ABS(IFERROR(VLOOKUP("投资活动产生的现金流量净额*",INDIRECT(VLOOKUP(ptype_selector,table_names,3,0)),MATCH(AB$141,header_a,0),0),"")/IFERROR(VLOOKUP("投资活动产生的现金流量净额*",INDIRECT(VLOOKUP(ptype_selector,table_names,3,0)),MATCH(EOMONTH(AB$141,-12),header_a,0),0),"")-1)),"--") -> 0.07097291368 | AF149: 来自经营活动 % | AN149: =IFERROR(VLOOKUP("经营活动现金流入小计*",INDIRECT(VLOOKUP(ptype_selector,table_names,3,0)),MATCH(AN$141,header_a,0),0)/(IFERROR(VLOOKUP("经营活动现金流入*",INDIRECT(VLOOKUP(ptype_selector,table_names,3,0)),MATCH(AN$141,header_a,0),0),0)+IFERROR(VLOOKUP("投资活动现金流入*",INDIRECT(VLOOKUP(ptype_selector,table_names,3,0)),MATCH(AN$141,header_a,0),0),0)+IFERROR(VLOOKUP("筹资活动现金流入*",INDIRECT(VLOOKUP(ptype_selector,table_names,3,0)),MATCH(AN$141,header_a,0),0),0)),"--") -> 0.6349405182 | AQ149: =IFERROR(VLOOKUP("经营活动现金流入小计*",INDIRECT(VLOOKUP(ptype_selector,table_names,3,0)),MATCH(AQ$141,header_a,0),0)/(IFERROR(VLOOKUP("经营活动现金流入*",INDIRECT(VLOOKUP(ptype_selector,table_names,3,0)),MATCH(AQ$141,header_a,0),0),0)+IFERROR(VLOOKUP("投资活动现金流入*",INDIRECT(VLOOKUP(ptype_selector,table_names,3,0)),MATCH(AQ$141,header_a,0),0),0)+IFERROR(VLOOKUP("筹资活动现金流入*",INDIRECT(VLOOKUP(ptype_selector,table_names,3,0)),MATCH(AQ$141,header_a,0),0),0)),"--") -> 0.6595010887 | AT149: =IFERROR(VLOOKUP("经营活动现金流入小计*",INDIRECT(VLOOKUP(ptype_selector,table_names,3,0)),MATCH(AT$141,header_a,0),0)/(IFERROR(VLOOKUP("经营活动现金流入*",INDIRECT(VLOOKUP(ptype_selector,table_names,3,0)),MATCH(AT$141,header_a,0),0),0)+IFERROR(VLOOKUP("投资活动现金流入*",INDIRECT(VLOOKUP(ptype_selector,table_names,3,0)),MATCH(AT$141,header_a,0),0),0)+IFERROR(VLOOKUP("筹资活动现金流入*",INDIRECT(VLOOKUP(ptype_selector,table_names,3,0)),MATCH(AT$141,header_a,0),0),0)),"--") -> 0.6314269668 | AW149: =IFERROR(VLOOKUP("经营活动现金流入小计*",INDIRECT(VLOOKUP(ptype_selector,table_names,3,0)),MATCH(AW$141,header_a,0),0)/(IFERROR(VLOOKUP("经营活动现金流入*",INDIRECT(VLOOKUP(ptype_selector,table_names,3,0)),MATCH(AW$141,header_a,0),0),0)+IFERROR(VLOOKUP("投资活动现金流入*",INDIRECT(VLOOKUP(ptype_selector,table_names,3,0)),MATCH(AW$141,header_a,0),0),0)+IFERROR(VLOOKUP("筹资活动现金流入*",INDIRECT(VLOOKUP(ptype_selector,table_names,3,0)),MATCH(AW$141,header_a,0),0),0)),"--") -> 0.6338695674
D151: 筹资性现金流 | J151: =IFERROR(VLOOKUP("筹资活动产生的现金流量净额*",INDIRECT(VLOOKUP(ptype_selector,table_names,3,0)),MATCH(J$141,header_a,0),0),"") -> -12.59450701 | M151: =IFERROR(VLOOKUP("筹资活动产生的现金流量净额*",INDIRECT(VLOOKUP(ptype_selector,table_names,3,0)),MATCH(M$141,header_a,0),0),"") -> -16.43501161 | P151: =IFERROR(VLOOKUP("筹资活动产生的现金流量净额*",INDIRECT(VLOOKUP(ptype_selector,table_names,3,0)),MATCH(P$141,header_a,0),0),"") -> 25.07414944 | S151: =IFERROR(VLOOKUP("筹资活动产生的现金流量净额*",INDIRECT(VLOOKUP(ptype_selector,table_names,3,0)),MATCH(S$141,header_a,0),0),"") -> 19.5181773 | V151: =IFERROR(VLOOKUP("筹资活动产生的现金流量净额*",INDIRECT(VLOOKUP(ptype_selector,table_names,3,0)),MATCH(V$141,header_a,0),0),"") -> 7.06180404 | Y151: =IFERROR(VLOOKUP("筹资活动产生的现金流量净额*",INDIRECT(VLOOKUP(ptype_selector,table_names,3,0)),MATCH(Y$141,header_a,0),0),"") -> -32.31021159 | AB151: =IFERROR(VLOOKUP("筹资活动产生的现金流量净额*",INDIRECT(VLOOKUP(ptype_selector,table_names,3,0)),MATCH(AB$141,header_a,0),0),"") -> -57.31198412 | AF151: 来自投资活动 % | AN151: =IFERROR(VLOOKUP("投资活动现金流入小计*",INDIRECT(VLOOKUP(ptype_selector,table_names,3,0)),MATCH(AN$141,header_a,0),0)/(IFERROR(VLOOKUP("经营活动现金流入*",INDIRECT(VLOOKUP(ptype_selector,table_names,3,0)),MATCH(AN$141,header_a,0),0),0)+IFERROR(VLOOKUP("投资活动现金流入*",INDIRECT(VLOOKUP(ptype_selector,table_names,3,0)),MATCH(AN$141,header_a,0),0),0)+IFERROR(VLOOKUP("筹资活动现金流入*",INDIRECT(VLOOKUP(ptype_selector,table_names,3,0)),MATCH(AN$141,header_a,0),0),0)),"--") -> 0.004336697979 | AQ151: =IFERROR(VLOOKUP("投资活动现金流入小计*",INDIRECT(VLOOKUP(ptype_selector,table_names,3,0)),MATCH(AQ$141,header_a,0),0)/(IFERROR(VLOOKUP("经营活动现金流入*",INDIRECT(VLOOKUP(ptype_selector,table_names,3,0)),MATCH(AQ$141,header_a,0),0),0)+IFERROR(VLOOKUP("投资活动现金流入*",INDIRECT(VLOOKUP(ptype_selector,table_names,3,0)),MATCH(AQ$141,header_a,0),0),0)+IFERROR(VLOOKUP("筹资活动现金流入*",INDIRECT(VLOOKUP(ptype_selector,table_names,3,0)),MATCH(AQ$141,header_a,0),0),0)),"--") -> 0.006020532374 | AT151: =IFERROR(VLOOKUP("投资活动现金流入小计*",INDIRECT(VLOOKUP(ptype_selector,table_names,3,0)),MATCH(AT$141,header_a,0),0)/(IFERROR(VLOOKUP("经营活动现金流入*",INDIRECT(VLOOKUP(ptype_selector,table_names,3,0)),MATCH(AT$141,header_a,0),0),0)+IFERROR(VLOOKUP("投资活动现金流入*",INDIRECT(VLOOKUP(ptype_selector,table_names,3,0)),MATCH(AT$141,header_a,0),0),0)+IFERROR(VLOOKUP("筹资活动现金流入*",INDIRECT(VLOOKUP(ptype_selector,table_names,3,0)),MATCH(AT$141,header_a,0),0),0)),"--") -> 0.01135737839 | AW151: =IFERROR(VLOOKUP("投资活动现金流入小计*",INDIRECT(VLOOKUP(ptype_selector,table_names,3,0)),MATCH(AW$141,header_a,0),0)/(IFERROR(VLOOKUP("经营活动现金流入*",INDIRECT(VLOOKUP(ptype_selector,table_names,3,0)),MATCH(AW$141,header_a,0),0),0)+IFERROR(VLOOKUP("投资活动现金流入*",INDIRECT(VLOOKUP(ptype_selector,table_names,3,0)),MATCH(AW$141,header_a,0),0),0)+IFERROR(VLOOKUP("筹资活动现金流入*",INDIRECT(VLOOKUP(ptype_selector,table_names,3,0)),MATCH(AW$141,header_a,0),0),0)),"--") -> 0.01180356437
D153: 同比 | J153: =IFERROR(IF(IFERROR(VLOOKUP("筹资活动产生的现金流量净额*",INDIRECT(VLOOKUP(ptype_selector,table_names,3,0)),MATCH(J$141,header_a,0),0),"")>IFERROR(VLOOKUP("筹资活动产生的现金流量净额*",INDIRECT(VLOOKUP(ptype_selector,table_names,3,0)),MATCH(EOMONTH(J$141,-12),header_a,0),0),""),ABS(IFERROR(VLOOKUP("筹资活动产生的现金流量净额*",INDIRECT(VLOOKUP(ptype_selector,table_names,3,0)),MATCH(J$141,header_a,0),0),"")/IFERROR(VLOOKUP("筹资活动产生的现金流量净额*",INDIRECT(VLOOKUP(ptype_selector,table_names,3,0)),MATCH(EOMONTH(J$141,-12),header_a,0),0),"")-1),-1*ABS(IFERROR(VLOOKUP("筹资活动产生的现金流量净额*",INDIRECT(VLOOKUP(ptype_selector,table_names,3,0)),MATCH(J$141,header_a,0),0),"")/IFERROR(VLOOKUP("筹资活动产生的现金流量净额*",INDIRECT(VLOOKUP(ptype_selector,table_names,3,0)),MATCH(EOMONTH(J$141,-12),header_a,0),0),"")-1)),"--") -> -2.783468776 | M153: =IFERROR(IF(IFERROR(VLOOKUP("筹资活动产生的现金流量净额*",INDIRECT(VLOOKUP(ptype_selector,table_names,3,0)),MATCH(M$141,header_a,0),0),"")>IFERROR(VLOOKUP("筹资活动产生的现金流量净额*",INDIRECT(VLOOKUP(ptype_selector,table_names,3,0)),MATCH(EOMONTH(M$141,-12),header_a,0),0),""),ABS(IFERROR(VLOOKUP("筹资活动产生的现金流量净额*",INDIRECT(VLOOKUP(ptype_selector,table_names,3,0)),MATCH(M$141,header_a,0),0),"")/IFERROR(VLOOKUP("筹资活动产生的现金流量净额*",INDIRECT(VLOOKUP(ptype_selector,table_names,3,0)),MATCH(EOMONTH(M$141,-12),header_a,0),0),"")-1),-1*ABS(IFERROR(VLOOKUP("筹资活动产生的现金流量净额*",INDIRECT(VLOOKUP(ptype_selector,table_names,3,0)),MATCH(M$141,header_a,0),0),"")/IFERROR(VLOOKUP("筹资活动产生的现金流量净额*",INDIRECT(VLOOKUP(ptype_selector,table_names,3,0)),MATCH(EOMONTH(M$141,-12),header_a,0),0),"")-1)),"--") -> 0.4913369241 | P153: =IFERROR(IF(IFERROR(VLOOKUP("筹资活动产生的现金流量净额*",INDIRECT(VLOOKUP(ptype_selector,table_names,3,0)),MATCH(P$141,header_a,0),0),"")>IFERROR(VLOOKUP("筹资活动产生的现金流量净额*",INDIRECT(VLOOKUP(ptype_selector,table_names,3,0)),MATCH(EOMONTH(P$141,-12),header_a,0),0),""),ABS(IFERROR(VLOOKUP("筹资活动产生的现金流量净额*",INDIRECT(VLOOKUP(ptype_selector,table_names,3,0)),MATCH(P$141,header_a,0),0),"")/IFERROR(VLOOKUP("筹资活动产生的现金流量净额*",INDIRECT(VLOOKUP(ptype_selector,table_names,3,0)),MATCH(EOMONTH(P$141,-12),header_a,0),0),"")-1),-1*ABS(IFERROR(VLOOKUP("筹资活动产生的现金流量净额*",INDIRECT(VLOOKUP(ptype_selector,table_names,3,0)),MATCH(P$141,header_a,0),0),"")/IFERROR(VLOOKUP("筹资活动产生的现金流量净额*",INDIRECT(VLOOKUP(ptype_selector,table_names,3,0)),MATCH(EOMONTH(P$141,-12),header_a,0),0),"")-1)),"--") -> 1.437502729 | S153: =IFERROR(IF(IFERROR(VLOOKUP("筹资活动产生的现金流量净额*",INDIRECT(VLOOKUP(ptype_selector,table_names,3,0)),MATCH(S$141,header_a,0),0),"")>IFERROR(VLOOKUP("筹资活动产生的现金流量净额*",INDIRECT(VLOOKUP(ptype_selector,table_names,3,0)),MATCH(EOMONTH(S$141,-12),header_a,0),0),""),ABS(IFERROR(VLOOKUP("筹资活动产生的现金流量净额*",INDIRECT(VLOOKUP(ptype_selector,table_names,3,0)),MATCH(S$141,header_a,0),0),"")/IFERROR(VLOOKUP("筹资活动产生的现金流量净额*",INDIRECT(VLOOKUP(ptype_selector,table_names,3,0)),MATCH(EOMONTH(S$141,-12),header_a,0),0),"")-1),-1*ABS(IFERROR(VLOOKUP("筹资活动产生的现金流量净额*",INDIRECT(VLOOKUP(ptype_selector,table_names,3,0)),MATCH(S$141,header_a,0),0),"")/IFERROR(VLOOKUP("筹资活动产生的现金流量净额*",INDIRECT(VLOOKUP(ptype_selector,table_names,3,0)),MATCH(EOMONTH(S$141,-12),header_a,0),0),"")-1)),"--") -> 1.595153526 | V153: =IFERROR(IF(IFERROR(VLOOKUP("筹资活动产生的现金流量净额*",INDIRECT(VLOOKUP(ptype_selector,table_names,3,0)),MATCH(V$141,header_a,0),0),"")>IFERROR(VLOOKUP("筹资活动产生的现金流量净额*",INDIRECT(VLOOKUP(ptype_selector,table_names,3,0)),MATCH(EOMONTH(V$141,-12),header_a,0),0),""),ABS(IFERROR(VLOOKUP("筹资活动产生的现金流量净额*",INDIRECT(VLOOKUP(ptype_selector,table_names,3,0)),MATCH(V$141,header_a,0),0),"")/IFERROR(VLOOKUP("筹资活动产生的现金流量净额*",INDIRECT(VLOOKUP(ptype_selector,table_names,3,0)),MATCH(EOMONTH(V$141,-12),header_a,0),0),"")-1),-1*ABS(IFERROR(VLOOKUP("筹资活动产生的现金流量净额*",INDIRECT(VLOOKUP(ptype_selector,table_names,3,0)),MATCH(V$141,header_a,0),0),"")/IFERROR(VLOOKUP("筹资活动产生的现金流量净额*",INDIRECT(VLOOKUP(ptype_selector,table_names,3,0)),MATCH(EOMONTH(V$141,-12),header_a,0),0),"")-1)),"--") -> 1.219290246 | Y153: =IFERROR(IF(IFERROR(VLOOKUP("筹资活动产生的现金流量净额*",INDIRECT(VLOOKUP(ptype_selector,table_names,3,0)),MATCH(Y$141,header_a,0),0),"")>IFERROR(VLOOKUP("筹资活动产生的现金流量净额*",INDIRECT(VLOOKUP(ptype_selector,table_names,3,0)),MATCH(EOMONTH(Y$141,-12),header_a,0),0),""),ABS(IFERROR(VLOOKUP("筹资活动产生的现金流量净额*",INDIRECT(VLOOKUP(ptype_selector,table_names,3,0)),MATCH(Y$141,header_a,0),0),"")/IFERROR(VLOOKUP("筹资活动产生的现金流量净额*",INDIRECT(VLOOKUP(ptype_selector,table_names,3,0)),MATCH(EOMONTH(Y$141,-12),header_a,0),0),"")-1),-1*ABS(IFERROR(VLOOKUP("筹资活动产生的现金流量净额*",INDIRECT(VLOOKUP(ptype_selector,table_names,3,0)),MATCH(Y$141,header_a,0),0),"")/IFERROR(VLOOKUP("筹资活动产生的现金流量净额*",INDIRECT(VLOOKUP(ptype_selector,table_names,3,0)),MATCH(EOMONTH(Y$141,-12),header_a,0),0),"")-1)),"--") -> -5.644555266 | AB153: =IFERROR(IF(IFERROR(VLOOKUP("筹资活动产生的现金流量净额*",INDIRECT(VLOOKUP(ptype_selector,table_names,3,0)),MATCH(AB$141,header_a,0),0),"")>IFERROR(VLOOKUP("筹资活动产生的现金流量净额*",INDIRECT(VLOOKUP(ptype_selector,table_names,3,0)),MATCH(EOMONTH(AB$141,-12),header_a,0),0),""),ABS(IFERROR(VLOOKUP("筹资活动产生的现金流量净额*",INDIRECT(VLOOKUP(ptype_selector,table_names,3,0)),MATCH(AB$141,header_a,0),0),"")/IFERROR(VLOOKUP("筹资活动产生的现金流量净额*",INDIRECT(VLOOKUP(ptype_selector,table_names,3,0)),MATCH(EOMONTH(AB$141,-12),header_a,0),0),"")-1),-1*ABS(IFERROR(VLOOKUP("筹资活动产生的现金流量净额*",INDIRECT(VLOOKUP(ptype_selector,table_names,3,0)),MATCH(AB$141,header_a,0),0),"")/IFERROR(VLOOKUP("筹资活动产生的现金流量净额*",INDIRECT(VLOOKUP(ptype_selector,table_names,3,0)),MATCH(EOMONTH(AB$141,-12),header_a,0),0),"")-1)),"--") -> -3.206053095 | AF153: 来自筹资活动 % | AN153: =IFERROR(VLOOKUP("筹资活动现金流入小计*",INDIRECT(VLOOKUP(ptype_selector,table_names,3,0)),MATCH(AN$141,header_a,0),0)/(IFERROR(VLOOKUP("经营活动现金流入*",INDIRECT(VLOOKUP(ptype_selector,table_names,3,0)),MATCH(AN$141,header_a,0),0),0)+IFERROR(VLOOKUP("投资活动现金流入*",INDIRECT(VLOOKUP(ptype_selector,table_names,3,0)),MATCH(AN$141,header_a,0),0),0)+IFERROR(VLOOKUP("筹资活动现金流入*",INDIRECT(VLOOKUP(ptype_selector,table_names,3,0)),MATCH(AN$141,header_a,0),0),0)),"--") -> 0.3607227838 | AQ153: =IFERROR(VLOOKUP("筹资活动现金流入小计*",INDIRECT(VLOOKUP(ptype_selector,table_names,3,0)),MATCH(AQ$141,header_a,0),0)/(IFERROR(VLOOKUP("经营活动现金流入*",INDIRECT(VLOOKUP(ptype_selector,table_names,3,0)),MATCH(AQ$141,header_a,0),0),0)+IFERROR(VLOOKUP("投资活动现金流入*",INDIRECT(VLOOKUP(ptype_selector,table_names,3,0)),MATCH(AQ$141,header_a,0),0),0)+IFERROR(VLOOKUP("筹资活动现金流入*",INDIRECT(VLOOKUP(ptype_selector,table_names,3,0)),MATCH(AQ$141,header_a,0),0),0)),"--") -> 0.3344783789 | AT153: =IFERROR(VLOOKUP("筹资活动现金流入小计*",INDIRECT(VLOOKUP(ptype_selector,table_names,3,0)),MATCH(AT$141,header_a,0),0)/(IFERROR(VLOOKUP("经营活动现金流入*",INDIRECT(VLOOKUP(ptype_selector,table_names,3,0)),MATCH(AT$141,header_a,0),0),0)+IFERROR(VLOOKUP("投资活动现金流入*",INDIRECT(VLOOKUP(ptype_selector,table_names,3,0)),MATCH(AT$141,header_a,0),0),0)+IFERROR(VLOOKUP("筹资活动现金流入*",INDIRECT(VLOOKUP(ptype_selector,table_names,3,0)),MATCH(AT$141,header_a,0),0),0)),"--") -> 0.3572156548 | AW153: =IFERROR(VLOOKUP("筹资活动现金流入小计*",INDIRECT(VLOOKUP(ptype_selector,table_names,3,0)),MATCH(AW$141,header_a,0),0)/(IFERROR(VLOOKUP("经营活动现金流入*",INDIRECT(VLOOKUP(ptype_selector,table_names,3,0)),MATCH(AW$141,header_a,0),0),0)+IFERROR(VLOOKUP("投资活动现金流入*",INDIRECT(VLOOKUP(ptype_selector,table_names,3,0)),MATCH(AW$141,header_a,0),0),0)+IFERROR(VLOOKUP("筹资活动现金流入*",INDIRECT(VLOOKUP(ptype_selector,table_names,3,0)),MATCH(AW$141,header_a,0),0),0)),"--") -> 0.3543268682
D155: 净现金流 | J155: =IFERROR(VLOOKUP("净现金流*",INDIRECT(VLOOKUP(ptype_selector,table_names,3,0)),MATCH(J$141,header_a,0),0),"") -> 23.50286033 | M155: =IFERROR(VLOOKUP("净现金流*",INDIRECT(VLOOKUP(ptype_selector,table_names,3,0)),MATCH(M$141,header_a,0),0),"") -> 17.05576324 | P155: =IFERROR(VLOOKUP("净现金流*",INDIRECT(VLOOKUP(ptype_selector,table_names,3,0)),MATCH(P$141,header_a,0),0),"") -> 55.561817 | S155: =IFERROR(VLOOKUP("净现金流*",INDIRECT(VLOOKUP(ptype_selector,table_names,3,0)),MATCH(S$141,header_a,0),0),"") -> 55.17369927 | V155: =IFERROR(VLOOKUP("净现金流*",INDIRECT(VLOOKUP(ptype_selector,table_names,3,0)),MATCH(V$141,header_a,0),0),"") -> 59.01596776 | Y155: =IFERROR(VLOOKUP("净现金流*",INDIRECT(VLOOKUP(ptype_selector,table_names,3,0)),MATCH(Y$141,header_a,0),0),"") -> 34.96020598 | AB155: =IFERROR(VLOOKUP("净现金流*",INDIRECT(VLOOKUP(ptype_selector,table_names,3,0)),MATCH(AB$141,header_a,0),0),"") -> -8.45066425 | AF155: 总资金使用 | AN155: =IFERROR(VLOOKUP("经营活动现金流出*",INDIRECT(VLOOKUP(ptype_selector,table_names,3,0)),MATCH(AN$141,header_a,0),0),0)+IFERROR(VLOOKUP("投资活动现金流出*",INDIRECT(VLOOKUP(ptype_selector,table_names,3,0)),MATCH(AN$141,header_a,0),0),0)+IFERROR(VLOOKUP("筹资活动现金流出*",INDIRECT(VLOOKUP(ptype_selector,table_names,3,0)),MATCH(AN$141,header_a,0),0),0) -> 427.0809331 | AQ155: =IFERROR(VLOOKUP("经营活动现金流出*",INDIRECT(VLOOKUP(ptype_selector,table_names,3,0)),MATCH(AQ$141,header_a,0),0),0)+IFERROR(VLOOKUP("投资活动现金流出*",INDIRECT(VLOOKUP(ptype_selector,table_names,3,0)),MATCH(AQ$141,header_a,0),0),0)+IFERROR(VLOOKUP("筹资活动现金流出*",INDIRECT(VLOOKUP(ptype_selector,table_names,3,0)),MATCH(AQ$141,header_a,0),0),0) -> 398.9124154 | AT155: =IFERROR(VLOOKUP("经营活动现金流出*",INDIRECT(VLOOKUP(ptype_selector,table_names,3,0)),MATCH(AT$141,header_a,0),0),0)+IFERROR(VLOOKUP("投资活动现金流出*",INDIRECT(VLOOKUP(ptype_selector,table_names,3,0)),MATCH(AT$141,header_a,0),0),0)+IFERROR(VLOOKUP("筹资活动现金流出*",INDIRECT(VLOOKUP(ptype_selector,table_names,3,0)),MATCH(AT$141,header_a,0),0),0) -> 354.2393476 | AW155: =IFERROR(VLOOKUP("经营活动现金流出*",INDIRECT(VLOOKUP(ptype_selector,table_names,3,0)),MATCH(AW$141,header_a,0),0),0)+IFERROR(VLOOKUP("投资活动现金流出*",INDIRECT(VLOOKUP(ptype_selector,table_names,3,0)),MATCH(AW$141,header_a,0),0),0)+IFERROR(VLOOKUP("筹资活动现金流出*",INDIRECT(VLOOKUP(ptype_selector,table_names,3,0)),MATCH(AW$141,header_a,0),0),0) -> 346.5844551
D157: 同比 | J157: =IFERROR(IF(IFERROR(VLOOKUP("净现金流*",INDIRECT(VLOOKUP(ptype_selector,table_names,3,0)),MATCH(J$141,header_a,0),0),"")>IFERROR(VLOOKUP("净现金流*",INDIRECT(VLOOKUP(ptype_selector,table_names,3,0)),MATCH(EOMONTH(J$141,-12),header_a,0),0),""),ABS(IFERROR(VLOOKUP("净现金流*",INDIRECT(VLOOKUP(ptype_selector,table_names,3,0)),MATCH(J$141,header_a,0),0),"")/IFERROR(VLOOKUP("净现金流*",INDIRECT(VLOOKUP(ptype_selector,table_names,3,0)),MATCH(EOMONTH(J$141,-12),header_a,0),0),"")-1),-1*ABS(IFERROR(VLOOKUP("净现金流*",INDIRECT(VLOOKUP(ptype_selector,table_names,3,0)),MATCH(J$141,header_a,0),0),"")/IFERROR(VLOOKUP("净现金流*",INDIRECT(VLOOKUP(ptype_selector,table_names,3,0)),MATCH(EOMONTH(J$141,-12),header_a,0),0),"")-1)),"--") -> -0.6017542163 | M157: =IFERROR(IF(IFERROR(VLOOKUP("净现金流*",INDIRECT(VLOOKUP(ptype_selector,table_names,3,0)),MATCH(M$141,header_a,0),0),"")>IFERROR(VLOOKUP("净现金流*",INDIRECT(VLOOKUP(ptype_selector,table_names,3,0)),MATCH(EOMONTH(M$141,-12),header_a,0),0),""),ABS(IFERROR(VLOOKUP("净现金流*",INDIRECT(VLOOKUP(ptype_selector,table_names,3,0)),MATCH(M$141,header_a,0),0),"")/IFERROR(VLOOKUP("净现金流*",INDIRECT(VLOOKUP(ptype_selector,table_names,3,0)),MATCH(EOMONTH(M$141,-12),header_a,0),0),"")-1),-1*ABS(IFERROR(VLOOKUP("净现金流*",INDIRECT(VLOOKUP(ptype_selector,table_names,3,0)),MATCH(M$141,header_a,0),0),"")/IFERROR(VLOOKUP("净现金流*",INDIRECT(VLOOKUP(ptype_selector,table_names,3,0)),MATCH(EOMONTH(M$141,-12),header_a,0),0),"")-1)),"--") -> -0.5121377932 | P157: =IFERROR(IF(IFERROR(VLOOKUP("净现金流*",INDIRECT(VLOOKUP(ptype_selector,table_names,3,0)),MATCH(P$141,header_a,0),0),"")>IFERROR(VLOOKUP("净现金流*",INDIRECT(VLOOKUP(ptype_selector,table_names,3,0)),MATCH(EOMONTH(P$141,-12),header_a,0),0),""),ABS(IFERROR(VLOOKUP("净现金流*",INDIRECT(VLOOKUP(ptype_selector,table_names,3,0)),MATCH(P$141,header_a,0),0),"")/IFERROR(VLOOKUP("净现金流*",INDIRECT(VLOOKUP(ptype_selector,table_names,3,0)),MATCH(EOMONTH(P$141,-12),header_a,0),0),"")-1),-1*ABS(IFERROR(VLOOKUP("净现金流*",INDIRECT(VLOOKUP(ptype_selector,table_names,3,0)),MATCH(P$141,header_a,0),0),"")/IFERROR(VLOOKUP("净现金流*",INDIRECT(VLOOKUP(ptype_selector,table_names,3,0)),MATCH(EOMONTH(P$141,-12),header_a,0),0),"")-1)),"--") -> 7.574846113 | S157: =IFERROR(IF(IFERROR(VLOOKUP("净现金流*",INDIRECT(VLOOKUP(ptype_selector,table_names,3,0)),MATCH(S$141,header_a,0),0),"")>IFERROR(VLOOKUP("净现金流*",INDIRECT(VLOOKUP(ptype_selector,table_names,3,0)),MATCH(EOMONTH(S$141,-12),header_a,0),0),""),ABS(IFERROR(VLOOKUP("净现金流*",INDIRECT(VLOOKUP(ptype_selector,table_names,3,0)),MATCH(S$141,header_a,0),0),"")/IFERROR(VLOOKUP("净现金流*",INDIRECT(VLOOKUP(ptype_selector,table_names,3,0)),MATCH(EOMONTH(S$141,-12),header_a,0),0),"")-1),-1*ABS(IFERROR(VLOOKUP("净现金流*",INDIRECT(VLOOKUP(ptype_selector,table_names,3,0)),MATCH(S$141,header_a,0),0),"")/IFERROR(VLOOKUP("净现金流*",INDIRECT(VLOOKUP(ptype_selector,table_names,3,0)),MATCH(EOMONTH(S$141,-12),header_a,0),0),"")-1)),"--") -> 11.1185317 | V157: =IFERROR(IF(IFERROR(VLOOKUP("净现金流*",INDIRECT(VLOOKUP(ptype_selector,table_names,3,0)),MATCH(V$141,header_a,0),0),"")>IFERROR(VLOOKUP("净现金流*",INDIRECT(VLOOKUP(ptype_selector,table_names,3,0)),MATCH(EOMONTH(V$141,-12),header_a,0),0),""),ABS(IFERROR(VLOOKUP("净现金流*",INDIRECT(VLOOKUP(ptype_selector,table_names,3,0)),MATCH(V$141,header_a,0),0),"")/IFERROR(VLOOKUP("净现金流*",INDIRECT(VLOOKUP(ptype_selector,table_names,3,0)),MATCH(EOMONTH(V$141,-12),header_a,0),0),"")-1),-1*ABS(IFERROR(VLOOKUP("净现金流*",INDIRECT(VLOOKUP(ptype_selector,table_names,3,0)),MATCH(V$141,header_a,0),0),"")/IFERROR(VLOOKUP("净现金流*",INDIRECT(VLOOKUP(ptype_selector,table_names,3,0)),MATCH(EOMONTH(V$141,-12),header_a,0),0),"")-1)),"--") -> 51.83470111 | Y157: =IFERROR(IF(IFERROR(VLOOKUP("净现金流*",INDIRECT(VLOOKUP(ptype_selector,table_names,3,0)),MATCH(Y$141,header_a,0),0),"")>IFERROR(VLOOKUP("净现金流*",INDIRECT(VLOOKUP(ptype_selector,table_names,3,0)),MATCH(EOMONTH(Y$141,-12),header_a,0),0),""),ABS(IFERROR(VLOOKUP("净现金流*",INDIRECT(VLOOKUP(ptype_selector,table_names,3,0)),MATCH(Y$141,header_a,0),0),"")/IFERROR(VLOOKUP("净现金流*",INDIRECT(VLOOKUP(ptype_selector,table_names,3,0)),MATCH(EOMONTH(Y$141,-12),header_a,0),0),"")-1),-1*ABS(IFERROR(VLOOKUP("净现金流*",INDIRECT(VLOOKUP(ptype_selector,table_names,3,0)),MATCH(Y$141,header_a,0),0),"")/IFERROR(VLOOKUP("净现金流*",INDIRECT(VLOOKUP(ptype_selector,table_names,3,0)),MATCH(EOMONTH(Y$141,-12),header_a,0),0),"")-1)),"--") -> 0.049772222 | AB157: =IFERROR(IF(IFERROR(VLOOKUP("净现金流*",INDIRECT(VLOOKUP(ptype_selector,table_names,3,0)),MATCH(AB$141,header_a,0),0),"")>IFERROR(VLOOKUP("净现金流*",INDIRECT(VLOOKUP(ptype_selector,table_names,3,0)),MATCH(EOMONTH(AB$141,-12),header_a,0),0),""),ABS(IFERROR(VLOOKUP("净现金流*",INDIRECT(VLOOKUP(ptype_selector,table_names,3,0)),MATCH(AB$141,header_a,0),0),"")/IFERROR(VLOOKUP("净现金流*",INDIRECT(VLOOKUP(ptype_selector,table_names,3,0)),MATCH(EOMONTH(AB$141,-12),header_a,0),0),"")-1),-1*ABS(IFERROR(VLOOKUP("净现金流*",INDIRECT(VLOOKUP(ptype_selector,table_names,3,0)),MATCH(AB$141,header_a,0),0),"")/IFERROR(VLOOKUP("净现金流*",INDIRECT(VLOOKUP(ptype_selector,table_names,3,0)),MATCH(EOMONTH(AB$141,-12),header_a,0),0),"")-1)),"--") -> -1.254592627 | AF157: 用于经营活动 % | AN157: =IFERROR(VLOOKUP("经营活动现金流出小计*",INDIRECT(VLOOKUP(ptype_selector,table_names,3,0)),MATCH(AN$141,header_a,0),0)/(IFERROR(VLOOKUP("经营活动现金流入*",INDIRECT(VLOOKUP(ptype_selector,table_names,3,0)),MATCH(AN$141,header_a,0),0),0)+IFERROR(VLOOKUP("投资活动现金流入*",INDIRECT(VLOOKUP(ptype_selector,table_names,3,0)),MATCH(AN$141,header_a,0),0),0)+IFERROR(VLOOKUP("筹资活动现金流入*",INDIRECT(VLOOKUP(ptype_selector,table_names,3,0)),MATCH(AN$141,header_a,0),0),0)),"--") -> 0.5132638079 | AQ157: =IFERROR(VLOOKUP("经营活动现金流出小计*",INDIRECT(VLOOKUP(ptype_selector,table_names,3,0)),MATCH(AQ$141,header_a,0),0)/(IFERROR(VLOOKUP("经营活动现金流入*",INDIRECT(VLOOKUP(ptype_selector,table_names,3,0)),MATCH(AQ$141,header_a,0),0),0)+IFERROR(VLOOKUP("投资活动现金流入*",INDIRECT(VLOOKUP(ptype_selector,table_names,3,0)),MATCH(AQ$141,header_a,0),0),0)+IFERROR(VLOOKUP("筹资活动现金流入*",INDIRECT(VLOOKUP(ptype_selector,table_names,3,0)),MATCH(AQ$141,header_a,0),0),0)),"--") -> 0.5284851279 | AT157: =IFERROR(VLOOKUP("经营活动现金流出小计*",INDIRECT(VLOOKUP(ptype_selector,table_names,3,0)),MATCH(AT$141,header_a,0),0)/(IFERROR(VLOOKUP("经营活动现金流入*",INDIRECT(VLOOKUP(ptype_selector,table_names,3,0)),MATCH(AT$141,header_a,0),0),0)+IFERROR(VLOOKUP("投资活动现金流入*",INDIRECT(VLOOKUP(ptype_selector,table_names,3,0)),MATCH(AT$141,header_a,0),0),0)+IFERROR(VLOOKUP("筹资活动现金流入*",INDIRECT(VLOOKUP(ptype_selector,table_names,3,0)),MATCH(AT$141,header_a,0),0),0)),"--") -> 0.5041167342 | AW157: =IFERROR(VLOOKUP("经营活动现金流出小计*",INDIRECT(VLOOKUP(ptype_selector,table_names,3,0)),MATCH(AW$141,header_a,0),0)/(IFERROR(VLOOKUP("经营活动现金流入*",INDIRECT(VLOOKUP(ptype_selector,table_names,3,0)),MATCH(AW$141,header_a,0),0),0)+IFERROR(VLOOKUP("投资活动现金流入*",INDIRECT(VLOOKUP(ptype_selector,table_names,3,0)),MATCH(AW$141,header_a,0),0),0)+IFERROR(VLOOKUP("筹资活动现金流入*",INDIRECT(VLOOKUP(ptype_selector,table_names,3,0)),MATCH(AW$141,header_a,0),0),0)),"--") -> 0.49343502
D159: 自由现金流 | J159: =IFERROR(VLOOKUP("自由现金流*",INDIRECT(VLOOKUP(ptype_selector,table_names,3,0)),MATCH(J$141,header_a,0),0),"") -> 28.67524679 | M159: =IFERROR(VLOOKUP("自由现金流*",INDIRECT(VLOOKUP(ptype_selector,table_names,3,0)),MATCH(M$141,header_a,0),0),"") -> 31.05559943 | P159: =IFERROR(VLOOKUP("自由现金流*",INDIRECT(VLOOKUP(ptype_selector,table_names,3,0)),MATCH(P$141,header_a,0),0),"") -> 32.48266927 | S159: =IFERROR(VLOOKUP("自由现金流*",INDIRECT(VLOOKUP(ptype_selector,table_names,3,0)),MATCH(S$141,header_a,0),0),"") -> 36.67438568 | V159: =IFERROR(VLOOKUP("自由现金流*",INDIRECT(VLOOKUP(ptype_selector,table_names,3,0)),MATCH(V$141,header_a,0),0),"") -> 49.27409862 | Y159: =IFERROR(VLOOKUP("自由现金流*",INDIRECT(VLOOKUP(ptype_selector,table_names,3,0)),MATCH(Y$141,header_a,0),0),"") -> 54.13833138 | AB159: =IFERROR(VLOOKUP("自由现金流*",INDIRECT(VLOOKUP(ptype_selector,table_names,3,0)),MATCH(AB$141,header_a,0),0),"") -> 45.13055314 | AF159: 用于投资活动 % | AN159: =IFERROR(VLOOKUP("投资活动现金流出小计*",INDIRECT(VLOOKUP(ptype_selector,table_names,3,0)),MATCH(AN$141,header_a,0),0)/(IFERROR(VLOOKUP("经营活动现金流入*",INDIRECT(VLOOKUP(ptype_selector,table_names,3,0)),MATCH(AN$141,header_a,0),0),0)+IFERROR(VLOOKUP("投资活动现金流入*",INDIRECT(VLOOKUP(ptype_selector,table_names,3,0)),MATCH(AN$141,header_a,0),0),0)+IFERROR(VLOOKUP("筹资活动现金流入*",INDIRECT(VLOOKUP(ptype_selector,table_names,3,0)),MATCH(AN$141,header_a,0),0),0)),"--") -> 0.06391220359 | AQ159: =IFERROR(VLOOKUP("投资活动现金流出小计*",INDIRECT(VLOOKUP(ptype_selector,table_names,3,0)),MATCH(AQ$141,header_a,0),0)/(IFERROR(VLOOKUP("经营活动现金流入*",INDIRECT(VLOOKUP(ptype_selector,table_names,3,0)),MATCH(AQ$141,header_a,0),0),0)+IFERROR(VLOOKUP("投资活动现金流入*",INDIRECT(VLOOKUP(ptype_selector,table_names,3,0)),MATCH(AQ$141,header_a,0),0),0)+IFERROR(VLOOKUP("筹资活动现金流入*",INDIRECT(VLOOKUP(ptype_selector,table_names,3,0)),MATCH(AQ$141,header_a,0),0),0)),"--") -> 0.06349507376 | AT159: =IFERROR(VLOOKUP("投资活动现金流出小计*",INDIRECT(VLOOKUP(ptype_selector,table_names,3,0)),MATCH(AT$141,header_a,0),0)/(IFERROR(VLOOKUP("经营活动现金流入*",INDIRECT(VLOOKUP(ptype_selector,table_names,3,0)),MATCH(AT$141,header_a,0),0),0)+IFERROR(VLOOKUP("投资活动现金流入*",INDIRECT(VLOOKUP(ptype_selector,table_names,3,0)),MATCH(AT$141,header_a,0),0),0)+IFERROR(VLOOKUP("筹资活动现金流入*",INDIRECT(VLOOKUP(ptype_selector,table_names,3,0)),MATCH(AT$141,header_a,0),0),0)),"--") -> 0.05669835126 | AW159: =IFERROR(VLOOKUP("投资活动现金流出小计*",INDIRECT(VLOOKUP(ptype_selector,table_names,3,0)),MATCH(AW$141,header_a,0),0)/(IFERROR(VLOOKUP("经营活动现金流入*",INDIRECT(VLOOKUP(ptype_selector,table_names,3,0)),MATCH(AW$141,header_a,0),0),0)+IFERROR(VLOOKUP("投资活动现金流入*",INDIRECT(VLOOKUP(ptype_selector,table_names,3,0)),MATCH(AW$141,header_a,0),0),0)+IFERROR(VLOOKUP("筹资活动现金流入*",INDIRECT(VLOOKUP(ptype_selector,table_names,3,0)),MATCH(AW$141,header_a,0),0),0)),"--") -> 0.05788141214
D161: 同比 | J161: =IFERROR(IF(IFERROR(VLOOKUP("自由现金流*",INDIRECT(VLOOKUP(ptype_selector,table_names,3,0)),MATCH(J$141,header_a,0),0),"")>IFERROR(VLOOKUP("自由现金流*",INDIRECT(VLOOKUP(ptype_selector,table_names,3,0)),MATCH(EOMONTH(J$141,-12),header_a,0),0),""),ABS(IFERROR(VLOOKUP("自由现金流*",INDIRECT(VLOOKUP(ptype_selector,table_names,3,0)),MATCH(J$141,header_a,0),0),"")/IFERROR(VLOOKUP("自由现金流*",INDIRECT(VLOOKUP(ptype_selector,table_names,3,0)),MATCH(EOMONTH(J$141,-12),header_a,0),0),"")-1),-1*ABS(IFERROR(VLOOKUP("自由现金流*",INDIRECT(VLOOKUP(ptype_selector,table_names,3,0)),MATCH(J$141,header_a,0),0),"")/IFERROR(VLOOKUP("自由现金流*",INDIRECT(VLOOKUP(ptype_selector,table_names,3,0)),MATCH(EOMONTH(J$141,-12),header_a,0),0),"")-1)),"--") -> -0.4180462435 | M161: =IFERROR(IF(IFERROR(VLOOKUP("自由现金流*",INDIRECT(VLOOKUP(ptype_selector,table_names,3,0)),MATCH(M$141,header_a,0),0),"")>IFERROR(VLOOKUP("自由现金流*",INDIRECT(VLOOKUP(ptype_selector,table_names,3,0)),MATCH(EOMONTH(M$141,-12),header_a,0),0),""),ABS(IFERROR(VLOOKUP("自由现金流*",INDIRECT(VLOOKUP(ptype_selector,table_names,3,0)),MATCH(M$141,header_a,0),0),"")/IFERROR(VLOOKUP("自由现金流*",INDIRECT(VLOOKUP(ptype_selector,table_names,3,0)),MATCH(EOMONTH(M$141,-12),header_a,0),0),"")-1),-1*ABS(IFERROR(VLOOKUP("自由现金流*",INDIRECT(VLOOKUP(ptype_selector,table_names,3,0)),MATCH(M$141,header_a,0),0),"")/IFERROR(VLOOKUP("自由现金流*",INDIRECT(VLOOKUP(ptype_selector,table_names,3,0)),MATCH(EOMONTH(M$141,-12),header_a,0),0),"")-1)),"--") -> -0.4263657812 | P161: =IFERROR(IF(IFERROR(VLOOKUP("自由现金流*",INDIRECT(VLOOKUP(ptype_selector,table_names,3,0)),MATCH(P$141,header_a,0),0),"")>IFERROR(VLOOKUP("自由现金流*",INDIRECT(VLOOKUP(ptype_selector,table_names,3,0)),MATCH(EOMONTH(P$141,-12),header_a,0),0),""),ABS(IFERROR(VLOOKUP("自由现金流*",INDIRECT(VLOOKUP(ptype_selector,table_names,3,0)),MATCH(P$141,header_a,0),0),"")/IFERROR(VLOOKUP("自由现金流*",INDIRECT(VLOOKUP(ptype_selector,table_names,3,0)),MATCH(EOMONTH(P$141,-12),header_a,0),0),"")-1),-1*ABS(IFERROR(VLOOKUP("自由现金流*",INDIRECT(VLOOKUP(ptype_selector,table_names,3,0)),MATCH(P$141,header_a,0),0),"")/IFERROR(VLOOKUP("自由现金流*",INDIRECT(VLOOKUP(ptype_selector,table_names,3,0)),MATCH(EOMONTH(P$141,-12),header_a,0),0),"")-1)),"--") -> -0.2802510271 | S161: =IFERROR(IF(IFERROR(VLOOKUP("自由现金流*",INDIRECT(VLOOKUP(ptype_selector,table_names,3,0)),MATCH(S$141,header_a,0),0),"")>IFERROR(VLOOKUP("自由现金流*",INDIRECT(VLOOKUP(ptype_selector,table_names,3,0)),MATCH(EOMONTH(S$141,-12),header_a,0),0),""),ABS(IFERROR(VLOOKUP("自由现金流*",INDIRECT(VLOOKUP(ptype_selector,table_names,3,0)),MATCH(S$141,header_a,0),0),"")/IFERROR(VLOOKUP("自由现金流*",INDIRECT(VLOOKUP(ptype_selector,table_names,3,0)),MATCH(EOMONTH(S$141,-12),header_a,0),0),"")-1),-1*ABS(IFERROR(VLOOKUP("自由现金流*",INDIRECT(VLOOKUP(ptype_selector,table_names,3,0)),MATCH(S$141,header_a,0),0),"")/IFERROR(VLOOKUP("自由现金流*",INDIRECT(VLOOKUP(ptype_selector,table_names,3,0)),MATCH(EOMONTH(S$141,-12),header_a,0),0),"")-1)),"--") -> -0.04987938565 | V161: =IFERROR(IF(IFERROR(VLOOKUP("自由现金流*",INDIRECT(VLOOKUP(ptype_selector,table_names,3,0)),MATCH(V$141,header_a,0),0),"")>IFERROR(VLOOKUP("自由现金流*",INDIRECT(VLOOKUP(ptype_selector,table_names,3,0)),MATCH(EOMONTH(V$141,-12),header_a,0),0),""),ABS(IFERROR(VLOOKUP("自由现金流*",INDIRECT(VLOOKUP(ptype_selector,table_names,3,0)),MATCH(V$141,header_a,0),0),"")/IFERROR(VLOOKUP("自由现金流*",INDIRECT(VLOOKUP(ptype_selector,table_names,3,0)),MATCH(EOMONTH(V$141,-12),header_a,0),0),"")-1),-1*ABS(IFERROR(VLOOKUP("自由现金流*",INDIRECT(VLOOKUP(ptype_selector,table_names,3,0)),MATCH(V$141,header_a,0),0),"")/IFERROR(VLOOKUP("自由现金流*",INDIRECT(VLOOKUP(ptype_selector,table_names,3,0)),MATCH(EOMONTH(V$141,-12),header_a,0),0),"")-1)),"--") -> 0.6586879697 | Y161: =IFERROR(IF(IFERROR(VLOOKUP("自由现金流*",INDIRECT(VLOOKUP(ptype_selector,table_names,3,0)),MATCH(Y$141,header_a,0),0),"")>IFERROR(VLOOKUP("自由现金流*",INDIRECT(VLOOKUP(ptype_selector,table_names,3,0)),MATCH(EOMONTH(Y$141,-12),header_a,0),0),""),ABS(IFERROR(VLOOKUP("自由现金流*",INDIRECT(VLOOKUP(ptype_selector,table_names,3,0)),MATCH(Y$141,header_a,0),0),"")/IFERROR(VLOOKUP("自由现金流*",INDIRECT(VLOOKUP(ptype_selector,table_names,3,0)),MATCH(EOMONTH(Y$141,-12),header_a,0),0),"")-1),-1*ABS(IFERROR(VLOOKUP("自由现金流*",INDIRECT(VLOOKUP(ptype_selector,table_names,3,0)),MATCH(Y$141,header_a,0),0),"")/IFERROR(VLOOKUP("自由现金流*",INDIRECT(VLOOKUP(ptype_selector,table_names,3,0)),MATCH(EOMONTH(Y$141,-12),header_a,0),0),"")-1)),"--") -> 1.047802454 | AB161: =IFERROR(IF(IFERROR(VLOOKUP("自由现金流*",INDIRECT(VLOOKUP(ptype_selector,table_names,3,0)),MATCH(AB$141,header_a,0),0),"")>IFERROR(VLOOKUP("自由现金流*",INDIRECT(VLOOKUP(ptype_selector,table_names,3,0)),MATCH(EOMONTH(AB$141,-12),header_a,0),0),""),ABS(IFERROR(VLOOKUP("自由现金流*",INDIRECT(VLOOKUP(ptype_selector,table_names,3,0)),MATCH(AB$141,header_a,0),0),"")/IFERROR(VLOOKUP("自由现金流*",INDIRECT(VLOOKUP(ptype_selector,table_names,3,0)),MATCH(EOMONTH(AB$141,-12),header_a,0),0),"")-1),-1*ABS(IFERROR(VLOOKUP("自由现金流*",INDIRECT(VLOOKUP(ptype_selector,table_names,3,0)),MATCH(AB$141,header_a,0),0),"")/IFERROR(VLOOKUP("自由现金流*",INDIRECT(VLOOKUP(ptype_selector,table_names,3,0)),MATCH(EOMONTH(AB$141,-12),header_a,0),0),"")-1)),"--") -> 0.3218073735 | AF161: 用于融资活动 % | AN161: =IFERROR(VLOOKUP("筹资活动现金流出小计*",INDIRECT(VLOOKUP(ptype_selector,table_names,3,0)),MATCH(AN$141,header_a,0),0)/(IFERROR(VLOOKUP("经营活动现金流入*",INDIRECT(VLOOKUP(ptype_selector,table_names,3,0)),MATCH(AN$141,header_a,0),0),0)+IFERROR(VLOOKUP("投资活动现金流入*",INDIRECT(VLOOKUP(ptype_selector,table_names,3,0)),MATCH(AN$141,header_a,0),0),0)+IFERROR(VLOOKUP("筹资活动现金流入*",INDIRECT(VLOOKUP(ptype_selector,table_names,3,0)),MATCH(AN$141,header_a,0),0),0)),"--") -> 0.3892216012 | AQ161: =IFERROR(VLOOKUP("筹资活动现金流出小计*",INDIRECT(VLOOKUP(ptype_selector,table_names,3,0)),MATCH(AQ$141,header_a,0),0)/(IFERROR(VLOOKUP("经营活动现金流入*",INDIRECT(VLOOKUP(ptype_selector,table_names,3,0)),MATCH(AQ$141,header_a,0),0),0)+IFERROR(VLOOKUP("投资活动现金流入*",INDIRECT(VLOOKUP(ptype_selector,table_names,3,0)),MATCH(AQ$141,header_a,0),0),0)+IFERROR(VLOOKUP("筹资活动现金流入*",INDIRECT(VLOOKUP(ptype_selector,table_names,3,0)),MATCH(AQ$141,header_a,0),0),0)),"--") -> 0.3742882014 | AT161: =IFERROR(VLOOKUP("筹资活动现金流出小计*",INDIRECT(VLOOKUP(ptype_selector,table_names,3,0)),MATCH(AT$141,header_a,0),0)/(IFERROR(VLOOKUP("经营活动现金流入*",INDIRECT(VLOOKUP(ptype_selector,table_names,3,0)),MATCH(AT$141,header_a,0),0),0)+IFERROR(VLOOKUP("投资活动现金流入*",INDIRECT(VLOOKUP(ptype_selector,table_names,3,0)),MATCH(AT$141,header_a,0),0),0)+IFERROR(VLOOKUP("筹资活动现金流入*",INDIRECT(VLOOKUP(ptype_selector,table_names,3,0)),MATCH(AT$141,header_a,0),0),0)),"--") -> 0.2965301264 | AW161: =IFERROR(VLOOKUP("筹资活动现金流出小计*",INDIRECT(VLOOKUP(ptype_selector,table_names,3,0)),MATCH(AW$141,header_a,0),0)/(IFERROR(VLOOKUP("经营活动现金流入*",INDIRECT(VLOOKUP(ptype_selector,table_names,3,0)),MATCH(AW$141,header_a,0),0),0)+IFERROR(VLOOKUP("投资活动现金流入*",INDIRECT(VLOOKUP(ptype_selector,table_names,3,0)),MATCH(AW$141,header_a,0),0),0)+IFERROR(VLOOKUP("筹资活动现金流入*",INDIRECT(VLOOKUP(ptype_selector,table_names,3,0)),MATCH(AW$141,header_a,0),0),0)),"--") -> 0.3060439417
D165: 股东回报 | AF165: 利益分配
D167: 科目 | J167: =base_date -> 2022-09-30 | M167: =EOMONTH(J167,-1*duration) -> 2022-06-30 | P167: =EOMONTH(M167,-1*duration) -> 2022-03-31 | S167: =EOMONTH(P167,-1*duration) -> 2021-12-31 | V167: =EOMONTH(S167,-1*duration) -> 2021-09-30 | Y167: =EOMONTH(V167,-1*duration) -> 2021-06-30 | AB167: =EOMONTH(Y167,-1*duration) -> 2021-03-31 | AF167: 科目 | AK167: =base_date -> 2022-09-30 | AN167: =EOMONTH(AK167,-1*duration) -> 2022-06-30 | AQ167: =EOMONTH(AN167,-1*duration) -> 2022-03-31 | AT167: =EOMONTH(AQ167,-1*duration) -> 2021-12-31 | AW167: =EOMONTH(AT167,-1*duration) -> 2021-09-30
D169: 股东权益回报率 | J169: =IFERROR(IFERROR(VLOOKUP("五、净利润*",INDIRECT(VLOOKUP(ptype_selector,table_names,2,0)),MATCH(J$167,header_a,0),0),"")/IFERROR(VLOOKUP("所有者权益（或股东权益）合计*",INDIRECT(VLOOKUP(ptype_selector,table_names,4,0)),MATCH(J$167,header_a,0),0),""),"--") -> 0.1563826026 | M169: =IFERROR(IFERROR(VLOOKUP("五、净利润*",INDIRECT(VLOOKUP(ptype_selector,table_names,2,0)),MATCH(M$167,header_a,0),0),"")/IFERROR(VLOOKUP("所有者权益（或股东权益）合计*",INDIRECT(VLOOKUP(ptype_selector,table_names,4,0)),MATCH(M$167,header_a,0),0),""),"--") -> 0.1415431277 | P169: =IFERROR(IFERROR(VLOOKUP("五、净利润*",INDIRECT(VLOOKUP(ptype_selector,table_names,2,0)),MATCH(P$167,header_a,0),0),"")/IFERROR(VLOOKUP("所有者权益（或股东权益）合计*",INDIRECT(VLOOKUP(ptype_selector,table_names,4,0)),MATCH(P$167,header_a,0),0),""),"--") -> 0.116403895 | S169: =IFERROR(IFERROR(VLOOKUP("五、净利润*",INDIRECT(VLOOKUP(ptype_selector,table_names,2,0)),MATCH(S$167,header_a,0),0),"")/IFERROR(VLOOKUP("所有者权益（或股东权益）合计*",INDIRECT(VLOOKUP(ptype_selector,table_names,4,0)),MATCH(S$167,header_a,0),0),""),"--") -> 0.1195317687 | V169: =IFERROR(IFERROR(VLOOKUP("五、净利润*",INDIRECT(VLOOKUP(ptype_selector,table_names,2,0)),MATCH(V$167,header_a,0),0),"")/IFERROR(VLOOKUP("所有者权益（或股东权益）合计*",INDIRECT(VLOOKUP(ptype_selector,table_names,4,0)),MATCH(V$167,header_a,0),0),""),"--") -> 0.1344304308 | Y169: =IFERROR(IFERROR(VLOOKUP("五、净利润*",INDIRECT(VLOOKUP(ptype_selector,table_names,2,0)),MATCH(Y$167,header_a,0),0),"")/IFERROR(VLOOKUP("所有者权益（或股东权益）合计*",INDIRECT(VLOOKUP(ptype_selector,table_names,4,0)),MATCH(Y$167,header_a,0),0),""),"--") -> 0.1363859877 | AB169: =IFERROR(IFERROR(VLOOKUP("五、净利润*",INDIRECT(VLOOKUP(ptype_selector,table_names,2,0)),MATCH(AB$167,header_a,0),0),"")/IFERROR(VLOOKUP("所有者权益（或股东权益）合计*",INDIRECT(VLOOKUP(ptype_selector,table_names,4,0)),MATCH(AB$167,header_a,0),0),""),"--") -> 0.1328991517 | AF169: 息税前利润=100% | AK169: =IFERROR(IFERROR(VLOOKUP("四、利润总额*",INDIRECT(VLOOKUP(ptype_selector,table_names,2,0)),MATCH(AK$167,header_a,0),0),"")+IFERROR(VLOOKUP("财务费用--利息支出*",INDIRECT(VLOOKUP(ptype_selector,table_names,2,0)),MATCH(AK$167,header_a,0),0),"")*IFERROR(IFERROR(VLOOKUP("减：所得税*",INDIRECT(VLOOKUP(ptype_selector,table_names,2,0)),MATCH(AK$167,header_a,0),0),"")/IFERROR(VLOOKUP("四、利润总额*",INDIRECT(VLOOKUP(ptype_selector,table_names,2,0)),MATCH(AK$167,header_a,0),0),""),"--"),"--") -> 53.80365258 | AN169: =IFERROR(IFERROR(VLOOKUP("四、利润总额*",INDIRECT(VLOOKUP(ptype_selector,table_names,2,0)),MATCH(AN$167,header_a,0),0),"")+IFERROR(VLOOKUP("财务费用--利息支出*",INDIRECT(VLOOKUP(ptype_selector,table_names,2,0)),MATCH(AN$167,header_a,0),0),"")*IFERROR(IFERROR(VLOOKUP("减：所得税*",INDIRECT(VLOOKUP(ptype_selector,table_names,2,0)),MATCH(AN$167,header_a,0),0),"")/IFERROR(VLOOKUP("四、利润总额*",INDIRECT(VLOOKUP(ptype_selector,table_names,2,0)),MATCH(AN$167,header_a,0),0),""),"--"),"--") -> 44.59693945 | AQ169: =IFERROR(IFERROR(VLOOKUP("四、利润总额*",INDIRECT(VLOOKUP(ptype_selector,table_names,2,0)),MATCH(AQ$167,header_a,0),0),"")+IFERROR(VLOOKUP("财务费用--利息支出*",INDIRECT(VLOOKUP(ptype_selector,table_names,2,0)),MATCH(AQ$167,header_a,0),0),"")*IFERROR(IFERROR(VLOOKUP("减：所得税*",INDIRECT(VLOOKUP(ptype_selector,table_names,2,0)),MATCH(AQ$167,header_a,0),0),"")/IFERROR(VLOOKUP("四、利润总额*",INDIRECT(VLOOKUP(ptype_selector,table_names,2,0)),MATCH(AQ$167,header_a,0),0),""),"--"),"--") -> 39.09217792 | AT169: =IFERROR(IFERROR(VLOOKUP("四、利润总额*",INDIRECT(VLOOKUP(ptype_selector,table_names,2,0)),MATCH(AT$167,header_a,0),0),"")+IFERROR(VLOOKUP("财务费用--利息支出*",INDIRECT(VLOOKUP(ptype_selector,table_names,2,0)),MATCH(AT$167,header_a,0),0),"")*IFERROR(IFERROR(VLOOKUP("减：所得税*",INDIRECT(VLOOKUP(ptype_selector,table_names,2,0)),MATCH(AT$167,header_a,0),0),"")/IFERROR(VLOOKUP("四、利润总额*",INDIRECT(VLOOKUP(ptype_selector,table_names,2,0)),MATCH(AT$167,header_a,0),0),""),"--"),"--") -> 38.75288455 | AW169: =IFERROR(IFERROR(VLOOKUP("四、利润总额*",INDIRECT(VLOOKUP(ptype_selector,table_names,2,0)),MATCH(AW$167,header_a,0),0),"")+IFERROR(VLOOKUP("财务费用--利息支出*",INDIRECT(VLOOKUP(ptype_selector,table_names,2,0)),MATCH(AW$167,header_a,0),0),"")*IFERROR(IFERROR(VLOOKUP("减：所得税*",INDIRECT(VLOOKUP(ptype_selector,table_names,2,0)),MATCH(AW$167,header_a,0),0),"")/IFERROR(VLOOKUP("四、利润总额*",INDIRECT(VLOOKUP(ptype_selector,table_names,2,0)),MATCH(AW$167,header_a,0),0),""),"--"),"--") -> 41.87862144
D171: 权益乘数 | J171: =IFERROR(IFERROR(VLOOKUP("资产合计*",INDIRECT(VLOOKUP(ptype_selector,table_names,4,0)),MATCH(J$167,header_a,0),0),"")/IFERROR(VLOOKUP("所有者权益（或股东权益）合计*",INDIRECT(VLOOKUP(ptype_selector,table_names,4,0)),MATCH(J$167,header_a,0),0),""),"--") -> 1.801790008 | M171: =IFERROR(IFERROR(VLOOKUP("资产合计*",INDIRECT(VLOOKUP(ptype_selector,table_names,4,0)),MATCH(M$167,header_a,0),0),"")/IFERROR(VLOOKUP("所有者权益（或股东权益）合计*",INDIRECT(VLOOKUP(ptype_selector,table_names,4,0)),MATCH(M$167,header_a,0),0),""),"--") -> 1.817819291 | P171: =IFERROR(IFERROR(VLOOKUP("资产合计*",INDIRECT(VLOOKUP(ptype_selector,table_names,4,0)),MATCH(P$167,header_a,0),0),"")/IFERROR(VLOOKUP("所有者权益（或股东权益）合计*",INDIRECT(VLOOKUP(ptype_selector,table_names,4,0)),MATCH(P$167,header_a,0),0),""),"--") -> 1.727730245 | S171: =IFERROR(IFERROR(VLOOKUP("资产合计*",INDIRECT(VLOOKUP(ptype_selector,table_names,4,0)),MATCH(S$167,header_a,0),0),"")/IFERROR(VLOOKUP("所有者权益（或股东权益）合计*",INDIRECT(VLOOKUP(ptype_selector,table_names,4,0)),MATCH(S$167,header_a,0),0),""),"--") -> 1.703229494 | V171: =IFERROR(IFERROR(VLOOKUP("资产合计*",INDIRECT(VLOOKUP(ptype_selector,table_names,4,0)),MATCH(V$167,header_a,0),0),"")/IFERROR(VLOOKUP("所有者权益（或股东权益）合计*",INDIRECT(VLOOKUP(ptype_selector,table_names,4,0)),MATCH(V$167,header_a,0),0),""),"--") -> 1.737149584 | Y171: =IFERROR(IFERROR(VLOOKUP("资产合计*",INDIRECT(VLOOKUP(ptype_selector,table_names,4,0)),MATCH(Y$167,header_a,0),0),"")/IFERROR(VLOOKUP("所有者权益（或股东权益）合计*",INDIRECT(VLOOKUP(ptype_selector,table_names,4,0)),MATCH(Y$167,header_a,0),0),""),"--") -> 1.776554116 | AB171: =IFERROR(IFERROR(VLOOKUP("资产合计*",INDIRECT(VLOOKUP(ptype_selector,table_names,4,0)),MATCH(AB$167,header_a,0),0),"")/IFERROR(VLOOKUP("所有者权益（或股东权益）合计*",INDIRECT(VLOOKUP(ptype_selector,table_names,4,0)),MATCH(AB$167,header_a,0),0),""),"--") -> 1.772511142 | AF171: 财务费用 | AK171: =IFERROR((IFERROR(VLOOKUP("财务费用*",INDIRECT(VLOOKUP(ptype_selector,table_names,2,0)),MATCH(AK$167,header_a,0),0),"")*IFERROR(IFERROR(VLOOKUP("减：所得税*",INDIRECT(VLOOKUP(ptype_selector,table_names,2,0)),MATCH(AK$167,header_a,0),0),"")/IFERROR(VLOOKUP("四、利润总额*",INDIRECT(VLOOKUP(ptype_selector,table_names,2,0)),MATCH(AK$167,header_a,0),0),""),0))/(IFERROR(VLOOKUP("四、利润总额*",INDIRECT(VLOOKUP(ptype_selector,table_names,2,0)),MATCH(AK$167,header_a,0),0),"")+IFERROR(VLOOKUP("财务费用*",INDIRECT(VLOOKUP(ptype_selector,table_names,2,0)),MATCH(AK$167,header_a,0),0),"")*IFERROR(IFERROR(VLOOKUP("减：所得税*",INDIRECT(VLOOKUP(ptype_selector,table_names,2,0)),MATCH(AK$167,header_a,0),0),"")/IFERROR(VLOOKUP("四、利润总额*",INDIRECT(VLOOKUP(ptype_selector,table_names,2,0)),MATCH(AK$167,header_a,0),0),""),0)),"--") -> 0.009657446152 | AN171: =IFERROR((IFERROR(VLOOKUP("财务费用*",INDIRECT(VLOOKUP(ptype_selector,table_names,2,0)),MATCH(AN$167,header_a,0),0),"")*IFERROR(IFERROR(VLOOKUP("减：所得税*",INDIRECT(VLOOKUP(ptype_selector,table_names,2,0)),MATCH(AN$167,header_a,0),0),"")/IFERROR(VLOOKUP("四、利润总额*",INDIRECT(VLOOKUP(ptype_selector,table_names,2,0)),MATCH(AN$167,header_a,0),0),""),0))/(IFERROR(VLOOKUP("四、利润总额*",INDIRECT(VLOOKUP(ptype_selector,table_names,2,0)),MATCH(AN$167,header_a,0),0),"")+IFERROR(VLOOKUP("财务费用*",INDIRECT(VLOOKUP(ptype_selector,table_names,2,0)),MATCH(AN$167,header_a,0),0),"")*IFERROR(IFERROR(VLOOKUP("减：所得税*",INDIRECT(VLOOKUP(ptype_selector,table_names,2,0)),MATCH(AN$167,header_a,0),0),"")/IFERROR(VLOOKUP("四、利润总额*",INDIRECT(VLOOKUP(ptype_selector,table_names,2,0)),MATCH(AN$167,header_a,0),0),""),0)),"--") -> 0.01060119411 | AQ171: =IFERROR((IFERROR(VLOOKUP("财务费用*",INDIRECT(VLOOKUP(ptype_selector,table_names,2,0)),MATCH(AQ$167,header_a,0),0),"")*IFERROR(IFERROR(VLOOKUP("减：所得税*",INDIRECT(VLOOKUP(ptype_selector,table_names,2,0)),MATCH(AQ$167,header_a,0),0),"")/IFERROR(VLOOKUP("四、利润总额*",INDIRECT(VLOOKUP(ptype_selector,table_names,2,0)),MATCH(AQ$167,header_a,0),0),""),0))/(IFERROR(VLOOKUP("四、利润总额*",INDIRECT(VLOOKUP(ptype_selector,table_names,2,0)),MATCH(AQ$167,header_a,0),0),"")+IFERROR(VLOOKUP("财务费用*",INDIRECT(VLOOKUP(ptype_selector,table_names,2,0)),MATCH(AQ$167,header_a,0),0),"")*IFERROR(IFERROR(VLOOKUP("减：所得税*",INDIRECT(VLOOKUP(ptype_selector,table_names,2,0)),MATCH(AQ$167,header_a,0),0),"")/IFERROR(VLOOKUP("四、利润总额*",INDIRECT(VLOOKUP(ptype_selector,table_names,2,0)),MATCH(AQ$167,header_a,0),0),""),0)),"--") -> 0.01517718369 | AT171: =IFERROR((IFERROR(VLOOKUP("财务费用*",INDIRECT(VLOOKUP(ptype_selector,table_names,2,0)),MATCH(AT$167,header_a,0),0),"")*IFERROR(IFERROR(VLOOKUP("减：所得税*",INDIRECT(VLOOKUP(ptype_selector,table_names,2,0)),MATCH(AT$167,header_a,0),0),"")/IFERROR(VLOOKUP("四、利润总额*",INDIRECT(VLOOKUP(ptype_selector,table_names,2,0)),MATCH(AT$167,header_a,0),0),""),0))/(IFERROR(VLOOKUP("四、利润总额*",INDIRECT(VLOOKUP(ptype_selector,table_names,2,0)),MATCH(AT$167,header_a,0),0),"")+IFERROR(VLOOKUP("财务费用*",INDIRECT(VLOOKUP(ptype_selector,table_names,2,0)),MATCH(AT$167,header_a,0),0),"")*IFERROR(IFERROR(VLOOKUP("减：所得税*",INDIRECT(VLOOKUP(ptype_selector,table_names,2,0)),MATCH(AT$167,header_a,0),0),"")/IFERROR(VLOOKUP("四、利润总额*",INDIRECT(VLOOKUP(ptype_selector,table_names,2,0)),MATCH(AT$167,header_a,0),0),""),0)),"--") -> 0.01456571847 | AW171: =IFERROR((IFERROR(VLOOKUP("财务费用*",INDIRECT(VLOOKUP(ptype_selector,table_names,2,0)),MATCH(AW$167,header_a,0),0),"")*IFERROR(IFERROR(VLOOKUP("减：所得税*",INDIRECT(VLOOKUP(ptype_selector,table_names,2,0)),MATCH(AW$167,header_a,0),0),"")/IFERROR(VLOOKUP("四、利润总额*",INDIRECT(VLOOKUP(ptype_selector,table_names,2,0)),MATCH(AW$167,header_a,0),0),""),0))/(IFERROR(VLOOKUP("四、利润总额*",INDIRECT(VLOOKUP(ptype_selector,table_names,2,0)),MATCH(AW$167,header_a,0),0),"")+IFERROR(VLOOKUP("财务费用*",INDIRECT(VLOOKUP(ptype_selector,table_names,2,0)),MATCH(AW$167,header_a,0),0),"")*IFERROR(IFERROR(VLOOKUP("减：所得税*",INDIRECT(VLOOKUP(ptype_selector,table_names,2,0)),MATCH(AW$167,header_a,0),0),"")/IFERROR(VLOOKUP("四、利润总额*",INDIRECT(VLOOKUP(ptype_selector,table_names,2,0)),MATCH(AW$167,header_a,0),0),""),0)),"--") -> 0.01343487637
D173: 总资产周转率 | J173: =IFERROR(IFERROR(VLOOKUP("一、营业总收入*",INDIRECT(VLOOKUP(ptype_selector,table_names,2,0)),MATCH(J$167,header_a,0),0),"")/IFERROR(VLOOKUP("资产合计*",INDIRECT(VLOOKUP(ptype_selector,table_names,4,0)),MATCH(J$167,header_a,0),0),""),"--") -> 0.5246185834 | M173: =IFERROR(IFERROR(VLOOKUP("一、营业总收入*",INDIRECT(VLOOKUP(ptype_selector,table_names,2,0)),MATCH(M$167,header_a,0),0),"")/IFERROR(VLOOKUP("资产合计*",INDIRECT(VLOOKUP(ptype_selector,table_names,4,0)),MATCH(M$167,header_a,0),0),""),"--") -> 0.5174433487 | P173: =IFERROR(IFERROR(VLOOKUP("一、营业总收入*",INDIRECT(VLOOKUP(ptype_selector,table_names,2,0)),MATCH(P$167,header_a,0),0),"")/IFERROR(VLOOKUP("资产合计*",INDIRECT(VLOOKUP(ptype_selector,table_names,4,0)),MATCH(P$167,header_a,0),0),""),"--") -> 0.5213160745 | S173: =IFERROR(IFERROR(VLOOKUP("一、营业总收入*",INDIRECT(VLOOKUP(ptype_selector,table_names,2,0)),MATCH(S$167,header_a,0),0),"")/IFERROR(VLOOKUP("资产合计*",INDIRECT(VLOOKUP(ptype_selector,table_names,4,0)),MATCH(S$167,header_a,0),0),""),"--") -> 0.527031802 | V173: =IFERROR(IFERROR(VLOOKUP("一、营业总收入*",INDIRECT(VLOOKUP(ptype_selector,table_names,2,0)),MATCH(V$167,header_a,0),0),"")/IFERROR(VLOOKUP("资产合计*",INDIRECT(VLOOKUP(ptype_selector,table_names,4,0)),MATCH(V$167,header_a,0),0),""),"--") -> 0.5192456906 | Y173: =IFERROR(IFERROR(VLOOKUP("一、营业总收入*",INDIRECT(VLOOKUP(ptype_selector,table_names,2,0)),MATCH(Y$167,header_a,0),0),"")/IFERROR(VLOOKUP("资产合计*",INDIRECT(VLOOKUP(ptype_selector,table_names,4,0)),MATCH(Y$167,header_a,0),0),""),"--") -> 0.5263282424 | AB173: =IFERROR(IFERROR(VLOOKUP("一、营业总收入*",INDIRECT(VLOOKUP(ptype_selector,table_names,2,0)),MATCH(AB$167,header_a,0),0),"")/IFERROR(VLOOKUP("资产合计*",INDIRECT(VLOOKUP(ptype_selector,table_names,4,0)),MATCH(AB$167,header_a,0),0),""),"--") -> 0.5370879209 | AF173: 税前利润 | AK173: =IFERROR((IFERROR(VLOOKUP("四、利润总额*",INDIRECT(VLOOKUP(ptype_selector,table_names,2,0)),MATCH(AK$167,header_a,0),0),""))/(IFERROR(VLOOKUP("四、利润总额*",INDIRECT(VLOOKUP(ptype_selector,table_names,2,0)),MATCH(AK$167,header_a,0),0),"")+IFERROR(VLOOKUP("财务费用*",INDIRECT(VLOOKUP(ptype_selector,table_names,2,0)),MATCH(AK$167,header_a,0),0),"")*IFERROR(IFERROR(VLOOKUP("减：所得税*",INDIRECT(VLOOKUP(ptype_selector,table_names,2,0)),MATCH(AK$167,header_a,0),0),"")/IFERROR(VLOOKUP("四、利润总额*",INDIRECT(VLOOKUP(ptype_selector,table_names,2,0)),MATCH(AK$167,header_a,0),0),""),0)),"--") -> 0.9903425538 | AN173: =IFERROR((IFERROR(VLOOKUP("四、利润总额*",INDIRECT(VLOOKUP(ptype_selector,table_names,2,0)),MATCH(AN$167,header_a,0),0),""))/(IFERROR(VLOOKUP("四、利润总额*",INDIRECT(VLOOKUP(ptype_selector,table_names,2,0)),MATCH(AN$167,header_a,0),0),"")+IFERROR(VLOOKUP("财务费用*",INDIRECT(VLOOKUP(ptype_selector,table_names,2,0)),MATCH(AN$167,header_a,0),0),"")*IFERROR(IFERROR(VLOOKUP("减：所得税*",INDIRECT(VLOOKUP(ptype_selector,table_names,2,0)),MATCH(AN$167,header_a,0),0),"")/IFERROR(VLOOKUP("四、利润总额*",INDIRECT(VLOOKUP(ptype_selector,table_names,2,0)),MATCH(AN$167,header_a,0),0),""),0)),"--") -> 0.9893988059 | AQ173: =IFERROR((IFERROR(VLOOKUP("四、利润总额*",INDIRECT(VLOOKUP(ptype_selector,table_names,2,0)),MATCH(AQ$167,header_a,0),0),""))/(IFERROR(VLOOKUP("四、利润总额*",INDIRECT(VLOOKUP(ptype_selector,table_names,2,0)),MATCH(AQ$167,header_a,0),0),"")+IFERROR(VLOOKUP("财务费用*",INDIRECT(VLOOKUP(ptype_selector,table_names,2,0)),MATCH(AQ$167,header_a,0),0),"")*IFERROR(IFERROR(VLOOKUP("减：所得税*",INDIRECT(VLOOKUP(ptype_selector,table_names,2,0)),MATCH(AQ$167,header_a,0),0),"")/IFERROR(VLOOKUP("四、利润总额*",INDIRECT(VLOOKUP(ptype_selector,table_names,2,0)),MATCH(AQ$167,header_a,0),0),""),0)),"--") -> 0.9848228163 | AT173: =IFERROR((IFERROR(VLOOKUP("四、利润总额*",INDIRECT(VLOOKUP(ptype_selector,table_names,2,0)),MATCH(AT$167,header_a,0),0),""))/(IFERROR(VLOOKUP("四、利润总额*",INDIRECT(VLOOKUP(ptype_selector,table_names,2,0)),MATCH(AT$167,header_a,0),0),"")+IFERROR(VLOOKUP("财务费用*",INDIRECT(VLOOKUP(ptype_selector,table_names,2,0)),MATCH(AT$167,header_a,0),0),"")*IFERROR(IFERROR(VLOOKUP("减：所得税*",INDIRECT(VLOOKUP(ptype_selector,table_names,2,0)),MATCH(AT$167,header_a,0),0),"")/IFERROR(VLOOKUP("四、利润总额*",INDIRECT(VLOOKUP(ptype_selector,table_names,2,0)),MATCH(AT$167,header_a,0),0),""),0)),"--") -> 0.9854342815 | AW173: =IFERROR((IFERROR(VLOOKUP("四、利润总额*",INDIRECT(VLOOKUP(ptype_selector,table_names,2,0)),MATCH(AW$167,header_a,0),0),""))/(IFERROR(VLOOKUP("四、利润总额*",INDIRECT(VLOOKUP(ptype_selector,table_names,2,0)),MATCH(AW$167,header_a,0),0),"")+IFERROR(VLOOKUP("财务费用*",INDIRECT(VLOOKUP(ptype_selector,table_names,2,0)),MATCH(AW$167,header_a,0),0),"")*IFERROR(IFERROR(VLOOKUP("减：所得税*",INDIRECT(VLOOKUP(ptype_selector,table_names,2,0)),MATCH(AW$167,header_a,0),0),"")/IFERROR(VLOOKUP("四、利润总额*",INDIRECT(VLOOKUP(ptype_selector,table_names,2,0)),MATCH(AW$167,header_a,0),0),""),0)),"--") -> 0.9865651236
D175: 净利润率 | J175: =IFERROR(IFERROR(VLOOKUP("五、净利润*",INDIRECT(VLOOKUP(ptype_selector,table_names,2,0)),MATCH(J$167,header_a,0),0),"")/IFERROR(VLOOKUP("一、营业总收入*",INDIRECT(VLOOKUP(ptype_selector,table_names,2,0)),MATCH(J$167,header_a,0),0),""),"--") -> 0.1654400269 | M175: =IFERROR(IFERROR(VLOOKUP("五、净利润*",INDIRECT(VLOOKUP(ptype_selector,table_names,2,0)),MATCH(M$167,header_a,0),0),"")/IFERROR(VLOOKUP("一、营业总收入*",INDIRECT(VLOOKUP(ptype_selector,table_names,2,0)),MATCH(M$167,header_a,0),0),""),"--") -> 0.1504787834 | P175: =IFERROR(IFERROR(VLOOKUP("五、净利润*",INDIRECT(VLOOKUP(ptype_selector,table_names,2,0)),MATCH(P$167,header_a,0),0),"")/IFERROR(VLOOKUP("一、营业总收入*",INDIRECT(VLOOKUP(ptype_selector,table_names,2,0)),MATCH(P$167,header_a,0),0),""),"--") -> 0.1292380689 | S175: =IFERROR(IFERROR(VLOOKUP("五、净利润*",INDIRECT(VLOOKUP(ptype_selector,table_names,2,0)),MATCH(S$167,header_a,0),0),"")/IFERROR(VLOOKUP("一、营业总收入*",INDIRECT(VLOOKUP(ptype_selector,table_names,2,0)),MATCH(S$167,header_a,0),0),""),"--") -> 0.1331598676 | V175: =IFERROR(IFERROR(VLOOKUP("五、净利润*",INDIRECT(VLOOKUP(ptype_selector,table_names,2,0)),MATCH(V$167,header_a,0),0),"")/IFERROR(VLOOKUP("一、营业总收入*",INDIRECT(VLOOKUP(ptype_selector,table_names,2,0)),MATCH(V$167,header_a,0),0),""),"--") -> 0.1490347258 | Y175: =IFERROR(IFERROR(VLOOKUP("五、净利润*",INDIRECT(VLOOKUP(ptype_selector,table_names,2,0)),MATCH(Y$167,header_a,0),0),"")/IFERROR(VLOOKUP("一、营业总收入*",INDIRECT(VLOOKUP(ptype_selector,table_names,2,0)),MATCH(Y$167,header_a,0),0),""),"--") -> 0.1458594721 | AB175: =IFERROR(IFERROR(VLOOKUP("五、净利润*",INDIRECT(VLOOKUP(ptype_selector,table_names,2,0)),MATCH(AB$167,header_a,0),0),"")/IFERROR(VLOOKUP("一、营业总收入*",INDIRECT(VLOOKUP(ptype_selector,table_names,2,0)),MATCH(AB$167,header_a,0),0),""),"--") -> 0.1396007816 | AF175: 所得税 | AK175: =IFERROR((IFERROR(VLOOKUP("减：所得税*",INDIRECT(VLOOKUP(ptype_selector,table_names,2,0)),MATCH(AK$167,header_a,0),0),""))/(IFERROR(VLOOKUP("四、利润总额*",INDIRECT(VLOOKUP(ptype_selector,table_names,2,0)),MATCH(AK$167,header_a,0),0),"")+IFERROR(VLOOKUP("财务费用*",INDIRECT(VLOOKUP(ptype_selector,table_names,2,0)),MATCH(AK$167,header_a,0),0),"")*IFERROR(IFERROR(VLOOKUP("减：所得税*",INDIRECT(VLOOKUP(ptype_selector,table_names,2,0)),MATCH(AK$167,header_a,0),0),"")/IFERROR(VLOOKUP("四、利润总额*",INDIRECT(VLOOKUP(ptype_selector,table_names,2,0)),MATCH(AK$167,header_a,0),0),""),0)),"--") -> 0.1634998793 | AN175: =IFERROR((IFERROR(VLOOKUP("减：所得税*",INDIRECT(VLOOKUP(ptype_selector,table_names,2,0)),MATCH(AN$167,header_a,0),0),""))/(IFERROR(VLOOKUP("四、利润总额*",INDIRECT(VLOOKUP(ptype_selector,table_names,2,0)),MATCH(AN$167,header_a,0),0),"")+IFERROR(VLOOKUP("财务费用*",INDIRECT(VLOOKUP(ptype_selector,table_names,2,0)),MATCH(AN$167,header_a,0),0),"")*IFERROR(IFERROR(VLOOKUP("减：所得税*",INDIRECT(VLOOKUP(ptype_selector,table_names,2,0)),MATCH(AN$167,header_a,0),0),"")/IFERROR(VLOOKUP("四、利润总额*",INDIRECT(VLOOKUP(ptype_selector,table_names,2,0)),MATCH(AN$167,header_a,0),0),""),0)),"--") -> 0.147078391 | AQ175: =IFERROR((IFERROR(VLOOKUP("减：所得税*",INDIRECT(VLOOKUP(ptype_selector,table_names,2,0)),MATCH(AQ$167,header_a,0),0),""))/(IFERROR(VLOOKUP("四、利润总额*",INDIRECT(VLOOKUP(ptype_selector,table_names,2,0)),MATCH(AQ$167,header_a,0),0),"")+IFERROR(VLOOKUP("财务费用*",INDIRECT(VLOOKUP(ptype_selector,table_names,2,0)),MATCH(AQ$167,header_a,0),0),"")*IFERROR(IFERROR(VLOOKUP("减：所得税*",INDIRECT(VLOOKUP(ptype_selector,table_names,2,0)),MATCH(AQ$167,header_a,0),0),"")/IFERROR(VLOOKUP("四、利润总额*",INDIRECT(VLOOKUP(ptype_selector,table_names,2,0)),MATCH(AQ$167,header_a,0),0),""),0)),"--") -> 0.1766800731 | AT175: =IFERROR((IFERROR(VLOOKUP("减：所得税*",INDIRECT(VLOOKUP(ptype_selector,table_names,2,0)),MATCH(AT$167,header_a,0),0),""))/(IFERROR(VLOOKUP("四、利润总额*",INDIRECT(VLOOKUP(ptype_selector,table_names,2,0)),MATCH(AT$167,header_a,0),0),"")+IFERROR(VLOOKUP("财务费用*",INDIRECT(VLOOKUP(ptype_selector,table_names,2,0)),MATCH(AT$167,header_a,0),0),"")*IFERROR(IFERROR(VLOOKUP("减：所得税*",INDIRECT(VLOOKUP(ptype_selector,table_names,2,0)),MATCH(AT$167,header_a,0),0),"")/IFERROR(VLOOKUP("四、利润总额*",INDIRECT(VLOOKUP(ptype_selector,table_names,2,0)),MATCH(AT$167,header_a,0),0),""),0)),"--") -> 0.1744028371 | AW175: =IFERROR((IFERROR(VLOOKUP("减：所得税*",INDIRECT(VLOOKUP(ptype_selector,table_names,2,0)),MATCH(AW$167,header_a,0),0),""))/(IFERROR(VLOOKUP("四、利润总额*",INDIRECT(VLOOKUP(ptype_selector,table_names,2,0)),MATCH(AW$167,header_a,0),0),"")+IFERROR(VLOOKUP("财务费用*",INDIRECT(VLOOKUP(ptype_selector,table_names,2,0)),MATCH(AW$167,header_a,0),0),"")*IFERROR(IFERROR(VLOOKUP("减：所得税*",INDIRECT(VLOOKUP(ptype_selector,table_names,2,0)),MATCH(AW$167,header_a,0),0),"")/IFERROR(VLOOKUP("四、利润总额*",INDIRECT(VLOOKUP(ptype_selector,table_names,2,0)),MATCH(AW$167,header_a,0),0),""),0)),"--") -> 0.1579798876
D177: 其中：核心利润率 | J177: =IFERROR(IFERROR(VLOOKUP("核心利润*",INDIRECT(VLOOKUP(ptype_selector,table_names,2,0)),MATCH(J$167,header_a,0),0),"")/IFERROR(VLOOKUP("一、营业总收入*",INDIRECT(VLOOKUP(ptype_selector,table_names,2,0)),MATCH(J$167,header_a,0),0),""),"--") -> 0.1900861087 | M177: =IFERROR(IFERROR(VLOOKUP("核心利润*",INDIRECT(VLOOKUP(ptype_selector,table_names,2,0)),MATCH(M$167,header_a,0),0),"")/IFERROR(VLOOKUP("一、营业总收入*",INDIRECT(VLOOKUP(ptype_selector,table_names,2,0)),MATCH(M$167,header_a,0),0),""),"--") -> 0.1633198483 | P177: =IFERROR(IFERROR(VLOOKUP("核心利润*",INDIRECT(VLOOKUP(ptype_selector,table_names,2,0)),MATCH(P$167,header_a,0),0),"")/IFERROR(VLOOKUP("一、营业总收入*",INDIRECT(VLOOKUP(ptype_selector,table_names,2,0)),MATCH(P$167,header_a,0),0),""),"--") -> 0.1437315712 | S177: =IFERROR(IFERROR(VLOOKUP("核心利润*",INDIRECT(VLOOKUP(ptype_selector,table_names,2,0)),MATCH(S$167,header_a,0),0),"")/IFERROR(VLOOKUP("一、营业总收入*",INDIRECT(VLOOKUP(ptype_selector,table_names,2,0)),MATCH(S$167,header_a,0),0),""),"--") -> 0.1468308065 | V177: =IFERROR(IFERROR(VLOOKUP("核心利润*",INDIRECT(VLOOKUP(ptype_selector,table_names,2,0)),MATCH(V$167,header_a,0),0),"")/IFERROR(VLOOKUP("一、营业总收入*",INDIRECT(VLOOKUP(ptype_selector,table_names,2,0)),MATCH(V$167,header_a,0),0),""),"--") -> 0.1627815865 | Y177: =IFERROR(IFERROR(VLOOKUP("核心利润*",INDIRECT(VLOOKUP(ptype_selector,table_names,2,0)),MATCH(Y$167,header_a,0),0),"")/IFERROR(VLOOKUP("一、营业总收入*",INDIRECT(VLOOKUP(ptype_selector,table_names,2,0)),MATCH(Y$167,header_a,0),0),""),"--") -> 0.1610732308 | AB177: =IFERROR(IFERROR(VLOOKUP("核心利润*",INDIRECT(VLOOKUP(ptype_selector,table_names,2,0)),MATCH(AB$167,header_a,0),0),"")/IFERROR(VLOOKUP("一、营业总收入*",INDIRECT(VLOOKUP(ptype_selector,table_names,2,0)),MATCH(AB$167,header_a,0),0),""),"--") -> 0.1507191774 | AF177: 净利润 | AK177: =IFERROR((IFERROR(VLOOKUP("五、净利润*",INDIRECT(VLOOKUP(ptype_selector,table_names,2,0)),MATCH(AK$167,header_a,0),0),""))/(IFERROR(VLOOKUP("四、利润总额*",INDIRECT(VLOOKUP(ptype_selector,table_names,2,0)),MATCH(AK$167,header_a,0),0),"")+IFERROR(VLOOKUP("财务费用*",INDIRECT(VLOOKUP(ptype_selector,table_names,2,0)),MATCH(AK$167,header_a,0),0),"")*IFERROR(IFERROR(VLOOKUP("减：所得税*",INDIRECT(VLOOKUP(ptype_selector,table_names,2,0)),MATCH(AK$167,header_a,0),0),"")/IFERROR(VLOOKUP("四、利润总额*",INDIRECT(VLOOKUP(ptype_selector,table_names,2,0)),MATCH(AK$167,header_a,0),0),""),0)),"--") -> 0.8268426746 | AN177: =IFERROR((IFERROR(VLOOKUP("五、净利润*",INDIRECT(VLOOKUP(ptype_selector,table_names,2,0)),MATCH(AN$167,header_a,0),0),""))/(IFERROR(VLOOKUP("四、利润总额*",INDIRECT(VLOOKUP(ptype_selector,table_names,2,0)),MATCH(AN$167,header_a,0),0),"")+IFERROR(VLOOKUP("财务费用*",INDIRECT(VLOOKUP(ptype_selector,table_names,2,0)),MATCH(AN$167,header_a,0),0),"")*IFERROR(IFERROR(VLOOKUP("减：所得税*",INDIRECT(VLOOKUP(ptype_selector,table_names,2,0)),MATCH(AN$167,header_a,0),0),"")/IFERROR(VLOOKUP("四、利润总额*",INDIRECT(VLOOKUP(ptype_selector,table_names,2,0)),MATCH(AN$167,header_a,0),0),""),0)),"--") -> 0.8423204148 | AQ177: =IFERROR((IFERROR(VLOOKUP("五、净利润*",INDIRECT(VLOOKUP(ptype_selector,table_names,2,0)),MATCH(AQ$167,header_a,0),0),""))/(IFERROR(VLOOKUP("四、利润总额*",INDIRECT(VLOOKUP(ptype_selector,table_names,2,0)),MATCH(AQ$167,header_a,0),0),"")+IFERROR(VLOOKUP("财务费用*",INDIRECT(VLOOKUP(ptype_selector,table_names,2,0)),MATCH(AQ$167,header_a,0),0),"")*IFERROR(IFERROR(VLOOKUP("减：所得税*",INDIRECT(VLOOKUP(ptype_selector,table_names,2,0)),MATCH(AQ$167,header_a,0),0),"")/IFERROR(VLOOKUP("四、利润总额*",INDIRECT(VLOOKUP(ptype_selector,table_names,2,0)),MATCH(AQ$167,header_a,0),0),""),0)),"--") -> 0.8081427433 | AT177: =IFERROR((IFERROR(VLOOKUP("五、净利润*",INDIRECT(VLOOKUP(ptype_selector,table_names,2,0)),MATCH(AT$167,header_a,0),0),""))/(IFERROR(VLOOKUP("四、利润总额*",INDIRECT(VLOOKUP(ptype_selector,table_names,2,0)),MATCH(AT$167,header_a,0),0),"")+IFERROR(VLOOKUP("财务费用*",INDIRECT(VLOOKUP(ptype_selector,table_names,2,0)),MATCH(AT$167,header_a,0),0),"")*IFERROR(IFERROR(VLOOKUP("减：所得税*",INDIRECT(VLOOKUP(ptype_selector,table_names,2,0)),MATCH(AT$167,header_a,0),0),"")/IFERROR(VLOOKUP("四、利润总额*",INDIRECT(VLOOKUP(ptype_selector,table_names,2,0)),MATCH(AT$167,header_a,0),0),""),0)),"--") -> 0.8110314444 | AW177: =IFERROR((IFERROR(VLOOKUP("五、净利润*",INDIRECT(VLOOKUP(ptype_selector,table_names,2,0)),MATCH(AW$167,header_a,0),0),""))/(IFERROR(VLOOKUP("四、利润总额*",INDIRECT(VLOOKUP(ptype_selector,table_names,2,0)),MATCH(AW$167,header_a,0),0),"")+IFERROR(VLOOKUP("财务费用*",INDIRECT(VLOOKUP(ptype_selector,table_names,2,0)),MATCH(AW$167,header_a,0),0),"")*IFERROR(IFERROR(VLOOKUP("减：所得税*",INDIRECT(VLOOKUP(ptype_selector,table_names,2,0)),MATCH(AW$167,header_a,0),0),"")/IFERROR(VLOOKUP("四、利润总额*",INDIRECT(VLOOKUP(ptype_selector,table_names,2,0)),MATCH(AW$167,header_a,0),0),""),0)),"--") -> 0.828585236
D179: 其中：非经常损益 | J179: =IFERROR(IFERROR(VLOOKUP("非经常性损益*",INDIRECT(VLOOKUP(ptype_selector,table_names,2,0)),MATCH(J$167,header_a,0),0),"")/IFERROR(VLOOKUP("一、营业总收入*",INDIRECT(VLOOKUP(ptype_selector,table_names,2,0)),MATCH(J$167,header_a,0),0),""),"--") -> 0.01312043659 | M179: =IFERROR(IFERROR(VLOOKUP("非经常性损益*",INDIRECT(VLOOKUP(ptype_selector,table_names,2,0)),MATCH(M$167,header_a,0),0),"")/IFERROR(VLOOKUP("一、营业总收入*",INDIRECT(VLOOKUP(ptype_selector,table_names,2,0)),MATCH(M$167,header_a,0),0),""),"--") -> 0.01850590836 | P179: =IFERROR(IFERROR(VLOOKUP("非经常性损益*",INDIRECT(VLOOKUP(ptype_selector,table_names,2,0)),MATCH(P$167,header_a,0),0),"")/IFERROR(VLOOKUP("一、营业总收入*",INDIRECT(VLOOKUP(ptype_selector,table_names,2,0)),MATCH(P$167,header_a,0),0),""),"--") -> 0.01901661774 | S179: =IFERROR(IFERROR(VLOOKUP("非经常性损益*",INDIRECT(VLOOKUP(ptype_selector,table_names,2,0)),MATCH(S$167,header_a,0),0),"")/IFERROR(VLOOKUP("一、营业总收入*",INDIRECT(VLOOKUP(ptype_selector,table_names,2,0)),MATCH(S$167,header_a,0),0),""),"--") -> 0.02179157523 | V179: =IFERROR(IFERROR(VLOOKUP("非经常性损益*",INDIRECT(VLOOKUP(ptype_selector,table_names,2,0)),MATCH(V$167,header_a,0),0),"")/IFERROR(VLOOKUP("一、营业总收入*",INDIRECT(VLOOKUP(ptype_selector,table_names,2,0)),MATCH(V$167,header_a,0),0),""),"--") -> 0.02452300149 | Y179: =IFERROR(IFERROR(VLOOKUP("非经常性损益*",INDIRECT(VLOOKUP(ptype_selector,table_names,2,0)),MATCH(Y$167,header_a,0),0),"")/IFERROR(VLOOKUP("一、营业总收入*",INDIRECT(VLOOKUP(ptype_selector,table_names,2,0)),MATCH(Y$167,header_a,0),0),""),"--") -> 0.02293441295 | AB179: =IFERROR(IFERROR(VLOOKUP("非经常性损益*",INDIRECT(VLOOKUP(ptype_selector,table_names,2,0)),MATCH(AB$167,header_a,0),0),"")/IFERROR(VLOOKUP("一、营业总收入*",INDIRECT(VLOOKUP(ptype_selector,table_names,2,0)),MATCH(AB$167,header_a,0),0),""),"--") -> 0.02590739993 | AF179: 少数股东 | AK179: =IFERROR((IFERROR(VLOOKUP("其中：少数股东损益*",INDIRECT(VLOOKUP(ptype_selector,table_names,2,0)),MATCH(AK$167,header_a,0),0),""))/(IFERROR(VLOOKUP("四、利润总额*",INDIRECT(VLOOKUP(ptype_selector,table_names,2,0)),MATCH(AK$167,header_a,0),0),"")+IFERROR(VLOOKUP("财务费用*",INDIRECT(VLOOKUP(ptype_selector,table_names,2,0)),MATCH(AK$167,header_a,0),0),"")*IFERROR(IFERROR(VLOOKUP("减：所得税*",INDIRECT(VLOOKUP(ptype_selector,table_names,2,0)),MATCH(AK$167,header_a,0),0),"")/IFERROR(VLOOKUP("四、利润总额*",INDIRECT(VLOOKUP(ptype_selector,table_names,2,0)),MATCH(AK$167,header_a,0),0),""),0)),"--") -> -0.0004668816855 | AN179: =IFERROR((IFERROR(VLOOKUP("其中：少数股东损益*",INDIRECT(VLOOKUP(ptype_selector,table_names,2,0)),MATCH(AN$167,header_a,0),0),""))/(IFERROR(VLOOKUP("四、利润总额*",INDIRECT(VLOOKUP(ptype_selector,table_names,2,0)),MATCH(AN$167,header_a,0),0),"")+IFERROR(VLOOKUP("财务费用*",INDIRECT(VLOOKUP(ptype_selector,table_names,2,0)),MATCH(AN$167,header_a,0),0),"")*IFERROR(IFERROR(VLOOKUP("减：所得税*",INDIRECT(VLOOKUP(ptype_selector,table_names,2,0)),MATCH(AN$167,header_a,0),0),"")/IFERROR(VLOOKUP("四、利润总额*",INDIRECT(VLOOKUP(ptype_selector,table_names,2,0)),MATCH(AN$167,header_a,0),0),""),0)),"--") -> -0.0005218559903 | AQ179: =IFERROR((IFERROR(VLOOKUP("其中：少数股东损益*",INDIRECT(VLOOKUP(ptype_selector,table_names,2,0)),MATCH(AQ$167,header_a,0),0),""))/(IFERROR(VLOOKUP("四、利润总额*",INDIRECT(VLOOKUP(ptype_selector,table_names,2,0)),MATCH(AQ$167,header_a,0),0),"")+IFERROR(VLOOKUP("财务费用*",INDIRECT(VLOOKUP(ptype_selector,table_names,2,0)),MATCH(AQ$167,header_a,0),0),"")*IFERROR(IFERROR(VLOOKUP("减：所得税*",INDIRECT(VLOOKUP(ptype_selector,table_names,2,0)),MATCH(AQ$167,header_a,0),0),"")/IFERROR(VLOOKUP("四、利润总额*",INDIRECT(VLOOKUP(ptype_selector,table_names,2,0)),MATCH(AQ$167,header_a,0),0),""),0)),"--") -> -0.0007388038104 | AT179: =IFERROR((IFERROR(VLOOKUP("其中：少数股东损益*",INDIRECT(VLOOKUP(ptype_selector,table_names,2,0)),MATCH(AT$167,header_a,0),0),""))/(IFERROR(VLOOKUP("四、利润总额*",INDIRECT(VLOOKUP(ptype_selector,table_names,2,0)),MATCH(AT$167,header_a,0),0),"")+IFERROR(VLOOKUP("财务费用*",INDIRECT(VLOOKUP(ptype_selector,table_names,2,0)),MATCH(AT$167,header_a,0),0),"")*IFERROR(IFERROR(VLOOKUP("减：所得税*",INDIRECT(VLOOKUP(ptype_selector,table_names,2,0)),MATCH(AT$167,header_a,0),0),"")/IFERROR(VLOOKUP("四、利润总额*",INDIRECT(VLOOKUP(ptype_selector,table_names,2,0)),MATCH(AT$167,header_a,0),0),""),0)),"--") -> -0.0008222092464 | AW179: =IFERROR((IFERROR(VLOOKUP("其中：少数股东损益*",INDIRECT(VLOOKUP(ptype_selector,table_names,2,0)),MATCH(AW$167,header_a,0),0),""))/(IFERROR(VLOOKUP("四、利润总额*",INDIRECT(VLOOKUP(ptype_selector,table_names,2,0)),MATCH(AW$167,header_a,0),0),"")+IFERROR(VLOOKUP("财务费用*",INDIRECT(VLOOKUP(ptype_selector,table_names,2,0)),MATCH(AW$167,header_a,0),0),"")*IFERROR(IFERROR(VLOOKUP("减：所得税*",INDIRECT(VLOOKUP(ptype_selector,table_names,2,0)),MATCH(AW$167,header_a,0),0),"")/IFERROR(VLOOKUP("四、利润总额*",INDIRECT(VLOOKUP(ptype_selector,table_names,2,0)),MATCH(AW$167,header_a,0),0),""),0)),"--") -> -0.0008691508638
D181: 有效税率 | J181: =IFERROR(IFERROR(VLOOKUP("减：所得税*",INDIRECT(VLOOKUP(ptype_selector,table_names,2,0)),MATCH(J$167,header_a,0),0),"")/IFERROR(VLOOKUP("四、利润总额*",INDIRECT(VLOOKUP(ptype_selector,table_names,2,0)),MATCH(J$167,header_a,0),0),""),"--") -> 0.1650942683 | M181: =IFERROR(IFERROR(VLOOKUP("减：所得税*",INDIRECT(VLOOKUP(ptype_selector,table_names,2,0)),MATCH(M$167,header_a,0),0),"")/IFERROR(VLOOKUP("四、利润总额*",INDIRECT(VLOOKUP(ptype_selector,table_names,2,0)),MATCH(M$167,header_a,0),0),""),"--") -> 0.1486543042 | P181: =IFERROR(IFERROR(VLOOKUP("减：所得税*",INDIRECT(VLOOKUP(ptype_selector,table_names,2,0)),MATCH(P$167,header_a,0),0),"")/IFERROR(VLOOKUP("四、利润总额*",INDIRECT(VLOOKUP(ptype_selector,table_names,2,0)),MATCH(P$167,header_a,0),0),""),"--") -> 0.1794029039 | S181: =IFERROR(IFERROR(VLOOKUP("减：所得税*",INDIRECT(VLOOKUP(ptype_selector,table_names,2,0)),MATCH(S$167,header_a,0),0),"")/IFERROR(VLOOKUP("四、利润总额*",INDIRECT(VLOOKUP(ptype_selector,table_names,2,0)),MATCH(S$167,header_a,0),0),""),"--") -> 0.176980688 | V181: =IFERROR(IFERROR(VLOOKUP("减：所得税*",INDIRECT(VLOOKUP(ptype_selector,table_names,2,0)),MATCH(V$167,header_a,0),0),"")/IFERROR(VLOOKUP("四、利润总额*",INDIRECT(VLOOKUP(ptype_selector,table_names,2,0)),MATCH(V$167,header_a,0),0),""),"--") -> 0.1601312309 | Y181: =IFERROR(IFERROR(VLOOKUP("减：所得税*",INDIRECT(VLOOKUP(ptype_selector,table_names,2,0)),MATCH(Y$167,header_a,0),0),"")/IFERROR(VLOOKUP("四、利润总额*",INDIRECT(VLOOKUP(ptype_selector,table_names,2,0)),MATCH(Y$167,header_a,0),0),""),"--") -> 0.1529790861 | AB181: =IFERROR(IFERROR(VLOOKUP("减：所得税*",INDIRECT(VLOOKUP(ptype_selector,table_names,2,0)),MATCH(AB$167,header_a,0),0),"")/IFERROR(VLOOKUP("四、利润总额*",INDIRECT(VLOOKUP(ptype_selector,table_names,2,0)),MATCH(AB$167,header_a,0),0),""),"--") -> 0.1515468992 | AF181: 归母净利润 | AK181: =IFERROR((IFERROR(VLOOKUP("其中：归母净利润*",INDIRECT(VLOOKUP(ptype_selector,table_names,2,0)),MATCH(AK$167,header_a,0),0),""))/(IFERROR(VLOOKUP("四、利润总额*",INDIRECT(VLOOKUP(ptype_selector,table_names,2,0)),MATCH(AK$167,header_a,0),0),"")+IFERROR(VLOOKUP("财务费用*",INDIRECT(VLOOKUP(ptype_selector,table_names,2,0)),MATCH(AK$167,header_a,0),0),"")*IFERROR(IFERROR(VLOOKUP("减：所得税*",INDIRECT(VLOOKUP(ptype_selector,table_names,2,0)),MATCH(AK$167,header_a,0),0),"")/IFERROR(VLOOKUP("四、利润总额*",INDIRECT(VLOOKUP(ptype_selector,table_names,2,0)),MATCH(AK$167,header_a,0),0),""),0)),"--") -> 0.8273095563 | AN181: =IFERROR((IFERROR(VLOOKUP("其中：归母净利润*",INDIRECT(VLOOKUP(ptype_selector,table_names,2,0)),MATCH(AN$167,header_a,0),0),""))/(IFERROR(VLOOKUP("四、利润总额*",INDIRECT(VLOOKUP(ptype_selector,table_names,2,0)),MATCH(AN$167,header_a,0),0),"")+IFERROR(VLOOKUP("财务费用*",INDIRECT(VLOOKUP(ptype_selector,table_names,2,0)),MATCH(AN$167,header_a,0),0),"")*IFERROR(IFERROR(VLOOKUP("减：所得税*",INDIRECT(VLOOKUP(ptype_selector,table_names,2,0)),MATCH(AN$167,header_a,0),0),"")/IFERROR(VLOOKUP("四、利润总额*",INDIRECT(VLOOKUP(ptype_selector,table_names,2,0)),MATCH(AN$167,header_a,0),0),""),0)),"--") -> 0.8428422708 | AQ181: =IFERROR((IFERROR(VLOOKUP("其中：归母净利润*",INDIRECT(VLOOKUP(ptype_selector,table_names,2,0)),MATCH(AQ$167,header_a,0),0),""))/(IFERROR(VLOOKUP("四、利润总额*",INDIRECT(VLOOKUP(ptype_selector,table_names,2,0)),MATCH(AQ$167,header_a,0),0),"")+IFERROR(VLOOKUP("财务费用*",INDIRECT(VLOOKUP(ptype_selector,table_names,2,0)),MATCH(AQ$167,header_a,0),0),"")*IFERROR(IFERROR(VLOOKUP("减：所得税*",INDIRECT(VLOOKUP(ptype_selector,table_names,2,0)),MATCH(AQ$167,header_a,0),0),"")/IFERROR(VLOOKUP("四、利润总额*",INDIRECT(VLOOKUP(ptype_selector,table_names,2,0)),MATCH(AQ$167,header_a,0),0),""),0)),"--") -> 0.8088815471 | AT181: =IFERROR((IFERROR(VLOOKUP("其中：归母净利润*",INDIRECT(VLOOKUP(ptype_selector,table_names,2,0)),MATCH(AT$167,header_a,0),0),""))/(IFERROR(VLOOKUP("四、利润总额*",INDIRECT(VLOOKUP(ptype_selector,table_names,2,0)),MATCH(AT$167,header_a,0),0),"")+IFERROR(VLOOKUP("财务费用*",INDIRECT(VLOOKUP(ptype_selector,table_names,2,0)),MATCH(AT$167,header_a,0),0),"")*IFERROR(IFERROR(VLOOKUP("减：所得税*",INDIRECT(VLOOKUP(ptype_selector,table_names,2,0)),MATCH(AT$167,header_a,0),0),"")/IFERROR(VLOOKUP("四、利润总额*",INDIRECT(VLOOKUP(ptype_selector,table_names,2,0)),MATCH(AT$167,header_a,0),0),""),0)),"--") -> 0.8118536537 | AW181: =IFERROR((IFERROR(VLOOKUP("其中：归母净利润*",INDIRECT(VLOOKUP(ptype_selector,table_names,2,0)),MATCH(AW$167,header_a,0),0),""))/(IFERROR(VLOOKUP("四、利润总额*",INDIRECT(VLOOKUP(ptype_selector,table_names,2,0)),MATCH(AW$167,header_a,0),0),"")+IFERROR(VLOOKUP("财务费用*",INDIRECT(VLOOKUP(ptype_selector,table_names,2,0)),MATCH(AW$167,header_a,0),0),"")*IFERROR(IFERROR(VLOOKUP("减：所得税*",INDIRECT(VLOOKUP(ptype_selector,table_names,2,0)),MATCH(AW$167,header_a,0),0),"")/IFERROR(VLOOKUP("四、利润总额*",INDIRECT(VLOOKUP(ptype_selector,table_names,2,0)),MATCH(AW$167,header_a,0),0),""),0)),"--") -> 0.8294543868
D183: 投入资本回报率 | J183: =IFERROR(IFERROR(VLOOKUP("五、净利润*",INDIRECT(VLOOKUP(ptype_selector,table_names,2,0)),MATCH(J$167,header_a,0),0),"")/IFERROR(VLOOKUP("已投入资本*",INDIRECT(VLOOKUP(ptype_selector,table_names,4,0)),MATCH(J$167,header_a,0),0),""),"--") -> 0.105700535 | M183: =IFERROR(IFERROR(VLOOKUP("五、净利润*",INDIRECT(VLOOKUP(ptype_selector,table_names,2,0)),MATCH(M$167,header_a,0),0),"")/IFERROR(VLOOKUP("已投入资本*",INDIRECT(VLOOKUP(ptype_selector,table_names,4,0)),MATCH(M$167,header_a,0),0),""),"--") -> 0.1005856589 | P183: =IFERROR(IFERROR(VLOOKUP("五、净利润*",INDIRECT(VLOOKUP(ptype_selector,table_names,2,0)),MATCH(P$167,header_a,0),0),"")/IFERROR(VLOOKUP("已投入资本*",INDIRECT(VLOOKUP(ptype_selector,table_names,4,0)),MATCH(P$167,header_a,0),0),""),"--") -> 0.08583008291 | S183: =IFERROR(IFERROR(VLOOKUP("五、净利润*",INDIRECT(VLOOKUP(ptype_selector,table_names,2,0)),MATCH(S$167,header_a,0),0),"")/IFERROR(VLOOKUP("已投入资本*",INDIRECT(VLOOKUP(ptype_selector,table_names,4,0)),MATCH(S$167,header_a,0),0),""),"--") -> 0.08887477562 | V183: =IFERROR(IFERROR(VLOOKUP("五、净利润*",INDIRECT(VLOOKUP(ptype_selector,table_names,2,0)),MATCH(V$167,header_a,0),0),"")/IFERROR(VLOOKUP("已投入资本*",INDIRECT(VLOOKUP(ptype_selector,table_names,4,0)),MATCH(V$167,header_a,0),0),""),"--") -> 0.09625651622 | Y183: =IFERROR(IFERROR(VLOOKUP("五、净利润*",INDIRECT(VLOOKUP(ptype_selector,table_names,2,0)),MATCH(Y$167,header_a,0),0),"")/IFERROR(VLOOKUP("已投入资本*",INDIRECT(VLOOKUP(ptype_selector,table_names,4,0)),MATCH(Y$167,header_a,0),0),""),"--") -> 0.0934594577 | AB183: =IFERROR(IFERROR(VLOOKUP("五、净利润*",INDIRECT(VLOOKUP(ptype_selector,table_names,2,0)),MATCH(AB$167,header_a,0),0),"")/IFERROR(VLOOKUP("已投入资本*",INDIRECT(VLOOKUP(ptype_selector,table_names,4,0)),MATCH(AB$167,header_a,0),0),""),"--") -> 0.09118248426 | AF183: 分配比率 | AK183: =IFERROR((IFERROR(VLOOKUP("上市公司股利*",INDIRECT(VLOOKUP(ptype_selector,table_names,3,0)),MATCH(AK$167,header_a,0),0),""))/(IFERROR(VLOOKUP("四、利润总额*",INDIRECT(VLOOKUP(ptype_selector,table_names,2,0)),MATCH(AK$167,header_a,0),0),"")+IFERROR(VLOOKUP("财务费用*",INDIRECT(VLOOKUP(ptype_selector,table_names,2,0)),MATCH(AK$167,header_a,0),0),"")*IFERROR(IFERROR(VLOOKUP("减：所得税*",INDIRECT(VLOOKUP(ptype_selector,table_names,2,0)),MATCH(AK$167,header_a,0),0),"")/IFERROR(VLOOKUP("四、利润总额*",INDIRECT(VLOOKUP(ptype_selector,table_names,2,0)),MATCH(AK$167,header_a,0),0),""),0)),"--") -> 0.482204558 | AN183: =IFERROR((IFERROR(VLOOKUP("上市公司股利*",INDIRECT(VLOOKUP(ptype_selector,table_names,3,0)),MATCH(AN$167,header_a,0),0),""))/(IFERROR(VLOOKUP("四、利润总额*",INDIRECT(VLOOKUP(ptype_selector,table_names,2,0)),MATCH(AN$167,header_a,0),0),"")+IFERROR(VLOOKUP("财务费用*",INDIRECT(VLOOKUP(ptype_selector,table_names,2,0)),MATCH(AN$167,header_a,0),0),"")*IFERROR(IFERROR(VLOOKUP("减：所得税*",INDIRECT(VLOOKUP(ptype_selector,table_names,2,0)),MATCH(AN$167,header_a,0),0),"")/IFERROR(VLOOKUP("四、利润总额*",INDIRECT(VLOOKUP(ptype_selector,table_names,2,0)),MATCH(AN$167,header_a,0),0),""),0)),"--") -> 0.7788411747 | AQ183: =IFERROR((IFERROR(VLOOKUP("上市公司股利*",INDIRECT(VLOOKUP(ptype_selector,table_names,3,0)),MATCH(AQ$167,header_a,0),0),""))/(IFERROR(VLOOKUP("四、利润总额*",INDIRECT(VLOOKUP(ptype_selector,table_names,2,0)),MATCH(AQ$167,header_a,0),0),"")+IFERROR(VLOOKUP("财务费用*",INDIRECT(VLOOKUP(ptype_selector,table_names,2,0)),MATCH(AQ$167,header_a,0),0),"")*IFERROR(IFERROR(VLOOKUP("减：所得税*",INDIRECT(VLOOKUP(ptype_selector,table_names,2,0)),MATCH(AQ$167,header_a,0),0),"")/IFERROR(VLOOKUP("四、利润总额*",INDIRECT(VLOOKUP(ptype_selector,table_names,2,0)),MATCH(AQ$167,header_a,0),0),""),0)),"--") -> 0.4998972314 | AT183: =IFERROR((IFERROR(VLOOKUP("上市公司股利*",INDIRECT(VLOOKUP(ptype_selector,table_names,3,0)),MATCH(AT$167,header_a,0),0),""))/(IFERROR(VLOOKUP("四、利润总额*",INDIRECT(VLOOKUP(ptype_selector,table_names,2,0)),MATCH(AT$167,header_a,0),0),"")+IFERROR(VLOOKUP("财务费用*",INDIRECT(VLOOKUP(ptype_selector,table_names,2,0)),MATCH(AT$167,header_a,0),0),"")*IFERROR(IFERROR(VLOOKUP("减：所得税*",INDIRECT(VLOOKUP(ptype_selector,table_names,2,0)),MATCH(AT$167,header_a,0),0),"")/IFERROR(VLOOKUP("四、利润总额*",INDIRECT(VLOOKUP(ptype_selector,table_names,2,0)),MATCH(AT$167,header_a,0),0),""),0)),"--") -> 0.5054750022 | AW183: =IFERROR((IFERROR(VLOOKUP("上市公司股利*",INDIRECT(VLOOKUP(ptype_selector,table_names,3,0)),MATCH(AW$167,header_a,0),0),""))/(IFERROR(VLOOKUP("四、利润总额*",INDIRECT(VLOOKUP(ptype_selector,table_names,2,0)),MATCH(AW$167,header_a,0),0),"")+IFERROR(VLOOKUP("财务费用*",INDIRECT(VLOOKUP(ptype_selector,table_names,2,0)),MATCH(AW$167,header_a,0),0),"")*IFERROR(IFERROR(VLOOKUP("减：所得税*",INDIRECT(VLOOKUP(ptype_selector,table_names,2,0)),MATCH(AW$167,header_a,0),0),"")/IFERROR(VLOOKUP("四、利润总额*",INDIRECT(VLOOKUP(ptype_selector,table_names,2,0)),MATCH(AW$167,header_a,0),0),""),0)),"--") -> 0.4721651453

Sheet Alerts (hidden)
C4: =stockname&"财务预警表" -> 福耀玻璃财务预警表
C5: 基准报告期 | D5: =base_date -> 2022-09-30 | I5: 总评分 | J5: =SUM(J8:J51)*100/SUM(I8:I51) -> 
C6: 基准年报数据 | D6: =base_date_lyr -> 2021-12-31
C7: 检测指标 | D7: 类别 | E7: 阈值 | F7: 当前值 | G7: 检测符 | H7: 检测结果 | I7: 权重 | J7: 单项评分
C8: 年报管理费用/年报净利润比率 | D8: 治理问题 | E8: 1 | F8: =IFERROR(VLOOKUP("其中：管理费用*",isa_a,MATCH(base_date_lyr,header_a,0),0)/VLOOKUP("五、净利润*",isa_a,MATCH(base_date_lyr,header_a,0),0),1) -> 0.6185780808 | G8: > | H8: =applyTest(E8,F8,G8,"检测通过","检测失败") -> 检测通过
C9: 其他应收款/年报净利润比率 | D9: 治理问题 | E9: 2 | F9: =IFERROR(VLOOKUP("其他应收款*",bsa_a,MATCH(base_date,header_a,0),0)/VLOOKUP("五、净利润*",isa_a,MATCH(base_date_lyr,header_a,0),0),1) -> 0.06263822402 | G9: > | H9: =applyTest(E9,F9,G9,"检测通过","检测失败") -> 检测通过
C10: 其他应付款/年报净利润比率 | D10: 治理问题 | E10: 2 | F10: =IFERROR(VLOOKUP("其他应付款*",bsa_a,MATCH(base_date,header_a,0),0)/VLOOKUP("五、净利润*",isa_a,MATCH(base_date_lyr,header_a,0),0),1) -> 0.5800942265 | G10: > | H10: 检测通过
C11: 新增其他应收/年报净利润比率 | D11: 治理问题 | E11: 0.5 | F11: =IFERROR((VLOOKUP("其他应收款*",bsa_a,MATCH(base_date,header_a,0),0)-VLOOKUP("其他应收款*",bsa_a,MATCH(EOMONTH(base_date,-3),header_a,0),0))/VLOOKUP("五、净利润*",isa_a,MATCH(base_date_lyr,header_a,0),0),1) -> 0.01719986489 | G11: > | H11: 检测通过
C12: 新增其他应付/年报净利润比率 | D12: 治理问题 | E12: 0.5 | F12: =IFERROR((VLOOKUP("其他应付款*",bsa_a,MATCH(base_date,header_a,0),0)-VLOOKUP("其他应付款*",bsa_a,MATCH(EOMONTH(base_date,-3),header_a,0),0))/VLOOKUP("五、净利润*",isa_a,MATCH(base_date_lyr,header_a,0),0),1) -> 0.04150460712 | G12: > | H12: 检测通过
C13: 三年累积分红率 | D13: 治理问题 | E13: 0.5 | F13: =IFERROR((VLOOKUP("上市公司股利*",cfa_a,MATCH(EOMONTH(base_date_lyr,0),header_a,0),0)+VLOOKUP("上市公司股利*",cfa_a,MATCH(EOMONTH(base_date_lyr,-12),header_a,0),0)+VLOOKUP("上市公司股利*",cfa_a,MATCH(EOMONTH(base_date_lyr,-24),header_a,0),0))/(VLOOKUP("五、净利润*",isa_a,MATCH(EOMONTH(base_date_lyr,0),header_a,0),0)+VLOOKUP("五、净利润*",isa_a,MATCH(EOMONTH(base_date_lyr,-12),header_a,0),0)+VLOOKUP("五、净利润*",isa_a,MATCH(EOMONTH(base_date_lyr,-24),header_a,0),0)),0) -> 0.6598344304 | G13: < | H13: 检测通过
C14: 少数股东损益TTM/净利润TTM | D14: 治理问题 | E14: 0.25 | F14: =专题_t!D92 -> -0.0005646560099 | G14: > | H14: 检测通过
C15: 质押率 | D15: 市场问题 | E15: 50 | F15: =INDEX(pledged_data,2,8) -> 0 | G15: > | H15: 检测通过
C16: 单季度毛利率 | D16: 盈利能力 | E16: 0.1 | F16: =专题_t!D43 -> 0.3492691813 | G16: < | H16: 检测通过
C17: 单季度核心利润率 | D17: 盈利能力 | E17: 0.5 | F17: =专题_t!D71 -> 0.2521888239 | G17: < | H17: 检测失败
C18: 股东回报率[roe.ttm] | D18: 盈利能力 | E18: 0.2 | F18: =pb/pe_ttm -> 0.1564492398 | G18: < | H18: 检测失败
C19: 股价 | D19: 市场问题 | E19: 2 | F19: =price -> 34.78 | G19: < | H19: 检测通过
C20: 价值回归年限 | D20: 市场问题 | E20: 2 | G20: < | H20: 检测失败
C21: 毛利率TTM连续低于20期中位值的期数 | D21: 经营风险 | E21: 4 | F21: =c_stats(专题_t!D44:W44,MEDIAN(专题_t!D44:W44),"lt") -> 4 | G21: > | H21: 检测失败
C22: 净利率TTM连续低于20期中位值的期数 | D22: 经营风险 | E22: 4 | F22: =c_stats(专题_t!D86:W86,MEDIAN(专题_t!D86:W86),"lt") -> 0 | G22: > | H22: 检测通过
C23: 核心利润率连续低于20期中位值的期数 | D23: 经营风险 | E23: 4 | F23: =c_stats(专题_t!D72:W72,MEDIAN(专题_t!D72:W72),"lt") -> 0 | G23: > | H23: 检测通过
C24: 营收增长率连续下降期数（单季度） | D24: 经营风险 | E24: 4 | F24: =check_array(专题_t!D12:W12,"dec") -> 2 | G24: > | H24: 检测通过
C25: 利润增长率连续下降期数（单季度） | D25: 经营风险 | E25: 4 | F25: =check_array(专题_t!D12:W12,"dec") -> 2 | G25: > | H25: 检测通过
C26: 非经常性损益对利润比例 | D26: 经营风险 | E26: 0.2 | F26: =专题_t!D79 -> 0.07930630113 | G26: > | H26: 检测通过
C27: 季度核心利润为负 | D27: 经营风险 | E27: 0 | F27: =专题_t!D68 -> 19.00588314 | G27: < | H27: 检测通过
C28: *季度核心利润连续亏损期数 | D28: 经营风险 | E28: 3 | F28: =c_stats(专题_t!D68:W68,0,"lt") -> 0 | G28: > | H28: 检测通过
C29: 上市年限 | D29: 基本信息 | E29: 5 | G29: < | H29: 检测失败
C30: 净债务为负但利息支出为正 | D30: 财务风险 | E30: -- | H30: 检测失败
C31: 当期货币资金与有息债务均高于X | D31: 财务风险 | E31: 0.3 | H31: 检测失败
C32: 净利润复合增速 | D32: 业绩 | E32: 0.12 | F32: =IFERROR(POWER(VLOOKUP("五、净利润",isa_a,MATCH(base_date,header_a,0),0)/VLOOKUP("五、净利润",isa_a,MATCH(EOMONTH(base_date,-36),header_a,0),0),1/3)-1,0) -> 0.1844524592 | G32: < | H32: 检测通过
C33: 当期利润增速 | D33: 业绩 | E33: 0.05 | F33: =IFERROR(VLOOKUP("五、净利润",isa_a,MATCH(base_date,header_a,0),0)/VLOOKUP("五、净利润",isa_a,MATCH(EOMONTH(base_date,-12),header_a,0),0)-1,0) -> 0.5035901161 | G33: < | H33: 检测通过
C34: 财务杠杆超过 | D34: 财务风险 | E34: 2 | H34: 检测失败
C35: 资金链敞口 | D35: 财务风险 | E35: 0 | F35: =专题_t!D222 -> -81.86723086 | G35: > | H35: 检测通过
C36: *商誉/年报净利润 | D36: 财务风险 | E36: 1 | F36: =IFERROR(VLOOKUP("商誉*",bsa_a,MATCH(base_date,header_a,0),0)/VLOOKUP("五、净利润*",isa_a,MATCH(base_date_lyr,header_a,0),0),1) -> 0.04929731462 | G36: > | H36: 检测通过
C37: 新增商誉/年报净利润 | D37: 财务风险 | E37: 0.5 | F37: =IFERROR((VLOOKUP("商誉*",bsa_a,MATCH(base_date,header_a,0),0)-VLOOKUP("商誉*",bsa_a,MATCH(EOMONTH(base_date,-3),header_a,0),0))/VLOOKUP("五、净利润*",isa_a,MATCH(base_date_lyr,header_a,0),0),1) -> 0 | G37: > | H37: 检测通过
C38: 固定资产折旧率低于(按年报) | D38: 财务风险 | E38: 0.1 | H38: 检测失败
C39: 无形资产摊销率低于(按年报) | D39: 财务风险 | E39: 0.1 | H39: 检测失败
C40: *销售现金流【TTM】连续低于营业收入【TTM】期数 | D40: 业绩 | E40: 4 | F40: =c_stats(专题_t!#REF!,1,"lt") ->  | G40: >
C41: *经营现金流【TTM】连续低于净利润【TTM】期数 | D41: 业绩 | E41: 4 | F41: =c_stats(专题_t!#REF!,1,"lt") ->  | G41: >
C42: *经营现金流连续为负期数 | D42: 业绩 | E42: 3 | F42: =c_stats(基准表!B127:U127,0,"lt") -> 0 | G42: > | H42: 检测通过
C43: 有息负债率高于X | D43: 财务风险 | E43: 0.5 | F43: =专题_t!D125 -> 0.2661172119 | G43: > | H43: 检测通过
C44: 资产负债率高于X | D44: 财务风险 | E44: 0.7 | F44: =专题_t!D126 -> 0.4449963672 | G44: > | H44: 检测通过
C45: 净清算值/股东权益高于X | D45: 财务风险 | E45: 0.8 | H45: 检测失败
C46: 在建工程超过固定资产 | D46: 财务风险 | E46: 0 | H46: 检测失败
C47: 固定资产折旧敏感性超过X[1] | D47: 财务风险 | E47: 0.1 | H47: 检测失败
C48: 无形摊销敏感性超过X[2] | D48: 财务风险 | E48: 0.1 | H48: 检测失败
C49: 在建工程减值敏感性超过X[3] | D49: 财务风险 | E49: 0.1 | H49: 检测失败
C50: 存货减值敏感性超过X[4] | D50: 财务风险 | E50: 0.1 | H50: 检测失败
C51: 利息覆盖倍数低于X倍 | D51: 财务风险 | E51: 5 | F51: =IF(专题_t!D233>=0,专题_t!D233,1000) -> 1000 | G51: < | H51: 检测通过
C52: 注[1][2]: 敏感性测算为1%的固定资产与无形资产对利润的影响情况，也就是说固定资产或无形资产每增加1%的折旧（摊销）时，对利润的影响情况，重资产企业敏感性相当高，配合折旧率指标看

Sheet 专题V
C3: =base_date -> 2022-09-30 | E3: =ptype_selector -> 按TTM | G3: =durationText -> 季度 | I3: =stockname -> 福耀玻璃
C6: 一、业绩
C59: 二、财务质量评估
C95: 三、股东回报
C113: 四、大股东及公众股东持仓

Sheet 计分牌
A1: =stockname &"计分牌--重要指标评测" -> 福耀玻璃计分牌--重要指标评测
A2: 基准报告期 | B2: =base_date -> 2022-09-30 | D2: 数据列示 | F2: =ptype_selector -> 按TTM | G2: 间隔 | H2: =durationText -> 季度
A3: 01. 重要指标评测——评分细则
A4: 检测项 | B4: 总权重 | C4: 低值 | D4: 高值 | E4: 评分或指标变动 | F4: =base_date -> 2022-09-30 | G4: =EOMONTH(F4,-1*duration) -> 2022-06-30 | H4: 2022-03-31 | I4: 2021-12-31 | J4: 2021-09-30 | K4: 2021-06-30 | L4: 2021-03-31 | M4: 2020-12-31 | N4: 2020-09-30 | O4: 2020-06-30 | P4: 2020-03-31 | Q4: 2019-12-31
A5: 综合评分 | B5: -- | C5: -- | D5: -- | E5: -- | F5: =SUMPRODUCT($B$26:$B$44,F26:F44) -> 85.86607245 | G5: 83.58974269 | H5: 77.96787959 | I5: 80.76306171 | J5: 82.18168649 | K5: 83.42719174 | L5: 77.39134203 | M5: 74.29486303 | N5: 71.27472833 | O5: 65.21388998 | P5: 76.21404907 | Q5: 77.01717694
A6: 营收增长率 | B6: -- | C6: 0.05 | D6: 0.5 | E6: =F6-G6 -> 0.08482992567 | F6: =IFERROR(IF(VLOOKUP("一、营业总收入*",INDIRECT(VLOOKUP(ptype_selector,table_names,2,0)),MATCH(F$4,header_a,0),0)>VLOOKUP("一、营业总收入*",INDIRECT(VLOOKUP(ptype_selector,table_names,2,0)),MATCH(EOMONTH(F$4,-12),header_a,0),0),ABS(VLOOKUP("一、营业总收入*",INDIRECT(VLOOKUP(ptype_selector,table_names,2,0)),MATCH(F$4,header_a,0),0)/VLOOKUP("一、营业总收入*",INDIRECT(VLOOKUP(ptype_selector,table_names,2,0)),MATCH(EOMONTH(F$4,-12),header_a,0),0)-1),-1*ABS(VLOOKUP("一、营业总收入*",INDIRECT(VLOOKUP(ptype_selector,table_names,2,0)),MATCH(F$4,header_a,0),0)/VLOOKUP("一、营业总收入*",INDIRECT(VLOOKUP(ptype_selector,table_names,2,0)),MATCH(EOMONTH(F$4,-12),header_a,0),0)-1)),"--") -> 0.1549201424 | G6: 0.07009021674 | H6: 0.1400421919 | I6: 0.185690731 | J6: 0.2097315388 | K6: 0.2318493658 | L6: 0.0541365959 | M6: -0.0567328944 | N6: -0.0718387452 | O6: -0.07291228045 | P6: -0.003418082093 | Q6: 0.04345574406
A7: 核心增长率 | B7: -- | C7: 0.05 | D7: 0.3 | E7: =F7-G7 -> 0.2636275528 | F7: =IFERROR(IF(VLOOKUP("核心利润*",INDIRECT(VLOOKUP(ptype_selector,table_names,2,0)),MATCH(F$4,header_a,0),0)>VLOOKUP("核心利润*",INDIRECT(VLOOKUP(ptype_selector,table_names,2,0)),MATCH(EOMONTH(F$4,-12),header_a,0),0),ABS(VLOOKUP("核心利润*",INDIRECT(VLOOKUP(ptype_selector,table_names,2,0)),MATCH(F$4,header_a,0),0)/VLOOKUP("核心利润*",INDIRECT(VLOOKUP(ptype_selector,table_names,2,0)),MATCH(EOMONTH(F$4,-12),header_a,0),0)-1),-1*ABS(VLOOKUP("核心利润*",INDIRECT(VLOOKUP(ptype_selector,table_names,2,0)),MATCH(F$4,header_a,0),0)/VLOOKUP("核心利润*",INDIRECT(VLOOKUP(ptype_selector,table_names,2,0)),MATCH(EOMONTH(F$4,-12),header_a,0),0)-1)),"--") -> 0.3486431759 | G7: 0.08501562312 | H7: 0.08718783062 | I7: 0.2518732577 | J7: 0.5900871067 | K7: 0.4566888682 | L7: 0.05070050265 | M7: -0.1303179877 | N7: -0.2856492245 | O7: -0.2703338953 | P7: -0.2276145788 | Q7: -0.2160659054
A8: 归母增长率 | B8: -- | C8: 0.05 | D8: 0.3 | E8: 0.1778612425 | F8: =IFERROR(IF(VLOOKUP("其中：归母净利润*",INDIRECT(VLOOKUP(ptype_selector,table_names,2,0)),MATCH(F$4,header_a,0),0)>VLOOKUP("其中：归母净利润*",INDIRECT(VLOOKUP(ptype_selector,table_names,2,0)),MATCH(EOMONTH(F$4,-12),header_a,0),0),ABS(VLOOKUP("其中：归母净利润*",INDIRECT(VLOOKUP(ptype_selector,table_names,2,0)),MATCH(F$4,header_a,0),0)/VLOOKUP("其中：归母净利润*",INDIRECT(VLOOKUP(ptype_selector,table_names,2,0)),MATCH(EOMONTH(F$4,-12),header_a,0),0)-1),-1*ABS(VLOOKUP("其中：归母净利润*",INDIRECT(VLOOKUP(ptype_selector,table_names,2,0)),MATCH(F$4,header_a,0),0)/VLOOKUP("其中：归母净利润*",INDIRECT(VLOOKUP(ptype_selector,table_names,2,0)),MATCH(EOMONTH(F$4,-12),header_a,0),0)-1)),"--") -> 0.2814300821 | G8: 0.1035688396 | H8: 0.05541245096 | I8: 0.2097030024 | J8: 0.5270053615 | K8: 0.4451872524 | L8: 0.08855421316 | M8: -0.1026957621 | N8: -0.2902158089 | O8: -0.3727569624 | P8: -0.3390014369 | Q8: -0.296579994
A9: 非经常性损益占比% | B9: -- | C9: 0.25 | D9: 0 | E9: =F9-G9 -> -0.04367388218 | F9: =IFERROR(VLOOKUP("非经常性损益*",INDIRECT(VLOOKUP(ptype_selector,table_names,2,0)),MATCH(F$4,header_a,0),0)/VLOOKUP("五、净利润*",INDIRECT(VLOOKUP(ptype_selector,table_names,2,0)),MATCH(EOMONTH(F$4,0),header_a,0),0),0) -> 0.07930630113 | G9: 0.1229801833 | H9: 0.1471440876 | I9: 0.1636497214 | J9: 0.1645455538 | K9: 0.1572363634 | L9: 0.185582055 | M9: 0.2139285781 | N9: 0.1833960809 | O9: 0.1548271831 | P9: 0.1235598106 | Q9: 0.1180832165
A10: 经营现金流/净利润% | B10: -- | C10: 0.8 | D10: 1.3 | E10: -0.2311404 | F10: =IFERROR(IFERROR(VLOOKUP("经营活动现金流量净额*",INDIRECT(VLOOKUP(ptype_selector,table_names,3,0)),MATCH(F$4,header_a,0),0),"")/IFERROR(VLOOKUP("五、净利润*",INDIRECT(VLOOKUP(ptype_selector,table_names,2,0)),MATCH(F$4,header_a,0),0),""),"--") -> 1.208724015 | G10: 1.439864415 | H10: 1.665046782 | I10: 1.806250186 | J10: 1.984684249 | K10: 2.090491236 | L10: 2.05975804 | M10: 2.031118643 | N10: 2.007013777 | O10: 1.901225318 | P10: 1.909632748 | Q10: 1.769010548
A11: 毛利率% | B11: -- | C11: 0.2 | D11: 0.6 | E11: -0.009897168539 | F11: =1-IFERROR(VLOOKUP("其中：营业成本*",INDIRECT(VLOOKUP(ptype_selector,table_names,2,0)),MATCH(F$4,header_a,0),0)*1/VLOOKUP("一、营业总收入*",INDIRECT(VLOOKUP(ptype_selector,table_names,2,0)),MATCH(F$4,header_a,0),0),"") -> 0.3186479356 | G11: 0.3285451041 | H11: 0.3476626336 | I11: 0.3590216234 | J11: 0.4113008622 | K11: 0.4136533684 | L11: 0.4078071625 | M11: 0.3950638736 | N11: 0.3790854265 | O11: 0.3668853363 | P11: 0.364539173 | Q11: 0.3746384105
A12: 毛利率增长率% | B12: -- | C12: -0.05 | D12: 1 | E12: 0.009220360956 | F12: =F11-G11 -> -0.009897168539 | G12: =G11-H11 -> -0.0191175295 | H12: -0.01135898979 | I12: -0.05227923881 | J12: -0.002352506225 | K12: 0.005846205972 | L12: 0.01274328889 | M12: 0.01597844703 | N12: 0.01220009025 | O12: 0.002346163249 | P12: -0.01009923743
A13: 核心利润率% | B13: -- | C13: 0.07 | D13: 0.3 | E13: 0.02676626042 | F13: =IFERROR(VLOOKUP("核心利润*",INDIRECT(VLOOKUP(ptype_selector,table_names,2,0)),MATCH(F$4,header_a,0),0)*1/VLOOKUP("一、营业总收入*",INDIRECT(VLOOKUP(ptype_selector,table_names,2,0)),MATCH(F$4,header_a,0),0),"") -> 0.1900861087 | G13: 0.1633198483 | H13: 0.1437315712 | I13: 0.1468308065 | J13: 0.1627815865 | K13: 0.1610732308 | L13: 0.1507191774 | M13: 0.1390683323 | N13: 0.1238435418 | O13: 0.1362116246 | P13: 0.1512120725 | Q13: 0.1508351115
A14: 股东回报率% | B14: -- | C14: 0.1 | D14: 0.3 | E14: 0.01483318039 | F14: =IFERROR(VLOOKUP("其中：归母净利润*",INDIRECT(VLOOKUP(ptype_selector,table_names,2,0)),MATCH(F$4,header_a,0),0),0)/VLOOKUP("归属于母公司所有者权益*",bsa_a,MATCH(EOMONTH(F$4,0),header_a,0),0) -> 0.1563930972 | G14: 0.1415599168 | H14: 0.1164558233 | I14: 0.1195987678 | J14: 0.1345107802 | K14: 0.1364892679 | L14: 0.1329933292 | M14: 0.1204368867 | N14: 0.1083366677 | O14: 0.1149333698 | P14: 0.1258502354 | Q14: 0.1356286198
A15: 资产负债率% | B15: -- | C15: 0.7 | D15: 0.3 | E15: -0.004893946591 | F15: =IFERROR(VLOOKUP("负债合计*",bsa_a,MATCH(F$4,header_a,0),0)/VLOOKUP("资产合计*",bsa_a,MATCH(F$4,header_a,0),0),0) -> 0.4449963672 | G15: 0.4498903138 | H15: 0.4212059419 | I15: 0.4128800591 | J15: 0.4243443344 | K15: 0.4371125591 | L15: 0.4358286522 | M15: 0.4380825028 | N15: 0.4700913086 | O15: 0.5263535435 | P15: 0.4761144442 | Q15: 0.4496232516
A16: 现金比率% | B16: -- | C16: 0.15 | D16: 0.5 | E16: -0.007586256225 | F16: =IFERROR(VLOOKUP("货币资金*",bsa_a,MATCH(F$4,header_a,0),0)/VLOOKUP("资产合计*",bsa_a,MATCH(F$4,header_a,0),0),0) -> 0.3433811587 | G16: 0.3509674149 | H16: 0.3455205782 | I16: 0.3199149311 | J16: 0.3396611353 | K16: 0.3435346712 | L16: 0.2666552708 | M16: 0.2292856494 | N16: 0.2354768099 | O16: 0.2710096138 | P16: 0.2753008548 | Q16: 0.2152190171
A17: 商誉比率/净利润% | B17: -- | C17: 0.4 | D17: 0 | E17: -0.006417927908 | F17: =IFERROR(ABS(VLOOKUP("商誉*",bsa_a,MATCH(F$4,header_a,0),0)/(IFERROR((VLOOKUP("五、净利润*",INDIRECT(VLOOKUP(ptype_selector,table_names,2,0)),MATCH(F$4,header_a,0),0)),0))),1) -> 0.03482814523 | G17: 0.04124607314 | H17: 0.04904413118 | I17: 0.04929731462 | J17: 0.04465143511 | K17: 0.04553482114 | L17: 0.0517619442 | M17: 0.05962803101 | N17: 0.06815537819 | O17: 0.06578976928 | P17: 0.05630877692 | Q17: 0.05346127462
A18: 有息负债率% | B18: -- | C18: 0.5 | D18: 0.15 | E18: 0.04211807992 | F18: =IFERROR((IFERROR(VLOOKUP("短期借款*",bsa_a,MATCH(F$4,header_a,0),0)+VLOOKUP("一年内到期的非流动负债*",bsa_a,MATCH(F$4,header_a,0),0)+VLOOKUP("其他流动负债*",bsa_a,MATCH(F$4,header_a,0),0),0)+IFERROR(VLOOKUP("长期借款*",bsa_a,MATCH(F$4,header_a,0),0)+VLOOKUP("应付债券*",bsa_a,MATCH(F$4,header_a,0),0),0))/IFERROR(VLOOKUP("资产合计*",bsa_a,MATCH(F$4,header_a,0),0),0),0) -> 0.2661172119 | G18: 0.2239991319 | H18: 0.2061741079 | I18: 0.2025246405 | J18: 0.228296546 | K18: 0.2585378217 | L18: 0.2581126044 | M18: 0.2512183816 | N18: 0.3024730289 | O18: 0.3161243309 | P18: 0.3065058633 | Q18: 0.2494341431
A19: 利润分配率% | B19: -- | C19: 0.4 | D19: 0.7 | E19: -0.3414498597 | F19: =IFERROR(VLOOKUP("上市公司股利*",INDIRECT(VLOOKUP(ptype_selector,table_names,3,0)),MATCH(F$4,header_a,0),0),0)/IFERROR(VLOOKUP("五、净利润*",INDIRECT(VLOOKUP(ptype_selector,table_names,2,0)),MATCH(F$4,header_a,0),0),0) -> 0.5831877972 | G19: 0.9246376568 | H19: 0.6185754133 | I19: 0.6232495739 | J19: 0.5698449898 | K19: 0.8622728175 | L19: 0.6238129902 | M19: 0.7175279349 | N19: 0.8225111084 | O19: 0.004784939807 | P19: 0.689906621 | Q19: 0.6477826553
A20: 少数股东损益/相应权益% | B20: -- | C20: 0.2 | D20: 0 | E20: 0.002407485715 | F20: =IFERROR(IFERROR(VLOOKUP("其中：少数股东*",INDIRECT(VLOOKUP(ptype_selector,table_names,2,0)),MATCH(F$4,header_a,0),0),0)/VLOOKUP("少数股东权益*",bsa_a,MATCH(EOMONTH(F$4,0),header_a,0),0),0) -> 0.1774870808 | G20: 0.175079595 | H20: 0.2274406074 | I20: 0.2674945967 | J20: 0.3126748598 | K20: 0.5769202435 | L20: 0.584772911 | M20: 0.6441517252 | N20: 0.5070343965 | O20: 0.7039263256 | P20: 0.3693079698 | Q20: 0.1954569479
A21: 其他应收款/净利润 | B21: -- | C21: 2 | D21: 0 | E21: 0.006236024856 | F21: =VLOOKUP("其他应收*",bsa_a,MATCH(EOMONTH(F$4,0),header_a,0),0)/IFERROR(VLOOKUP("五、净利润*",INDIRECT(VLOOKUP(ptype_selector,table_names,2,0)),MATCH(F$4,header_a,0),0),0) -> 0.04425338743 | G21: 0.03801736257 | H21: 0.04760300483 | I21: 0.05114471407 | J21: 0.04029606803 | K21: 0.06393955021 | L21: 0.1730503812 | M21: 0.2026232517 | N21: 0.1886287541 | O21: 0.1884170178 | P21: 0.1632225754 | Q21: 0.162860967
A22: 其他应付款/净利润 | B22: -- | C22: 1 | D22: 0 | E22: -0.04079534311 | F22: =VLOOKUP("其他应付*",bsa_a,MATCH(EOMONTH(F$4,0),header_a,0),0)/IFERROR(VLOOKUP("五、净利润*",INDIRECT(VLOOKUP(ptype_selector,table_names,2,0)),MATCH(F$4,header_a,0),0),0) -> 0.4098317753 | G22: 0.4506271184 | H22: 0.4917427645 | I22: 0.4761558767 | J22: 0.4133775259 | K22: 0.4074533754 | L22: 0.4555074541 | M22: 0.5299301718 | N22: 0.5815497231 | O22: 0.4816614139 | P22: 0.4310316675 | Q22: 0.5367712834
A23: 管理费用/净利润 | B23: -- | C23: 1 | D23: 0.3 | E23: -0.07405246445 | F23: =IFERROR(VLOOKUP("其中：管理费用*",INDIRECT(VLOOKUP(ptype_selector,table_names,2,0)),MATCH(F$4,header_a,0),0)*1/VLOOKUP("五、净利润*",INDIRECT(VLOOKUP(ptype_selector,table_names,2,0)),MATCH(F$4,header_a,0),0),"") -> 0.4343676047 | G23: 0.5084200691 | H23: 0.6127858215 | I23: 0.6185780808 | J23: 0.6083641196 | K23: 0.6221039926 | L23: 0.7100920344 | M23: 0.7991780442 | N23: 0.9634580264 | O23: 0.9254398704 | P23: 0.7804336352 | Q23: 0.7540461342
A24: 利息覆盖倍数_调整 | B24: -- | C24: 5 | D24: 20 | E24: -7881.610796 | F24: =IFERROR(IF(VLOOKUP("其中：财务费用*",INDIRECT(VLOOKUP(ptype_selector,table_names,2,0)),MATCH(F$4,header_a,0),0)<0,100,IFERROR((VLOOKUP("四、利润总额*",INDIRECT(VLOOKUP(ptype_selector,table_names,2,0)),MATCH(F$4,header_a,0),0)*1+VLOOKUP("其中：财务费用*",INDIRECT(VLOOKUP(ptype_selector,table_names,2,0)),MATCH(F$4,header_a,0),0))/VLOOKUP("其中：财务费用*",INDIRECT(VLOOKUP(ptype_selector,table_names,2,0)),MATCH(F$4,header_a,0),0),"")),"--") -> 100 | G24: 7981.610796 | H24: 6.13304991 | I24: 6.559229309 | J24: 7.667258549 | K24: 5.748178321 | L24: 6.26858304 | M24: 7.291091563 | N24: 8.419754885 | O24: 100 | P24: 100 | Q24: 156.4254315
A25: 02. 计分表
A26: 营收增长率 | B26: 0.05 | C26: 60 | D26: 100 | E26: =F26-G26 -> 7.540437838 | F26: =IFERROR(IF((F6-$C6)*(100-$C26)/($D6-$C6)+$C26<0,0,IF((F6-$C6)*(100-$C26)/($D6-$C6)+$C26>100,100,(F6-$C6)*(100-$C26)/($D6-$C6)+$C26)),"--") -> 69.32623488 | G26: 61.78579704 | H26: 68.0037504 | I26: 72.06139831 | J26: 74.198359 | K26: 76.16438807 | L26: 60.36769741 | M26: 50.51263161 | N26: 49.16988932 | O26: 49.07446396 | P26: 55.25172604 | Q26: 59.41828836
A27: 核心增长率 | B27: 0.05 | C27: 60 | D27: 100 | E27: =F27-G27 -> 34.3975003 | F27: 100 | G27: 65.6024997 | H27: 65.9500529 | I27: 92.29972123 | J27: 100 | K27: 100 | L27: 60.11208042 | M27: 31.14912196 | N27: 6.296124077 | O27: 8.746576748 | P27: 15.58166739 | Q27: 17.42945513
A28: 归母增长率 | B28: 0.05 | C28: 60 | D28: 100 | E28: 28.4577988 | F28: 97.02881314 | G28: 68.57101434 | H28: 60.86599215 | I28: 85.55248038 | J28: 100 | K28: 100 | L28: 66.16867411 | M28: 35.56867806 | N28: 5.565470581 | O28: 0 | P28: 0 | Q28: 4.547200959
A29: 非经常性损益占比% | B29: 0.1 | C29: 60 | D29: 100 | E29: 6.987821149 | F29: 87.31099182 | G29: 80.32317067 | H29: 76.45694598 | I29: 73.81604458 | J29: 73.67271139 | K29: 74.84218186 | L29: 70.30687119 | M29: 65.7714275 | N29: 70.65662706 | O29: 75.2276507 | P29: 80.2304303 | Q29: 81.10668535
A30: 经营现金流/净利润% | B30: 0.1 | C30: 60 | D30: 100 | E30: -7.302078775 | F30: 92.69792122 | G30: 100 | H30: 100 | I30: 100 | J30: 100 | K30: 100 | L30: 100 | M30: 100 | N30: 100 | O30: 100 | P30: 100 | Q30: 100
A31: 毛利率% | B31: 0.05 | C31: 60 | D31: 100 | E31: -0.9897168539 | F31: 71.86479356 | G31: 72.85451041 | H31: 74.76626336 | I31: 75.90216234 | J31: 81.13008622 | K31: 81.36533684 | L31: 80.78071625 | M31: 79.50638736 | N31: 77.90854265 | O31: 76.68853363 | P31: 76.4539173 | Q31: 77.46384105
A32: *毛利率增长率% | B32: 0.05 | C32: 60 | D32: 100 | E32: 0.3512518459 | F32: 61.52772691 | G32: 61.17647507 | H32: 61.47203848 | I32: 59.91317185 | J32: 61.81514262 | K32: 62.12747451 | L32: 62.39022053 | M32: 62.51346465 | N32: 62.36952725 | O32: 61.99413955 | P32: 61.52002905 | Q32: 61.9047619
A33: 核心利润率% | B33: 0.05 | C33: 60 | D33: 100 | E33: 4.655001812 | F33: 80.88454065 | G33: 76.22953884 | H33: 72.82288195 | I33: 73.36187938 | J33: 76.13592808 | K33: 75.83882275 | L33: 74.03811781 | M33: 72.01188388 | N33: 69.36409423 | O33: 71.51506514 | P33: 74.1238387 | Q33: 74.05828027
A34: 股东回报率% | B34: 0.1 | C34: 60 | D34: 100 | E34: 2.966636077 | F34: 71.27861943 | G34: 68.31198336 | H34: 63.29116466 | I34: 63.91975356 | J34: 66.90215604 | K34: 67.29785357 | L34: 66.59866584 | M34: 64.08737735 | N34: 61.66733354 | O34: 62.98667395 | P34: 65.17004708 | Q34: 67.12572395
A35: 资产负债率% | B35: 0.05 | C35: 60 | D35: 100 | E35: 0.4893946591 | F35: 85.50036328 | G35: 85.01096862 | H35: 87.87940581 | I35: 88.71199409 | J35: 87.56556656 | K35: 86.28874409 | L35: 86.41713478 | M35: 86.19174972 | N35: 82.99086914 | O35: 77.36464565 | P35: 82.38855558 | Q35: 85.03767484
A36: 现金比率% | B36: 0 | C36: 60 | D36: 100 | E36: -0.8670007114 | F36: 82.10070385 | G36: 82.96770456 | H36: 82.34520894 | I36: 79.41884926 | J36: 81.67555832 | K36: 82.11824814 | L36: 73.33203094 | M36: 69.06121708 | N36: 69.76877828 | O36: 73.82967015 | P36: 74.32009769 | Q36: 67.45360196
A37: 商誉/净利润% | B37: 0.1 | C37: 60 | D37: 100 | E37: 0.6417927908 | F37: 96.51718548 | G37: 95.87539269 | H37: 95.09558688 | I37: 95.07026854 | J37: 95.53485649 | K37: 95.44651789 | L37: 94.82380558 | M37: 94.0371969 | N37: 93.18446218 | O37: 93.42102307 | P37: 94.36912231 | Q37: 94.65387254
A38: 有息负债率% | B38: 0.05 | C38: 60 | D38: 100 | E38: -4.813494848 | F38: 86.7294615 | G38: 91.54295635 | H38: 93.58010196 | I38: 93.99718395 | J38: 91.05182332 | K38: 87.59567752 | L38: 87.64427378 | M38: 88.43218496 | N38: 82.57451099 | O38: 81.01436218 | P38: 82.11361562 | Q38: 88.63609793
A39: 利润分配率% | B39: 0.1 | C39: 60 | D39: 100 | E39: -15.57496038 | F39: 84.42503962 | G39: 100 | H39: 89.14338844 | I39: 89.76660985 | J39: 82.64599864 | K39: 100 | L39: 89.84173202 | M39: 100 | N39: 100 | O39: 7.304658641 | P39: 98.65421613 | Q39: 93.03768738
A40: 少数股东损益/相应权益% | B40: 0 | C40: 60 | D40: 100 | E40: -0.4814971431 | F40: 64.50258385 | G40: 64.98408099 | H40: 54.51187853 | I40: 46.50108067 | J40: 37.46502805 | K40: 0 | L40: 0 | M40: 0 | N40: 0 | O40: 0 | P40: 26.13840605 | Q40: 60.90861042
A41: 其他应收款/净利润 | B41: 0 | C41: 60 | D41: 100 | E41: -0.1247204971 | F41: 99.11493225 | G41: 99.23965275 | H41: 99.0479399 | I41: 98.97710572 | J41: 99.19407864 | K41: 98.721209 | L41: 96.53899238 | M41: 95.94753497 | N41: 96.22742492 | O41: 96.23165964 | P41: 96.73554849 | Q41: 96.74278066
A42: 其他应付款/净利润 | B42: 0 | C42: 60 | D42: 100 | E42: 1.631813724 | F42: =IFERROR(IF((F22-$C22)*(100-$C42)/($D22-$C22)+$C42<0,0,IF((F22-$C22)*(100-$C42)/($D22-$C22)+$C42>100,100,(F22-$C22)*(100-$C42)/($D22-$C22)+$C42)),"--") -> 83.60672899 | G42: 81.97491526 | H42: 80.33028942 | I42: 80.95376493 | J42: 83.46489896 | K42: 83.70186498 | L42: 81.77970184 | M42: 78.80279313 | N42: 76.73801108 | O42: 80.73354344 | P42: 82.7587333 | Q42: 78.52914866
A43: 管理费用/净利润 | B43: 0 | C43: 60 | D43: 100 | E43: 4.231569397 | F43: 92.32185116 | G43: 88.09028176 | H43: 82.12652448 | I43: 81.79553824 | J43: 82.37919317 | K43: =IFERROR(IF((K23-$C23)*(100-$C43)/($D23-$C23)+$C43<0,0,IF((K23-$C23)*(100-$C43)/($D23-$C23)+$C43>100,100,(K23-$C23)*(100-$C43)/($D23-$C23)+$C43)),"--") -> 81.59405756 | L43: 76.56616946 | M43: 71.47554033 | N43: 62.08811278 | O43: 64.26057884 | P43: 72.54664942 | Q43: 74.05450662
A44: 利息覆盖倍数_调整 | B44: 0.1 | C44: 60 | D44: 100 | E44: 0 | F44: 100 | G44: 100 | H44: 63.02146643 | I44: 64.15794482 | J44: 67.11268946 | K44: 61.99514219 | L44: 63.38288811 | M44: 66.1095775 | N44: 69.11934636 | O44: 100 | P44: 100 | Q44: 100
A45: 总计 | B45: =SUM(B26:B44) -> 1 | C45: -- | D45: -- | E45: 2.276329764 | F45: =SUMPRODUCT($B$26:$B$44,F26:F44) -> 85.86607245 | G45: 83.58974269 | H45: 77.96787959 | I45: 80.76306171 | J45: 82.18168649 | K45: 83.42719174 | L45: 77.39134203 | M45: 74.29486303 | N45: 71.27472833 | O45: 65.21388998 | P45: 76.21404907 | Q45: 77.01717694
A46: 注：计分表中的低值与高值代表指标值分别为低值与高值时相应指标的评分，在此处指标值=低值时，相应评分为60分，指标值为高值时，相应评分为100分，另：该评测表为单季度评测表，使用时应该注意季节性

Sheet 利润V
C3: =base_date -> 2022-09-30 | E3: =ptype_selector -> 按TTM | G3: =durationText -> 季度 | I3: =stockname -> 福耀玻璃
C6: 一、主要指标
C60: 二、盈利构成
C100: 三、成本
C136: 四、税

Sheet 资产负债V
C3: =base_date -> 2022-09-30 | E3: =ptype_selector -> 按TTM | G3: =durationText -> 季度 | I3: =stockname -> 福耀玻璃
C6: 一、资产、负债和权益概要
C57: 二、经营性资产
C93: 三、金融性资产
C112: 四、经营性负债
C132: 五、金融性负债
C168: 注：长期视角指将长期性项目按照明细展示而短期项目汇总展示

Sheet 现金流V
C3: =base_date -> 2022-09-30 | E3: =ptype_selector -> 按TTM | G3: =durationText -> 季度 | I3: =stockname -> 福耀玻璃
C6: 一、现金流概要
C72: 二、经营性现金流
C91: 三、投资现金流
C109: 四、融资性现金流

Sheet 估值 (hidden)
C3: =stockname & "历史与行业估值情况【两年内数据】" -> 福耀玻璃历史与行业估值情况【两年内数据】
C5: 所在行业 | D5: =industry_name -> 0 | H5: 起止时间 | I5: =_val!U10 -> 00:00:00 | K5: =_val!U9 -> 00:00:00
C6: 当前PE | D6: =pe_ttm -> 20.39 | E6: 行业PE | F6: =_val!F2 -> 0 | I6: 起始 | J6: 最新 | K6: 倍率 | L6: 增幅
C7: 当前PB | D7: =pb -> 3.19 | E7: 行业PB | F7: =industry_pb -> 0 | H7: 市盈率 | I7: =_val!V10 ->  | J7: =pe_ttm -> 20.39 | K7: =IFERROR(J7/I7,"-") -> - | L7: =IFERROR(K7-1,"-") -> -
C8: PE百分位 | D8: =_val!U2 -> -- | E8: PB百分位 | F8: =_val!V2 -> -- | H8: 总市值 | I8: =IFERROR(_val!Z10/unit,"-") -> - | J8: =marketcap -> 907.67 | K8: =IFERROR(J8/I8,"-") -> - | L8: =IFERROR(K8-1,"-") -> - | N8: =J11*J9/shares ->  | O8: =N8/price-1 -> 
C9: PE最大值 | D9: =_val!U4 -> 0 | E9: PB最大值 | F9: =_val!V4 -> 0 | H9: 行业市盈 | I9: =_val!X10 ->  | J9: =_val!X9 ->  | K9: =IFERROR(J9/I9,"-") -> - | L9: =IFERROR(K9-1,"-") -> -
C10: PE最小值 | D10: =_val!U5 -> 0 | E10: PB最小值 | F10: =_val!V5 -> 0 | H10: 市净率 | I10: =_val!W10 ->  | J10: =pb -> 3.19 | K10: =IFERROR(J10/I10,"-") -> - | L10: =IFERROR(K10-1,"-") -> -
C11: PE中枢 | D11: =_val!U3 -> -- | E11: PB中枢 | F11: =_val!V3 -> -- | H11: 利润TTM | I11: =IFERROR(_val!AA10/unit,"-") -> - | J11: =IFERROR(_val!AA9/unit,"--") -> -- | K11: =IFERROR(J11/I11,"-") -> - | L11: =IFERROR(K11-1,"-") -> -
C13: 估值与业绩分段统计表
C14: 时间段 | D14: =TEXT(INDEX(valuation_table,2,3),"yy/mm/dd") -> 00/01/00 | E14: =TEXT(INDEX(valuation_table,62,3),"yy/mm/dd") -> 00/01/00 | F14: =TEXT(INDEX(valuation_table,122,3),"yy/mm/dd") -> 00/01/00 | G14: =TEXT(INDEX(valuation_table,182,3),"yy/mm/dd") -> 00/01/00 | H14: =TEXT(INDEX(valuation_table,242,3),"yy/mm/dd") -> 00/01/00 | I14: =TEXT(INDEX(valuation_table,302,3),"yy/mm/dd") -> 00/01/00 | J14: =TEXT(INDEX(valuation_table,362,3),"yy/mm/dd") -> 00/01/00 | K14: =TEXT(INDEX(valuation_table,422,3),"yy/mm/dd") -> 00/01/00 | L14: =TEXT(INDEX(valuation_table,482,3),"yy/mm/dd") -> 00/01/00 | M14: =TEXT(INDEX(valuation_table,562,3),"yy/mm/dd") -> 00/01/00 | N14: =TEXT(INDEX(valuation_table,642,3),"yy/mm/dd") -> 00/01/00 | O14: =TEXT(INDEX(valuation_table,700,3),"yy/mm/dd") -> 00/01/00
C15: 市值 | D15: =INDEX(valuation_table,2,9)/unit -> 0 | E15: =INDEX(valuation_table,62,9)/unit -> 0 | F15: =INDEX(valuation_table,122,9)/unit -> 0 | G15: =INDEX(valuation_table,182,9)/unit -> 0 | H15: =INDEX(valuation_table,242,9)/unit -> 0 | I15: =INDEX(valuation_table,302,9)/unit -> 0 | J15: =INDEX(valuation_table,362,9)/unit -> 0 | K15: =INDEX(valuation_table,422,9)/unit -> 0 | L15: =INDEX(valuation_table,482,9)/unit -> 0 | M15: =INDEX(valuation_table,562,9)/unit -> 0 | N15: =INDEX(valuation_table,642,9)/unit -> 0 | O15: =INDEX(valuation_table,700,9)/unit -> 0
C16: 市值变化 | D16: =IFERROR(D15/E15-1,"-") -> - | E16: - | F16: - | G16: - | H16: - | I16: - | J16: - | K16: - | L16: - | M16: - | N16: - | O16: =IFERROR(O15/#REF!-1,"-") -> -
C17: 业绩TTM | D17: =IFERROR(D15/D19,"-") -> - | E17: - | F17: - | G17: - | H17: - | I17: - | J17: - | K17: - | L17: - | M17: - | N17: - | O17: -
C18: 业绩变化 | D18: =IFERROR(D17/ABS(E17)-1,"-") -> - | E18: =IFERROR(E17/ABS(F17)-1,"-") -> - | F18: - | G18: - | H18: - | I18: - | J18: - | K18: - | L18: - | M18: - | N18: - | O18: -
C19: PE.TTM | D19: =INDEX(valuation_table,2,5) -> 0 | E19: =INDEX(valuation_table,62,5) -> 0 | F19: =INDEX(valuation_table,122,5) -> 0 | G19: =INDEX(valuation_table,182,5) -> 0 | H19: =INDEX(valuation_table,242,5) -> 0 | I19: =INDEX(valuation_table,302,5) -> 0 | J19: =INDEX(valuation_table,362,5) -> 0 | K19: =INDEX(valuation_table,422,5) -> 0 | L19: =INDEX(valuation_table,482,5) -> 0 | M19: =INDEX(valuation_table,562,5) -> 0 | N19: =INDEX(valuation_table,642,5) -> 0 | O19: =INDEX(valuation_table,700,5) -> 0
C20: 估值变化 | D20: =IFERROR(D19/E19-1,"-") -> - | E20: - | F20: - | G20: - | H20: - | I20: - | J20: - | K20: - | L20: - | M20: - | N20: - | O20: =IFERROR(O19/#REF!-1,"-") -> -
C21: 行业PE | D21: =INDEX(valuation_table,2,6) -> 0 | E21: =INDEX(valuation_table,62,6) -> 0 | F21: =INDEX(valuation_table,122,6) -> 0 | G21: =INDEX(valuation_table,182,6) -> 0 | H21: =INDEX(valuation_table,242,6) -> 0 | I21: =INDEX(valuation_table,302,6) -> 0 | J21: =INDEX(valuation_table,362,6) -> 0 | K21: =INDEX(valuation_table,422,6) -> 0 | L21: =INDEX(valuation_table,482,6) -> 0 | M21: =INDEX(valuation_table,562,6) -> 0 | N21: =INDEX(valuation_table,642,6) -> 0 | O21: =INDEX(valuation_table,700,6) -> 0
C22: 行业变化 | D22: =IFERROR(D21/E21-1,"-") -> - | E22: - | F22: - | G22: - | H22: - | I22: - | J22: - | K22: - | L22: - | M22: - | N22: - | O22: =IFERROR(O21/#REF!-1,"-") -> -
C24: 回归年限测算
C25: 设置市场利率为： | E25: 0.04 | F25: ListBy | G25: =ptype_selector -> 按TTM | H25: =durationText -> 季度
C26: 报告期 | D26: =base_date -> 2022-09-30 | E26: =EOMONTH(D26,-1*duration) -> 2022-06-30 | F26: 2022-03-31 | G26: 2021-12-31 | H26: 2021-09-30 | I26: 2021-06-30 | J26: 2021-03-31 | K26: 2020-12-31 | L26: 2020-09-30 | M26: 2020-06-30 | N26: 2020-03-31 | O26: 2019-12-31
C27: 增长率 | D27: =IFERROR(IF(VLOOKUP("其中：归母净利润*",INDIRECT(VLOOKUP(ptype_selector,table_names,2,0)),MATCH(D$26,header_a,0),0)>VLOOKUP("其中：归母净利润*",INDIRECT(VLOOKUP(ptype_selector,table_names,2,0)),MATCH(EOMONTH(D$26,-12),header_a,0),0),ABS(VLOOKUP("其中：归母净利润*",INDIRECT(VLOOKUP(ptype_selector,table_names,2,0)),MATCH(D$26,header_a,0),0)/VLOOKUP("其中：归母净利润*",INDIRECT(VLOOKUP(ptype_selector,table_names,2,0)),MATCH(EOMONTH(D$26,-12),header_a,0),0)-1),-1*ABS(VLOOKUP("其中：归母净利润*",INDIRECT(VLOOKUP(ptype_selector,table_names,2,0)),MATCH(D$26,header_a,0),0)/VLOOKUP("其中：归母净利润*",INDIRECT(VLOOKUP(ptype_selector,table_names,2,0)),MATCH(EOMONTH(D$26,-12),header_a,0),0)-1)),"--") -> 0.2814300821 | E27: 0.1035688396 | F27: 0.05541245096 | G27: 0.2097030024 | H27: 0.5270053615 | I27: 0.4451872524 | J27: 0.08855421316 | K27: -0.1026957621 | L27: -0.2902158089 | M27: -0.3727569624 | N27: -0.3390014369 | O27: -0.296579994
C28: 回归年限 | D28: =IFERROR(IF(pe_ttm<1/$E$25,"--",LN(price*$E$25/eps)/LN(1+D27)),0) -> -- | E28: -- | F28: -- | G28: -- | H28: -- | I28: -- | J28: -- | K28: -- | L28: -- | M28: -- | N28: -- | O28: --

Sheet 专题
A1: =stockname & "备查报表--专题分析" -> 福耀玻璃备查报表--专题分析
A2: 基准报告期 | B2: =base_date -> 2022-09-30 | C2: 列示方法 | D2: =ptype_selector -> 按TTM | E2: 间隔周期 | F2: =durationText -> 季度
A3: 报告期 | B3: =base_date -> 2022-09-30 | C3: =EOMONTH(B3,-1*duration) -> 2022-06-30 | D3: 2022-03-31 | E3: 2021-12-31 | F3: 2021-09-30 | G3: 2021-06-30 | H3: 2021-03-31 | I3: 2020-12-31 | J3: 2020-09-30 | K3: 2020-06-30 | L3: 2020-03-31 | M3: 2019-12-31
A4: 一、核心
A5: 资产总额 | B5: =IFERROR(VLOOKUP("资产合计*",bsa_a,MATCH(B$3,header_a,0),0),"--") -> 512.5666911 | C5: 482.4411033 | D5: 468.9066238 | E5: 447.8489395 | F5: 448.4037069 | G5: 443.2309131 | H5: 399.2281666 | I5: 384.2362518 | J5: 396.194197 | K5: 432.8874094 | L5: 417.420088 | M5: 388.2627961
A6: 资产总额-YoY% | B6: =IFERROR(IFERROR(VLOOKUP("资产合计*",bsa_a,MATCH(B$3,header_a,0),0),"--")/IFERROR(VLOOKUP("资产合计*",bsa_a,MATCH(EOMONTH(B$3,-12),header_a,0),0),"--")-1,"") -> 0.1430920022 | C6: 0.08846447538 | D6: 0.1745329188 | E6: 0.1655561842 | F6: 0.1317775735 | G6: 0.02389421225 | H6: -0.0435818062 | I6: -0.01037066716 | J6: -0.01220980698 | K6: 0.09687086647 | L6: 0.05779599616 | M6: 0.1257113886
A7: 上市公司权益总额 | B7: =IFERROR(VLOOKUP("归属于母公司所有者权益*",bsa_a,MATCH(B$3,header_a,0),0),"--") -> 284.6179067 | C7: =IFERROR(VLOOKUP("归属于母公司所有者权益*",bsa_a,MATCH(C$3,header_a,0),0),"--") -> 265.5284531 | D7: 271.5273522 | E7: 263.0601593 | F7: 258.2425455 | G7: 249.5476191 | H7: 225.2800447 | I7: 215.9451751 | J7: 209.9756095 | K7: 205.0603397 | L7: 218.6998505 | M7: 213.7036621
A8: 股东权益-YoY% | B8: =IFERROR(IFERROR(VLOOKUP("归属于母公司所有者权益*",bsa_a,MATCH(B$3,header_a,0),0),"--")/IFERROR(VLOOKUP("归属于母公司所有者权益*",bsa_a,MATCH(EOMONTH(B$3,-12),header_a,0),0),"--")-1,"") -> 0.1021340662 | C8: 0.06403921656 | D8: 0.2052880787 | E8: 0.2181803051 | F8: 0.2298692506 | G8: 0.2169472625 | H8: 0.03008778555 | I8: 0.01048888432 | J8: 0.005083629745 | K8: 0.0308010676 | L8: 0.05542222428 | M8: 0.0584154077
A9: 股东权益-QoQ% | B9: =IFERROR(IFERROR(VLOOKUP("归属于母公司所有者权益*",bsa_a,MATCH(B$3,header_a,0),0),"--")/IFERROR(VLOOKUP("归属于母公司所有者权益*",bsa_a,MATCH(EOMONTH(B$3,-3),header_a,0),0),"--")-1,"") -> 0.07189230916 | C9: -0.02209316701 | D9: 0.03218728744 | E9: 0.01865538369 | F9: 0.03484275451 | G9: 0.1077218109 | H9: 0.04322796097 | I9: 0.02842980475 | J9: 0.02396987051 | K9: -0.06236634703 | L9: 0.02337904901 | M9: 0.02292858154
A10: 投入资本总额 | B10: =IFERROR(VLOOKUP("已投入资本*",bsa_a,MATCH(B$3,header_a,0),0),"--") -> 420.8791944 | C10: 373.4619123 | D10: 368.0767725 | E10: 353.6414884 | F10: 360.4951518 | G10: 364.0810692 | H10: 328.2789147 | I10: 312.4362823 | J10: 329.7848072 | K10: 341.8818302 | L10: 346.6220593 | M10: 310.5368131
A11: 投入资本-YoY% | B11: =IFERROR(IFERROR(VLOOKUP("已投入资本*",bsa_a,MATCH(B$3,header_a,0),0),"--")/IFERROR(VLOOKUP("已投入资本*",bsa_a,MATCH(EOMONTH(B$3,-12),header_a,0),0),"--")-1,"") -> 0.1675030641 | C11: 0.02576580859 | D11: 0.1212318429 | E11: 0.13188355 | F11: 0.09312237531 | G11: 0.06493249119 | H11: -0.05291972652 | I11: 0.006116728098 | J11: -0.0125887599 | K11: 0.06051923488 | L11: 0.07778573342 | M11: 0.1380578053
A12: 投入资本-QoQ% | B12: =IFERROR(IFERROR(VLOOKUP("已投入资本*",bsa_a,MATCH(B$3,header_a,0),0),"--")/IFERROR(VLOOKUP("已投入资本*",bsa_a,MATCH(EOMONTH(B$3,-3),header_a,0),0),"--")-1,"") -> 0.1269668486 | C12: 0.0146304799 | D12: 0.04081897788 | E12: -0.01901180478 | F12: -0.009849227614 | G12: 0.1090601707 | H12: 0.05070676246 | I12: -0.0526055917 | J12: -0.03538363818 | K12: -0.01367549728 | L12: 0.1162027968 | M12: -0.070219328
A13: 现金流入总额 | B13: =IFERROR(VLOOKUP("经营活动现金流入*",INDIRECT(VLOOKUP(ptype_selector,table_names,3,0)),MATCH(B$3,header_a,0),0),0)+IFERROR(VLOOKUP("投资活动现金流入*",INDIRECT(VLOOKUP(ptype_selector,table_names,3,0)),MATCH(B$3,header_a,0),0),0)+IFERROR(VLOOKUP("筹资活动现金流入*",INDIRECT(VLOOKUP(ptype_selector,table_names,3,0)),MATCH(B$3,header_a,0),0),0) -> 441.9308652 | C13: 412.8381039 | D13: 413.1816947 | E13: 404.2459457 | F13: 409.2454432 | G13: 429.5651454 | H13: 382.1069339 | I13: 417.4538731 | J13: 412.9535774 | K13: 422.5530894 | L13: 441.5575182 | M13: 444.3729216
A14: 其中：自由现金流 | B14: =IFERROR(VLOOKUP("自由现金流*",INDIRECT(VLOOKUP(ptype_selector,table_names,3,0)),MATCH(B$3,header_a,0),0),0) -> 28.67524679 | C14: 31.05559943 | D14: 32.48266927 | E14: 36.67438568 | F14: 49.27409862 | G14: 54.13833138 | H14: 45.13055314 | I14: 38.59971579 | J14: 29.70667149 | K14: 26.43728221 | L14: 34.14306354 | M14: 27.59777797
A15: 其中：上市公司股利 | B15: =IFERROR(VLOOKUP("上市公司股利*",INDIRECT(VLOOKUP(ptype_selector,table_names,3,0)),MATCH(B$3,header_a,0),0),0) -> 25.94436651 | C15: 34.73393271 | D15: 19.54207151 | E15: 19.5886144 | F15: 19.77362538 | G15: 29.34040133 | H15: 18.67277325 | I15: 18.64461134 | J15: 18.69849401 | K15: 0.11268941 | L15: 18.98362771 | M15: 18.77392143
A16: 现金流出总额 | B16: =IFERROR(VLOOKUP("经营活动现金流出*",INDIRECT(VLOOKUP(ptype_selector,table_names,3,0)),MATCH(B$3,header_a,0),0),0)+IFERROR(VLOOKUP("投资活动现金流出*",INDIRECT(VLOOKUP(ptype_selector,table_names,3,0)),MATCH(B$3,header_a,0),0),0)+IFERROR(VLOOKUP("筹资活动现金流出*",INDIRECT(VLOOKUP(ptype_selector,table_names,3,0)),MATCH(B$3,header_a,0),0),0) -> 427.0809331 | C16: 398.9124154 | D16: 354.2393476 | E16: 346.5844551 | F16: 347.3097963 | G16: 389.0698343 | H16: 386.0228262 | I16: 409.1376525 | J16: 411.9803163 | K16: 391.1388774 | L16: 411.5279011 | M16: 425.5121147
A17: 营收总额 | B17: =IFERROR(VLOOKUP("一、营业总收入*",INDIRECT(VLOOKUP(ptype_selector,table_names,2,0)),MATCH(B$3,header_a,0),0),0) -> 268.9020114 | C17: 249.63594 | D17: 244.4485604 | E17: 236.0306336 | F17: 232.8316924 | G17: 233.2849475 | H17: 214.420626 | I17: 199.0659347 | J17: 192.4655884 | K17: 189.37782 | L17: 203.4087677 | M17: 211.0387752
A18: 同比/YoY | B18: =IFERROR(IF(VLOOKUP("一、营业总收入*",INDIRECT(VLOOKUP(ptype_selector,table_names,2,0)),MATCH(B$3,header_a,0),0)>VLOOKUP("一、营业总收入*",INDIRECT(VLOOKUP(ptype_selector,table_names,2,0)),MATCH(EOMONTH(B$3,-12),header_a,0),0),ABS(VLOOKUP("一、营业总收入*",INDIRECT(VLOOKUP(ptype_selector,table_names,2,0)),MATCH(B$3,header_a,0),0)/VLOOKUP("一、营业总收入*",INDIRECT(VLOOKUP(ptype_selector,table_names,2,0)),MATCH(EOMONTH(B$3,-12),header_a,0),0)-1),-1*ABS(VLOOKUP("一、营业总收入*",INDIRECT(VLOOKUP(ptype_selector,table_names,2,0)),MATCH(B$3,header_a,0),0)/VLOOKUP("一、营业总收入*",INDIRECT(VLOOKUP(ptype_selector,table_names,2,0)),MATCH(EOMONTH(B$3,-12),header_a,0),0)-1)),"--") -> 0.1549201424 | C18: 0.07009021674 | D18: 0.1400421919 | E18: 0.185690731 | F18: 0.2097315388 | G18: 0.2318493658 | H18: 0.0541365959 | I18: -0.0567328944 | J18: -0.0718387452 | K18: -0.07291228045 | L18: -0.003418082093 | M18: 0.04345574406
A19: 三年复合(CPG) | B19: =IFERROR(POWER(IFERROR(VLOOKUP("一、营业总收入*",INDIRECT(VLOOKUP(ptype_selector,table_names,2,0)),MATCH(EOMONTH(B$3,0),header_a,0),0),0)/IFERROR(VLOOKUP("一、营业总收入*",INDIRECT(VLOOKUP(ptype_selector,table_names,2,0)),MATCH(EOMONTH(B$3,-36),header_a,0),0),0),1/3)-1,"--") -> 0.09048944099 | C19: 0.06913597211 | D19: 0.0619651691 | E19: 0.05283435882 | F19: 0.04439376802 | G19: 0.05113501859 | H19: 0.03631736591 | I19: 0.02077728323 | J19: 0.01454993349 | K19: 0.02180915867 | L19: 0.05643866223 | M19: 0.08284286835
A20: 核心利润 | B20: =IFERROR(VLOOKUP("核心利润*",INDIRECT(VLOOKUP(ptype_selector,table_names,2,0)),MATCH(B$3,header_a,0),0),0) -> 51.11453698 | C20: 40.77050386 | D20: 35.13497567 | E20: 34.65656828 | F20: 37.90071228 | G20: 37.57596019 | H20: 32.31730036 | I20: 27.68376756 | J20: 23.83562015 | K20: 25.79546052 | L20: 30.75786133 | M20: 31.8320572
A21: 核心利润-YoY% | B21: =IFERROR(IF(VLOOKUP("核心利润*",INDIRECT(VLOOKUP(ptype_selector,table_names,2,0)),MATCH(B$3,header_a,0),0)>VLOOKUP("核心利润*",INDIRECT(VLOOKUP(ptype_selector,table_names,2,0)),MATCH(EOMONTH(B$3,-12),header_a,0),0),ABS(VLOOKUP("核心利润*",INDIRECT(VLOOKUP(ptype_selector,table_names,2,0)),MATCH(B$3,header_a,0),0)/VLOOKUP("核心利润*",INDIRECT(VLOOKUP(ptype_selector,table_names,2,0)),MATCH(EOMONTH(B$3,-12),header_a,0),0)-1),-1*ABS(VLOOKUP("核心利润*",INDIRECT(VLOOKUP(ptype_selector,table_names,2,0)),MATCH(B$3,header_a,0),0)/VLOOKUP("核心利润*",INDIRECT(VLOOKUP(ptype_selector,table_names,2,0)),MATCH(EOMONTH(B$3,-12),header_a,0),0)-1)),"--") -> 0.3486431759 | C21: 0.08501562312 | D21: 0.08718783062 | E21: 0.2518732577 | F21: 0.5900871067 | G21: 0.4566888682 | H21: 0.05070050265 | I21: -0.1303179877 | J21: -0.2856492245 | K21: -0.2703338953 | L21: -0.2276145788 | M21: -0.2160659054
A22: 三年复合(CPG) | B22: =IFERROR(POWER(IFERROR(VLOOKUP("核心利润*",INDIRECT(VLOOKUP(ptype_selector,table_names,2,0)),MATCH(EOMONTH(B$3,0),header_a,0),0),0)/IFERROR(VLOOKUP("核心利润*",INDIRECT(VLOOKUP(ptype_selector,table_names,2,0)),MATCH(EOMONTH(B$3,-36),header_a,0),0),0),1/3)-1,"--") -> 0.1527713259 | C22: 0.04867839764 | D22: -0.04088092106 | E22: -0.05143564463 | F22: -0.04376237688 | G22: -0.01721930201 | H22: -0.01352173455 | I22: -0.07552079695 | J22: -0.1375852778 | K22: -0.1121528415 | L22: -0.07941910502 | M22: -0.05692524109
A23: 归母净利润 | B23: =IFERROR(VLOOKUP("其中：归母净利润*",INDIRECT(VLOOKUP(ptype_selector,table_names,2,0)),MATCH(B$3,header_a,0),0),0) -> 44.51227594 | C23: 37.58818572 | D23: 31.62094135 | E23: 31.46167091 | F23: 34.73640627 | G23: 34.06057182 | H23: 29.96074314 | I23: 26.00776459 | J23: 22.74805783 | K23: 23.56827585 | L23: 27.52342766 | M23: 28.98433273
A24: 同比/YoY | B24: =IFERROR(IF(VLOOKUP("其中：归母净利润*",INDIRECT(VLOOKUP(ptype_selector,table_names,2,0)),MATCH(B$3,header_a,0),0)>VLOOKUP("其中：归母净利润*",INDIRECT(VLOOKUP(ptype_selector,table_names,2,0)),MATCH(EOMONTH(B$3,-12),header_a,0),0),ABS(VLOOKUP("其中：归母净利润*",INDIRECT(VLOOKUP(ptype_selector,table_names,2,0)),MATCH(B$3,header_a,0),0)/VLOOKUP("其中：归母净利润*",INDIRECT(VLOOKUP(ptype_selector,table_names,2,0)),MATCH(EOMONTH(B$3,-12),header_a,0),0)-1),-1*ABS(VLOOKUP("其中：归母净利润*",INDIRECT(VLOOKUP(ptype_selector,table_names,2,0)),MATCH(B$3,header_a,0),0)/VLOOKUP("其中：归母净利润*",INDIRECT(VLOOKUP(ptype_selector,table_names,2,0)),MATCH(EOMONTH(B$3,-12),header_a,0),0)-1)),"--") -> 0.2814300821 | C24: 0.1035688396 | D24: 0.05541245096 | E24: 0.2097030024 | F24: 0.5270053615 | G24: 0.4451872524 | H24: 0.08855421316 | I24: -0.1026957621 | J24: -0.2902158089 | K24: -0.3727569624 | L24: -0.3390014369 | M24: -0.296579994
A25: 三年复合(CPG) | B25: =IFERROR(POWER(IFERROR(VLOOKUP("其中：归母净利润*",INDIRECT(VLOOKUP(ptype_selector,table_names,2,0)),MATCH(EOMONTH(B$3,0),header_a,0),0),0)/IFERROR(VLOOKUP("其中：归母净利润*",INDIRECT(VLOOKUP(ptype_selector,table_names,2,0)),MATCH(EOMONTH(B$3,-36),header_a,0),0),0),1/3)-1,"--") -> 0.1157166985 | C25: 0.0001223520567 | D25: -0.08765814906 | E25: -0.08600378389 | F25: -0.06629243913 | G25: -0.02110830074 | H25: -0.002481186177 | I25: -0.06174323386 | J25: -0.09922256504 | K25: -0.08470742447 | L25: -0.054285398 | M25: -0.02676783075
A26: 股东权益回报率 | B26: =IFERROR(IFERROR(VLOOKUP("五、净利润*",INDIRECT(VLOOKUP(ptype_selector,table_names,2,0)),MATCH(B$3,header_a,0),0),"")/IFERROR(VLOOKUP("所有者权益（或股东权益）合计*",INDIRECT(VLOOKUP(ptype_selector,table_names,4,0)),MATCH(B$3,header_a,0),0),""),"--") -> 0.1563826026 | C26: 0.1415431277 | D26: 0.116403895 | E26: 0.1195317687 | F26: 0.1344304308 | G26: 0.1363859877 | H26: 0.1328991517 | I26: 0.1203493165 | J26: 0.1082818594 | K26: 0.1148622658 | L26: 0.1258285308 | M26: 0.135625023
A27: 投入资本回报率 | B27: =IFERROR(IFERROR(VLOOKUP("五、净利润*",INDIRECT(VLOOKUP(ptype_selector,table_names,2,0)),MATCH(B$3,header_a,0),0),"")/IFERROR(VLOOKUP("已投入资本*",INDIRECT(VLOOKUP(ptype_selector,table_names,4,0)),MATCH(B$3,header_a,0),0),""),"--") -> 0.105700535 | C27: 0.1005856589 | D27: 0.08583008291 | E27: 0.08887477562 | F27: 0.09625651622 | G27: 0.0934594577 | H27: 0.09118248426 | I27: 0.0831673875 | J27: 0.0689341164 | K27: 0.06888594268 | L27: 0.07938394864 | M27: 0.09332813535
A28: 每股净资产 | B28: =IFERROR(IFERROR(VLOOKUP("归属于母公司所有者权益*",bsa_a,MATCH(B$3,header_a,0),0),"--")/IFERROR(VLOOKUP("实收资本*",bsa_a,MATCH(B$3,header_a,0),0),"--"),"") -> 10.9059723 | C28: 10.17450373 | D28: 10.4043692 | E28: 10.07992379 | F28: 9.895322752 | G28: 9.56215107 | H28: 8.980246762 | I28: 8.608134653 | J28: 8.370172289 | K28: 8.174236889 | L28: 8.717943158 | M28: 8.518782133
A29: 每股净资产-YoY% | B29: =IFERROR(IF((IFERROR(IFERROR(VLOOKUP("归属于母公司所有者权益*",bsa_a,MATCH(B$3,header_a,0),0),"--")/IFERROR(VLOOKUP("实收资本*",bsa_a,MATCH(B$3,header_a,0),0),"--"),""))>(IFERROR(IFERROR(VLOOKUP("归属于母公司所有者权益*",bsa_a,MATCH(EOMONTH(B$3,-12),header_a,0),0),"--")/IFERROR(VLOOKUP("实收资本*",bsa_a,MATCH(EOMONTH(B$3,-12),header_a,0),0),"--"),"")),ABS((IFERROR(IFERROR(VLOOKUP("归属于母公司所有者权益*",bsa_a,MATCH(B$3,header_a,0),0),"--")/IFERROR(VLOOKUP("实收资本*",bsa_a,MATCH(B$3,header_a,0),0),"--"),""))/(IFERROR(IFERROR(VLOOKUP("归属于母公司所有者权益*",bsa_a,MATCH(EOMONTH(B$3,-12),header_a,0),0),"--")/IFERROR(VLOOKUP("实收资本*",bsa_a,MATCH(EOMONTH(B$3,-12),header_a,0),0),"--"),""))-1),-1*ABS((IFERROR(IFERROR(VLOOKUP("归属于母公司所有者权益*",bsa_a,MATCH(B$3,header_a,0),0),"--")/IFERROR(VLOOKUP("实收资本*",bsa_a,MATCH(B$3,header_a,0),0),"--"),""))/(IFERROR(IFERROR(VLOOKUP("归属于母公司所有者权益*",bsa_a,MATCH(EOMONTH(B$3,-12),header_a,0),0),"--")/IFERROR(VLOOKUP("实收资本*",bsa_a,MATCH(EOMONTH(B$3,-12),header_a,0),0),"--"),""))-1)),"") -> 0.1021340662 | C29: 0.06403921656 | D29: 0.158583887 | E29: 0.1709765473 | F29: 0.1822125531 | G29: 0.1697912844 | H29: 0.03008778555 | I29: 0.01048888432 | J29: 0.005083629745 | K29: 0.0308010676 | L29: 0.05542222428 | M29: 0.0584154077
A30: 每股净资产-QoQ% | B30: =IFERROR(IF((IFERROR(IFERROR(VLOOKUP("归属于母公司所有者权益*",bsa_a,MATCH(B$3,header_a,0),0),"--")/IFERROR(VLOOKUP("实收资本*",bsa_a,MATCH(B$3,header_a,0),0),"--"),""))>(IFERROR(IFERROR(VLOOKUP("归属于母公司所有者权益*",bsa_a,MATCH(EOMONTH(B$3,-3),header_a,0),0),"--")/IFERROR(VLOOKUP("实收资本*",bsa_a,MATCH(EOMONTH(B$3,-3),header_a,0),0),"--"),"")),ABS((IFERROR(IFERROR(VLOOKUP("归属于母公司所有者权益*",bsa_a,MATCH(B$3,header_a,0),0),"--")/IFERROR(VLOOKUP("实收资本*",bsa_a,MATCH(B$3,header_a,0),0),"--"),""))/(IFERROR(IFERROR(VLOOKUP("归属于母公司所有者权益*",bsa_a,MATCH(EOMONTH(B$3,-3),header_a,0),0),"--")/IFERROR(VLOOKUP("实收资本*",bsa_a,MATCH(EOMONTH(B$3,-3),header_a,0),0),"--"),""))-1),-1*ABS((IFERROR(IFERROR(VLOOKUP("归属于母公司所有者权益*",bsa_a,MATCH(B$3,header_a,0),0),"--")/IFERROR(VLOOKUP("实收资本*",bsa_a,MATCH(B$3,header_a,0),0),"--"),""))/(IFERROR(IFERROR(VLOOKUP("归属于母公司所有者权益*",bsa_a,MATCH(EOMONTH(B$3,-3),header_a,0),0),"--")/IFERROR(VLOOKUP("实收资本*",bsa_a,MATCH(EOMONTH(B$3,-3),header_a,0),0),"--"),""))-1)),"") -> 0.07189230916 | C30: -0.02209316701 | D30: 0.03218728744 | E30: 0.01865538369 | F30: 0.03484275451 | G30: 0.0647982537 | H30: 0.04322796097 | I30: 0.02842980475 | J30: 0.02396987051 | K30: -0.06236634703 | L30: 0.02337904901 | M30: 0.02292858154
A31: 基本每股收益 | B31: =IFERROR(VLOOKUP("六、基本每股收益*",INDIRECT(VLOOKUP(ptype_selector,table_names,2,0)),MATCH(B$3,header_a,0),0),0) -> 1.7 | C31: 1.44 | D31: 1.22 | E31: 1.23 | F31: 1.37 | G31: 1.36 | H31: 1.2 | I31: 1.04 | J31: 0.91 | K31: 0.94 | L31: 1.1 | M31: 1.16
A32: 同比/YoY | B32: =IFERROR(IF(VLOOKUP("六、基本每股收益*",INDIRECT(VLOOKUP(ptype_selector,table_names,2,0)),MATCH(B$3,header_a,0),0)>VLOOKUP("六、基本每股收益*",INDIRECT(VLOOKUP(ptype_selector,table_names,2,0)),MATCH(EOMONTH(B$3,-12),header_a,0),0),ABS(VLOOKUP("六、基本每股收益*",INDIRECT(VLOOKUP(ptype_selector,table_names,2,0)),MATCH(B$3,header_a,0),0)/VLOOKUP("六、基本每股收益*",INDIRECT(VLOOKUP(ptype_selector,table_names,2,0)),MATCH(EOMONTH(B$3,-12),header_a,0),0)-1),-1*ABS(VLOOKUP("六、基本每股收益*",INDIRECT(VLOOKUP(ptype_selector,table_names,2,0)),MATCH(B$3,header_a,0),0)/VLOOKUP("六、基本每股收益*",INDIRECT(VLOOKUP(ptype_selector,table_names,2,0)),MATCH(EOMONTH(B$3,-12),header_a,0),0)-1)),"--") -> 0.2408759124 | C32: 0.05882352941 | D32: 0.01666666667 | E32: 0.1826923077 | F32: 0.5054945055 | G32: 0.4468085106 | H32: 0.09090909091 | I32: -0.1034482759 | J32: -0.2890625 | K32: -0.3733333333 | L32: -0.3373493976 | M32: -0.2926829268
A34: 二、获利能力
A35: 毛利率 | B35: =IFERROR(1-IFERROR(VLOOKUP("其中：营业成本*",INDIRECT(VLOOKUP(ptype_selector,table_names,2,0)),MATCH(B$3,header_a,0),0)*1/VLOOKUP("一、营业总收入*",INDIRECT(VLOOKUP(ptype_selector,table_names,2,0)),MATCH(B$3,header_a,0),0),""),"--") -> 0.3186479356 | C35: 0.3285451041 | D35: 0.3476626336 | E35: 0.3590216234 | F35: 0.4113008622 | G35: 0.4136533684 | H35: 0.4078071625 | I35: 0.3950638736 | J35: 0.3790854265 | K35: 0.3668853363 | L35: 0.364539173 | M35: 0.3746384105
A36: 其中：四项费用 | B36: =IFERROR(VLOOKUP("小计：四项费用*",INDIRECT(VLOOKUP(ptype_selector,table_names,2,0)),MATCH(B$3,header_a,0),0)*1/VLOOKUP("一、营业总收入*",INDIRECT(VLOOKUP(ptype_selector,table_names,2,0)),MATCH(B$3,header_a,0),0),"") -> 0.1195564759 | C36: 0.1558893954 | D36: 0.1942669776 | E36: 0.2024869269 | F36: 0.2379112261 | G36: 0.2422367751 | H36: 0.2459032186 | I36: 0.2441832013 | J36: 0.2449875188 | K36: 0.2202952661 | L36: 0.2037189213 | M36: 0.213271189
A37: 管理费用 | B37: =IFERROR(VLOOKUP("其中：管理费用*",INDIRECT(VLOOKUP(ptype_selector,table_names,2,0)),MATCH(B$3,header_a,0),0)*1/VLOOKUP("一、营业总收入*",INDIRECT(VLOOKUP(ptype_selector,table_names,2,0)),MATCH(B$3,header_a,0),0),"") -> 0.0718617882 | C37: 0.07650643345 | D37: 0.07919525624 | E37: 0.08236977537 | F37: 0.09066737972 | G37: 0.09073975993 | H37: 0.09912940298 | I37: 0.1043184481 | J37: 0.1138006034 | K37: 0.1150868543 | L37: 0.1055735694 | M37: 0.1035526794
A38: 销售费用 | B38: =IFERROR(VLOOKUP("其中：销售费用*",INDIRECT(VLOOKUP(ptype_selector,table_names,2,0)),MATCH(B$3,header_a,0),0)*1/VLOOKUP("一、营业总收入*",INDIRECT(VLOOKUP(ptype_selector,table_names,2,0)),MATCH(B$3,header_a,0),0),"") -> 0.02799257343 | C38: 0.03599422915 | D38: 0.04215164226 | E38: 0.04876453448 | F38: 0.07869382036 | G38: 0.07413779032 | H38: 0.07354496807 | I38: 0.07406420764 | J38: 0.07347285521 | K38: 0.07401181183 | L38: 0.07113013295 | M38: 0.0702035519
A39: 财务费用 | B39: =IFERROR(VLOOKUP("其中：财务费用*",INDIRECT(VLOOKUP(ptype_selector,table_names,2,0)),MATCH(B$3,header_a,0),0)*1/VLOOKUP("一、营业总收入*",INDIRECT(VLOOKUP(ptype_selector,table_names,2,0)),MATCH(B$3,header_a,0),0),"") -> -0.02374190296 | C39: 2.21479327e-05 | D39: 0.03068209408 | E39: 0.02910373588 | F39: 0.02661513931 | G39: 0.03626715453 | H39: 0.03122958255 | I39: 0.02483023797 | J39: 0.01712036093 | K39: -0.008141529245 | L39: -0.01098902385 | M39: 0.0009850792575
A40: 研发费用 | B40: =IFERROR(VLOOKUP("其中：研发费用*",INDIRECT(VLOOKUP(ptype_selector,table_names,2,0)),MATCH(B$3,header_a,0),0)*1/VLOOKUP("一、营业总收入*",INDIRECT(VLOOKUP(ptype_selector,table_names,2,0)),MATCH(B$3,header_a,0),0),"") -> 0.04344401724 | C40: 0.04336658487 | D40: 0.04223798505 | E40: 0.04224888116 | F40: 0.04193488669 | G40: 0.04109207029 | H40: 0.04199926499 | I40: 0.04097030762 | J40: 0.04059369929 | K40: 0.0393381293 | L40: 0.03800424282 | M40: 0.03852987841
A41: 其中：减值 | B41: =IFERROR(VLOOKUP("小计：减值损失*",INDIRECT(VLOOKUP(ptype_selector,table_names,2,0)),MATCH(B$3,header_a,0),0)*1/VLOOKUP("一、营业总收入*",INDIRECT(VLOOKUP(ptype_selector,table_names,2,0)),MATCH(B$3,header_a,0),0),"") -> 0.0007845369728 | C41: 0.0009316319997 | D41: 0.0009709194424 | E41: 0.001034289051 | F41: 0.001609844674 | G41: 0.001472057172 | H41: 0.001566457464 | I41: 0.001856701854 | J41: 0.000315357101 | K41: 0.0003665283506 | L41: 0.0004626726324 | M41: 0.00115863125
A42: 其中：营业外 | B42: =IFERROR(VLOOKUP("非经常性损益*",INDIRECT(VLOOKUP(ptype_selector,table_names,2,0)),MATCH(B$3,header_a,0),0)*1/VLOOKUP("一、营业总收入*",INDIRECT(VLOOKUP(ptype_selector,table_names,2,0)),MATCH(B$3,header_a,0),0),"") -> 0.01312043659 | C42: 0.01850590836 | D42: 0.01901661774 | E42: 0.02179157523 | F42: 0.02452300149 | G42: 0.02293441295 | H42: 0.02590739993 | I42: 0.02792456253 | J42: 0.02166216285 | K42: 0.01925416662 | L42: 0.0167146182 | M42: 0.01621629355
A43: 净利率 | B43: =IFERROR(VLOOKUP("五、净利润*",INDIRECT(VLOOKUP(ptype_selector,table_names,2,0)),MATCH(B$3,header_a,0),0)*1/VLOOKUP("一、营业总收入*",INDIRECT(VLOOKUP(ptype_selector,table_names,2,0)),MATCH(B$3,header_a,0),0),"") -> 0.1654400269 | C43: 0.1504787834 | D43: 0.1292380689 | E43: 0.1331598676 | F43: 0.1490347258 | G43: 0.1458594721 | H43: 0.1396007816 | I43: 0.1305321747 | J43: 0.1181168253 | K43: 0.1243590836 | L43: 0.1352755245 | M43: 0.1373293684
A44: 息税折旧摊销前利润 | B44: =IFERROR(IFERROR(VLOOKUP("四、利润总额*",INDIRECT(VLOOKUP(ptype_selector,table_names,2,0)),MATCH(B$3,header_a,0),0),0)+IFERROR((1-IFERROR(IFERROR(VLOOKUP("减：所得税*",INDIRECT(VLOOKUP(ptype_selector,table_names,2,0)),MATCH(B$3,header_a,0),0),"")/IFERROR(VLOOKUP("四、利润总额*",INDIRECT(VLOOKUP(ptype_selector,table_names,2,0)),MATCH(B$3,header_a,0),0),""),"--"))*IFERROR(VLOOKUP("其中：财务费用*",INDIRECT(VLOOKUP(ptype_selector,table_names,2,0)),MATCH(B$3,header_a,0),0),0),"--")+IFERROR(VLOOKUP("总折旧和摊销*",INDIRECT(VLOOKUP(ptype_selector,table_names,3,0)),MATCH(B$3,header_a,0),0),0),"--") -> 69.23995193 | C44: 66.41961722 | D44: 65.93965431 | E44: 65.12819612 | F44: 67.75567295 | G44: 68.47657506 | H44: 62.19645161 | I44: 56.46146279 | J44: 47.73851198 | K44: 46.12166621 | L44: 49.49978618 | M44: 52.72376671
A45: 利润总额 | B45: =IFERROR(VLOOKUP("四、利润总额*",INDIRECT(VLOOKUP(ptype_selector,table_names,2,0)),MATCH(B$3,header_a,0),0),0) -> 53.2840467 | C45: 44.12415864 | D45: 38.49886875 | E45: 38.18842094 | F45: 41.31598734 | G45: 40.17234843 | H45: 35.27983685 | I45: 31.09595043 | J45: 24.44868845 | K45: 26.45169696 | L45: 31.24253109 | M45: 32.31138052
A46: % of EBITDA | B46: =IFERROR(B45/B44,"--") -> 0.7695563791 | C46: =IFERROR(C45/C44,"--") -> 0.6643241934 | D46: 0.583850024 | E46: 0.5863577254 | F46: 0.6097790124 | G46: 0.5866582608 | H46: 0.5672323088 | I46: 0.5507464542 | J46: 0.5121376314 | K46: 0.5735199774 | L46: 0.6311649706 | M46: 0.6128427943
A47: 财务费用*(1-税率) | B47: =IFERROR((1-IFERROR(IFERROR(VLOOKUP("减：所得税*",INDIRECT(VLOOKUP(ptype_selector,table_names,2,0)),MATCH(B$3,header_a,0),0),"")/IFERROR(VLOOKUP("四、利润总额*",INDIRECT(VLOOKUP(ptype_selector,table_names,2,0)),MATCH(B$3,header_a,0),0),""),"--"))*IFERROR(VLOOKUP("其中：财务费用*",INDIRECT(VLOOKUP(ptype_selector,table_names,2,0)),MATCH(B$3,header_a,0),0),0),"--") -> -5.330243127 | C47: 0.004707022245 | D47: 6.154637195 | E47: 5.653626822 | F47: 5.204539043 | G47: 7.166289254 | H47: 5.681468194 | I47: 4.130365788 | J47: 3.063905027 | K47: -1.372739681 | L47: -1.96866341 | M47: 0.1864676935
A48: % of EBITDA | B48: =IFERROR(B47/B44,"--") -> -0.07698218989 | C48: =IFERROR(C47/C44,"--") -> 7.086795199e-05 | D48: 0.0933374198 | E48: 0.08680766793 | F48: 0.07681333261 | G48: 0.1046531496 | H48: 0.09134714356 | I48: 0.07315371554 | J48: 0.0641809914 | K48: -0.02976344512 | L48: -0.03977114978 | M48: 0.003536691422
A49: 折旧和摊销 | B49: =IFERROR(VLOOKUP("总折旧和摊销*",INDIRECT(VLOOKUP(ptype_selector,table_names,3,0)),MATCH(B$3,header_a,0),0),0) -> 21.28614836 | C49: 22.29075156 | D49: 21.28614836 | E49: 21.28614836 | F49: 21.23514657 | G49: 21.13793738 | H49: 21.23514657 | I49: 21.23514657 | J49: 20.2259185 | K49: 21.04270893 | L49: 20.2259185 | M49: 20.2259185
A50: % of EBITDA | B50: =IFERROR(B49/B44,"--") -> 0.3074258108 | C50: =IFERROR(C49/C44,"--") -> 0.3356049386 | D50: 0.3228125562 | E50: 0.3268346066 | F50: 0.313407655 | G50: 0.3086885896 | H50: 0.3414205476 | I50: 0.3760998302 | J50: 0.4236813772 | K50: 0.4562434678 | L50: 0.4086061792 | M50: 0.3836205143
A51: % of Total Revenue | B51: =IFERROR(IFERROR(VLOOKUP("总折旧和摊销*",INDIRECT(VLOOKUP(ptype_selector,table_names,3,0)),MATCH(B$3,header_a,0),0),0)/IFERROR(VLOOKUP("一、营业总收入*",INDIRECT(VLOOKUP(ptype_selector,table_names,2,0)),MATCH(B$3,header_a,0),0),0),"--") -> 0.07915949847 | C51: 0.08929303833 | D51: 0.0870782316 | E51: 0.09018383773 | F51: 0.09120384922 | G51: 0.0906099498 | H51: 0.09903499943 | I51: 0.106673935 | J51: 0.1050884923 | K51: 0.1111149602 | L51: 0.09943484112 | M51: 0.09583982127
A52: EBITDA MARGIN | B52: =IFERROR(IFERROR(IFERROR(VLOOKUP("四、利润总额*",INDIRECT(VLOOKUP(ptype_selector,table_names,2,0)),MATCH(B$3,header_a,0),0),0)+IFERROR((1-IFERROR(IFERROR(VLOOKUP("减：所得税*",INDIRECT(VLOOKUP(ptype_selector,table_names,2,0)),MATCH(B$3,header_a,0),0),"")/IFERROR(VLOOKUP("四、利润总额*",INDIRECT(VLOOKUP(ptype_selector,table_names,2,0)),MATCH(B$3,header_a,0),0),""),"--"))*IFERROR(VLOOKUP("其中：财务费用*",INDIRECT(VLOOKUP(ptype_selector,table_names,2,0)),MATCH(B$3,header_a,0),0),0),"--")+IFERROR(VLOOKUP("总折旧和摊销*",INDIRECT(VLOOKUP(ptype_selector,table_names,3,0)),MATCH(B$3,header_a,0),0),0),"--")/IFERROR(VLOOKUP("一、营业总收入*",INDIRECT(VLOOKUP(ptype_selector,table_names,2,0)),MATCH(B$3,header_a,0),0),0),"--") -> 0.2574913872 | C52: 0.2660659247 | D52: 0.2697485892 | E52: 0.2759311159 | F52: 0.2910070886 | G52: 0.2935319051 | H52: 0.2900674846 | I52: 0.2836319679 | J52: 0.2480366094 | K52: 0.2435431256 | L52: 0.2433512908 | M52: 0.2498297607
A53: NET PROFIT MARGIN | B53: =IFERROR(VLOOKUP("五、净利润*",INDIRECT(VLOOKUP(ptype_selector,table_names,2,0)),MATCH(B$3,header_a,0),0)*1/VLOOKUP("一、营业总收入*",INDIRECT(VLOOKUP(ptype_selector,table_names,2,0)),MATCH(B$3,header_a,0),0),"--") -> 0.1654400269 | C53: 0.1504787834 | D53: 0.1292380689 | E53: 0.1331598676 | F53: 0.1490347258 | G53: 0.1458594721 | H53: 0.1396007816 | I53: 0.1305321747 | J53: 0.1181168253 | K53: 0.1243590836 | L53: 0.1352755245 | M53: 0.1373293684
A55: 三、营运报表
A56: 总资产周转天数 | B56: =IFERROR(((VLOOKUP("资产合计*",bsa_a,MATCH(EOMONTH(B$3,0),header_a,0),0))+(VLOOKUP("资产合计*",bsa_a,MATCH(EOMONTH(B$3,-12),header_a,0),0)))/2*360/IFERROR(VLOOKUP("一、营业总收入*",INDIRECT(VLOOKUP(ptype_selector,table_names,2,0)),MATCH(B$3,header_a,0),0),0),"--") -> 643.2628404 | C56: 667.4558276 | D56: 639.2521273 | E56: 634.5588797 | F56: 652.9507264 | G56: 676.0028873 | H56: 685.5529181 | I56: 698.5114196 | J56: 745.6471411 | K56: 786.564843 | L56: 718.5824078 | M56: 625.33576
A57: 流动资产周转天数 | B57: =IFERROR(((VLOOKUP("流动资产合计*",bsa_a,MATCH(EOMONTH(B$3,0),header_a,0),0))+(VLOOKUP("流动资产合计*",bsa_a,MATCH(EOMONTH(B$3,-12),header_a,0),0)))/2*360/IFERROR(VLOOKUP("一、营业总收入*",INDIRECT(VLOOKUP(ptype_selector,table_names,2,0)),MATCH(B$3,header_a,0),0),0),"--") -> 367.6236429 | C57: 375.9915743 | D57: 346.2049458 | E57: 329.7746975 | F57: 338.9653911 | G57: 360.6137968 | H57: 343.3560652 | I57: 328.5403987 | J57: 361.5118145 | K57: 394.9589907 | L57: 358.3224708 | M57: 284.4970356
A58: 存货周转天数【按成本】 | B58: =IFERROR(((VLOOKUP("存货*",bsa_a,MATCH(EOMONTH(B$3,0),header_a,0),0))+(VLOOKUP("存货*",bsa_a,MATCH(EOMONTH(B$3,-12),header_a,0),0)))/2*360/IFERROR(VLOOKUP("其中：营业成本*",INDIRECT(VLOOKUP(ptype_selector,table_names,2,0)),MATCH(B$3,header_a,0),0),0),"--") -> 91.26085724 | C58: 89.40904358 | D58: 88.43123872 | E58: 90.51768368 | F58: 95.76422673 | G58: 91.28972472 | H58: 94.93683131 | I58: 98.07677682 | J58: 103.2447463 | K58: 104.4917966 | L58: 97.93636542 | M58: 88.95564401
A59: 应收周转天数 | B59: =IFERROR(((VLOOKUP("应收账款*",bsa_a,MATCH(EOMONTH(B$3,0),header_a,0),0)+VLOOKUP("应收票据*",bsa_a,MATCH(EOMONTH(B$3,0),header_a,0),0))+(VLOOKUP("应收账款*",bsa_a,MATCH(EOMONTH(B$3,-12),header_a,0),0)+VLOOKUP("应收票据*",bsa_a,MATCH(EOMONTH(B$3,-12),header_a,0),0)))/2*360/IFERROR(VLOOKUP("一、营业总收入*",INDIRECT(VLOOKUP(ptype_selector,table_names,2,0)),MATCH(B$3,header_a,0),0),0),"--") -> 61.86667265 | C59: 59.16853621 | D59: 60.70089135 | E59: 61.80250784 | F59: 59.31318157 | G59: 56.05525785 | H59: 53.64208041 | I59: 65.38767413 | J59: 74.48394314 | K59: 70.41446636 | L59: 59.42155461 | M59: 66.37067565
A60: 应付周转天数 | B60: =IFERROR(((VLOOKUP("应付账款*",bsa_a,MATCH(EOMONTH(B$3,0),header_a,0),0)+VLOOKUP("应付票据*",bsa_a,MATCH(EOMONTH(B$3,0),header_a,0),0))+(VLOOKUP("应付账款*",bsa_a,MATCH(EOMONTH(B$3,-12),header_a,0),0)+VLOOKUP("应付票据*",bsa_a,MATCH(EOMONTH(B$3,-12),header_a,0),0)))/2*360/IFERROR(VLOOKUP("一、营业总收入*",INDIRECT(VLOOKUP(ptype_selector,table_names,2,0)),MATCH(B$3,header_a,0),0),0),"--") -> 45.75316874 | C60: 41.99076052 | D60: 44.35441894 | E60: 42.81482703 | F60: 38.84393221 | G60: 34.57453051 | H60: 38.26356764 | I60: 41.26263494 | J60: 39.53231188 | K60: 37.60661168 | L60: 16.86382876 | M60: 38.91609609
A61: *现金周转天数 | B61: =IFERROR(((VLOOKUP("货币资金*",bsa_a,MATCH(EOMONTH(B$3,0),header_a,0),0))+(VLOOKUP("货币资金*",bsa_a,MATCH(EOMONTH(B$3,-12),header_a,0),0)))/2*360/(IFERROR(VLOOKUP("经营活动现金流入*",INDIRECT(VLOOKUP(ptype_selector,table_names,3,0)),MATCH(B$3,header_a,0),0),0)+IFERROR(VLOOKUP("投资活动现金流入*",INDIRECT(VLOOKUP(ptype_selector,table_names,3,0)),MATCH(B$3,header_a,0),0),0)+IFERROR(VLOOKUP("筹资活动现金流入*",INDIRECT(VLOOKUP(ptype_selector,table_names,3,0)),MATCH(B$3,header_a,0),0),0)),"--") -> 133.7222512 | C61: 140.2136386 | D61: 116.9586492 | E61: 103.024449 | F61: 108.0231317 | G61: 112.962448 | H61: 104.282411 | I61: 74.01788137 | J61: 81.83266659 | K61: 85.80773967 | L61: 80.18602426 | M61: 59.6342105
A63: 四、财务风险评估
A64: 即期债务 | B64: =IFERROR((IFERROR(VLOOKUP("短期借款*",bsa_a,MATCH(B$3,header_a,0),0)+VLOOKUP("一年内到期的非流动负债*",bsa_a,MATCH(B$3,header_a,0),0)+VLOOKUP("其他流动负债*",bsa_a,MATCH(B$3,header_a,0),0),0)),"--") -> 112.6478187 | C64: 81.80638835 | D64: 78.2860177 | E64: 67.3232625 | F64: 76.97114201 | G64: 79.37428412 | H64: 67.82968074 | I64: 64.68936006 | J64: 90.00161453 | K64: 117.3742619 | L64: 109.0134001 | M64: 84.91599785
A65: + 财务费用 | B65: =IFERROR(VLOOKUP("其中：财务费用*",INDIRECT(VLOOKUP(ptype_selector,table_names,2,0)),MATCH(B$3,header_a,0),0),0) -> -6.38424546 | C65: 0.00552892 | D65: 7.50019373 | E65: 6.86937322 | F65: 6.19684793 | G65: 8.46058124 | H65: 6.69626664 | I65: 4.94285453 | J65: 3.29508034 | K65: -1.54182506 | L65: -2.2352638 | M65: 0.20788992
A66: - 可用资金 | B66: =IFERROR(VLOOKUP("货币资金*",bsa_a,MATCH(B$3,header_a,0),0),"--") -> 176.0057443 | C66: 169.3211069 | D66: 162.0168878 | E66: 143.2735626 | F66: 152.3053121 | G66: 152.265186 | H66: 106.4562949 | I66: 88.09985853 | J66: 93.29454561 | K66: 117.3166497 | L66: 114.916107 | M66: 83.56153735
A67: 现金敞口 | B67: =IFERROR(B64+B65-B66,"--") -> -69.74217104 | C67: =IFERROR(C64+C65-C66,"--") -> -87.50918961 | D67: -76.23067634 | E67: -69.0809269 | F67: -69.13732221 | G67: -64.43032064 | H67: -31.93034749 | I67: -18.46764394 | J67: 0.00214926 | K67: -1.48421277 | L67: -8.13797075 | M67: 1.56235042
A68: - 短期金融资产 | B68: =IFERROR(IFERROR(VLOOKUP("交易性金融资产*",bsa_a,MATCH(B$3,header_a,0),0),"--")+IFERROR(VLOOKUP("其他流动资产*",bsa_a,MATCH(B$3,header_a,0),0),"--")+IFERROR(VLOOKUP("一年内到期非流动资产*",bsa_a,MATCH(B$3,header_a,0),0),"--"),"--") -> 1.19927752 | C68: 1.165647 | D68: 1.04977829 | E68: 1.64856547 | F68: 1.21924485 | G68: 1.32199905 | H68: 4.41196268 | I68: 5.53092271 | J68: 9.82532562 | K68: 23.61024702 | L68: 17.1489674 | M68: 11.81298817
A69: - 经营现金流 | B69: =IFERROR(VLOOKUP("经营活动现金流量净额*",INDIRECT(VLOOKUP(ptype_selector,table_names,3,0)),MATCH(B$3,header_a,0),0),0) -> 53.77269383 | C69: 54.08838083 | D69: 52.60225768 | E69: 56.77009641 | F69: 68.86855818 | G69: 71.13276748 | H69: 61.65532851 | I69: 52.77762139 | J69: 45.62629574 | K69: 44.77547638 | L69: 52.54588961 | M69: 51.26914831
A70: 短期债务敞口 | B70: =IFERROR(B67-B68-B69,"--") -> -124.7141424 | C70: =IFERROR(C67-C68-C69,"--") -> -142.7632174 | D70: -129.8827123 | E70: -127.4995888 | F70: -139.2251252 | G70: -136.8850872 | H70: -97.99763868 | I70: -76.77618804 | J70: -55.4494721 | K70: -69.86993617 | L70: -77.83282776 | M70: -61.51978606
A71: + 长期债务 | B71: =IFERROR((IFERROR(VLOOKUP("其他非流动负债*",bsa_a,MATCH(B$3,header_a,0),0),0)+IFERROR(VLOOKUP("长期借款*",bsa_a,MATCH(B$3,header_a,0),0)+VLOOKUP("应付债券*",bsa_a,MATCH(B$3,header_a,0),0),0)),"--") -> 23.755 | C71: 26.26 | D71: 18.39038713 | E71: 23.37718297 | F71: 25.39787548 | G71: 35.21767066 | H71: 35.2161411 | I71: 31.83784928 | J71: 29.83644425 | K71: 19.47198072 | L71: 18.92830435 | M71: 11.93
A72: - 长期金融资产 | B72: =IFERROR(IFERROR(VLOOKUP("投资性房地产*",bsa_a,MATCH(B$3,header_a,0),0),"--")+IFERROR(VLOOKUP("长期股权投资*",bsa_a,MATCH(B$3,header_a,0),0),"--"),"--") -> 2.44079132 | C72: 2.43430082 | D72: 2.38582556 | E72: 2.2882395 | F72: 2.1898656 | G72: 2.12997904 | H72: 2.09663579 | I72: 2.06748905 | J72: 2.01704964 | K72: 1.971042 | L72: 2.00702746 | M72: 1.99805151
A73: - PPE | B73: =IFERROR(IFERROR(VLOOKUP("固定资产*",bsa_a,MATCH(B$3,header_a,0),0),0)+IFERROR(VLOOKUP("无形资产*",bsa_a,MATCH(B$3,header_a,0),0),0)+IFERROR(VLOOKUP("长期待摊费用*",bsa_a,MATCH(B$3,header_a,0),0),0),"--") -> 164.1375595 | C73: 162.2834923 | D73: 158.8915611 | E73: 161.8205211 | F73: 159.5405534 | G73: 156.1112541 | H73: 157.2243852 | I73: 159.6232116 | J73: 161.7964019 | K73: 162.2974242 | L73: 161.6223498 | M73: 163.9630332
A74: - 在建工程 | B74: =IFERROR(VLOOKUP("在建工程*",bsa_a,MATCH(B$3,header_a,0),0),"--") -> 28.06117559 | C74: 24.24647735 | D74: 22.73446687 | E74: 19.76816816 | F74: 23.15187114 | G74: 25.73105647 | H74: 25.64305851 | I74: 23.54298463 | J74: 25.55665573 | K74: 29.21614092 | L74: 30.81267675 | M74: 29.01032823
A75: - 其他资产 | B75: ='资产负债 '!B17 -> 22.27632608 | C75: ='资产负债 '!C17 -> 21.51983143 | D75: ='资产负债 '!D17 -> 22.23667745 | E75: ='资产负债 '!E17 -> 22.40241942 | F75: ='资产负债 '!F17 -> 22.0853054 | G75: ='资产负债 '!G17 -> 21.46263873 | H75: ='资产负债 '!H17 -> 19.13608763 | I75: ='资产负债 '!I17 -> 21.26680667 | J75: ='资产负债 '!J17 -> 18.56497943 | K75: ='资产负债 '!K17 -> 0 | L75: ='资产负债 '!L17 -> 0 | M75: ='资产负债 '!M17 -> 0
A76: 总债务敞口 | B76: =IFERROR(B70+B71-B72-B73-B74-B75,"--") -> -317.8749949 | C76: =IFERROR(C70+C71-C72-C73-C74-C75,"--") -> -326.9873193 | D76: -317.7408562 | E76: -310.401754 | F76: -320.7948453 | G76: -307.1023449 | H76: -266.8816647 | I76: -251.4388307 | J76: -233.5481146 | K76: -243.8825626 | L76: -253.3465774 | M76: -244.561199
A77: 净债务=金融债务-现金 | B77: =IFERROR(IFERROR((IFERROR(VLOOKUP("短期借款*",bsa_a,MATCH(B$3,header_a,0),0)+VLOOKUP("一年内到期的非流动负债*",bsa_a,MATCH(B$3,header_a,0),0)+VLOOKUP("其他流动负债*",bsa_a,MATCH(B$3,header_a,0),0),0)+IFERROR(VLOOKUP("长期借款*",bsa_a,MATCH(B$3,header_a,0),0)+VLOOKUP("应付债券*",bsa_a,MATCH(B$3,header_a,0),0),0)),"--")-IFERROR(VLOOKUP("货币资金*",bsa_a,MATCH(B$3,header_a,0),0),"--"),"--") -> -39.60292558 | C77: -61.25471853 | D77: -65.34048294 | E77: -52.57311715 | F77: -49.93629466 | G77: -37.67323122 | H77: -3.41047303 | I77: 8.42735081 | J77: 26.54351317 | K77: 19.52959301 | L77: 13.0255974 | M77: 13.2844605
A78: 融资成本率 | B78: =IFERROR(IFERROR(VLOOKUP("财务费用--利息支出*",INDIRECT(VLOOKUP(ptype_selector,table_names,2,0)),MATCH(B$3,header_a,0),0),0)/(IFERROR((IFERROR(VLOOKUP("短期借款*",bsa_a,MATCH(B$3,header_a,0),0)+VLOOKUP("一年内到期的非流动负债*",bsa_a,MATCH(B$3,header_a,0),0)+VLOOKUP("其他流动负债*",bsa_a,MATCH(B$3,header_a,0),0),0)+IFERROR(VLOOKUP("长期借款*",bsa_a,MATCH(B$3,header_a,0),0)+VLOOKUP("应付债券*",bsa_a,MATCH(B$3,header_a,0),0),0)),"--")-IFERROR(VLOOKUP("货币资金*",bsa_a,MATCH(B$3,header_a,0),0),"--")),"--") -> -0.07947211838 | C78: -0.05192097093 | D78: -0.05061383542 | E78: -0.06066613667 | F78: -0.07036127418 | G78: -0.09342226499 | H78: -1.010454336 | I78: 0.4209536437 | J78: 0.1321297018 | K78: 0.1972381794 | L78: 0.3116765731 | M78: 0.3257034939
A79: *现金存款利率 | B79: =IFERROR(IFERROR(VLOOKUP("财务费用--利息收入*",INDIRECT(VLOOKUP(ptype_selector,table_names,2,0)),MATCH(B$3,header_a,0),0),0)/IFERROR(VLOOKUP("货币资金*",bsa_a,MATCH(B$3,header_a,0),0),"--"),"") -> 0.01262798432 | C79: 0.01028059751 | D79: 0.01127640591 | E79: 0.01178428985 | F79: 0.01191837379 | G79: 0.01544441538 | H79: 0.02301732925 | I79: 0.03295008288 | J79: 0.03536077161 | K79: 0.02631131863 | L79: 0.02606307103 | M79: 0.03403735834
A80: 利息覆盖倍数 | B80: =IFERROR(IFERROR(IFERROR(VLOOKUP("四、利润总额*",INDIRECT(VLOOKUP(ptype_selector,table_names,2,0)),MATCH(B$3,header_a,0),0),"")+IFERROR(VLOOKUP("财务费用--利息支出*",INDIRECT(VLOOKUP(ptype_selector,table_names,2,0)),MATCH(B$3,header_a,0),0),"")*IFERROR(IFERROR(VLOOKUP("减：所得税*",INDIRECT(VLOOKUP(ptype_selector,table_names,2,0)),MATCH(B$3,header_a,0),0),"")/IFERROR(VLOOKUP("四、利润总额*",INDIRECT(VLOOKUP(ptype_selector,table_names,2,0)),MATCH(B$3,header_a,0),0),""),"--"),"--")/IFERROR(VLOOKUP("其中：财务费用*",INDIRECT(VLOOKUP(ptype_selector,table_names,2,0)),MATCH(B$3,header_a,0),0),0),"--") -> -8.427566408 | C80: 8066.121313 | D80: 5.212155755 | E80: 5.641400359 | F80: 6.758052144 | G80: 4.811816117 | H80: 5.346574244 | I80: 6.409065762 | J80: 7.494428693 | K80: -17.43007558 | L80: -14.1937346 | M80: 157.5701193
A81: 供应链占款 | B81: =IFERROR(IFERROR(IFERROR(VLOOKUP("应收账款*",bsa_a,MATCH(B$3,header_a,0),0),0)+IFERROR(VLOOKUP("应收票据*",bsa_a,MATCH(B$3,header_a,0),0),0)+IFERROR(VLOOKUP("合同资产*",bsa_a,MATCH(B$3,header_a,0),0),0)+IFERROR(VLOOKUP("预付款项*",bsa_a,MATCH(B$3,header_a,0),0),0)+IFERROR(VLOOKUP("存货*",bsa_a,MATCH(B$3,header_a,0),0),0)+IFERROR(VLOOKUP("递延所得税资产*",bsa_a,MATCH(B$3,header_a,0),0),0)+IFERROR(VLOOKUP("其他应收款*",bsa_a,MATCH(B$3,header_a,0),0),0),"--")-IFERROR(IFERROR(VLOOKUP("应付账款*",bsa_a,MATCH(B$3,header_a,0),0),0)+IFERROR(VLOOKUP("应付票据*",bsa_a,MATCH(B$3,header_a,0),0),0)+IFERROR(VLOOKUP("预收款项*",bsa_a,MATCH(B$3,header_a,0),0),0)+IFERROR(VLOOKUP("应付职工薪酬*",bsa_a,MATCH(B$3,header_a,0),0),0)+IFERROR(VLOOKUP("应交税费*",bsa_a,MATCH(B$3,header_a,0),0),0),"--"),"--") -> 66.71507493 | C81: 61.38001487 | D81: 57.88163665 | E81: 55.11555415 | F81: 50.18854824 | G81: 49.7176745 | H81: 50.11428913 | I81: 49.97873176 | J81: 55.46158013 | K81: 56.04347042 | L81: 47.66660095 | M81: 50.55264442
A82: 资产负债率 | B82: =IFERROR(IFERROR(VLOOKUP("负债合计*",bsa_a,MATCH(B$3,header_a,0),0),"--")/IFERROR(VLOOKUP("资产合计*",bsa_a,MATCH(B$3,header_a,0),0),"--"),"--") -> 0.4449963672 | C82: 0.4498903138 | D82: 0.4212059419 | E82: 0.4128800591 | F82: 0.4243443344 | G82: 0.4371125591 | H82: 0.4358286522 | I82: 0.4380825028 | J82: 0.4700913086 | K82: 0.5263535435 | L82: 0.4761144442 | M82: 0.4496232516
A83: 有息负债率 | B83: =IFERROR(IFERROR((IFERROR(VLOOKUP("短期借款*",bsa_a,MATCH(B$3,header_a,0),0)+VLOOKUP("一年内到期的非流动负债*",bsa_a,MATCH(B$3,header_a,0),0)+VLOOKUP("其他流动负债*",bsa_a,MATCH(B$3,header_a,0),0),0)+IFERROR(VLOOKUP("长期借款*",bsa_a,MATCH(B$3,header_a,0),0)+VLOOKUP("应付债券*",bsa_a,MATCH(B$3,header_a,0),0),0)),"--")/IFERROR(VLOOKUP("资产合计*",bsa_a,MATCH(B$3,header_a,0),0),"--"),"--") -> 0.2661172119 | C83: 0.2239991319 | D83: 0.2061741079 | E83: 0.2025246405 | F83: 0.228296546 | G83: 0.2585378217 | H83: 0.2581126044 | I83: 0.2512183816 | J83: 0.3024730289 | K83: 0.3161243309 | L83: 0.3065058633 | M83: 0.2494341431
A85: 五、现金流分析
A86: 自由现金流 | B86: =IFERROR(VLOOKUP("自由现金流*",INDIRECT(VLOOKUP(ptype_selector,table_names,3,0)),MATCH(B$3,header_a,0),0),0) -> 28.67524679 | C86: 31.05559943 | D86: 32.48266927 | E86: 36.67438568 | F86: 49.27409862 | G86: 54.13833138 | H86: 45.13055314 | I86: 38.59971579 | J86: 29.70667149 | K86: 26.43728221 | L86: 34.14306354 | M86: 27.59777797
A87: % of Total Cash Recieved | B87: =IFERROR(IFERROR(VLOOKUP("自由现金流*",INDIRECT(VLOOKUP(ptype_selector,table_names,3,0)),MATCH(B$3,header_a,0),0),0)/(IFERROR(VLOOKUP("经营活动现金流入*",INDIRECT(VLOOKUP(ptype_selector,table_names,3,0)),MATCH(B$3,header_a,0),0),0)+IFERROR(VLOOKUP("投资活动现金流入*",INDIRECT(VLOOKUP(ptype_selector,table_names,3,0)),MATCH(B$3,header_a,0),0),0)+IFERROR(VLOOKUP("筹资活动现金流入*",INDIRECT(VLOOKUP(ptype_selector,table_names,3,0)),MATCH(B$3,header_a,0),0),0)),"--") -> 0.06488627306 | C87: 0.07522464408 | D87: 0.07861594471 | E87: 0.09072295238 | F87: 0.1204023146 | G87: 0.1260305496 | H87: 0.1181097466 | I87: 0.09246462489 | J87: 0.07193707263 | K87: 0.06256558731 | L87: 0.07732415853 | M87: 0.06210499476
A88: 支付利息 | B88: =IFERROR(VLOOKUP("利息费用*",INDIRECT(VLOOKUP(ptype_selector,table_names,3,0)),MATCH(B$3,header_a,0),0),0) -> 3.14732839 | C88: 3.18040446 | D88: 3.30713245 | E88: 3.18940791 | F88: 3.51358132 | G88: 3.51951859 | H88: 3.44612726 | I88: 3.54752403 | J88: 3.50718648 | K88: 3.85198137 | L88: 4.05977356 | M88: 4.3267952
A89: % of Total FCF | B89: =IFERROR(B88/B86,"--") -> 0.109757674 | C89: =IFERROR(C88/C86,"--") -> 0.1024100168 | D89: 0.1018122132 | E89: 0.08696554423 | F89: 0.07130686138 | G89: 0.06500973525 | H89: 0.07635907429 | I89: 0.09190544431 | J89: 0.118060567 | K89: 0.1457026233 | L89: 0.118904783 | M89: 0.1567805642
A90: 支付少数股东股利 | B90: =IFERROR(VLOOKUP("少数股东股利*",INDIRECT(VLOOKUP(ptype_selector,table_names,3,0)),MATCH(B$3,header_a,0),0),0) -> 0 | C90: 0 | D90: 0 | E90: 0 | F90: 0 | G90: 0 | H90: 0 | I90: 0 | J90: 0 | K90: 0 | L90: 0 | M90: 0
A91: % of Total FCF | B91: =IFERROR(B90/B86,"--") -> 0 | C91: =IFERROR(C90/C86,"--") -> 0 | D91: 0 | E91: 0 | F91: 0 | G91: 0 | H91: 0 | I91: 0 | J91: 0 | K91: 0 | L91: 0 | M91: 0
A92: 支付上市公司股利 | B92: =IFERROR(VLOOKUP("上市公司股利*",INDIRECT(VLOOKUP(ptype_selector,table_names,3,0)),MATCH(B$3,header_a,0),0),0) -> 25.94436651 | C92: 34.73393271 | D92: 19.54207151 | E92: 19.5886144 | F92: 19.77362538 | G92: 29.34040133 | H92: 18.67277325 | I92: 18.64461134 | J92: 18.69849401 | K92: 0.11268941 | L92: 18.98362771 | M92: 18.77392143
A93: % of Total FCF | B93: =IFERROR(B92/B86,"--") -> 0.9047652388 | C93: =IFERROR(C92/C86,"--") -> 1.11844348 | D93: 0.6016153213 | E93: 0.5341224955 | F93: 0.4012985713 | G93: 0.54195245 | H93: 0.4137501526 | I93: 0.4830245757 | J93: 0.6294375328 | K93: 0.004262518708 | L93: 0.5560024714 | M93: 0.6802693119
A94: 资本性开支 | B94: =IFERROR(VLOOKUP("资本化开支*",INDIRECT(VLOOKUP(ptype_selector,table_names,3,0)),MATCH(B$3,header_a,0),0),0) -> 28.24477543 | C94: 26.21318586 | D94: 23.42672086 | E94: 23.28511864 | F94: 23.10804088 | G94: 20.51395469 | H94: 19.97090263 | I94: 17.72542963 | J94: 19.42681073 | K94: 22.19017554 | L94: 22.46259963 | M94: 27.99816554
A95: % of OCF | B95: =IFERROR(IFERROR(VLOOKUP("资本化开支*",INDIRECT(VLOOKUP(ptype_selector,table_names,3,0)),MATCH(B$3,header_a,0),0),0)/IFERROR(VLOOKUP("经营活动现金流量净额*",INDIRECT(VLOOKUP(ptype_selector,table_names,3,0)),MATCH(B$3,header_a,0),0),0),"--") -> 0.5252624226 | C95: 0.4846361725 | D95: 0.4453558059 | E95: 0.4101652122 | F95: 0.3355383282 | G95: 0.2883896609 | H95: 0.3239120302 | I95: 0.3358512408 | J95: 0.4257810198 | K95: 0.4955877041 | L95: 0.4274853808 | M95: 0.5461016315
A96: % of STOCK CASH PREV. | B96: =IFERROR(IFERROR(VLOOKUP("资本化开支*",INDIRECT(VLOOKUP(ptype_selector,table_names,3,0)),MATCH(B$3,header_a,0),0),0)/IFERROR(VLOOKUP("货币资金*",INDIRECT(VLOOKUP(ptype_selector,table_names,4,0)),MATCH(EOMONTH(B$3,-3),header_a,0),0),0),"--") -> 0.1668118993 | C96: 0.1617929231 | D96: 0.1635104232 | E96: 0.1528844813 | F96: 0.1517618143 | G96: 0.1926983718 | H96: 0.2266848433 | I96: 0.1899942758 | J96: 0.1655929554 | K96: 0.1930989146 | L96: 0.2688150594 | M96: 0.2964498706
A97: 净借款 | B97: =IFERROR(IFERROR(VLOOKUP("取得借款*",INDIRECT(VLOOKUP(ptype_selector,table_names,3,0)),MATCH(B$3,header_a,0),0),0)+IFERROR(VLOOKUP("发行债券*",INDIRECT(VLOOKUP(ptype_selector,table_names,3,0)),MATCH(B$3,header_a,0),0),0)-IFERROR(VLOOKUP("偿还债务*",INDIRECT(VLOOKUP(ptype_selector,table_names,3,0)),MATCH(B$3,header_a,0),0),0),"--") -> -15.07785224 | C97: -6.27330275 | D97: -14.55104543 | E97: -10.31591732 | F97: -18.7375391 | G97: -42.5028708 | H97: -42.55544527 | I97: -39.02291404 | J97: -38.72255403 | K97: -14.94339886 | L97: -18.33479301 | M97: 5.81810545
A98: % of Total Cash Recieved | B98: =IFERROR(IFERROR(IFERROR(VLOOKUP("取得借款*",INDIRECT(VLOOKUP(ptype_selector,table_names,3,0)),MATCH(B$3,header_a,0),0),0)+IFERROR(VLOOKUP("发行债券*",INDIRECT(VLOOKUP(ptype_selector,table_names,3,0)),MATCH(B$3,header_a,0),0),0)-IFERROR(VLOOKUP("偿还债务*",INDIRECT(VLOOKUP(ptype_selector,table_names,3,0)),MATCH(B$3,header_a,0),0),0),"--")/(IFERROR(VLOOKUP("经营活动现金流入*",INDIRECT(VLOOKUP(ptype_selector,table_names,3,0)),MATCH(B$3,header_a,0),0),0)+IFERROR(VLOOKUP("投资活动现金流入*",INDIRECT(VLOOKUP(ptype_selector,table_names,3,0)),MATCH(B$3,header_a,0),0),0)+IFERROR(VLOOKUP("筹资活动现金流入*",INDIRECT(VLOOKUP(ptype_selector,table_names,3,0)),MATCH(B$3,header_a,0),0),0)),"--") -> -0.03411812441 | C98: -0.0151955517 | D98: -0.03521706217 | E98: -0.0255189135 | F98: -0.04578557785 | G98: -0.09894394659 | H98: -0.111370513 | I98: -0.0934783854 | J98: -0.09376975077 | K98: -0.03536454764 | L98: -0.04152300041 | M98: 0.01309284425
A99: 借入债务 | B99: =IFERROR(VLOOKUP("取得借款*",INDIRECT(VLOOKUP(ptype_selector,table_names,3,0)),MATCH(B$3,header_a,0),0),0)+IFERROR(VLOOKUP("发行债券*",INDIRECT(VLOOKUP(ptype_selector,table_names,3,0)),MATCH(B$3,header_a,0),0),0) -> 126.484532 | C99: 109.1555319 | D99: 83.87532473 | E99: 89.44555505 | F99: 88.53931282 | G99: 109.8293589 | H99: 121.2585931 | I99: 136.6921805 | J99: 140.2423551 | K99: 144.5213726 | L99: 132.7915489 | M99: 152.1922324
A100: 偿还债务 | B100: =IFERROR(VLOOKUP("偿还债务*",INDIRECT(VLOOKUP(ptype_selector,table_names,3,0)),MATCH(B$3,header_a,0),0),0) -> 141.5623842 | C100: 115.4288347 | D100: 98.42637016 | E100: 99.76147237 | F100: 107.2768519 | G100: 152.3322297 | H100: 163.8140384 | I100: 175.7150946 | J100: 178.9649091 | K100: 159.4647715 | L100: 151.1263419 | M100: 146.3741269
A102: 股东权益调整表*
A103: 上市公司股东权益 | B103: =IFERROR(VLOOKUP("归属于母公司所有者权益*",bsa_a,MATCH(B$3,header_a,0),0),"--") -> 284.6179067 | C103: 265.5284531 | D103: 271.5273522 | E103: 263.0601593 | F103: 258.2425455 | G103: 249.5476191 | H103: 225.2800447 | I103: 215.9451751 | J103: 209.9756095 | K103: 205.0603397 | L103: 218.6998505 | M103: 213.7036621
A104: 加：上市公司股利 | B104: =IFERROR(VLOOKUP("上市公司股利*",cfa_a,MATCH(B$3,header_a,0),0),0) -> 26.09387566 | C104: 25.61540467 | D104: 0.12647026 | E104: 19.5886144 | F104: 19.73812355 | G104: 10.47008636 | H104: 0.17301315 | I104: 18.64461134 | J104: 18.60910951 | K104: -0.22570363 | L104: 0.14485124 | M104: 18.77392143
A105: 减：权益性融资 | B105: =IFERROR(VLOOKUP("吸收投资*",cfa_a,MATCH(B$3,header_a,0),0),0)-IFERROR(VLOOKUP("其中：子公司吸收少数股东投资*",cfa_a,MATCH(B$3,header_a,0),0),0) -> 0 | C105: 0 | D105: 0 | E105: 35.78964489 | F105: 35.78964489 | G105: 35.78975708 | H105: 0 | I105: 0 | J105: 0 | K105: 0 | L105: 0 | M105: 0
A106: 调整上市公司股东权益 | B106: =IFERROR(VLOOKUP("归属于母公司所有者权益*",bsa_a,MATCH(B$3,header_a,0),0),0)+IFERROR(VLOOKUP("上市公司股利*",cfa_a,MATCH(B$3,header_a,0),0),0)+(IFERROR(VLOOKUP("吸收投资*",cfa_a,MATCH(B$3,header_a,0),0),0)-IFERROR(VLOOKUP("其中：子公司吸收少数股东投资*",cfa_a,MATCH(B$3,header_a,0),0),0)) -> 310.7117824 | C106: 291.1438577 | D106: 271.6538225 | E106: 318.4384185 | F106: 313.7703139 | G106: 295.8074625 | H106: 225.4530578 | I106: 234.5897864 | J106: 228.584719 | K106: 204.8346361 | L106: 218.8447017 | M106: 232.4775835
A107: 调整每股净资产 | B107: =(IFERROR(VLOOKUP("归属于母公司所有者权益*",bsa_a,MATCH(B$3,header_a,0),0),0)+IFERROR(VLOOKUP("上市公司股利*",cfa_a,MATCH(B$3,header_a,0),0),0)+(IFERROR(VLOOKUP("吸收投资*",cfa_a,MATCH(B$3,header_a,0),0),0)-IFERROR(VLOOKUP("其中：子公司吸收少数股东投资*",cfa_a,MATCH(B$3,header_a,0),0),0)))/IFERROR(VLOOKUP("实收资本（或股本）*",bsa_a,MATCH(B$3,header_a,0),0),"--") -> 11.9058359 | C107: 11.15603331 | D107: 10.40921528 | E107: 12.20190469 | F107: 12.02303253 | G107: 11.33473304 | H107: 8.987143514 | I107: 9.351357209 | J107: 9.11197965 | K107: 8.165239757 | L107: 8.723717304 | M107: 9.267159324
A108: QoQ% | B108: =IFERROR((IFERROR(VLOOKUP("归属于母公司所有者权益*",bsa_a,MATCH(B$3,header_a,0),0),0)+IFERROR(VLOOKUP("上市公司股利*",cfa_a,MATCH(B$3,header_a,0),0),0)+(IFERROR(VLOOKUP("吸收投资*",cfa_a,MATCH(B$3,header_a,0),0),0)-IFERROR(VLOOKUP("其中：子公司吸收少数股东投资*",cfa_a,MATCH(B$3,header_a,0),0),0))/IFERROR(VLOOKUP("实收资本（或股本）*",bsa_a,MATCH(B$3,header_a,0),0),"--"))/ABS((IFERROR(VLOOKUP("归属于母公司所有者权益*",bsa_a,MATCH(EOMONTH(B$3,-3),header_a,0),0),0)+IFERROR(VLOOKUP("上市公司股利*",cfa_a,MATCH(EOMONTH(B$3,-3),header_a,0),0),0)+(IFERROR(VLOOKUP("吸收投资*",cfa_a,MATCH(EOMONTH(B$3,-3),header_a,0),0),0)-IFERROR(VLOOKUP("其中：子公司吸收少数股东投资*",cfa_a,MATCH(EOMONTH(B$3,-3),header_a,0),0),0))/IFERROR(VLOOKUP("实收资本（或股本）*",bsa_a,MATCH(EOMONTH(B$3,-3),header_a,0),0),"--")))-1,"") -> 0.0672105013 | C108: 0.0717458532 | D108: -0.04354034846 | E108: 0.01671047176 | F108: 0.06872115038 | G108: 0.1593947661 | H108: -0.0389476828 | I108: 0.02627064239 | J108: 0.1159475926 | K108: -0.06401829941 | L108: -0.05864170469 | M108: 0.02143900224
A109: YoY% | B109: =IFERROR((IFERROR(VLOOKUP("归属于母公司所有者权益*",bsa_a,MATCH(B$3,header_a,0),0),0)+IFERROR(VLOOKUP("上市公司股利*",cfa_a,MATCH(B$3,header_a,0),0),0)+(IFERROR(VLOOKUP("吸收投资*",cfa_a,MATCH(B$3,header_a,0),0),0)-IFERROR(VLOOKUP("其中：子公司吸收少数股东投资*",cfa_a,MATCH(B$3,header_a,0),0),0))/IFERROR(VLOOKUP("实收资本（或股本）*",bsa_a,MATCH(B$3,header_a,0),0),"--"))/ABS((IFERROR(VLOOKUP("归属于母公司所有者权益*",bsa_a,MATCH(EOMONTH(B$3,-12),header_a,0),0),0)+IFERROR(VLOOKUP("上市公司股利*",cfa_a,MATCH(EOMONTH(B$3,-12),header_a,0),0),0)+(IFERROR(VLOOKUP("吸收投资*",cfa_a,MATCH(EOMONTH(B$3,-12),header_a,0),0),0)-IFERROR(VLOOKUP("其中：子公司吸收少数股东投资*",cfa_a,MATCH(EOMONTH(B$3,-12),header_a,0),0),0))/IFERROR(VLOOKUP("实收资本（或股本）*",bsa_a,MATCH(EOMONTH(B$3,-12),header_a,0),0),"--")))-1,"") -> 0.112258805 | C109: 0.1138332205 | D109: 0.2049240986 | E109: 0.2107098246 | F109: 0.2220941792 | G109: 0.276098126 | H109: 0.03019655517 | I109: 0.009085619646 | J109: 0.004334885875 | K109: -0.05766190768 | L109: 0.05645191301 | M109: 0.005623914777

Sheet 利润
A1: =stockname & "备查报表--利润表聚合分析表" -> 福耀玻璃备查报表--利润表聚合分析表
A2: 基准报告期 | B2: =base_date -> 2022-09-30 | C2: 数据列示 | D2: =ptype_selector -> 按TTM | E2: =综合板!AN5 -> 季度
A3: 报告期 | B3: =base_date -> 2022-09-30 | C3: =EOMONTH(B3,-1*duration) -> 2022-06-30 | D3: 2022-03-31 | E3: 2021-12-31 | F3: 2021-09-30 | G3: 2021-06-30 | H3: 2021-03-31 | I3: 2020-12-31 | J3: 2020-09-30
A5: 第一部分、增长报表
A6: 一、营业总收入 | B6: =IFERROR(VLOOKUP("一、营业总收入*",INDIRECT(VLOOKUP(ptype_selector,table_names,2,0)),MATCH(B$3,header_a,0),0),0) -> 268.9020114 | C6: 249.63594 | D6: 244.4485604 | E6: 236.0306336 | F6: 232.8316924 | G6: 233.2849475 | H6: 214.420626 | I6: 199.0659347 | J6: 192.4655884
A7: 营业总收入YoY% | B7: =IFERROR(IF(VLOOKUP("一、营业总收入*",INDIRECT(VLOOKUP(ptype_selector,table_names,2,0)),MATCH(B$3,header_a,0),0)>VLOOKUP("一、营业总收入*",INDIRECT(VLOOKUP(ptype_selector,table_names,2,0)),MATCH(EOMONTH(B$3,-12),header_a,0),0),ABS(VLOOKUP("一、营业总收入*",INDIRECT(VLOOKUP(ptype_selector,table_names,2,0)),MATCH(B$3,header_a,0),0)/VLOOKUP("一、营业总收入*",INDIRECT(VLOOKUP(ptype_selector,table_names,2,0)),MATCH(EOMONTH(B$3,-12),header_a,0),0)-1),-1*ABS(VLOOKUP("一、营业总收入*",INDIRECT(VLOOKUP(ptype_selector,table_names,2,0)),MATCH(B$3,header_a,0),0)/VLOOKUP("一、营业总收入*",INDIRECT(VLOOKUP(ptype_selector,table_names,2,0)),MATCH(EOMONTH(B$3,-12),header_a,0),0)-1)),"--") -> 0.1549201424 | C7: 0.07009021674 | D7: 0.1400421919 | E7: 0.185690731 | F7: 0.2097315388 | G7: 0.2318493658 | H7: 0.0541365959 | I7: -0.0567328944 | J7: -0.0718387452
A8: 其中：营业收入 | B8: =IFERROR(VLOOKUP("其中：营业收入*",INDIRECT(VLOOKUP(ptype_selector,table_names,2,0)),MATCH(B$3,header_a,0),0),0) -> 268.9020114 | C8: 249.63594 | D8: 244.4485604 | E8: 236.0306336 | F8: 232.8316924 | G8: 233.2849475 | H8: 214.420626 | I8: 199.0659347 | J8: 192.4655884
A9: 营业收入YoY% | B9: =IFERROR(IF(VLOOKUP("其中：营业收入*",INDIRECT(VLOOKUP(ptype_selector,table_names,2,0)),MATCH(B$3,header_a,0),0)>VLOOKUP("其中：营业收入*",INDIRECT(VLOOKUP(ptype_selector,table_names,2,0)),MATCH(EOMONTH(B$3,-12),header_a,0),0),ABS(VLOOKUP("其中：营业收入*",INDIRECT(VLOOKUP(ptype_selector,table_names,2,0)),MATCH(B$3,header_a,0),0)/VLOOKUP("其中：营业收入*",INDIRECT(VLOOKUP(ptype_selector,table_names,2,0)),MATCH(EOMONTH(B$3,-12),header_a,0),0)-1),-1*ABS(VLOOKUP("其中：营业收入*",INDIRECT(VLOOKUP(ptype_selector,table_names,2,0)),MATCH(B$3,header_a,0),0)/VLOOKUP("其中：营业收入*",INDIRECT(VLOOKUP(ptype_selector,table_names,2,0)),MATCH(EOMONTH(B$3,-12),header_a,0),0)-1)),"--") -> 0.1549201424 | C9: 0.07009021674 | D9: 0.1400421919 | E9: 0.185690731 | F9: 0.2097315388 | G9: 0.2318493658 | H9: 0.0541365959 | I9: -0.0567328944 | J9: -0.0718387452
A10: 二、营业总成本 | B10: =IFERROR(VLOOKUP("二、营业总成本*",INDIRECT(VLOOKUP(ptype_selector,table_names,2,0)),MATCH(B$3,header_a,0),0),0) -> 217.5765108 | C10: 208.6328673 | D10: 209.0762449 | E10: 201.1299414 | F10: 194.5561573 | G10: 195.3655785 | H10: 181.7674448 | I10: 171.012561 | J10: 168.5692729
A11: 营业总成本YoY% | B11: =IFERROR(IF(VLOOKUP("二、营业总成本*",INDIRECT(VLOOKUP(ptype_selector,table_names,2,0)),MATCH(B$3,header_a,0),0)>VLOOKUP("二、营业总成本*",INDIRECT(VLOOKUP(ptype_selector,table_names,2,0)),MATCH(EOMONTH(B$3,-12),header_a,0),0),ABS(VLOOKUP("二、营业总成本*",INDIRECT(VLOOKUP(ptype_selector,table_names,2,0)),MATCH(B$3,header_a,0),0)/VLOOKUP("二、营业总成本*",INDIRECT(VLOOKUP(ptype_selector,table_names,2,0)),MATCH(EOMONTH(B$3,-12),header_a,0),0)-1),-1*ABS(VLOOKUP("二、营业总成本*",INDIRECT(VLOOKUP(ptype_selector,table_names,2,0)),MATCH(B$3,header_a,0),0)/VLOOKUP("二、营业总成本*",INDIRECT(VLOOKUP(ptype_selector,table_names,2,0)),MATCH(EOMONTH(B$3,-12),header_a,0),0)-1)),"--") -> 0.1183224107 | C11: 0.06791006333 | D11: 0.1502403255 | E11: 0.176112095 | F11: 0.1541614553 | G11: 0.1948018913 | H11: 0.05447913719 | I11: -0.04442078157 | J11: -0.02985772939
A12: 其中：营业税金 | B12: =IFERROR(VLOOKUP("其中：营业税金*",INDIRECT(VLOOKUP(ptype_selector,table_names,2,0)),MATCH(B$3,header_a,0),0),0) -> 2.2105934 | C12: 2.09799745 | D12: 2.12503175 | E12: 2.04629142 | F12: 2.09506729 | G12: 2.06954201 | H12: 2.06236384 | I12: 1.9818284 | J12: 1.91291717
A13: 营业税金YoY% | B13: =IFERROR(IF(VLOOKUP("其中：营业税金*",INDIRECT(VLOOKUP(ptype_selector,table_names,2,0)),MATCH(B$3,header_a,0),0)>VLOOKUP("其中：营业税金*",INDIRECT(VLOOKUP(ptype_selector,table_names,2,0)),MATCH(EOMONTH(B$3,-12),header_a,0),0),ABS(VLOOKUP("其中：营业税金*",INDIRECT(VLOOKUP(ptype_selector,table_names,2,0)),MATCH(B$3,header_a,0),0)/VLOOKUP("其中：营业税金*",INDIRECT(VLOOKUP(ptype_selector,table_names,2,0)),MATCH(EOMONTH(B$3,-12),header_a,0),0)-1),-1*ABS(VLOOKUP("其中：营业税金*",INDIRECT(VLOOKUP(ptype_selector,table_names,2,0)),MATCH(B$3,header_a,0),0)/VLOOKUP("其中：营业税金*",INDIRECT(VLOOKUP(ptype_selector,table_names,2,0)),MATCH(EOMONTH(B$3,-12),header_a,0),0)-1)),"--") -> 0.0551419568 | C13: 0.01374963149 | D13: 0.03038644723 | E13: 0.03252704422 | F13: 0.09522112241 | G13: 0.09151041226 | H13: 0.1086331195 | I13: 0.001850667375 | J13: -0.02359809361
A14: 其中：营业成本 | B14: =IFERROR(VLOOKUP("其中：营业成本*",INDIRECT(VLOOKUP(ptype_selector,table_names,2,0)),MATCH(B$3,header_a,0),0),0) -> 183.2169406 | C14: 167.6192741 | D14: 159.4629301 | E14: 151.2905324 | F14: 137.0678166 | G14: 136.7858432 | H14: 126.9783589 | I14: 120.4221754 | J14: 119.5046887
A15: 营业成本YoY% | B15: =IFERROR(IF(VLOOKUP("其中：营业成本*",INDIRECT(VLOOKUP(ptype_selector,table_names,2,0)),MATCH(B$3,header_a,0),0)>VLOOKUP("其中：营业成本*",INDIRECT(VLOOKUP(ptype_selector,table_names,2,0)),MATCH(EOMONTH(B$3,-12),header_a,0),0),ABS(VLOOKUP("其中：营业成本*",INDIRECT(VLOOKUP(ptype_selector,table_names,2,0)),MATCH(B$3,header_a,0),0)/VLOOKUP("其中：营业成本*",INDIRECT(VLOOKUP(ptype_selector,table_names,2,0)),MATCH(EOMONTH(B$3,-12),header_a,0),0)-1),-1*ABS(VLOOKUP("其中：营业成本*",INDIRECT(VLOOKUP(ptype_selector,table_names,2,0)),MATCH(B$3,header_a,0),0)/VLOOKUP("其中：营业成本*",INDIRECT(VLOOKUP(ptype_selector,table_names,2,0)),MATCH(EOMONTH(B$3,-12),header_a,0),0)-1)),"--") -> 0.3366882551 | C15: 0.2254139043 | D15: 0.2558276189 | E15: 0.2563344901 | F15: 0.1469660148 | G15: 0.1408529413 | H15: -0.01763867198 | I15: -0.08754173808 | J15: -0.06032952621
A16: 小计：四项费用 | B16: =IFERROR(VLOOKUP("小计：四项费用*",INDIRECT(VLOOKUP(ptype_selector,table_names,2,0)),MATCH(B$3,header_a,0),0),0) -> 32.14897685 | C16: 38.91559576 | D16: 47.48828302 | E16: 47.79311765 | F16: 55.39327342 | G16: 56.51019335 | H16: 52.72672206 | I16: 48.6085572 | J16: 47.15166697
A17: 四项费用YoY% | B17: =IFERROR(IF(VLOOKUP("小计：四项费用*",INDIRECT(VLOOKUP(ptype_selector,table_names,2,0)),MATCH(B$3,header_a,0),0)>VLOOKUP("小计：四项费用*",INDIRECT(VLOOKUP(ptype_selector,table_names,2,0)),MATCH(EOMONTH(B$3,-12),header_a,0),0),ABS(VLOOKUP("小计：四项费用*",INDIRECT(VLOOKUP(ptype_selector,table_names,2,0)),MATCH(B$3,header_a,0),0)/VLOOKUP("小计：四项费用*",INDIRECT(VLOOKUP(ptype_selector,table_names,2,0)),MATCH(EOMONTH(B$3,-12),header_a,0),0)-1),-1*ABS(VLOOKUP("小计：四项费用*",INDIRECT(VLOOKUP(ptype_selector,table_names,2,0)),MATCH(B$3,header_a,0),0)/VLOOKUP("小计：四项费用*",INDIRECT(VLOOKUP(ptype_selector,table_names,2,0)),MATCH(EOMONTH(B$3,-12),header_a,0),0)-1)),"--") -> -0.4196230902 | C17: -0.3113526348 | D17: -0.09935074352 | E17: -0.01677563781 | F17: 0.1747892912 | G17: 0.3545421242 | H17: 0.2724178006 | I17: 0.07998639033 | J17: 0.06895506436
A18: 其中：管理费用 | B18: =IFERROR(VLOOKUP("其中：管理费用*",INDIRECT(VLOOKUP(ptype_selector,table_names,2,0)),MATCH(B$3,header_a,0),0),0) -> 19.32377939 | C18: 19.09875543 | D18: 19.35916638 | E18: 19.44179027 | F18: 21.11023947 | G18: 21.16822013 | H18: 21.25538864 | I18: 20.76624937 | J18: 21.9027001
A19: 管理费用YoY% | B19: =IFERROR(IF(VLOOKUP("其中：管理费用*",INDIRECT(VLOOKUP(ptype_selector,table_names,2,0)),MATCH(B$3,header_a,0),0)>VLOOKUP("其中：管理费用*",INDIRECT(VLOOKUP(ptype_selector,table_names,2,0)),MATCH(EOMONTH(B$3,-12),header_a,0),0),ABS(VLOOKUP("其中：管理费用*",INDIRECT(VLOOKUP(ptype_selector,table_names,2,0)),MATCH(B$3,header_a,0),0)/VLOOKUP("其中：管理费用*",INDIRECT(VLOOKUP(ptype_selector,table_names,2,0)),MATCH(EOMONTH(B$3,-12),header_a,0),0)-1),-1*ABS(VLOOKUP("其中：管理费用*",INDIRECT(VLOOKUP(ptype_selector,table_names,2,0)),MATCH(B$3,header_a,0),0)/VLOOKUP("其中：管理费用*",INDIRECT(VLOOKUP(ptype_selector,table_names,2,0)),MATCH(EOMONTH(B$3,-12),header_a,0),0)-1)),"--") -> -0.08462528729 | C19: -0.09776281082 | D19: -0.08921136621 | E19: -0.06377940842 | F19: -0.03618095606 | G19: -0.02875340148 | H19: -0.01020745977 | I19: -0.04975746495 | J19: 0.02280115278
A20: 其中：销售费用 | B20: =IFERROR(VLOOKUP("其中：销售费用*",INDIRECT(VLOOKUP(ptype_selector,table_names,2,0)),MATCH(B$3,header_a,0),0),0) -> 7.5272593 | C20: 8.98545323 | D20: 10.30390827 | E20: 11.50992397 | F20: 18.32241538 | G20: 17.29523052 | H20: 15.76955809 | I20: 14.74366072 | J20: 14.14099631
A21: 销售费用YoY% | B21: =IFERROR(IF(VLOOKUP("其中：销售费用*",INDIRECT(VLOOKUP(ptype_selector,table_names,2,0)),MATCH(B$3,header_a,0),0)>VLOOKUP("其中：销售费用*",INDIRECT(VLOOKUP(ptype_selector,table_names,2,0)),MATCH(EOMONTH(B$3,-12),header_a,0),0),ABS(VLOOKUP("其中：销售费用*",INDIRECT(VLOOKUP(ptype_selector,table_names,2,0)),MATCH(B$3,header_a,0),0)/VLOOKUP("其中：销售费用*",INDIRECT(VLOOKUP(ptype_selector,table_names,2,0)),MATCH(EOMONTH(B$3,-12),header_a,0),0)-1),-1*ABS(VLOOKUP("其中：销售费用*",INDIRECT(VLOOKUP(ptype_selector,table_names,2,0)),MATCH(B$3,header_a,0),0)/VLOOKUP("其中：销售费用*",INDIRECT(VLOOKUP(ptype_selector,table_names,2,0)),MATCH(EOMONTH(B$3,-12),header_a,0),0)-1)),"--") -> -0.5891775651 | C21: -0.4804664084 | D21: -0.3465949895 | E21: -0.2193306541 | F21: 0.2956947996 | G21: 0.2339461462 | H21: 0.08992404585 | I21: -0.004860453977 | J21: -0.06030354926
A22: 其中：财务费用 | B22: =IFERROR(VLOOKUP("其中：财务费用*",INDIRECT(VLOOKUP(ptype_selector,table_names,2,0)),MATCH(B$3,header_a,0),0),0) -> -6.38424546 | C22: 0.00552892 | D22: 7.50019373 | E22: 6.86937322 | F22: 6.19684793 | G22: 8.46058124 | H22: 6.69626664 | I22: 4.94285453 | J22: 3.29508034
A23: 财务费用YoY% | B23: =IFERROR(IF(VLOOKUP("其中：财务费用*",INDIRECT(VLOOKUP(ptype_selector,table_names,2,0)),MATCH(B$3,header_a,0),0)>VLOOKUP("其中：财务费用*",INDIRECT(VLOOKUP(ptype_selector,table_names,2,0)),MATCH(EOMONTH(B$3,-12),header_a,0),0),ABS(VLOOKUP("其中：财务费用*",INDIRECT(VLOOKUP(ptype_selector,table_names,2,0)),MATCH(B$3,header_a,0),0)/VLOOKUP("其中：财务费用*",INDIRECT(VLOOKUP(ptype_selector,table_names,2,0)),MATCH(EOMONTH(B$3,-12),header_a,0),0)-1),-1*ABS(VLOOKUP("其中：财务费用*",INDIRECT(VLOOKUP(ptype_selector,table_names,2,0)),MATCH(B$3,header_a,0),0)/VLOOKUP("其中：财务费用*",INDIRECT(VLOOKUP(ptype_selector,table_names,2,0)),MATCH(EOMONTH(B$3,-12),header_a,0),0)-1)),"--") -> -2.030240782 | C23: -0.9993465083 | D23: 0.1200560153 | E23: 0.3897583225 | F23: 0.8806363702 | G23: 6.487380806 | H23: 3.995738865 | I23: 22.77630686 | J23: 6.720730371
A24: 其中：研发费用 | B24: =IFERROR(VLOOKUP("其中：研发费用*",INDIRECT(VLOOKUP(ptype_selector,table_names,2,0)),MATCH(B$3,header_a,0),0),0) -> 11.68218362 | C24: 10.82585818 | D24: 10.32501464 | E24: 9.97203019 | F24: 9.76377064 | G24: 9.58616146 | H24: 9.00550869 | I24: 8.15579258 | J24: 7.81289022
A25: 研发费用YoY% | B25: =IFERROR(IF(VLOOKUP("其中：研发费用*",INDIRECT(VLOOKUP(ptype_selector,table_names,2,0)),MATCH(B$3,header_a,0),0)>VLOOKUP("其中：研发费用*",INDIRECT(VLOOKUP(ptype_selector,table_names,2,0)),MATCH(EOMONTH(B$3,-12),header_a,0),0),ABS(VLOOKUP("其中：研发费用*",INDIRECT(VLOOKUP(ptype_selector,table_names,2,0)),MATCH(B$3,header_a,0),0)/VLOOKUP("其中：研发费用*",INDIRECT(VLOOKUP(ptype_selector,table_names,2,0)),MATCH(EOMONTH(B$3,-12),header_a,0),0)-1),-1*ABS(VLOOKUP("其中：研发费用*",INDIRECT(VLOOKUP(ptype_selector,table_names,2,0)),MATCH(B$3,header_a,0),0)/VLOOKUP("其中：研发费用*",INDIRECT(VLOOKUP(ptype_selector,table_names,2,0)),MATCH(EOMONTH(B$3,-12),header_a,0),0)-1)),"--") -> 0.1964827986 | C25: 0.1293214938 | D25: 0.1465220895 | E25: 0.2226929624 | F25: 0.2497002217 | G25: 0.2867729511 | H25: 0.1649478833 | I25: 0.003012339352 | J25: -0.04989032293
A26: 小计：减值损失 | B26: =IFERROR(VLOOKUP("小计：减值损失*",INDIRECT(VLOOKUP(ptype_selector,table_names,2,0)),MATCH(B$3,header_a,0),0),0) -> 0.21096357 | C26: 0.23256883 | D26: 0.23733986 | E26: 0.2441239 | F26: 0.37482286 | G26: 0.34340878 | H26: 0.33588079 | I26: 0.36960609 | J26: 0.06069539
A27: 减值YoY% | B27: =IFERROR(IF(VLOOKUP("小计：减值损失*",INDIRECT(VLOOKUP(ptype_selector,table_names,2,0)),MATCH(B$3,header_a,0),0)>VLOOKUP("小计：减值损失*",INDIRECT(VLOOKUP(ptype_selector,table_names,2,0)),MATCH(EOMONTH(B$3,-12),header_a,0),0),ABS(VLOOKUP("小计：减值损失*",INDIRECT(VLOOKUP(ptype_selector,table_names,2,0)),MATCH(B$3,header_a,0),0)/VLOOKUP("小计：减值损失*",INDIRECT(VLOOKUP(ptype_selector,table_names,2,0)),MATCH(EOMONTH(B$3,-12),header_a,0),0)-1),-1*ABS(VLOOKUP("小计：减值损失*",INDIRECT(VLOOKUP(ptype_selector,table_names,2,0)),MATCH(B$3,header_a,0),0)/VLOOKUP("小计：减值损失*",INDIRECT(VLOOKUP(ptype_selector,table_names,2,0)),MATCH(EOMONTH(B$3,-12),header_a,0),0)-1)),"--") -> -0.4371646116 | C27: -0.3227638792 | D27: -0.2933806664 | E27: -0.3395024958 | F27: 5.175474941 | G27: 3.947373623 | H27: 2.568960045 | I27: 0.5115816904 | J27: -0.9189611385
A28: 其中：资产减值 | B28: =IFERROR(VLOOKUP("其中：资产减值*",INDIRECT(VLOOKUP(ptype_selector,table_names,2,0)),MATCH(B$3,header_a,0),0),0) -> 0.16703557 | C28: 0.1922076 | D28: 0.19293172 | E28: 0.18976018 | F28: 0.32201944 | G28: 0.2863478 | H28: 0.27813025 | I28: 0.30973964 | J28: 0.02480525
A29: 资产减值YoY% | B29: =IFERROR(IF(VLOOKUP("其中：资产减值*",INDIRECT(VLOOKUP(ptype_selector,table_names,2,0)),MATCH(B$3,header_a,0),0)>VLOOKUP("其中：资产减值*",INDIRECT(VLOOKUP(ptype_selector,table_names,2,0)),MATCH(EOMONTH(B$3,-12),header_a,0),0),ABS(VLOOKUP("其中：资产减值*",INDIRECT(VLOOKUP(ptype_selector,table_names,2,0)),MATCH(B$3,header_a,0),0)/VLOOKUP("其中：资产减值*",INDIRECT(VLOOKUP(ptype_selector,table_names,2,0)),MATCH(EOMONTH(B$3,-12),header_a,0),0)-1),-1*ABS(VLOOKUP("其中：资产减值*",INDIRECT(VLOOKUP(ptype_selector,table_names,2,0)),MATCH(B$3,header_a,0),0)/VLOOKUP("其中：资产减值*",INDIRECT(VLOOKUP(ptype_selector,table_names,2,0)),MATCH(EOMONTH(B$3,-12),header_a,0),0)-1)),"--") -> -0.4812873099 | C29: -0.3287617366 | D29: -0.3063260109 | E29: -0.3873558451 | F29: 11.98190665 | G29: 7.130277374 | H29: 3.157447584 | I29: 6.861501971 | J29: -0.9146696041
A30: 其中：信用减值 | B30: =IFERROR(VLOOKUP("其中：信用减值*",INDIRECT(VLOOKUP(ptype_selector,table_names,2,0)),MATCH(B$3,header_a,0),0),0) -> 0.043928 | C30: 0.04036123 | D30: 0.04440814 | E30: 0.05436372 | F30: 0.05280342 | G30: 0.05706098 | H30: 0.05775054 | I30: 0.05986645 | J30: 0.03589014
A31: 信用减值YoY% | B31: =IFERROR(IF(VLOOKUP("其中：信用减值*",INDIRECT(VLOOKUP(ptype_selector,table_names,2,0)),MATCH(B$3,header_a,0),0)>VLOOKUP("其中：信用减值*",INDIRECT(VLOOKUP(ptype_selector,table_names,2,0)),MATCH(EOMONTH(B$3,-12),header_a,0),0),ABS(VLOOKUP("其中：信用减值*",INDIRECT(VLOOKUP(ptype_selector,table_names,2,0)),MATCH(B$3,header_a,0),0)/VLOOKUP("其中：信用减值*",INDIRECT(VLOOKUP(ptype_selector,table_names,2,0)),MATCH(EOMONTH(B$3,-12),header_a,0),0)-1),-1*ABS(VLOOKUP("其中：信用减值*",INDIRECT(VLOOKUP(ptype_selector,table_names,2,0)),MATCH(B$3,header_a,0),0)/VLOOKUP("其中：信用减值*",INDIRECT(VLOOKUP(ptype_selector,table_names,2,0)),MATCH(EOMONTH(B$3,-12),header_a,0),0)-1)),"--") -> -0.1680841885 | C31: -0.29266497 | D31: -0.2310350691 | E31: -0.09191675805 | F31: 0.4712514356 | G31: 0.6688200685 | H31: 1.122214918 | I31: -0.7081345013 | J31: -0.9216834078
A32: *核心利润 | B32: =IFERROR(VLOOKUP("核心利润*",INDIRECT(VLOOKUP(ptype_selector,table_names,2,0)),MATCH(B$3,header_a,0),0),0) -> 51.11453698 | C32: 40.77050386 | D32: 35.13497567 | E32: 34.65656828 | F32: 37.90071228 | G32: 37.57596019 | H32: 32.31730036 | I32: 27.68376756 | J32: 23.83562015
A33: 核心YoY% | B33: =IFERROR(IF(VLOOKUP("核心利润*",INDIRECT(VLOOKUP(ptype_selector,table_names,2,0)),MATCH(B$3,header_a,0),0)>VLOOKUP("核心利润*",INDIRECT(VLOOKUP(ptype_selector,table_names,2,0)),MATCH(EOMONTH(B$3,-12),header_a,0),0),ABS(VLOOKUP("核心利润*",INDIRECT(VLOOKUP(ptype_selector,table_names,2,0)),MATCH(B$3,header_a,0),0)/VLOOKUP("核心利润*",INDIRECT(VLOOKUP(ptype_selector,table_names,2,0)),MATCH(EOMONTH(B$3,-12),header_a,0),0)-1),-1*ABS(VLOOKUP("核心利润*",INDIRECT(VLOOKUP(ptype_selector,table_names,2,0)),MATCH(B$3,header_a,0),0)/VLOOKUP("核心利润*",INDIRECT(VLOOKUP(ptype_selector,table_names,2,0)),MATCH(EOMONTH(B$3,-12),header_a,0),0)-1)),"--") -> 0.3486431759 | C33: 0.08501562312 | D33: 0.08718783062 | E33: 0.2518732577 | F33: 0.5900871067 | G33: 0.4566888682 | H33: 0.05070050265 | I33: -0.1303179877 | J33: -0.2856492245
A34: 三、营业利润 | B34: =IFERROR(VLOOKUP("三、营业利润*",INDIRECT(VLOOKUP(ptype_selector,table_names,2,0)),MATCH(B$3,header_a,0),0),0) -> 0 | C34: 0 | D34: 0 | E34: 0 | F34: 0 | G34: 0 | H34: 0 | I34: 0 | J34: 0
A35: 营业利润YoY% | B35: =IFERROR(IF(VLOOKUP("三、营业利润*",INDIRECT(VLOOKUP(ptype_selector,table_names,2,0)),MATCH(B$3,header_a,0),0)>VLOOKUP("三、营业利润*",INDIRECT(VLOOKUP(ptype_selector,table_names,2,0)),MATCH(EOMONTH(B$3,-12),header_a,0),0),ABS(VLOOKUP("三、营业利润*",INDIRECT(VLOOKUP(ptype_selector,table_names,2,0)),MATCH(B$3,header_a,0),0)/VLOOKUP("三、营业利润*",INDIRECT(VLOOKUP(ptype_selector,table_names,2,0)),MATCH(EOMONTH(B$3,-12),header_a,0),0)-1),-1*ABS(VLOOKUP("三、营业利润*",INDIRECT(VLOOKUP(ptype_selector,table_names,2,0)),MATCH(B$3,header_a,0),0)/VLOOKUP("三、营业利润*",INDIRECT(VLOOKUP(ptype_selector,table_names,2,0)),MATCH(EOMONTH(B$3,-12),header_a,0),0)-1)),"--") -> -- | C35: -- | D35: -- | E35: -- | F35: -- | G35: -- | H35: -- | I35: -- | J35: --
A36: 非经营性损益 | B36: =IFERROR(VLOOKUP("非经常性损益*",INDIRECT(VLOOKUP(ptype_selector,table_names,2,0)),MATCH(B$3,header_a,0),0),0) -> 3.52811179 | C36: 4.61973983 | D36: 4.64858483 | E36: 5.14347931 | F36: 5.70973194 | G36: 5.35025332 | H36: 5.55508091 | I36: 5.55882914 | J36: 4.16922092
A37: 营业外YoY% | B37: =IFERROR(IF(VLOOKUP("非经常性损益*",INDIRECT(VLOOKUP(ptype_selector,table_names,2,0)),MATCH(B$3,header_a,0),0)>VLOOKUP("非经常性损益*",INDIRECT(VLOOKUP(ptype_selector,table_names,2,0)),MATCH(EOMONTH(B$3,-12),header_a,0),0),ABS(VLOOKUP("非经常性损益*",INDIRECT(VLOOKUP(ptype_selector,table_names,2,0)),MATCH(B$3,header_a,0),0)/VLOOKUP("非经常性损益*",INDIRECT(VLOOKUP(ptype_selector,table_names,2,0)),MATCH(EOMONTH(B$3,-12),header_a,0),0)-1),-1*ABS(VLOOKUP("非经常性损益*",INDIRECT(VLOOKUP(ptype_selector,table_names,2,0)),MATCH(B$3,header_a,0),0)/VLOOKUP("非经常性损益*",INDIRECT(VLOOKUP(ptype_selector,table_names,2,0)),MATCH(EOMONTH(B$3,-12),header_a,0),0)-1)),"--") -> -0.3820880162 | C37: -0.1365381126 | D37: -0.1631832362 | E37: -0.07471894162 | F37: 0.369496136 | G37: 0.4673053686 | H37: 0.6338954351 | I37: 0.6243120652 | J37: -0.2766463512
A38: 四、利润总额 | B38: =IFERROR(VLOOKUP("四、利润总额*",INDIRECT(VLOOKUP(ptype_selector,table_names,2,0)),MATCH(B$3,header_a,0),0),0) -> 53.2840467 | C38: 44.12415864 | D38: 38.49886875 | E38: 38.18842094 | F38: 41.31598734 | G38: 40.17234843 | H38: 35.27983685 | I38: 31.09595043 | J38: 24.44868845
A39: 利润总额YoY% | B39: =IFERROR(IF(VLOOKUP("四、利润总额*",INDIRECT(VLOOKUP(ptype_selector,table_names,2,0)),MATCH(B$3,header_a,0),0)>VLOOKUP("四、利润总额*",INDIRECT(VLOOKUP(ptype_selector,table_names,2,0)),MATCH(EOMONTH(B$3,-12),header_a,0),0),ABS(VLOOKUP("四、利润总额*",INDIRECT(VLOOKUP(ptype_selector,table_names,2,0)),MATCH(B$3,header_a,0),0)/VLOOKUP("四、利润总额*",INDIRECT(VLOOKUP(ptype_selector,table_names,2,0)),MATCH(EOMONTH(B$3,-12),header_a,0),0)-1),-1*ABS(VLOOKUP("四、利润总额*",INDIRECT(VLOOKUP(ptype_selector,table_names,2,0)),MATCH(B$3,header_a,0),0)/VLOOKUP("四、利润总额*",INDIRECT(VLOOKUP(ptype_selector,table_names,2,0)),MATCH(EOMONTH(B$3,-12),header_a,0),0)-1)),"--") -> 0.289671387 | C39: 0.09837140134 | D39: 0.09124282274 | E39: 0.2280834132 | F39: 0.6899060833 | G39: 0.5187059073 | H39: 0.1292246697 | I39: -0.03761616095 | J39: -0.3646367708
A40: 所得税 | B40: =IFERROR(VLOOKUP("减：所得税*",INDIRECT(VLOOKUP(ptype_selector,table_names,2,0)),MATCH(B$3,header_a,0),0),0) -> 8.7968907 | C40: 6.5592461 | D40: 6.90680885 | E40: 6.75861301 | F40: 6.61597991 | G40: 6.14552915 | H40: 5.34654988 | I40: 5.11144107 | J40: 1.71526416
A41: 所得税YoY% | B41: =IFERROR(IF(VLOOKUP("减：所得税*",INDIRECT(VLOOKUP(ptype_selector,table_names,2,0)),MATCH(B$3,header_a,0),0)>VLOOKUP("减：所得税*",INDIRECT(VLOOKUP(ptype_selector,table_names,2,0)),MATCH(EOMONTH(B$3,-12),header_a,0),0),ABS(VLOOKUP("减：所得税*",INDIRECT(VLOOKUP(ptype_selector,table_names,2,0)),MATCH(B$3,header_a,0),0)/VLOOKUP("减：所得税*",INDIRECT(VLOOKUP(ptype_selector,table_names,2,0)),MATCH(EOMONTH(B$3,-12),header_a,0),0)-1),-1*ABS(VLOOKUP("减：所得税*",INDIRECT(VLOOKUP(ptype_selector,table_names,2,0)),MATCH(B$3,header_a,0),0)/VLOOKUP("减：所得税*",INDIRECT(VLOOKUP(ptype_selector,table_names,2,0)),MATCH(EOMONTH(B$3,-12),header_a,0),0)-1)),"--") -> 0.3296428979 | C41: 0.06731998822 | D41: 0.2918253837 | E41: 0.3222519672 | F41: 2.857120124 | G41: 1.118530833 | H41: 0.4348133773 | I41: 0.5351706869 | J41: -0.7371076345
A42: 五、净利润 | B42: =IFERROR(VLOOKUP("五、净利润*",INDIRECT(VLOOKUP(ptype_selector,table_names,2,0)),MATCH(B$3,header_a,0),0),0) -> 44.487156 | C42: 37.56491254 | D42: 31.5920599 | E42: 31.42980793 | F42: 34.70000743 | G42: 34.02681928 | H42: 29.93328697 | I42: 25.98450936 | J42: 22.73342429
A43: 净利润YoY% | B43: =IFERROR(IF(VLOOKUP("五、净利润*",INDIRECT(VLOOKUP(ptype_selector,table_names,2,0)),MATCH(B$3,header_a,0),0)>VLOOKUP("五、净利润*",INDIRECT(VLOOKUP(ptype_selector,table_names,2,0)),MATCH(EOMONTH(B$3,-12),header_a,0),0),ABS(VLOOKUP("五、净利润*",INDIRECT(VLOOKUP(ptype_selector,table_names,2,0)),MATCH(B$3,header_a,0),0)/VLOOKUP("五、净利润*",INDIRECT(VLOOKUP(ptype_selector,table_names,2,0)),MATCH(EOMONTH(B$3,-12),header_a,0),0)-1),-1*ABS(VLOOKUP("五、净利润*",INDIRECT(VLOOKUP(ptype_selector,table_names,2,0)),MATCH(B$3,header_a,0),0)/VLOOKUP("五、净利润*",INDIRECT(VLOOKUP(ptype_selector,table_names,2,0)),MATCH(EOMONTH(B$3,-12),header_a,0),0)-1)),"--") -> 0.2820503307 | C43: 0.1039795472 | D43: 0.05541566256 | E43: 0.2095594146 | F43: 0.5263871816 | G43: 0.4448232722 | H43: 0.08784122744 | I43: -0.1034204264 | J43: -0.2885861422
A44: 其中：少数股东 | B44: =IFERROR(VLOOKUP("其中：少数股东*",INDIRECT(VLOOKUP(ptype_selector,table_names,2,0)),MATCH(B$3,header_a,0),0),0) -> -0.02511994 | C44: -0.02327318 | D44: -0.02888145 | E44: -0.03186298 | F44: -0.03639884 | G44: -0.03375254 | H44: -0.02745617 | I44: -0.02325523 | J44: -0.01463354
A45: 少数股东YoY% | B45: =IFERROR(IF(VLOOKUP("其中：少数股东*",INDIRECT(VLOOKUP(ptype_selector,table_names,2,0)),MATCH(B$3,header_a,0),0)>VLOOKUP("其中：少数股东*",INDIRECT(VLOOKUP(ptype_selector,table_names,2,0)),MATCH(EOMONTH(B$3,-12),header_a,0),0),ABS(VLOOKUP("其中：少数股东*",INDIRECT(VLOOKUP(ptype_selector,table_names,2,0)),MATCH(B$3,header_a,0),0)/VLOOKUP("其中：少数股东*",INDIRECT(VLOOKUP(ptype_selector,table_names,2,0)),MATCH(EOMONTH(B$3,-12),header_a,0),0)-1),-1*ABS(VLOOKUP("其中：少数股东*",INDIRECT(VLOOKUP(ptype_selector,table_names,2,0)),MATCH(B$3,header_a,0),0)/VLOOKUP("其中：少数股东*",INDIRECT(VLOOKUP(ptype_selector,table_names,2,0)),MATCH(EOMONTH(B$3,-12),header_a,0),0)-1)),"--") -> 0.3098697651 | C45: 0.3104761893 | D45: -0.05191110049 | E45: -0.3701425443 | F45: -1.487357126 | G45: -0.9371637122 | H45: -2.813404612 | I45: -8.261305212 | J45: 0.8443013337
A46: 其中：归母净利润 | B46: =IFERROR(VLOOKUP("其中：归母净利润*",INDIRECT(VLOOKUP(ptype_selector,table_names,2,0)),MATCH(B$3,header_a,0),0),0) -> 44.51227594 | C46: 37.58818572 | D46: 31.62094135 | E46: 31.46167091 | F46: 34.73640627 | G46: 34.06057182 | H46: 29.96074314 | I46: 26.00776459 | J46: 22.74805783
A47: 归母YoY% | B47: =IFERROR(IF(VLOOKUP("其中：归母净利润*",INDIRECT(VLOOKUP(ptype_selector,table_names,2,0)),MATCH(B$3,header_a,0),0)>VLOOKUP("其中：归母净利润*",INDIRECT(VLOOKUP(ptype_selector,table_names,2,0)),MATCH(EOMONTH(B$3,-12),header_a,0),0),ABS(VLOOKUP("其中：归母净利润*",INDIRECT(VLOOKUP(ptype_selector,table_names,2,0)),MATCH(B$3,header_a,0),0)/VLOOKUP("其中：归母净利润*",INDIRECT(VLOOKUP(ptype_selector,table_names,2,0)),MATCH(EOMONTH(B$3,-12),header_a,0),0)-1),-1*ABS(VLOOKUP("其中：归母净利润*",INDIRECT(VLOOKUP(ptype_selector,table_names,2,0)),MATCH(B$3,header_a,0),0)/VLOOKUP("其中：归母净利润*",INDIRECT(VLOOKUP(ptype_selector,table_names,2,0)),MATCH(EOMONTH(B$3,-12),header_a,0),0)-1)),"--") -> 0.2814300821 | C47: 0.1035688396 | D47: 0.05541245096 | E47: 0.2097030024 | F47: 0.5270053615 | G47: 0.4451872524 | H47: 0.08855421316 | I47: -0.1026957621 | J47: -0.2902158089
A48: 扣非净利润 | B48: =IFERROR(VLOOKUP("扣非净利润*",INDIRECT(VLOOKUP(ptype_selector,table_names,2,0)),MATCH(B$3,header_a,0),0),0) -> 42.52132025 | C48: 34.64497327 | D48: 28.58558412 | E48: 28.15935759 | F48: 31.72772801 | G48: 31.73625381 | H48: 27.36769894 | I48: 23.03990333 | J48: 21.8729242
A49: 扣非YoY% | B49: =IFERROR(IF(VLOOKUP("扣非净利润*",INDIRECT(VLOOKUP(ptype_selector,table_names,2,0)),MATCH(B$3,header_a,0),0)>VLOOKUP("扣非净利润*",INDIRECT(VLOOKUP(ptype_selector,table_names,2,0)),MATCH(EOMONTH(B$3,-12),header_a,0),0),ABS(VLOOKUP("扣非净利润*",INDIRECT(VLOOKUP(ptype_selector,table_names,2,0)),MATCH(B$3,header_a,0),0)/VLOOKUP("扣非净利润*",INDIRECT(VLOOKUP(ptype_selector,table_names,2,0)),MATCH(EOMONTH(B$3,-12),header_a,0),0)-1),-1*ABS(VLOOKUP("扣非净利润*",INDIRECT(VLOOKUP(ptype_selector,table_names,2,0)),MATCH(B$3,header_a,0),0)/VLOOKUP("扣非净利润*",INDIRECT(VLOOKUP(ptype_selector,table_names,2,0)),MATCH(EOMONTH(B$3,-12),header_a,0),0)-1)),"--") -> 0.3401943006 | C49: 0.09165289254 | D49: 0.04450082496 | E49: 0.2221994679 | F49: 0.4505480712 | G49: 0.4075206121 | H49: 0.02621615946 | I49: -0.1779997505 | J49: -0.2127951998
A50: 扣非净利润-调整 | B50: =IFERROR(VLOOKUP("扣非调整*",INDIRECT(VLOOKUP(ptype_selector,table_names,2,0)),MATCH(B$3,header_a,0),0),0) -> 40.95904421 | C50: 32.94517271 | D50: 26.94347507 | E50: 26.28632862 | F50: 28.99027549 | G50: 28.67656596 | H50: 24.37820606 | I50: 20.42568022 | J50: 18.56420337
A51: 扣非调整YoY | B51: =IFERROR(IF(VLOOKUP("扣非调整*",INDIRECT(VLOOKUP(ptype_selector,table_names,2,0)),MATCH(B$3,header_a,0),0)>VLOOKUP("扣非调整*",INDIRECT(VLOOKUP(ptype_selector,table_names,2,0)),MATCH(EOMONTH(B$3,-12),header_a,0),0),ABS(VLOOKUP("扣非调整*",INDIRECT(VLOOKUP(ptype_selector,table_names,2,0)),MATCH(B$3,header_a,0),0)/VLOOKUP("扣非调整*",INDIRECT(VLOOKUP(ptype_selector,table_names,2,0)),MATCH(EOMONTH(B$3,-12),header_a,0),0)-1),-1*ABS(VLOOKUP("扣非调整*",INDIRECT(VLOOKUP(ptype_selector,table_names,2,0)),MATCH(B$3,header_a,0),0)/VLOOKUP("扣非调整*",INDIRECT(VLOOKUP(ptype_selector,table_names,2,0)),MATCH(EOMONTH(B$3,-12),header_a,0),0)-1)),"--") -> 0.4128546044 | C51: 0.1488534839 | D51: 0.1052279648 | E51: 0.2869254946 | F51: 0.5616223822 | G51: 0.4407047776 | H51: 0.01085895836 | I51: -0.2008593175 | J51: -0.2912136257
A52: 第二部分、百分比报表【% of Total Revenue】
A53: 科目|报告期 | B53: =base_date -> 2022-09-30 | C53: =EOMONTH(B$53,-3) -> 2022-06-30 | D53: =EOMONTH(C$53,-3) -> 2022-03-31 | E53: 2021-12-31 | F53: 2021-09-30 | G53: 2021-06-30 | H53: 2021-03-31 | I53: 2020-12-31 | J53: 2020-09-30
A54: 一、营业总收入 | B54: =IFERROR(VLOOKUP("一、营业总收入*",INDIRECT(VLOOKUP(ptype_selector,table_names,2,0)),MATCH(B$3,header_a,0),0)*1/VLOOKUP("一、营业总收入*",INDIRECT(VLOOKUP(ptype_selector,table_names,2,0)),MATCH(B$3,header_a,0),0),"") -> 1 | C54: 1 | D54: 1 | E54: 1 | F54: 1 | G54: 1 | H54: 1 | I54: 1 | J54: 1
A55: 其中：营业收入 | B55: =IFERROR(VLOOKUP("其中：营业收入*",INDIRECT(VLOOKUP(ptype_selector,table_names,2,0)),MATCH(B$3,header_a,0),0)*1/VLOOKUP("一、营业总收入*",INDIRECT(VLOOKUP(ptype_selector,table_names,2,0)),MATCH(B$3,header_a,0),0),"") -> 1 | C55: 1 | D55: 1 | E55: 1 | F55: 1 | G55: 1 | H55: 1 | I55: 1 | J55: 1
A56: 二、营业总成本 | B56: =IFERROR(VLOOKUP("二、营业总成本*",INDIRECT(VLOOKUP(ptype_selector,table_names,2,0)),MATCH(B$3,header_a,0),0)*1/VLOOKUP("一、营业总收入*",INDIRECT(VLOOKUP(ptype_selector,table_names,2,0)),MATCH(B$3,header_a,0),0),"") -> 0.8091293543 | C56: 0.8357485197 | D56: 0.8552975094 | E56: 0.8521349045 | F56: 0.8356085688 | G56: 0.837454712 | H56: 0.8477143652 | I56: 0.8590749658 | J56: 0.8758411011
A57: 其中：营业成本 | B57: =IFERROR(VLOOKUP("其中：营业成本*",INDIRECT(VLOOKUP(ptype_selector,table_names,2,0)),MATCH(B$3,header_a,0),0)*1/VLOOKUP("一、营业总收入*",INDIRECT(VLOOKUP(ptype_selector,table_names,2,0)),MATCH(B$3,header_a,0),0),"") -> 0.6813520644 | C57: 0.6714548959 | D57: 0.6523373664 | E57: 0.6409783766 | F57: 0.5886991378 | G57: 0.5863466316 | H57: 0.5921928375 | I57: 0.6049361264 | J57: 0.6209145735
A58: 其中：毛利率 | B58: =1-B57 -> 0.3186479356 | C58: =1-C57 -> 0.3285451041 | D58: 0.3476626336 | E58: 0.3590216234 | F58: 0.4113008622 | G58: 0.4136533684 | H58: 0.4078071625 | I58: 0.3950638736 | J58: 0.3790854265
A59: 其中：营业税金 | B59: =IFERROR(VLOOKUP("其中：营业税金*",INDIRECT(VLOOKUP(ptype_selector,table_names,2,0)),MATCH(B$3,header_a,0),0)*1/VLOOKUP("一、营业总收入*",INDIRECT(VLOOKUP(ptype_selector,table_names,2,0)),MATCH(B$3,header_a,0),0),"") -> 0.008220813926 | C59: 0.008404228373 | D59: 0.008693165328 | E59: 0.008669601012 | F59: 0.008998204961 | G59: 0.008871305381 | H59: 0.009618309016 | I59: 0.009955638081 | J59: 0.009939008764
A60: 小计：四项费用 | B60: =IFERROR(VLOOKUP("小计：四项费用*",INDIRECT(VLOOKUP(ptype_selector,table_names,2,0)),MATCH(B$3,header_a,0),0)*1/VLOOKUP("一、营业总收入*",INDIRECT(VLOOKUP(ptype_selector,table_names,2,0)),MATCH(B$3,header_a,0),0),"") -> 0.1195564759 | C60: 0.1558893954 | D60: 0.1942669776 | E60: 0.2024869269 | F60: 0.2379112261 | G60: 0.2422367751 | H60: 0.2459032186 | I60: 0.2441832013 | J60: 0.2449875188
A61: 其中：销售费用 | B61: =IFERROR(VLOOKUP("其中：销售费用*",INDIRECT(VLOOKUP(ptype_selector,table_names,2,0)),MATCH(B$3,header_a,0),0)*1/VLOOKUP("一、营业总收入*",INDIRECT(VLOOKUP(ptype_selector,table_names,2,0)),MATCH(B$3,header_a,0),0),"") -> 0.02799257343 | C61: 0.03599422915 | D61: 0.04215164226 | E61: 0.04876453448 | F61: 0.07869382036 | G61: 0.07413779032 | H61: 0.07354496807 | I61: 0.07406420764 | J61: 0.07347285521
A62: 其中：管理费用 | B62: =IFERROR(VLOOKUP("其中：管理费用*",INDIRECT(VLOOKUP(ptype_selector,table_names,2,0)),MATCH(B$3,header_a,0),0)*1/VLOOKUP("一、营业总收入*",INDIRECT(VLOOKUP(ptype_selector,table_names,2,0)),MATCH(B$3,header_a,0),0),"") -> 0.0718617882 | C62: 0.07650643345 | D62: 0.07919525624 | E62: 0.08236977537 | F62: 0.09066737972 | G62: 0.09073975993 | H62: 0.09912940298 | I62: 0.1043184481 | J62: 0.1138006034
A63: 其中：财务费用 | B63: =IFERROR(VLOOKUP("其中：财务费用*",INDIRECT(VLOOKUP(ptype_selector,table_names,2,0)),MATCH(B$3,header_a,0),0)*1/VLOOKUP("一、营业总收入*",INDIRECT(VLOOKUP(ptype_selector,table_names,2,0)),MATCH(B$3,header_a,0),0),"") -> -0.02374190296 | C63: 2.21479327e-05 | D63: 0.03068209408 | E63: 0.02910373588 | F63: 0.02661513931 | G63: 0.03626715453 | H63: 0.03122958255 | I63: 0.02483023797 | J63: 0.01712036093
A64: 其中：研发费用 | B64: =IFERROR(VLOOKUP("其中：研发费用*",INDIRECT(VLOOKUP(ptype_selector,table_names,2,0)),MATCH(B$3,header_a,0),0)*1/VLOOKUP("一、营业总收入*",INDIRECT(VLOOKUP(ptype_selector,table_names,2,0)),MATCH(B$3,header_a,0),0),"") -> 0.04344401724 | C64: 0.04336658487 | D64: 0.04223798505 | E64: 0.04224888116 | F64: 0.04193488669 | G64: 0.04109207029 | H64: 0.04199926499 | I64: 0.04097030762 | J64: 0.04059369929
A65: 小计：减值损失 | B65: =IFERROR(VLOOKUP("小计：减值损失*",INDIRECT(VLOOKUP(ptype_selector,table_names,2,0)),MATCH(B$3,header_a,0),0)*1/VLOOKUP("一、营业总收入*",INDIRECT(VLOOKUP(ptype_selector,table_names,2,0)),MATCH(B$3,header_a,0),0),"") -> 0.0007845369728 | C65: 0.0009316319997 | D65: 0.0009709194424 | E65: 0.001034289051 | F65: 0.001609844674 | G65: 0.001472057172 | H65: 0.001566457464 | I65: 0.001856701854 | J65: 0.000315357101
A66: 其中：资产减值 | B66: =IFERROR(VLOOKUP("其中：资产减值*",INDIRECT(VLOOKUP(ptype_selector,table_names,2,0)),MATCH(B$3,header_a,0),0)*1/VLOOKUP("一、营业总收入*",INDIRECT(VLOOKUP(ptype_selector,table_names,2,0)),MATCH(B$3,header_a,0),0),"") -> 0.0006211763502 | C66: 0.0007699516343 | D66: 0.0007892528377 | E66: 0.000803964202 | F66: 0.001383056733 | G66: 0.001227459393 | H66: 0.001297124513 | I66: 0.001555965065 | J66: 0.0001288814806
A67: 其中：信用减值 | B67: =IFERROR(VLOOKUP("其中：信用减值*",INDIRECT(VLOOKUP(ptype_selector,table_names,2,0)),MATCH(B$3,header_a,0),0)*1/VLOOKUP("一、营业总收入*",INDIRECT(VLOOKUP(ptype_selector,table_names,2,0)),MATCH(B$3,header_a,0),0),"") -> 0.0001633606226 | C67: 0.0001616803654 | D67: 0.0001816666047 | E67: 0.0002303248488 | F67: 0.0002267879405 | G67: 0.0002445977789 | H67: 0.0002693329512 | I67: 0.000300736789 | J67: 0.0001864756204
A68: 三、营业利润 | B68: =IFERROR(VLOOKUP("三、营业利润*",INDIRECT(VLOOKUP(ptype_selector,table_names,2,0)),MATCH(B$3,header_a,0),0)*1/VLOOKUP("一、营业总收入*",INDIRECT(VLOOKUP(ptype_selector,table_names,2,0)),MATCH(B$3,header_a,0),0),"") -> 0 | C68: 0 | D68: 0 | E68: 0 | F68: 0 | G68: 0 | H68: 0 | I68: 0 | J68: 0
A69: * 非经常性损益 | B69: =IFERROR(VLOOKUP("非经常性损益*",INDIRECT(VLOOKUP(ptype_selector,table_names,2,0)),MATCH(B$3,header_a,0),0)*1/VLOOKUP("一、营业总收入*",INDIRECT(VLOOKUP(ptype_selector,table_names,2,0)),MATCH(B$3,header_a,0),0),"") -> 0.01312043659 | C69: 0.01850590836 | D69: 0.01901661774 | E69: 0.02179157523 | F69: 0.02452300149 | G69: 0.02293441295 | H69: 0.02590739993 | I69: 0.02792456253 | J69: 0.02166216285
A70: * 核心利润率 | B70: =IFERROR(VLOOKUP("核心利润*",INDIRECT(VLOOKUP(ptype_selector,table_names,2,0)),MATCH(B$3,header_a,0),0)*1/VLOOKUP("一、营业总收入*",INDIRECT(VLOOKUP(ptype_selector,table_names,2,0)),MATCH(B$3,header_a,0),0),"") -> 0.1900861087 | C70: 0.1633198483 | D70: 0.1437315712 | E70: 0.1468308065 | F70: 0.1627815865 | G70: 0.1610732308 | H70: 0.1507191774 | I70: 0.1390683323 | J70: 0.1238435418
A71: 四、利润总额 | B71: =IFERROR(VLOOKUP("四、利润总额*",INDIRECT(VLOOKUP(ptype_selector,table_names,2,0)),MATCH(B$3,header_a,0),0)*1/VLOOKUP("一、营业总收入*",INDIRECT(VLOOKUP(ptype_selector,table_names,2,0)),MATCH(B$3,header_a,0),0),"") -> 0.1981541396 | C71: 0.1767540308 | D71: 0.1574927203 | E71: 0.1617943415 | F71: 0.1774500151 | G71: 0.1722029169 | H71: 0.164535649 | I71: 0.1562093006 | J71: 0.1270288816
A72: 其中：所得税 | B72: =IFERROR(VLOOKUP("减：所得税*",INDIRECT(VLOOKUP(ptype_selector,table_names,2,0)),MATCH(B$3,header_a,0),0)*1/VLOOKUP("一、营业总收入*",INDIRECT(VLOOKUP(ptype_selector,table_names,2,0)),MATCH(B$3,header_a,0),0),"") -> 0.03271411268 | C72: 0.02627524747 | D72: 0.02825465136 | E72: 0.02863447387 | F72: 0.02841528935 | G72: 0.02634344486 | H72: 0.02493486742 | I72: 0.02567712591 | J72: 0.008912056301
A73: 五、净利润 | B73: =IFERROR(VLOOKUP("五、净利润*",INDIRECT(VLOOKUP(ptype_selector,table_names,2,0)),MATCH(B$3,header_a,0),0)*1/VLOOKUP("一、营业总收入*",INDIRECT(VLOOKUP(ptype_selector,table_names,2,0)),MATCH(B$3,header_a,0),0),"") -> 0.1654400269 | C73: 0.1504787834 | D73: 0.1292380689 | E73: 0.1331598676 | F73: 0.1490347258 | G73: 0.1458594721 | H73: 0.1396007816 | I73: 0.1305321747 | J73: 0.1181168253
A74: 其中：少数股东 | B74: =IFERROR(VLOOKUP("其中：少数股东*",INDIRECT(VLOOKUP(ptype_selector,table_names,2,0)),MATCH(B$3,header_a,0),0)*1/VLOOKUP("一、营业总收入*",INDIRECT(VLOOKUP(ptype_selector,table_names,2,0)),MATCH(B$3,header_a,0),0),"") -> -9.341670548e-05 | C74: -9.322848304e-05 | D74: -0.0001181493969 | E74: -0.0001349951043 | F74: -0.0001563311232 | G74: -0.0001446837456 | H74: -0.0001280481758 | I74: -0.0001168217457 | J74: -7.60319812e-05
A75: 其中：归母净利润 | B75: =IFERROR(VLOOKUP("其中：归母净利润*",INDIRECT(VLOOKUP(ptype_selector,table_names,2,0)),MATCH(B$3,header_a,0),0)*1/VLOOKUP("一、营业总收入*",INDIRECT(VLOOKUP(ptype_selector,table_names,2,0)),MATCH(B$3,header_a,0),0),"") -> 0.1655334436 | C75: 0.1505720119 | D75: 0.1293562183 | E75: 0.1332948627 | F75: 0.1491910569 | G75: 0.1460041558 | H75: 0.1397288297 | I75: 0.1306489964 | J75: 0.1181928573
A77: 第三部分、其他
A78: 非经常性损益 | B78: =IFERROR(VLOOKUP("非经常性损益*",INDIRECT(VLOOKUP(ptype_selector,table_names,2,0)),MATCH(B$3,header_a,0),0),0) -> 3.52811179 | C78: 4.61973983 | D78: 4.64858483 | E78: 5.14347931 | F78: 5.70973194 | G78: 5.35025332 | H78: 5.55508091 | I78: 5.55882914 | J78: 4.16922092
A79: 营业外损益 | B79: =IFERROR(VLOOKUP("加：营业外收入*",INDIRECT(VLOOKUP(ptype_selector,table_names,2,0)),MATCH(B$3,header_a,0),0),0)-IFERROR(VLOOKUP("减：营业外支出*",INDIRECT(VLOOKUP(ptype_selector,table_names,2,0)),MATCH(B$3,header_a,0),0),0) -> 1.64264789 | C79: 1.76585747 | D79: 1.71646644 | E79: 2.17974835 | F79: 1.08572524 | G79: 1.09467409 | H79: 1.05103252 | I79: 0.57628048 | J79: 0.72712918
A80: 投资收益 | B80: =IFERROR(VLOOKUP("加：投资收益*",INDIRECT(VLOOKUP(ptype_selector,table_names,2,0)),MATCH(B$3,header_a,0),0),0) -> 0.29883507 | C80: 0.47890343 | D80: 0.72771058 | E80: 0.6294815 | F80: 0.64976918 | G80: 0.80635416 | H80: 0.53221386 | I80: 0.70997066 | J80: 0.82195656
A81: 公允价值变动 | B81: =IFERROR(VLOOKUP("加：公允价值变动*",INDIRECT(VLOOKUP(ptype_selector,table_names,2,0)),MATCH(B$3,header_a,0),0),0) -> -0.2822835 | C81: -0.06143489 | D81: -0.10963865 | E81: -0.09396901 | F81: -0.07189123 | G81: -0.11887855 | H81: 0.10100526 | I81: -0.00680484 | J81: -0.04256861
A82: 其他收益 | B82: =IFERROR(VLOOKUP("加：其他收益*",INDIRECT(VLOOKUP(ptype_selector,table_names,2,0)),MATCH(B$3,header_a,0),0),0) -> 1.9431786 | C82: 2.45208604 | D82: 2.31419692 | E82: 2.42337506 | F82: 3.27599176 | G82: 2.84245348 | H82: 3.10550194 | I82: 3.52820556 | J82: 2.66135165
A83: 税务相关
A84: 净利润 | B84: =IFERROR(VLOOKUP("五、净利润*",INDIRECT(VLOOKUP(ptype_selector,table_names,2,0)),MATCH(B$3,header_a,0),0),0) -> 44.487156 | C84: 37.56491254 | D84: 31.5920599 | E84: 31.42980793 | F84: 34.70000743 | G84: 34.02681928 | H84: 29.93328697 | I84: 25.98450936 | J84: 22.73342429
A85: 营业税 | B85: =IFERROR(VLOOKUP("其中：营业税金*",INDIRECT(VLOOKUP(ptype_selector,table_names,2,0)),MATCH(B$3,header_a,0),0),0) -> 2.2105934 | C85: 2.09799745 | D85: 2.12503175 | E85: 2.04629142 | F85: 2.09506729 | G85: 2.06954201 | H85: 2.06236384 | I85: 1.9818284 | J85: 1.91291717
A86: 所得税 | B86: =IFERROR(VLOOKUP("减：所得税*",INDIRECT(VLOOKUP(ptype_selector,table_names,2,0)),MATCH(B$3,header_a,0),0),0) -> 8.7968907 | C86: 6.5592461 | D86: 6.90680885 | E86: 6.75861301 | F86: 6.61597991 | G86: 6.14552915 | H86: 5.34654988 | I86: 5.11144107 | J86: 1.71526416
A87: 有效税率 | B87: =IFERROR(IFERROR(VLOOKUP("减：所得税*",INDIRECT(VLOOKUP(ptype_selector,table_names,2,0)),MATCH(B$3,header_a,0),0),"")/IFERROR(VLOOKUP("四、利润总额*",INDIRECT(VLOOKUP(ptype_selector,table_names,2,0)),MATCH(B$3,header_a,0),0),""),"--") -> 0.1650942683 | C87: 0.1486543042 | D87: 0.1794029039 | E87: 0.176980688 | F87: 0.1601312309 | G87: 0.1529790861 | H87: 0.1515468992 | I87: 0.164376422 | J87: 0.07015771678

Sheet 资产负债 (hidden)
A1: =stockname & "备查报表--资产和负债聚合分析" -> 福耀玻璃备查报表--资产和负债聚合分析
A2: 第一部分、结构报表
A3: 一、资产负债与股东权益简式报表
A4: 基准报告期 | B4: =base_date -> 2022-09-30 | C4: 数据列示 | D4: =综合板!AN5 -> 季度
A5: 报告期 | B5: =base_date -> 2022-09-30 | C5: =EOMONTH(B5,-1*duration) -> 2022-06-30 | D5: 2022-03-31 | E5: 2021-12-31 | F5: 2021-09-30 | G5: 2021-06-30 | H5: 2021-03-31 | I5: 2020-12-31 | J5: 2020-09-30
A6: 资产总额 | B6: =IFERROR(VLOOKUP("资产合计*",bsa_a,MATCH(B$5,header_a,0),0),"--") -> 512.5666911 | C6: 482.4411033 | D6: 468.9066238 | E6: 447.8489395 | F6: 448.4037069 | G6: 443.2309131 | H6: 399.2281666 | I6: 384.2362518 | J6: 396.194197
A7: 其中：经营性资产 | B7: =IFERROR(IFERROR(VLOOKUP("应收账款*",bsa_a,MATCH(B$5,header_a,0),0),0)+IFERROR(VLOOKUP("应收票据*",bsa_a,MATCH(B$5,header_a,0),0),0)+IFERROR(VLOOKUP("合同资产*",bsa_a,MATCH(B$5,header_a,0),0),0)+IFERROR(VLOOKUP("预付款项*",bsa_a,MATCH(B$5,header_a,0),0),0)+IFERROR(VLOOKUP("存货*",bsa_a,MATCH(B$5,header_a,0),0),0)+IFERROR(VLOOKUP("固定资产*",bsa_a,MATCH(B$5,header_a,0),0),0)+IFERROR(VLOOKUP("无形资产*",bsa_a,MATCH(B$5,header_a,0),0),0)+IFERROR(VLOOKUP("长期待摊费用*",bsa_a,MATCH(B$5,header_a,0),0),0)+IFERROR(VLOOKUP("递延所得税资产*",bsa_a,MATCH(B$5,header_a,0),0),0)+IFERROR(VLOOKUP("其他应收款*",bsa_a,MATCH(B$5,header_a,0),0),0),"--") -> 281.0339712 | C7: 262.2043347 | D7: 256.9335827 | E7: 256.9185792 | F7: 245.9027026 | G7: 238.7706487 | H7: 239.934722 | I7: 242.1787851 | J7: 245.3862358
A8: 占总资产比例 | B8: =IFERROR((IFERROR(IFERROR(VLOOKUP("应收账款*",bsa_a,MATCH(B$5,header_a,0),0),0)+IFERROR(VLOOKUP("应收票据*",bsa_a,MATCH(B$5,header_a,0),0),0)+IFERROR(VLOOKUP("合同资产*",bsa_a,MATCH(B$5,header_a,0),0),0)+IFERROR(VLOOKUP("预付款项*",bsa_a,MATCH(B$5,header_a,0),0),0)+IFERROR(VLOOKUP("存货*",bsa_a,MATCH(B$5,header_a,0),0),0)+IFERROR(VLOOKUP("固定资产*",bsa_a,MATCH(B$5,header_a,0),0),0)+IFERROR(VLOOKUP("无形资产*",bsa_a,MATCH(B$5,header_a,0),0),0)+IFERROR(VLOOKUP("长期待摊费用*",bsa_a,MATCH(B$5,header_a,0),0),0)+IFERROR(VLOOKUP("递延所得税资产*",bsa_a,MATCH(B$5,header_a,0),0),0)+IFERROR(VLOOKUP("其他应收款*",bsa_a,MATCH(B$5,header_a,0),0),0),"--"))/IFERROR(VLOOKUP("资产合计*",bsa_a,MATCH(B$5,header_a,0),0),"--"),"--") -> 0.54828762 | C8: 0.543495015 | D8: 0.5479418922 | E8: 0.5736724073 | F8: 0.5483957845 | G8: 0.5387048638 | H8: 0.6009964779 | I8: 0.6302861429 | J8: 0.6193584805
A9: 其中：金融性资产 | B9: =IFERROR(IFERROR(VLOOKUP("交易性金融资产*",bsa_a,MATCH(B$5,header_a,0),0),0)+IFERROR(VLOOKUP("其他流动资产*",bsa_a,MATCH(B$5,header_a,0),0),0)+IFERROR(VLOOKUP("一年内到期非流动资产*",bsa_a,MATCH(B$5,header_a,0),0),0)+IFERROR(VLOOKUP("可供出售金融资产*",bsa_a,MATCH(B$5,header_a,0),0),0)+IFERROR(VLOOKUP("长期股权投资*",bsa_a,MATCH(B$5,header_a,0),0),0)+IFERROR(VLOOKUP("投资性房地产*",bsa_a,MATCH(B$5,header_a,0),0),0)+IFERROR(VLOOKUP("持有至到期投资*",bsa_a,MATCH(B$5,header_a,0),0),0),"--") -> 3.64006884 | C9: 3.59994782 | D9: 3.43560385 | E9: 3.93680497 | F9: 3.40911045 | G9: 3.45197809 | H9: 6.50859847 | I9: 7.59841176 | J9: 11.84237526
A10: 占总资产比例 | B10: =IFERROR(IFERROR(IFERROR(VLOOKUP("交易性金融资产*",bsa_a,MATCH(B$5,header_a,0),0),0)+IFERROR(VLOOKUP("其他流动资产*",bsa_a,MATCH(B$5,header_a,0),0),0)+IFERROR(VLOOKUP("一年内到期非流动资产*",bsa_a,MATCH(B$5,header_a,0),0),0)+IFERROR(VLOOKUP("可供出售金融资产*",bsa_a,MATCH(B$5,header_a,0),0),0)+IFERROR(VLOOKUP("长期股权投资*",bsa_a,MATCH(B$5,header_a,0),0),0)+IFERROR(VLOOKUP("投资性房地产*",bsa_a,MATCH(B$5,header_a,0),0),0)+IFERROR(VLOOKUP("持有至到期投资*",bsa_a,MATCH(B$5,header_a,0),0),0),"--")/IFERROR(VLOOKUP("资产合计*",bsa_a,MATCH(B$5,header_a,0),0),"--"),"--") -> 0.007101649216 | C10: 0.007461942599 | D10: 0.007326840091 | E10: 0.008790475141 | F10: 0.007602770444 | G10: 0.007788216002 | H10: 0.01630295408 | I10: 0.01977536405 | J10: 0.02989032992
A11: 其中：在建工程 | B11: =IFERROR(VLOOKUP("在建工程*",bsa_a,MATCH(B$5,header_a,0),0),"--") -> 28.06117559 | C11: 24.24647735 | D11: 22.73446687 | E11: 19.76816816 | F11: 23.15187114 | G11: 25.73105647 | H11: 25.64305851 | I11: 23.54298463 | J11: 25.55665573
A12: 占总资产比例 | B12: =IFERROR(IFERROR(VLOOKUP("在建工程*",bsa_a,MATCH(B$5,header_a,0),0),"--")/IFERROR(VLOOKUP("资产合计*",bsa_a,MATCH(B$5,header_a,0),0),"--"),"--") -> 0.05474638925 | C12: 0.0502579013 | D12: 0.04848399599 | E12: 0.04414025895 | F12: 0.05163175679 | G12: 0.05805338868 | H12: 0.06423158648 | I12: 0.06127215878 | J12: 0.06450537621
A13: 其中：现金 | B13: =IFERROR(VLOOKUP("货币资金*",bsa_a,MATCH(B$5,header_a,0),0),"--") -> 176.0057443 | C13: 169.3211069 | D13: 162.0168878 | E13: 143.2735626 | F13: 152.3053121 | G13: 152.265186 | H13: 106.4562949 | I13: 88.09985853 | J13: 93.29454561
A14: 占总资产比例 | B14: =IFERROR(IFERROR(VLOOKUP("货币资金*",bsa_a,MATCH(B$5,header_a,0),0),"--")/IFERROR(VLOOKUP("资产合计*",bsa_a,MATCH(B$5,header_a,0),0),"--"),"--") -> 0.3433811587 | C14: 0.3509674149 | D14: 0.3455205782 | E14: 0.3199149311 | F14: 0.3396611353 | G14: 0.3435346712 | H14: 0.2666552708 | I14: 0.2292856494 | J14: 0.2354768099
A15: 其中：商誉 | B15: =IFERROR(VLOOKUP("商誉*",bsa_a,MATCH(B$5,header_a,0),0),"--") -> 1.54940513 | C15: 1.54940513 | D15: 1.54940513 | E15: 1.54940513 | F15: 1.54940513 | G15: 1.54940513 | H15: 1.54940513 | I15: 1.54940513 | J15: 1.54940513
A16: 占总资产比例 | B16: =IFERROR(IFERROR(VLOOKUP("商誉*",bsa_a,MATCH(B$5,header_a,0),0),"--")/IFERROR(VLOOKUP("资产合计*",bsa_a,MATCH(B$5,header_a,0),0),"--"),"--") -> 0.003022836163 | C16: 0.003211594368 | D16: 0.003304293545 | E16: 0.003459660151 | F16: 0.003455379842 | G16: 0.003495706378 | H16: 0.003881001541 | I16: 0.004032428285 | J16: 0.003910721413
A17: 其中：其他资产 | B17: =IFERROR(B6-SUM(B7,B9,B11,B13,B15),"--") -> 22.27632608 | C17: =IFERROR(C6-SUM(C7,C9,C11,C13,C15),"--") -> 21.51983143 | D17: 22.23667745 | E17: 22.40241942 | F17: 22.0853054 | G17: 21.46263873 | H17: 19.13608763 | I17: 21.26680667 | J17: 18.56497943
A18: 占总资产比例 | B18: =IFERROR(B17/IFERROR(VLOOKUP("资产合计*",bsa_a,MATCH(B$5,header_a,0),0),"--"),"--") -> 0.04346034665 | C18: 0.04460613178 | D18: 0.04742239994 | E18: 0.05002226743 | F18: 0.04925317311 | G18: 0.04842315393 | H18: 0.04793270924 | I18: 0.05534825662 | J18: 0.04685828205
A19: 负债总额 | B19: =IFERROR(VLOOKUP("负债合计*",bsa_a,MATCH(B$5,header_a,0),0),"--") -> 228.0903155 | C19: 217.0455793 | D19: 197.5062562 | E19: 184.9078966 | F19: 190.2775726 | G19: 193.7417987 | H19: 173.9950738 | I19: 168.3271789 | J19: 186.2474485
A20: 其中：金融性负债 | B20: =IFERROR((IFERROR(VLOOKUP("短期借款*",bsa_a,MATCH(B$5,header_a,0),0)+VLOOKUP("一年内到期的非流动负债*",bsa_a,MATCH(B$5,header_a,0),0)+VLOOKUP("其他流动负债*",bsa_a,MATCH(B$5,header_a,0),0),0)+IFERROR(VLOOKUP("长期借款*",bsa_a,MATCH(B$5,header_a,0),0)+VLOOKUP("应付债券*",bsa_a,MATCH(B$5,header_a,0),0),0)),"--") -> 136.4028187 | C20: 108.0663883 | D20: 96.67640483 | E20: 90.70044547 | F20: 102.3690175 | G20: 114.5919548 | H20: 103.0458218 | I20: 96.52720934 | J20: 119.8380588
A21: 占总资产比例 | B21: =IFERROR(IFERROR((IFERROR(VLOOKUP("短期借款*",bsa_a,MATCH(B$5,header_a,0),0)+VLOOKUP("一年内到期的非流动负债*",bsa_a,MATCH(B$5,header_a,0),0)+VLOOKUP("其他流动负债*",bsa_a,MATCH(B$5,header_a,0),0),0)+IFERROR(VLOOKUP("长期借款*",bsa_a,MATCH(B$5,header_a,0),0)+VLOOKUP("应付债券*",bsa_a,MATCH(B$5,header_a,0),0),0)),"--")/IFERROR(VLOOKUP("资产合计*",bsa_a,MATCH(B$5,header_a,0),0),"--"),"--") -> 0.2661172119 | C21: 0.2239991319 | D21: 0.2061741079 | E21: 0.2025246405 | F21: 0.228296546 | G21: 0.2585378217 | H21: 0.2581126044 | I21: 0.2512183816 | J21: 0.3024730289
A22: 其中：经营性负债 | B22: =IFERROR(IFERROR(VLOOKUP("应付账款*",bsa_a,MATCH(B$5,header_a,0),0),0)+IFERROR(VLOOKUP("应付票据*",bsa_a,MATCH(B$5,header_a,0),0),0)+IFERROR(VLOOKUP("预收款项*",bsa_a,MATCH(B$5,header_a,0),0),0)+IFERROR(VLOOKUP("应付职工薪酬*",bsa_a,MATCH(B$5,header_a,0),0),0)+IFERROR(VLOOKUP("应交税费*",bsa_a,MATCH(B$5,header_a,0),0),0)+IFERROR(VLOOKUP("长期应付款合计*",bsa_a,MATCH(B$5,header_a,0),0),0)+IFERROR(VLOOKUP("递延收益-非流动*",bsa_a,MATCH(B$5,header_a,0),0),0),"--") -> 56.7060181 | C22: 45.22275114 | D22: 47.0087754 | E22: 46.75932697 | F22: 43.07927453 | G22: 40.00688541 | H22: 39.77680163 | I22: 39.93473566 | J22: 35.52074213
A23: 占总资产比例 | B23: =IFERROR(IFERROR(IFERROR(VLOOKUP("应付账款*",bsa_a,MATCH(B$5,header_a,0),0),0)+IFERROR(VLOOKUP("应付票据*",bsa_a,MATCH(B$5,header_a,0),0),0)+IFERROR(VLOOKUP("预收款项*",bsa_a,MATCH(B$5,header_a,0),0),0)+IFERROR(VLOOKUP("应付职工薪酬*",bsa_a,MATCH(B$5,header_a,0),0),0)+IFERROR(VLOOKUP("应交税费*",bsa_a,MATCH(B$5,header_a,0),0),0)+IFERROR(VLOOKUP("长期应付款合计*",bsa_a,MATCH(B$5,header_a,0),0),0)+IFERROR(VLOOKUP("递延收益-非流动*",bsa_a,MATCH(B$5,header_a,0),0),0),"--")/IFERROR(VLOOKUP("资产合计*",bsa_a,MATCH(B$5,header_a,0),0),"--"),"--") -> 0.1106314926 | C23: 0.09373735122 | D23: 0.1002518903 | E23: 0.1044087031 | F23: 0.09607252096 | G23: 0.09026194751 | H23: 0.09963425669 | I23: 0.1039327639 | J23: 0.08965487733
A24: 其中：其他负债 | B24: =IFERROR(B19-SUM(B20,B22),"--") -> 34.98147866 | C24: =IFERROR(C19-SUM(C20,C22),"--") -> 63.75643985 | D24: 53.82107593 | E24: 47.44812419 | F24: 44.82928055 | G24: 39.14295852 | H24: 31.17245033 | I24: 31.86523386 | J24: 30.88864761
A25: 占总资产比例 | B25: =IFERROR(B24/IFERROR(VLOOKUP("资产合计*",bsa_a,MATCH(B$5,header_a,0),0),"--"),"--") -> 0.06824766272 | C25: 0.1321538306 | D25: 0.1147799438 | E25: 0.1059467155 | F25: 0.09997526751 | G25: 0.08831278994 | H25: 0.07808179116 | I25: 0.08293135722 | J25: 0.07796340241
A26: 所有者权益合计 | B26: =IFERROR(VLOOKUP("所有者权益（或股东权益）合计*",bsa_a,MATCH(B$5,header_a,0),0),"--") -> 284.4763756 | C26: 265.3955239 | D26: 271.4003676 | E26: 262.9410429 | F26: 258.1261343 | G26: 249.4891144 | H26: 225.2330928 | I26: 215.909073 | J26: 209.9467485
A27: 其中：上市公司 | B27: =IFERROR(VLOOKUP("归属于母公司所有者*",bsa_a,MATCH(B$5,header_a,0),0),"--") -> 284.6179067 | C27: 265.5284531 | D27: 271.5273522 | E27: 263.0601593 | F27: 258.2425455 | G27: 249.5476191 | H27: 225.2800447 | I27: 215.9451751 | J27: 209.9756095
A28: 占总资产比例 | B28: =IFERROR(IFERROR(VLOOKUP("归属于母公司所有者*",bsa_a,MATCH(B$5,header_a,0),0),"--")/IFERROR(VLOOKUP("资产合计*",bsa_a,MATCH(B$5,header_a,0),0),"--"),"--") -> 0.5552797551 | C28: 0.5503852207 | D28: 0.579064868 | E28: 0.5873859153 | F28: 0.5759152779 | G28: 0.5630194368 | H28: 0.5642889543 | I28: 0.5620114553 | J28: 0.5299815371
A29: 其中：少数股东权益 | B29: =IFERROR(VLOOKUP("少数股东权益*",bsa_a,MATCH(B$5,header_a,0),0),"--") -> -0.14153109 | C29: -0.13292914 | D29: -0.12698458 | E29: -0.11911635 | F29: -0.11641115 | G29: -0.05850469 | H29: -0.04695185 | I29: -0.0361021 | J29: -0.02886104
A30: 占总资产比例 | B30: =IFERROR(IFERROR(VLOOKUP("少数股东权益*",bsa_a,MATCH(B$5,header_a,0),0),"--")/IFERROR(VLOOKUP("资产合计*",bsa_a,MATCH(B$5,header_a,0),0),"--"),"--") -> -0.0002761222929 | C30: -0.0002755344416 | D30: -0.0002708099514 | E30: -0.0002659743933 | F30: -0.0002596123721 | G30: -0.0001319959603 | H30: -0.0001176065567 | I30: -9.395807873e-05 | J30: -7.284569088e-05
A31: 其中：其他权益资本 | B31: =IFERROR(B26-B27-B29, "--") -> -8.604228441e-16 | C31: =IFERROR(C26-C27-C29, "--") -> -4.429789868e-14 | D31: 1.554312234e-15 | E31: 4.386768726e-14 | F31: 2.374489494e-14 | G31: 2.184363801e-14 | H31: 7.632783294e-16 | I31: -2.212119377e-14 | J31: 1.887032197e-14
A32: 占总资产比例 | B32: =IFERROR(B31/IFERROR(VLOOKUP("资产合计*",bsa_a,MATCH(B$5,header_a,0),0),"--"),"--") -> -1.6786554e-18 | C32: -9.182032456e-17 | D32: 3.314758537e-18 | E32: 9.795197306e-17 | F32: 5.295427886e-17 | G32: 4.928274939e-17 | H32: 1.911884965e-18 | I32: -5.757185497e-17 | J32: 4.762897113e-17
A33: 二、经营性资产
A34: 经营性资产合计 | B34: =IFERROR(IFERROR(VLOOKUP("应收账款*",bsa_a,MATCH(B$5,header_a,0),0),0)+IFERROR(VLOOKUP("应收票据*",bsa_a,MATCH(B$5,header_a,0),0),0)+IFERROR(VLOOKUP("合同资产*",bsa_a,MATCH(B$5,header_a,0),0),0)+IFERROR(VLOOKUP("预付款项*",bsa_a,MATCH(B$5,header_a,0),0),0)+IFERROR(VLOOKUP("存货*",bsa_a,MATCH(B$5,header_a,0),0),0)+IFERROR(VLOOKUP("固定资产*",bsa_a,MATCH(B$5,header_a,0),0),0)+IFERROR(VLOOKUP("无形资产*",bsa_a,MATCH(B$5,header_a,0),0),0)+IFERROR(VLOOKUP("长期待摊费用*",bsa_a,MATCH(B$5,header_a,0),0),0)+IFERROR(VLOOKUP("递延所得税资产*",bsa_a,MATCH(B$5,header_a,0),0),0)+IFERROR(VLOOKUP("其他应收款*",bsa_a,MATCH(B$5,header_a,0),0),0),"--") -> 281.0339712 | C34: 262.2043347 | D34: 256.9335827 | E34: 256.9185792 | F34: 245.9027026 | G34: 238.7706487 | H34: 239.934722 | I34: 242.1787851 | J34: 245.3862358
A35: 其中：长期经营性资产 | B35: =IFERROR(IFERROR(VLOOKUP("固定资产*",bsa_a,MATCH(B$5,header_a,0),0),0)+IFERROR(VLOOKUP("无形资产*",bsa_a,MATCH(B$5,header_a,0),0),0)+IFERROR(VLOOKUP("长期待摊费用*",bsa_a,MATCH(B$5,header_a,0),0),0),"--") -> 164.1375595 | C35: 162.2834923 | D35: 158.8915611 | E35: 161.8205211 | F35: 159.5405534 | G35: 156.1112541 | H35: 157.2243852 | I35: 159.6232116 | J35: 161.7964019
A36: 占总资产比例 | B36: =IFERROR(IFERROR(IFERROR(VLOOKUP("固定资产*",bsa_a,MATCH(B$5,header_a,0),0),0)+IFERROR(VLOOKUP("无形资产*",bsa_a,MATCH(B$5,header_a,0),0),0)+IFERROR(VLOOKUP("长期待摊费用*",bsa_a,MATCH(B$5,header_a,0),0),0),"--")/IFERROR(VLOOKUP("资产合计*",bsa_a,MATCH(B$5,header_a,0),0),"--"),"--") -> 0.320226738 | C36: 0.3363799045 | D36: 0.3388554417 | E36: 0.3613283562 | F36: 0.3557966871 | G36: 0.3522120176 | H36: 0.3938208732 | I36: 0.4154298582 | J36: 0.4083765062
A37: 其中：固定资产 | B37: =IFERROR(VLOOKUP("固定资产*",bsa_a,MATCH(B$5,header_a,0),0),"--") -> 146.8527763 | C37: 145.112572 | D37: 142.1019009 | E37: 145.0176406 | F37: 142.7942178 | G37: 139.4966357 | H37: 140.4470038 | I37: 142.6043891 | J37: 144.2414974
A38: 占比 | B38: =IFERROR(IFERROR(VLOOKUP("固定资产*",bsa_a,MATCH(B$5,header_a,0),0),"--")/IFERROR(VLOOKUP("资产合计*",bsa_a,MATCH(B$5,header_a,0),0),"--"),"--") -> 0.28650472 | C38: 0.3007881605 | D38: 0.3030494638 | E38: 0.3238092755 | F38: 0.3184501278 | G38: 0.3147267747 | H38: 0.3517963299 | I38: 0.3711372584 | J38: 0.364067668
A39: 其中：无形资产 | B39: =IFERROR(VLOOKUP("无形资产*",bsa_a,MATCH(B$5,header_a,0),0),"--") -> 12.6426139 | C39: 12.68826395 | D39: 12.34501327 | E39: 12.35091876 | F39: 12.42490972 | G39: 12.56454716 | H39: 12.55545336 | I39: 12.70843245 | J39: 12.95877408
A40: 占比 | B40: =IFERROR(IFERROR(VLOOKUP("无形资产*",bsa_a,MATCH(B$5,header_a,0),0),"--")/IFERROR(VLOOKUP("资产合计*",bsa_a,MATCH(B$5,header_a,0),0),"--"),"--") -> 0.02466530525 | C40: 0.02630013045 | D40: 0.02632723157 | E40: 0.02757831418 | F40: 0.02770920385 | G40: 0.02834763278 | H40: 0.03144931748 | I40: 0.03307452743 | J40: 0.03270813702
A41: 其中：长期待摊费用 | B41: =IFERROR(VLOOKUP("长期待摊费用*",bsa_a,MATCH(B$5,header_a,0),0),"--") -> 4.64216925 | C41: 4.48265633 | D41: 4.44464695 | E41: 4.45196175 | F41: 4.32142594 | G41: 4.05007125 | H41: 4.22192801 | I41: 4.31039005 | J41: 4.59613049
A42: 占比 | B42: =IFERROR(IFERROR(VLOOKUP("长期待摊费用*",bsa_a,MATCH(B$5,header_a,0),0),"--")/IFERROR(VLOOKUP("资产合计*",bsa_a,MATCH(B$5,header_a,0),0),"--"),"--") -> 0.009056712678 | C42: 0.009291613628 | D42: 0.009478746352 | E42: 0.009940766533 | F42: 0.00963735552 | G42: 0.009137610059 | H42: 0.01057522581 | I42: 0.01121807229 | J42: 0.01160070118
A43: 其中：短期经营性资产 | B43: =IFERROR(IFERROR(VLOOKUP("应收账款*",bsa_a,MATCH(B$5,header_a,0),0),0)+IFERROR(VLOOKUP("应收票据*",bsa_a,MATCH(B$5,header_a,0),0),0)+IFERROR(VLOOKUP("合同资产*",bsa_a,MATCH(B$5,header_a,0),0),0)+IFERROR(VLOOKUP("预付款项*",bsa_a,MATCH(B$5,header_a,0),0),0)+IFERROR(VLOOKUP("存货*",bsa_a,MATCH(B$5,header_a,0),0),0)+IFERROR(VLOOKUP("递延所得税资产*",bsa_a,MATCH(B$5,header_a,0),0),0)+IFERROR(VLOOKUP("其他应收款*",bsa_a,MATCH(B$5,header_a,0),0),0),"--") -> 116.8964117 | C43: 99.9208424 | D43: 98.0420216 | E43: 95.0980581 | F43: 86.36214923 | G43: 82.65939451 | H43: 82.71033684 | I43: 82.55557352 | J43: 83.58983388
A44: 占总资产比例 | B44: =IFERROR(IFERROR(IFERROR(VLOOKUP("应收账款*",bsa_a,MATCH(B$5,header_a,0),0),0)+IFERROR(VLOOKUP("应收票据*",bsa_a,MATCH(B$5,header_a,0),0),0)+IFERROR(VLOOKUP("合同资产*",bsa_a,MATCH(B$5,header_a,0),0),0)+IFERROR(VLOOKUP("预付款项*",bsa_a,MATCH(B$5,header_a,0),0),0)+IFERROR(VLOOKUP("存货*",bsa_a,MATCH(B$5,header_a,0),0),0)+IFERROR(VLOOKUP("递延所得税资产*",bsa_a,MATCH(B$5,header_a,0),0),0)+IFERROR(VLOOKUP("其他应收款*",bsa_a,MATCH(B$5,header_a,0),0),0),"--")/IFERROR(VLOOKUP("资产合计*",bsa_a,MATCH(B$5,header_a,0),0),"--"),"--") -> 0.228060882 | C44: 0.2071151105 | D44: 0.2090864505 | E44: 0.2123440511 | F44: 0.1925990974 | G44: 0.1864928462 | H44: 0.2071756047 | I44: 0.2148562847 | J44: 0.2109819743
A45: 其中：应收账款 | B45: =IFERROR(VLOOKUP("应收账款*",bsa_a,MATCH(B$5,header_a,0),0),"--") -> 52.6388878 | C45: 41.48092578 | D45: 43.2691309 | E45: 43.11233501 | F45: 38.19083574 | G45: 39.28398931 | H45: 37.7857322 | I45: 37.34495117 | J45: 38.13541231
A46: 占比 | B46: =IFERROR(IFERROR(VLOOKUP("应收账款*",bsa_a,MATCH(B$5,header_a,0),0),"--")/IFERROR(VLOOKUP("资产合计*",bsa_a,MATCH(B$5,header_a,0),0),"--"),"--") -> 0.1026966612 | C46: 0.08598132601 | D46: 0.09227664679 | E46: 0.09626535022 | F46: 0.08517065125 | G46: 0.08863097801 | H46: 0.0946469597 | I46: 0.09719268026 | J46: 0.09625434345
A47: 其中：应收票据 | B47: =IFERROR(VLOOKUP("应收票据*",bsa_a,MATCH(B$5,header_a,0),0),"--") -> 1.41254338 | C47: 1.13686087 | D47: 1.21010943 | E47: 0.3888827 | F47: 0.18035927 | G47: 0.15707491 | H47: 0.16972473 | I47: 0.19430381 | J47: 0.21555073
A48: 占比 | B48: =IFERROR(IFERROR(VLOOKUP("应收票据*",bsa_a,MATCH(B$5,header_a,0),0),"--")/IFERROR(VLOOKUP("资产合计*",bsa_a,MATCH(B$5,header_a,0),0),"--"),"--") -> 0.002755823592 | C48: 0.002356475977 | D48: 0.002580704491 | E48: 0.0008683345335 | F48: 0.0004022251985 | G48: 0.0003543861797 | H48: 0.000425132153 | I48: 0.0005056883859 | J48: 0.0005440532235
A49: 其中：存货 | B49: =IFERROR(VLOOKUP("存货*",bsa_a,MATCH(B$5,header_a,0),0),"--") -> 53.61622144 | C49: 49.29455629 | D49: 45.73768132 | E49: 43.27048485 | F49: 39.27564 | G49: 33.9647714 | H49: 32.60401002 | I49: 32.80989599 | J49: 33.64765703
A50: 占比 | B50: =IFERROR(IFERROR(VLOOKUP("存货*",bsa_a,MATCH(B$5,header_a,0),0),"--")/IFERROR(VLOOKUP("资产合计*",bsa_a,MATCH(B$5,header_a,0),0),"--"),"--") -> 0.1046034055 | C50: 0.1021773559 | D50: 0.09754112866 | E50: 0.09661848233 | F50: 0.08758990926 | G50: 0.07662996961 | H50: 0.08166760952 | I50: 0.08538990226 | J50: 0.0849271829
A51: 其中：预付账款 | B51: =IFERROR(VLOOKUP("预付款项*",bsa_a,MATCH(B$5,header_a,0),0),"--") -> 2.7997105 | C51: 2.36246199 | D51: 2.20988844 | E51: 2.3895982 | F51: 2.51848361 | G51: 2.17074361 | H51: 1.88030916 | I51: 1.73525313 | J51: 1.84414713
A52: 占比 | B52: =IFERROR(IFERROR(VLOOKUP("预付款项*",bsa_a,MATCH(B$5,header_a,0),0),"--")/IFERROR(VLOOKUP("资产合计*",bsa_a,MATCH(B$5,header_a,0),0),"--"),"--") -> 0.005462138973 | C52: 0.004896892023 | D52: 0.004712853962 | E52: 0.005335723698 | F52: 0.005616553947 | G52: 0.004897545604 | H52: 0.00470986097 | I52: 0.004516109872 | J52: 0.004654654571
A53: 其中：其他应收款 | B53: =IFERROR(VLOOKUP("其他应收款*",bsa_a,MATCH(B$5,header_a,0),0),"--") -> 1.96870735 | C53: 1.4281189 | D53: 1.50387698 | E53: 1.60746854 | F53: 1.39827386 | G53: 2.17565952 | H53: 5.17996672 | I53: 5.26506578 | J53: 4.2881775
A54: 占比 | B54: =IFERROR(IFERROR(VLOOKUP("其他应收款*",bsa_a,MATCH(B$5,header_a,0),0),"--")/IFERROR(VLOOKUP("资产合计*",bsa_a,MATCH(B$5,header_a,0),0),"--"),"--") -> 0.003840880385 | C54: 0.002960193255 | D54: 0.003207199267 | E54: 0.003589309694 | F54: 0.003118336977 | G54: 0.004908636685 | H54: 0.01297495305 | I54: 0.01370267838 | J54: 0.01082342329
A55: 三、金融性资产
A56: 金融性资产合计 | B56: =IFERROR(IFERROR(VLOOKUP("交易性金融资产*",bsa_a,MATCH(B$5,header_a,0),0),0)+IFERROR(VLOOKUP("其他流动资产*",bsa_a,MATCH(B$5,header_a,0),0),0)+IFERROR(VLOOKUP("一年内到期非流动资产*",bsa_a,MATCH(B$5,header_a,0),0),0)+IFERROR(VLOOKUP("可供出售金融资产*",bsa_a,MATCH(B$5,header_a,0),0),0)+IFERROR(VLOOKUP("长期股权投资*",bsa_a,MATCH(B$5,header_a,0),0),0)+IFERROR(VLOOKUP("投资性房地产*",bsa_a,MATCH(B$5,header_a,0),0),0)+IFERROR(VLOOKUP("持有至到期投资*",bsa_a,MATCH(B$5,header_a,0),0),0),"--") -> 3.64006884 | C56: 3.59994782 | D56: 3.43560385 | E56: 3.93680497 | F56: 3.40911045 | G56: 3.45197809 | H56: 6.50859847 | I56: 7.59841176 | J56: 11.84237526
A57: 其中：交易性金融资产 | B57: =IFERROR(VLOOKUP("交易性金融资产*",bsa_a,MATCH(B$5,header_a,0),0),"--") -> 0.08586397 | C57: 0.07632036 | D57: 0.04233129 | E57: 0.06320181 | F57: 0.0465116 | G57: 0 | H57: 3.02876712 | I57: 3.00287671 | J57: 8.0885863
A58: 占比 | B58: =IFERROR(IFERROR(VLOOKUP("交易性金融资产*",bsa_a,MATCH(B$5,header_a,0),0),"--")/IFERROR(VLOOKUP("资产合计*",bsa_a,MATCH(B$5,header_a,0),0),"--"),"--") -> 0.0001675176547 | C58: 0.0001581962223 | D58: 9.027658781e-05 | E58: 0.0001411230538 | F58: 0.000103727064 | G58: 0 | H58: 0.007586556694 | I58: 0.007815183225 | J58: 0.02041571119
A59: 其中：其他流动资产 | B59: =IFERROR(VLOOKUP("其他流动资产*",bsa_a,MATCH(B$5,header_a,0),0),"--") -> 1.11341355 | C59: =IFERROR(VLOOKUP("其他流动资产*",bsa_a,MATCH(C$5,header_a,0),0),"--") -> 1.08932664 | D59: 1.007447 | E59: 1.58536366 | F59: 1.17273325 | G59: 1.32199905 | H59: 1.38319556 | I59: 2.528046 | J59: 1.73673932
A60: 占比 | B60: =IFERROR(IFERROR(VLOOKUP("其他流动资产*",bsa_a,MATCH(B$5,header_a,0),0),"--")/IFERROR(VLOOKUP("资产合计*",bsa_a,MATCH(B$5,header_a,0),0),"--"),"--") -> 0.002172231574 | C60: 0.002257947411 | D60: 0.002148502386 | E60: 0.003539951801 | F60: 0.002615351372 | G60: 0.002982641804 | H60: 0.003464674278 | I60: 0.006579405217 | J60: 0.004383555674
A61: 其中：一年内到期 | B61: =IFERROR(VLOOKUP("一年内到期非流动资产*",bsa_a,MATCH(B$5,header_a,0),0),"--") -> 0 | C61: 0 | D61: 0 | E61: 0 | F61: 0 | G61: 0 | H61: 0 | I61: 0 | J61: 0
A62: 占比 | B62: =IFERROR(IFERROR(VLOOKUP("一年内到期非流动资产*",bsa_a,MATCH(B$5,header_a,0),0),"--")/IFERROR(VLOOKUP("资产合计*",bsa_a,MATCH(B$5,header_a,0),0),"--"),"--") -> 0 | C62: 0 | D62: 0 | E62: 0 | F62: 0 | G62: 0 | H62: 0 | I62: 0 | J62: 0
A63: 其中：可供出售金融资产 | B63: =IFERROR(VLOOKUP("可供出售金融资产*",bsa_a,MATCH(B$5,header_a,0),0),"--") -> 0 | C63: 0 | D63: 0 | E63: 0 | F63: 0 | G63: 0 | H63: 0 | I63: 0 | J63: 0
A64: 占比 | B64: =IFERROR(IFERROR(VLOOKUP("可供出售金融资产*",bsa_a,MATCH(B$5,header_a,0),0),"--")/IFERROR(VLOOKUP("资产合计*",bsa_a,MATCH(B$5,header_a,0),0),"--"),"--") -> 0 | C64: 0 | D64: 0 | E64: 0 | F64: 0 | G64: 0 | H64: 0 | I64: 0 | J64: 0
A65: 其中：投资性房地产 | B65: =IFERROR(VLOOKUP("投资性房地产*",bsa_a,MATCH(B$5,header_a,0),0),"--") -> 0 | C65: 0 | D65: 0 | E65: 0 | F65: 0 | G65: 0 | H65: 0 | I65: 0 | J65: 0
A66: 占比 | B66: =IFERROR(IFERROR(VLOOKUP("投资性房地产*",bsa_a,MATCH(B$5,header_a,0),0),"--")/IFERROR(VLOOKUP("资产合计*",bsa_a,MATCH(B$5,header_a,0),0),"--"),"--") -> 0 | C66: 0 | D66: 0 | E66: 0 | F66: 0 | G66: 0 | H66: 0 | I66: 0 | J66: 0
A67: 其中：长期股权投资 | B67: =IFERROR(VLOOKUP("长期股权投资*",bsa_a,MATCH(B$5,header_a,0),0),"--") -> 2.44079132 | C67: 2.43430082 | D67: 2.38582556 | E67: 2.2882395 | F67: 2.1898656 | G67: 2.12997904 | H67: 2.09663579 | I67: 2.06748905 | J67: 2.01704964
A68: 占比 | B68: =IFERROR(IFERROR(VLOOKUP("长期股权投资*",bsa_a,MATCH(B$5,header_a,0),0),"--")/IFERROR(VLOOKUP("资产合计*",bsa_a,MATCH(B$5,header_a,0),0),"--"),"--") -> 0.004761899987 | C68: 0.005045798966 | D68: 0.005088061117 | E68: 0.005109400287 | F68: 0.004883692008 | G68: 0.004805574199 | H68: 0.005251723113 | I68: 0.005380775604 | J68: 0.005091063058
A69: 四、经营性负债
A70: 经营性负债合计 | B70: =IFERROR(IFERROR(VLOOKUP("应付账款*",bsa_a,MATCH(B$5,header_a,0),0),0)+IFERROR(VLOOKUP("应付票据*",bsa_a,MATCH(B$5,header_a,0),0),0)+IFERROR(VLOOKUP("预收款项*",bsa_a,MATCH(B$5,header_a,0),0),0)+IFERROR(VLOOKUP("应付职工薪酬*",bsa_a,MATCH(B$5,header_a,0),0),0)+IFERROR(VLOOKUP("应交税费*",bsa_a,MATCH(B$5,header_a,0),0),0)+IFERROR(VLOOKUP("长期应付款合计*",bsa_a,MATCH(B$5,header_a,0),0),0)+IFERROR(VLOOKUP("递延收益-非流动*",bsa_a,MATCH(B$5,header_a,0),0),0),"--") -> 56.7060181 | C70: 45.22275114 | D70: 47.0087754 | E70: 46.75932697 | F70: 43.07927453 | G70: 40.00688541 | H70: 39.77680163 | I70: 39.93473566 | J70: 35.52074213
A71: 其中：长期经营性负债 | B71: =IFERROR(IFERROR(VLOOKUP("长期应付款合计*",bsa_a,MATCH(B$5,header_a,0),0),0)+IFERROR(VLOOKUP("递延收益-非流动*",bsa_a,MATCH(B$5,header_a,0),0),0),"--") -> 6.52468135 | C71: 6.68192361 | D71: 6.84839045 | E71: 6.77682302 | F71: 6.90567354 | G71: 7.0651654 | H71: 7.18075392 | I71: 7.3578939 | J71: 7.39248838
A72: 占总资产比例 | B72: =IFERROR(IFERROR(IFERROR(VLOOKUP("长期应付款合计*",bsa_a,MATCH(B$5,header_a,0),0),0)+IFERROR(VLOOKUP("递延收益-非流动*",bsa_a,MATCH(B$5,header_a,0),0),0),"--")/IFERROR(VLOOKUP("资产合计*",bsa_a,MATCH(B$5,header_a,0),0),"--"),"--") -> 0.01272942909 | C72: 0.01385023698 | D72: 0.01460501964 | E72: 0.01513193941 | F72: 0.01540057193 | G72: 0.01594014585 | H72: 0.01798659143 | I72: 0.01914940057 | J72: 0.01865874977
A73: 其中：短期经营性负债 | B73: =IFERROR(IFERROR(VLOOKUP("应付账款*",bsa_a,MATCH(B$5,header_a,0),0),0)+IFERROR(VLOOKUP("应付票据*",bsa_a,MATCH(B$5,header_a,0),0),0)+IFERROR(VLOOKUP("预收款项*",bsa_a,MATCH(B$5,header_a,0),0),0)+IFERROR(VLOOKUP("应付职工薪酬*",bsa_a,MATCH(B$5,header_a,0),0),0)+IFERROR(VLOOKUP("应交税费*",bsa_a,MATCH(B$5,header_a,0),0),0),"--") -> 50.18133675 | C73: 38.54082753 | D73: 40.16038495 | E73: 39.98250395 | F73: 36.17360099 | G73: 32.94172001 | H73: 32.59604771 | I73: 32.57684176 | J73: 28.12825375
A74: 占总资产比例 | B74: =IFERROR(IFERROR(IFERROR(VLOOKUP("应付账款*",bsa_a,MATCH(B$5,header_a,0),0),0)+IFERROR(VLOOKUP("应付票据*",bsa_a,MATCH(B$5,header_a,0),0),0)+IFERROR(VLOOKUP("预收款项*",bsa_a,MATCH(B$5,header_a,0),0),0)+IFERROR(VLOOKUP("应付职工薪酬*",bsa_a,MATCH(B$5,header_a,0),0),0)+IFERROR(VLOOKUP("应交税费*",bsa_a,MATCH(B$5,header_a,0),0),0),"--")/IFERROR(VLOOKUP("资产合计*",bsa_a,MATCH(B$5,header_a,0),0),"--"),"--") -> 0.09790206351 | C74: 0.07988711424 | D74: 0.08564687064 | E74: 0.0892767637 | F74: 0.08067194903 | G74: 0.07432180166 | H74: 0.08164766526 | I74: 0.08478336337 | J74: 0.07099612757
A75: 其中：应付账款+票据 | B75: =IFERROR(VLOOKUP("应付账款*",bsa_a,MATCH(B$5,header_a,0),0),"--")+IFERROR(VLOOKUP("应付票据*",bsa_a,MATCH(B$5,header_a,0),0),"--") -> 39.2860724 | C75: 31.34715768 | D75: 33.71181312 | E75: 31.48222805 | F75: 29.06458927 | G75: 26.8884144 | H75: 26.52359721 | I75: 24.6600539 | J75: 21.18040227
A76: 其中：预收款项 | B76: =IFERROR(VLOOKUP("预收款项*",bsa_a,MATCH(B$5,header_a,0),0),"--") -> 0 | C76: 0 | D76: 0 | E76: 0 | F76: 0 | G76: 0 | H76: 0 | I76: 0 | J76: 0
A77: 占比 | B77: =IFERROR(IFERROR(VLOOKUP("预收款项*",bsa_a,MATCH(B$5,header_a,0),0),"--")/IFERROR(VLOOKUP("资产合计*",bsa_a,MATCH(B$5,header_a,0),0),"--"),"--") -> 0 | C77: 0 | D77: 0 | E77: 0 | F77: 0 | G77: 0 | H77: 0 | I77: 0 | J77: 0
A78: 其中：应付账款 | B78: =IFERROR(VLOOKUP("应付账款*",bsa_a,MATCH(B$5,header_a,0),0),"--") -> 19.90149244 | C78: 16.01317854 | D78: 14.83816409 | E78: 15.24955089 | F78: 12.88639402 | G78: 13.46173049 | H78: 12.4810149 | I78: 12.99794957 | J78: 12.23807669
A79: 占比 | B79: =IFERROR(IFERROR(VLOOKUP("应付账款*",bsa_a,MATCH(B$5,header_a,0),0),"--")/IFERROR(VLOOKUP("资产合计*",bsa_a,MATCH(B$5,header_a,0),0),"--"),"--") -> 0.03882712783 | C79: 0.0331919864 | D79: 0.03164417677 | E79: 0.03405065758 | F79: 0.02873837531 | G79: 0.03037182221 | H79: 0.03126286155 | I79: 0.03382801469 | J79: 0.03088908617
A80: 其中：应付票据 | B80: =IFERROR(VLOOKUP("应付票据*",bsa_a,MATCH(B$5,header_a,0),0),"--") -> 19.38457996 | C80: 15.33397914 | D80: 18.87364903 | E80: 16.23267716 | F80: 16.17819525 | G80: 13.42668391 | H80: 14.04258231 | I80: 11.66210433 | J80: 8.94232558
A81: 占比 | B81: =IFERROR(IFERROR(VLOOKUP("应付票据*",bsa_a,MATCH(B$5,header_a,0),0),"--")/IFERROR(VLOOKUP("资产合计*",bsa_a,MATCH(B$5,header_a,0),0),"--"),"--") -> 0.03781864935 | C81: 0.0317841474 | D81: 0.04025033572 | E81: 0.03624587607 | F81: 0.03607953057 | G81: 0.03029275151 | H81: 0.03517432757 | I81: 0.03035139 | J81: 0.02257056173
A82: 其中：应付职工薪酬 | B82: =IFERROR(VLOOKUP("应付职工薪酬*",bsa_a,MATCH(B$5,header_a,0),0),"--") -> 5.86485712 | C82: 4.56098076 | D82: 3.51744704 | E82: 5.30495062 | F82: 4.73368195 | G82: 4.09203975 | H82: 3.38030488 | I82: 4.89357281 | J82: 4.1270596
A83: 占比 | B83: =IFERROR(IFERROR(VLOOKUP("应付职工薪酬*",bsa_a,MATCH(B$5,header_a,0),0),"--")/IFERROR(VLOOKUP("资产合计*",bsa_a,MATCH(B$5,header_a,0),0),"--"),"--") -> 0.01144213469 | C83: 0.00945396387 | D83: 0.007501380577 | E83: 0.01184540177 | F83: 0.01055674134 | G83: 0.009232297724 | H83: 0.008467100176 | I83: 0.0127358436 | J83: 0.01041675934
A84: 其中：应交税费 | B84: =IFERROR(VLOOKUP("应交税费*",bsa_a,MATCH(B$5,header_a,0),0),"--") -> 5.03040723 | C84: 2.63268909 | D84: 2.93112479 | E84: 3.19532528 | F84: 2.37532977 | G84: 1.96126586 | H84: 2.69214562 | I84: 3.02321505 | J84: 2.82079188
A85: 占比 | B85: =IFERROR(IFERROR(VLOOKUP("应交税费*",bsa_a,MATCH(B$5,header_a,0),0),"--")/IFERROR(VLOOKUP("资产合计*",bsa_a,MATCH(B$5,header_a,0),0),"--"),"--") -> 0.009814151635 | C85: 0.00545701656 | D85: 0.006250977575 | E85: 0.007134828282 | F85: 0.005297301814 | G85: 0.004424930216 | H85: 0.006743375956 | I85: 0.007868115087 | J85: 0.007119720333
A86: 其中：其他应付款 | B86: =IFERROR(VLOOKUP("其他应付款*",bsa_a,MATCH(B$5,header_a,0),0),"--") -> 18.23225012 | C86: 16.92776829 | D86: 15.53516687 | E86: 14.96548775 | F86: 14.34420322 | G86: 13.86434237 | H86: 13.63483534 | I86: 13.76997551 | J86: 13.2206166
A87: 占比 | B87: =IFERROR(IFERROR(VLOOKUP("其他应付款*",bsa_a,MATCH(B$5,header_a,0),0),"--")/IFERROR(VLOOKUP("资产合计*",bsa_a,MATCH(B$5,header_a,0),0),"--"),"--") -> 0.03557049343 | C87: 0.03508774061 | D87: 0.03313061936 | E87: 0.0334163742 | F87: 0.03198948403 | G87: 0.03128017916 | H87: 0.03415298939 | I87: 0.03583726274 | J87: 0.0333690314
A88: 五、金融性负债
A89: 金融性负债合计 | B89: =IFERROR((IFERROR(VLOOKUP("短期借款*",bsa_a,MATCH(B$5,header_a,0),0)+VLOOKUP("一年内到期的非流动负债*",bsa_a,MATCH(B$5,header_a,0),0)+VLOOKUP("其他流动负债*",bsa_a,MATCH(B$5,header_a,0),0),0)+IFERROR(VLOOKUP("长期借款*",bsa_a,MATCH(B$5,header_a,0),0)+VLOOKUP("应付债券*",bsa_a,MATCH(B$5,header_a,0),0),0)),"--") -> 136.4028187 | C89: 108.0663883 | D89: 96.67640483 | E89: 90.70044547 | F89: 102.3690175 | G89: 114.5919548 | H89: 103.0458218 | I89: 96.52720934 | J89: 119.8380588
A90: 其中：短期金融负债 | B90: =IFERROR((IFERROR(VLOOKUP("短期借款*",bsa_a,MATCH(B$5,header_a,0),0)+VLOOKUP("一年内到期的非流动负债*",bsa_a,MATCH(B$5,header_a,0),0)+VLOOKUP("其他流动负债*",bsa_a,MATCH(B$5,header_a,0),0),0)),"--") -> 112.6478187 | C90: 81.80638835 | D90: 78.2860177 | E90: 67.3232625 | F90: 76.97114201 | G90: 79.37428412 | H90: 67.82968074 | I90: 64.68936006 | J90: 90.00161453
A91: 占总资产比例 | B91: =IFERROR(IFERROR((IFERROR(VLOOKUP("短期借款*",bsa_a,MATCH(B$5,header_a,0),0)+VLOOKUP("一年内到期的非流动负债*",bsa_a,MATCH(B$5,header_a,0),0)+VLOOKUP("其他流动负债*",bsa_a,MATCH(B$5,header_a,0),0),0)),"--")/IFERROR(VLOOKUP("资产合计*",bsa_a,MATCH(B$5,header_a,0),0),"--"),"--") -> 0.2197720232 | C91: 0.1695676173 | D91: 0.1669543865 | E91: 0.1503258277 | F91: 0.1716559003 | G91: 0.1790811105 | H91: 0.169902042 | I91: 0.1683582945 | J91: 0.2271654033
A92: 其中：短期借款 | B92: =IFERROR(VLOOKUP("短期借款*",bsa_a,MATCH(B$5,header_a,0),0),"--") -> 70.78352949 | C92: 64.76964032 | D92: 68.33773813 | E92: 59.25550792 | F92: 64.9074102 | G92: 73.35479458 | H92: 67.82968074 | I92: 61.65804499 | J92: 74.79842471
A93: 占比 | B93: =IFERROR(IFERROR(VLOOKUP("短期借款*",bsa_a,MATCH(B$5,header_a,0),0),"--")/IFERROR(VLOOKUP("资产合计*",bsa_a,MATCH(B$5,header_a,0),0),"--"),"--") -> 0.1380962336 | C93: 0.1342539843 | D93: 0.145738479 | E93: 0.1323113726 | F93: 0.1447521713 | G93: 0.165500177 | H93: 0.169902042 | I93: 0.1604690986 | J93: 0.1887923278
A94: 其中：即期长期负债 | B94: =IFERROR(VLOOKUP("一年内到期的非流动负债*",bsa_a,MATCH(B$5,header_a,0),0),"--") -> 24.80303844 | C94: 0 | D94: 0 | E94: 0 | F94: 0 | G94: 0 | H94: 0 | I94: 0 | J94: 0
A95: 占比 | B95: =IFERROR(IFERROR(VLOOKUP("一年内到期的非流动负债*",bsa_a,MATCH(B$5,header_a,0),0),"--")/IFERROR(VLOOKUP("资产合计*",bsa_a,MATCH(B$5,header_a,0),0),"--"),"--") -> 0.04838987564 | C95: 0 | D95: 0 | E95: 0 | F95: 0 | G95: 0 | H95: 0 | I95: 0 | J95: 0
A96: 其中：其他流动负债 | B96: =IFERROR(VLOOKUP("其他流动负债*",bsa_a,MATCH(B$5,header_a,0),0),"--") -> 17.06125081 | C96: 17.03674803 | D96: 9.94827957 | E96: 8.06775458 | F96: 12.06373181 | G96: 6.01948954 | H96: 0 | I96: 3.03131507 | J96: 15.20318982
A97: 占比 | B97: =IFERROR(IFERROR(VLOOKUP("其他流动负债*",bsa_a,MATCH(B$5,header_a,0),0),"--")/IFERROR(VLOOKUP("资产合计*",bsa_a,MATCH(B$5,header_a,0),0),"--"),"--") -> 0.03328591402 | C97: 0.03531363293 | D97: 0.02121590753 | E97: 0.01801445503 | F97: 0.02690372899 | G97: 0.01358093346 | H97: 0 | I97: 0.007889195919 | J97: 0.03837307547
A98: 其中：长期金融负债 | B98: =IFERROR((IFERROR(VLOOKUP("其他非流动负债*",bsa_a,MATCH(B$5,header_a,0),0),0)+IFERROR(VLOOKUP("长期借款*",bsa_a,MATCH(B$5,header_a,0),0)+VLOOKUP("应付债券*",bsa_a,MATCH(B$5,header_a,0),0),0)),"--") -> 23.755 | C98: 26.26 | D98: 18.39038713 | E98: 23.37718297 | F98: 25.39787548 | G98: 35.21767066 | H98: 35.2161411 | I98: 31.83784928 | J98: 29.83644425
A99: 其中：长期借款 | B99: =IFERROR(VLOOKUP("长期借款*",bsa_a,MATCH(B$5,header_a,0),0),"--") -> 23.755 | C99: 26.26 | D99: 6.4 | E99: 11.3894 | F99: 13.4097 | G99: 23.2297 | H99: 23.23 | I99: 19.85 | J99: 17.85
A100: 占比 | B100: =IFERROR(IFERROR(VLOOKUP("长期借款*",bsa_a,MATCH(B$5,header_a,0),0),"--")/IFERROR(VLOOKUP("资产合计*",bsa_a,MATCH(B$5,header_a,0),0),"--"),"--") -> 0.04634518866 | C100: 0.05443151469 | D100: 0.01364877286 | E100: 0.02543134301 | F100: 0.02990541736 | G100: 0.05240992745 | H100: 0.05818727721 | I100: 0.05166092451 | J100: 0.04505366342
A101: 其中：应付债券 | B101: =IFERROR(VLOOKUP("应付债券*",bsa_a,MATCH(B$5,header_a,0),0),"--") -> 0 | C101: 0 | D101: 11.99038713 | E101: 11.98778297 | F101: 11.98817548 | G101: 11.98797066 | H101: 11.9861411 | I101: 11.98784928 | J101: 11.98644425
A102: 占比 | B102: =IFERROR(IFERROR(VLOOKUP("应付债券*",bsa_a,MATCH(B$5,header_a,0),0),"--")/IFERROR(VLOOKUP("资产合计*",bsa_a,MATCH(B$5,header_a,0),0),"--"),"--") -> 0 | C102: 0 | D102: 0.0255709485 | E102: 0.02676746981 | F102: 0.02673522831 | G102: 0.02704678376 | H102: 0.03002328518 | I102: 0.03119916255 | J102: 0.03025396218
A103: 其中：其他非流动负债 | B103: =IFERROR(VLOOKUP("其他非流动负债*",bsa_a,MATCH(B$5,header_a,0),0),"--") -> 0 | C103: 0 | D103: 0 | E103: 0 | F103: 0 | G103: 0 | H103: 0 | I103: 0 | J103: 0
A104: 占比 | B104: =IFERROR(IFERROR(VLOOKUP("其他非流动负债*",bsa_a,MATCH(B$5,header_a,0),0),"--")/IFERROR(VLOOKUP("资产合计*",bsa_a,MATCH(B$5,header_a,0),0),"--"),"--") -> 0 | C104: 0 | D104: 0 | E104: 0 | F104: 0 | G104: 0 | H104: 0 | I104: 0 | J104: 0
A105: 六、按来源计股东权益
A106: 所有者权益合计 | B106: =IFERROR(VLOOKUP("所有者权益（或股东权益）合计*",bsa_a,MATCH(B$5,header_a,0),0),"--") -> 284.4763756 | C106: 265.3955239 | D106: 271.4003676 | E106: 262.9410429 | F106: 258.1261343 | G106: 249.4891144 | H106: 225.2330928 | I106: 215.909073 | J106: 209.9467485
A107: 其中：实收资本 | B107: =IFERROR(VLOOKUP("实收资本*",bsa_a,MATCH(B$5,header_a,0),0),"--") -> 26.09743532 | C107: 26.09743532 | D107: 26.09743532 | E107: 26.09743532 | F107: 26.09743532 | G107: 26.09743532 | H107: 25.08617532 | I107: 25.08617532 | J107: 25.08617532
A108: 占总资产比例 | B108: =IFERROR(IFERROR(VLOOKUP("实收资本*",bsa_a,MATCH(B$5,header_a,0),0),"--")/IFERROR(VLOOKUP("资产合计*",bsa_a,MATCH(B$5,header_a,0),0),"--"),"--") -> 0.05091519947 | C108: 0.05409455194 | D108: 0.05565593232 | E108: 0.05827285278 | F108: 0.0582007573 | G108: 0.0588799981 | H108: 0.06283668693 | I108: 0.06528841357 | J108: 0.06331787672
A109: 其中：未分配利润 | B109: =IFERROR(VLOOKUP("未分配利润*",bsa_a,MATCH(B$5,header_a,0),0),"--") -> 125.3657214 | C109: 110.1764247 | D109: 121.1666837 | E109: 112.4548705 | F109: 109.4400902 | G109: 101.1748838 | H109: 111.6080284 | I109: 103.0554856 | J109: 96.70135621
A110: 占总资产比例 | B110: =IFERROR(IFERROR(VLOOKUP("未分配利润*",bsa_a,MATCH(B$5,header_a,0),0),"--")/IFERROR(VLOOKUP("资产合计*",bsa_a,MATCH(B$5,header_a,0),0),"--"),"--") -> 0.2445842142 | C110: 0.2283727981 | D110: 0.258402585 | E110: 0.2511000041 | F110: 0.2440659802 | G110: 0.2282667585 | H110: 0.2795595043 | I110: 0.268208648 | J110: 0.2440756501
A111: 其中：资本公积 | B111: =IFERROR(VLOOKUP("资本公积*",bsa_a,MATCH(B$5,header_a,0),0),"--") -> 97.00750924 | C111: 97.00750924 | D111: 97.00750924 | E111: 97.00750924 | F111: 97.00750924 | G111: 97.00762143 | H111: 62.22912435 | I111: 62.22912435 | J111: 62.23078157
A112: 占总资产比例 | B112: =IFERROR(IFERROR(VLOOKUP("资本公积*",bsa_a,MATCH(B$5,header_a,0),0),"--")/IFERROR(VLOOKUP("资产合计*",bsa_a,MATCH(B$5,header_a,0),0),"--"),"--") -> 0.1892583169 | C112: 0.2010763772 | D112: 0.206880228 | E112: 0.2166076565 | F112: 0.2163396684 | G112: 0.2188647465 | H112: 0.155873582 | I112: 0.16195537 | J112: 0.1570714111
A113: 其中：盈余公积 | B113: =IFERROR(VLOOKUP("盈余公积*",bsa_a,MATCH(B$5,header_a,0),0),"--") -> 31.80340261 | C113: 31.80340261 | D113: 31.80340261 | E113: 31.80340261 | F113: 29.31419311 | G113: 29.31419311 | H113: 29.31419311 | I113: 29.31419311 | J113: 26.88959735
A114: 占总资产比例 | B114: =IFERROR(IFERROR(VLOOKUP("盈余公积*",bsa_a,MATCH(B$5,header_a,0),0),"--")/IFERROR(VLOOKUP("资产合计*",bsa_a,MATCH(B$5,header_a,0),0),"--"),"--") -> 0.06204734557 | C114: 0.06592183459 | D114: 0.06782459662 | E114: 0.07101368297 | F114: 0.06537455569 | G114: 0.06613751939 | H114: 0.07342716662 | I114: 0.07629210667 | J114: 0.06786974053
